{"text_format":"1","workbook":"xlsx","n_sheets":6,"sheets":["INSTRUCTIVO","PTEP CDMB 2026 ","Número de actividades","PTE2026","Hoja 1","PTE2026 (Borrador)"],"not_rendered":{"charts":0,"images":2,"macros":0,"external_links":1,"defined_names":5,"comments":2,"pivot_tables":0},"unopened":[],"bounds":{"document_bytes":16777216,"sheet_cells":100000,"rows_first":2000,"rows_last":500,"rows_between":2000,"halvings":0,"cell_chars":16384,"cell_head_chars":4096},"cells_cut":0,"cells_raw":0,"read":"whole","date_system":"1900"}

{"sheet":"INSTRUCTIVO","index":0,"n_rows":20,"n_cols":3,"rows_kept":20,"cut":false,"hidden":true,"merged":[[0,1,0,2],[3,0,3,2],[4,1,4,2],[5,0,5,2]]}
[]
[]
[]
[]
[null,"Instrucciones de Diligenciamiento Formato "]
[]
[]
[1,"OBJETIVO ","Enuncie la finalidad del plan de trabajo que está realizando (Ej: Establecer las actividades/tareas que el proceso debe realizar durante la vigencia, Planificar las visitas que debe realizar el proceso,  Establecer los tiempos y responsables de realizar las sensibilizaciones del proceso, Contar con una planificación, gestión y control de los proyectos a realizar, entre otros)."]
[2,"FECHA DE DILIGENCIAMIENTO ","Enuncie la fecha en la que está realizando la planificación del plan de trabajo."]
[3,"VIGENCIA","Diligencie el año para el cual está haciendo el plan de trabajo."]
[4,"PROCESO","Diligencie el proceso al cual pertnece el plan de trabajo "]
[5,"TEMA ","Enuncie el tema al cual está relacionada la actividad a realizar."]
[6,"ACTIVIDAD ","Enuncie la actividad que tiene planificado realizar empleando verbos en infinitivo (Ej: Elaborar/actualizar un documento, Hacer una mesa de trabajo, Socializar/capacitar/divulgar, Realizar una visita, entre otros)."]
[7,"PRODUCTO ","Enuncie el producto o evidencia de la realización de la actividad (Ej: Un documento (matriz, guía, procedimiento, entre otros), un acta de reunión, una lista de asistencia, una lista de chequeo, un registro fotográfico, entre otros)."]
[8,"META NÚMERICA","En caso de que deba realizar la misma actividad varias veces al mes, enuncie la meta planteada (Ej: Si en el mes de agosto el proceso planifica hacer 3 socializaciones, la meta numérica sería 3). En caso de que sólo deba realizar la actividad una vez al mes, la meta numérica será 1.\nNota: Es importante diligenciar esta sección, ya que se requiere para que el Excel arroje el porcentaje de avance en las actividades."]
[9,"RESPONSABLE ","Enuncie la persona responsable de ejecutar la actividad"]
[10,"FECHA  ","Enuncie la fecha para la cual tiene planificada realizar la actividad. Si la meta numérica fue superior a uno, enuncie la fecha para la cual tiene contemplada cumplir la totalidad de la meta (Ej: Si la meta es realizar 3 socializaciones en el mes de agosto, una el 10/08, otra el 17/08 y otra el 24/08, la fecha será 24/08/2023)."]
[11,"NÚMERO DE PRODUCTOS A ENTREGAR MENSUALMENTE ","Esta sección está dividida por meses, para que el proceso pueda ubicar la meta numérica en el mes correspondiente. Cada mes tiene una P (Planeado) y una E (Ejecutado). Al momento de hacer la planificación del plan, se debe colocar en la columna de la P la meta numérica, y al momento de ejecutarla se marca en la columna E (Ej: Si la meta es realizar 3 socializaciones en el mes de agosto, al momento de hacer el plan, en la columna P de agosto se pone el número 3, si al finalizar agosto sólo se hicieron dos socializaciones se escribe en la columna E de agosto el número 2). Lo anterior con el fin de que el proceso pueda tener conocimiento del estado de avance en sus metas.\nNota: Si la meta numérica es 1, colocar en P el número 1, y cuando se haya realizado la actividad, colocar el número 1 en la columna E.\nNota: Es importante diligenciar las columnas P y E, ya que se requieren para que el Excel arroje el porcentaje de avance en las actividades."]
[12,"PORCENTAJE DE AVANCE ","La columna de porcentaje de avance no se debe diligenciar, puesto que el Excel está formulado para que arroje el porcentaje de avance, teniendo en cuenta la meta numérica planteada y las actividades ejecutadas."]
[13,"ESTADO ","En la columna de Estado, seleccione la opción correspondiente:\nEjecutada: Se selecciona esta opción si ya se cumplió la totalidad de la meta numérica establecida. \nEn proceso: Se selecciona esta opción si ya se inició a hacer la actividad pero aún no ha finalizado completamente (Ej: La meta son 3 socializaciones y se han realizado 2).\nPendiente: Se selecciona esta opción si la actividad no se ha realizado."]

{"sheet":"PTEP CDMB 2026 ","index":1,"n_rows":80,"n_cols":21,"rows_kept":80,"cut":false,"hidden":false,"merged":[[12,20,14,20],[0,0,3,1],[3,2,3,5],[2,2,2,5],[2,6,2,17],[3,6,3,17],[2,18,2,20],[3,18,3,20],[4,2,5,20],[0,2,1,20],[12,19,13,19],[13,9,13,10],[13,11,13,12],[13,13,13,14],[12,16,13,16],[12,18,13,18],[75,5,75,14],[76,5,76,14],[12,8,13,8],[12,9,12,14],[12,15,13,15],[12,5,13,5],[12,6,13,6],[12,7,13,7],[72,7,72,14],[72,15,72,18],[74,0,74,1],[74,5,74,14],[7,1,7,4],[9,1,9,4],[12,17,13,17],[12,0,14,0],[12,1,14,1],[12,2,14,2],[12,3,14,3],[12,4,14,4]]}
[null,null,"CORPORACIÓN AUTÓNOMA REGIONAL PARA LA DEFENSA DE LA MESETA DE BUCARAMANGA - CDMB"]
[]
[null,null,"Elaboró:",null,null,null,"Revisó:",null,null,null,null,null,null,null,null,null,null,null,"Aprobo:"]
[null,null,"Equipo Líder SIGC",null,null,null,"Representante de la Dirección",null,null,null,null,null,null,null,null,null,null,null,"Director (a) General"]
["Código:","Versión:","Programa de Transparencia y Ética Pública 2026 - Componente Programático"]
["E-GE-FOXX",1]
[]
["Vigencia de Ejecución:",2026]
["Descripción del Cambio:  ","Determinar las estrategias, actividades y productos a realizar en la vigencia 2026 con el fin de fortalecer la Administración del riesgo, la transparencia y la ética como cultura institucional."]
["Fecha de Aprobación:","30 de Enero de 2026"]
[]
[]
["TEMATICAS","ACCIÓN ESTRATÉGICA","No.","ACTIVIDAD","PRODUCTO ","RESPONSABLE ","META NUMÉRICA","FECHA DE INICIO","FECHA DE FIN","NÚMERO DE PRODUCTOS A ENTREGAR CON CORTE CUATRIMESTRALMENTE",null,null,null,null,null,"AVANCE CUALITATIVO CORTE\nABRIL","AVANCE CUALITATIVO CORTE\nAGOSTO","AVANCE CUALITATIVO CORTE\nDICIEMBRE","% AVANCE CUANTITATIVO ACUMULADO","OBSERVACIONES DEL MONITOREO / SEGUIMIENTO","ESTADO"]
[null,null,null,null,null,null,null,null,null,"30 - ABR",null,"30 - AGO",null,"30 - DIC"]
[null,null,null,null,null,null,null,null,null,"P","E","P","E","P","E"]
[{"$f":"+_xlfn.IFS(B16='Número de actividades'!$C$3,'Número de actividades'!$B$3,B16='Número de actividades'!$C$4,'Número de actividades'!$B$3,B16='Número de actividades'!$C$5,'Número de actividades'!$B$3,B16='Número de actividades'!$C$6,'Número de actividades'!$B$3,B16='Número de actividades'!$C$7,'Número de actividades'!$B$7,B16='Número de actividades'!$C$8,'Número de actividades'!$B$7,B16='Número de actividades'!$C$9,'Número de actividades'!$B$9,B16='Número de actividades'!$C$10,'Número de actividades'!$B$9,B16='Número de actividades'!$C$11,'Número de actividades'!$B$9,B16='Número de actividades'!$B$12,'Número de actividades'!$B$12)","v":"1. Administración de riesgos"},"1.1. Gestión de riesgos para la integridad pública","1.1.1","Actualizar los Mapas de riesgos clasificados como riesgos de corrupción vigencia 2026 en todos los procesos de la Entidad","Un Mapa de Riesgos de Corrupción actualizado y publicado en la página web de la Entidad","Lideres de Proceso\nOficina Asesora de Direccionamiento Estratégico Institucional - ADEI",1,"2026-01-02","2026-01-31",1,0,0,0,0,0,null,null,null,{"$f":"((K16+M16+O16)/(J16+L16+N16))","v":0},null,{"$f":"+$A$79","v":"Acciones aún no iniciadas"}]
[{"$f":"+_xlfn.IFS(B17='Número de actividades'!$C$3,'Número de actividades'!$B$3,B17='Número de actividades'!$C$4,'Número de actividades'!$B$3,B17='Número de actividades'!$C$5,'Número de actividades'!$B$3,B17='Número de actividades'!$C$6,'Número de actividades'!$B$3,B17='Número de actividades'!$C$7,'Número de actividades'!$B$7,B17='Número de actividades'!$C$8,'Número de actividades'!$B$7,B17='Número de actividades'!$C$9,'Número de actividades'!$B$9,B17='Número de actividades'!$C$10,'Número de actividades'!$B$9,B17='Número de actividades'!$C$11,'Número de actividades'!$B$9,B17='Número de actividades'!$B$12,'Número de actividades'!$B$12)","v":"1. Administración de riesgos"},"1.1. Gestión de riesgos para la integridad pública","1.1.2","Actualizar la FODA de la CDMB y las 16 FODAS por proceso, en donde se identifique las Fortalezas, oportunidades, debilidades y amenazas. ","Una FODA institucional actualizada y 16 FODAs por procesos actualizadas para la vigencia 2026","Lideres de Proceso\nOficina Asesora de Direccionamiento Estratégico Institucional - ADEI",1,"2026-03-01","2026-04-30",1,0,0,0,0,0,null,null,null,{"$f":"((K17+M17+O17)/(J17+L17+N17))","v":0},null,"Acciones aún no iniciadas"]
[{"$f":"+_xlfn.IFS(B18='Número de actividades'!$C$3,'Número de actividades'!$B$3,B18='Número de actividades'!$C$4,'Número de actividades'!$B$3,B18='Número de actividades'!$C$5,'Número de actividades'!$B$3,B18='Número de actividades'!$C$6,'Número de actividades'!$B$3,B18='Número de actividades'!$C$7,'Número de actividades'!$B$7,B18='Número de actividades'!$C$8,'Número de actividades'!$B$7,B18='Número de actividades'!$C$9,'Número de actividades'!$B$9,B18='Número de actividades'!$C$10,'Número de actividades'!$B$9,B18='Número de actividades'!$C$11,'Número de actividades'!$B$9,B18='Número de actividades'!$B$12,'Número de actividades'!$B$12)","v":"1. Administración de riesgos"},"1.1. Gestión de riesgos para la integridad pública","1.1.3","Actualizar los Mapas de riesgos de gestión vigencia 2026 en todos los procesos de la Entidad","Un Mapa de Riesgos de Gestión actualizado y publicado en el link del SIGC de la intranet.","Lideres de Proceso\nOficina Asesora de Direccionamiento Estratégico Institucional - ADEI",1,"2026-03-01","2026-04-30",1,0,0,0,0,0,null,null,null,{"$f":"((K18+M18+O18)/(J18+L18+N18))","v":0},null,"Acciones aún no iniciadas"]
[{"$f":"+_xlfn.IFS(B19='Número de actividades'!$C$3,'Número de actividades'!$B$3,B19='Número de actividades'!$C$4,'Número de actividades'!$B$3,B19='Número de actividades'!$C$5,'Número de actividades'!$B$3,B19='Número de actividades'!$C$6,'Número de actividades'!$B$3,B19='Número de actividades'!$C$7,'Número de actividades'!$B$7,B19='Número de actividades'!$C$8,'Número de actividades'!$B$7,B19='Número de actividades'!$C$9,'Número de actividades'!$B$9,B19='Número de actividades'!$C$10,'Número de actividades'!$B$9,B19='Número de actividades'!$C$11,'Número de actividades'!$B$9,B19='Número de actividades'!$B$12,'Número de actividades'!$B$12)","v":"1. Administración de riesgos"},"1.1. Gestión de riesgos para la integridad pública","1.1.4","Revisar y/o actualizar los Mapas de riesgos clasificados como riesgos de corrupción vigencia 2026 en todos los procesos de la Entidad, teniendo en cuenta la Guía para la gestión integral del riesgo en entidades públicas Versión 7.","Un Mapa de Riesgos de Corrupción actualizado y publicado en la página web de la Entidad","Lideres de Proceso\nOficina Asesora de Direccionamiento Estratégico Institucional - ADEI",1,"2026-03-01","2026-04-30",1,0,0,0,0,0,null,null,null,0,null,"Acciones aún no iniciadas"]
[{"$f":"+_xlfn.IFS(B20='Número de actividades'!$C$3,'Número de actividades'!$B$3,B20='Número de actividades'!$C$4,'Número de actividades'!$B$3,B20='Número de actividades'!$C$5,'Número de actividades'!$B$3,B20='Número de actividades'!$C$6,'Número de actividades'!$B$3,B20='Número de actividades'!$C$7,'Número de actividades'!$B$7,B20='Número de actividades'!$C$8,'Número de actividades'!$B$7,B20='Número de actividades'!$C$9,'Número de actividades'!$B$9,B20='Número de actividades'!$C$10,'Número de actividades'!$B$9,B20='Número de actividades'!$C$11,'Número de actividades'!$B$9,B20='Número de actividades'!$B$12,'Número de actividades'!$B$12)","v":"1. Administración de riesgos"},"1.1. Gestión de riesgos para la integridad pública","1.1.5","Actualizar la Política para la Gestión Integral de Riesgos de la CDMB","Una Política para la Gestión Integral de Riesgos de la CDMB actualizada ","Director General\nOficina Asesora de Direccionamiento Estratégico Institucional - ADEI\nLideres de Proceso",1,"2026-05-01","2026-07-31",0,0,1,0,0,0,null,null,null,0,null,"Acciones aún no iniciadas"]
[{"$f":"+_xlfn.IFS(B21='Número de actividades'!$C$3,'Número de actividades'!$B$3,B21='Número de actividades'!$C$4,'Número de actividades'!$B$3,B21='Número de actividades'!$C$5,'Número de actividades'!$B$3,B21='Número de actividades'!$C$6,'Número de actividades'!$B$3,B21='Número de actividades'!$C$7,'Número de actividades'!$B$7,B21='Número de actividades'!$C$8,'Número de actividades'!$B$7,B21='Número de actividades'!$C$9,'Número de actividades'!$B$9,B21='Número de actividades'!$C$10,'Número de actividades'!$B$9,B21='Número de actividades'!$C$11,'Número de actividades'!$B$9,B21='Número de actividades'!$B$12,'Número de actividades'!$B$12)","v":"1. Administración de riesgos"},"1.1. Gestión de riesgos para la integridad pública","1.1.6","Difundir y socializar la Política para la Gestión Integral de Riesgos de la CDMB","Dos eventos de difusión y socialización de la Política para la Gestión Integral de Riesgos de la CDMB actualizada ","\nOficina Asesora de Direccionamiento Estratégico Institucional - ADEI\n",2,"2026-05-01","2026-12-15",0,0,1,0,1,0,null,null,null,0,null,"Acciones aún no iniciadas"]
[{"$f":"+_xlfn.IFS(B22='Número de actividades'!$C$3,'Número de actividades'!$B$3,B22='Número de actividades'!$C$4,'Número de actividades'!$B$3,B22='Número de actividades'!$C$5,'Número de actividades'!$B$3,B22='Número de actividades'!$C$6,'Número de actividades'!$B$3,B22='Número de actividades'!$C$7,'Número de actividades'!$B$7,B22='Número de actividades'!$C$8,'Número de actividades'!$B$7,B22='Número de actividades'!$C$9,'Número de actividades'!$B$9,B22='Número de actividades'!$C$10,'Número de actividades'!$B$9,B22='Número de actividades'!$C$11,'Número de actividades'!$B$9,B22='Número de actividades'!$B$12,'Número de actividades'!$B$12)","v":"1. Administración de riesgos"},"1.1. Gestión de riesgos para la integridad pública","1.1.7","Evaluar el conocimiento de los funcionarios en relación con la Política para la Gestión Integral de Riesgos de la CDMB.","Dos evaluaciones del conocimiento adquirido sobre la administración y gestión del riesgo.","\nOficina Asesora de Direccionamiento Estratégico Institucional - ADEI\n",2,"2026-05-01","2026-12-15",0,0,1,0,1,0,null,null,null,{"$f":"((K22+M22+O22)/(J22+L22+N22))","v":0},null,"Acciones aún no iniciadas"]
[{"$f":"+_xlfn.IFS(B23='Número de actividades'!$C$3,'Número de actividades'!$B$3,B23='Número de actividades'!$C$4,'Número de actividades'!$B$3,B23='Número de actividades'!$C$5,'Número de actividades'!$B$3,B23='Número de actividades'!$C$6,'Número de actividades'!$B$3,B23='Número de actividades'!$C$7,'Número de actividades'!$B$7,B23='Número de actividades'!$C$8,'Número de actividades'!$B$7,B23='Número de actividades'!$C$9,'Número de actividades'!$B$9,B23='Número de actividades'!$C$10,'Número de actividades'!$B$9,B23='Número de actividades'!$C$11,'Número de actividades'!$B$9,B23='Número de actividades'!$B$12,'Número de actividades'!$B$12)","v":"1. Administración de riesgos"},"1.1. Gestión de riesgos para la integridad pública","1.1.8","Efectuar monitoreo cuatrimestral al mapa de riesgos de corrupción","Tres informes de monitoreo realizados","Líderes de Proceso\n\nOficina Asesora de Direccionamiento Estratégico Institucional - ADEI",3,"2026-03-01","2026-12-15",1,0,1,0,1,0,null,null,null,{"$f":"((K23+M23+O23)/(J23+L23+N23))","v":0},null,"Acciones aún no iniciadas"]
[{"$f":"+_xlfn.IFS(B24='Número de actividades'!$C$3,'Número de actividades'!$B$3,B24='Número de actividades'!$C$4,'Número de actividades'!$B$3,B24='Número de actividades'!$C$5,'Número de actividades'!$B$3,B24='Número de actividades'!$C$6,'Número de actividades'!$B$3,B24='Número de actividades'!$C$7,'Número de actividades'!$B$7,B24='Número de actividades'!$C$8,'Número de actividades'!$B$7,B24='Número de actividades'!$C$9,'Número de actividades'!$B$9,B24='Número de actividades'!$C$10,'Número de actividades'!$B$9,B24='Número de actividades'!$C$11,'Número de actividades'!$B$9,B24='Número de actividades'!$B$12,'Número de actividades'!$B$12)","v":"1. Administración de riesgos"},"1.1. Gestión de riesgos para la integridad pública","1.1.9","Efectuar seguimiento cuatrimestral al mapa de riesgos de corrupción","Tres informes de seguimiento publicados en la página web","Oficina de Control Interno ",3,"2026-04-01","2026-12-15",1,0,1,0,1,0,null,null,null,{"$f":"((K24+M24+O24)/(J24+L24+N24))","v":0},null,"Acciones aún no iniciadas"]
[{"$f":"+_xlfn.IFS(B25='Número de actividades'!$C$3,'Número de actividades'!$B$3,B25='Número de actividades'!$C$4,'Número de actividades'!$B$3,B25='Número de actividades'!$C$5,'Número de actividades'!$B$3,B25='Número de actividades'!$C$6,'Número de actividades'!$B$3,B25='Número de actividades'!$C$7,'Número de actividades'!$B$7,B25='Número de actividades'!$C$8,'Número de actividades'!$B$7,B25='Número de actividades'!$C$9,'Número de actividades'!$B$9,B25='Número de actividades'!$C$10,'Número de actividades'!$B$9,B25='Número de actividades'!$C$11,'Número de actividades'!$B$9,B25='Número de actividades'!$B$12,'Número de actividades'!$B$12)","v":"1. Administración de riesgos"},"1.1. Gestión de riesgos para la integridad pública","1.1.10","Realizar el 100% de los ajustes solicitados por los líderes de procesos a los mapas de riesgos de la Entidad vigencia 2026, cuando se requiera.","Mapas de riesgos de la Entidad vigencia 2026, ajustados de acuerdo con las solicitudes de los líderes de proceso.","Lideres de Proceso\nOficina Asesora de Direccionamiento Estratégico Institucional - ADEI",1,"2026-04-01","2026-12-15",0,0,1,0,0,0,null,null,null,{"$f":"((K25+M25+O25)/(J25+L25+N25))","v":0},null,"Acciones aún no iniciadas"]
[{"$f":"+_xlfn.IFS(B26='Número de actividades'!$C$3,'Número de actividades'!$B$3,B26='Número de actividades'!$C$4,'Número de actividades'!$B$3,B26='Número de actividades'!$C$5,'Número de actividades'!$B$3,B26='Número de actividades'!$C$6,'Número de actividades'!$B$3,B26='Número de actividades'!$C$7,'Número de actividades'!$B$7,B26='Número de actividades'!$C$8,'Número de actividades'!$B$7,B26='Número de actividades'!$C$9,'Número de actividades'!$B$9,B26='Número de actividades'!$C$10,'Número de actividades'!$B$9,B26='Número de actividades'!$C$11,'Número de actividades'!$B$9,B26='Número de actividades'!$B$12,'Número de actividades'!$B$12)","v":"1. Administración de riesgos"},"1.1. Gestión de riesgos para la integridad pública","1.1.11","Realizar Auditoría interna integral al Sistema Integrado de Gestión y Control - SIGC.","Un informe de Auditoría interna Integral al SIGC vigencia 2026.","Oficina de Control Interno ",1,"2026-09-01","2026-12-15",0,0,0,0,1,0,null,null,null,{"$f":"((K26+M26+O26)/(J26+L26+N26))","v":0},null,"Acciones aún no iniciadas"]
[{"$f":"+_xlfn.IFS(B27='Número de actividades'!$C$3,'Número de actividades'!$B$3,B27='Número de actividades'!$C$4,'Número de actividades'!$B$3,B27='Número de actividades'!$C$5,'Número de actividades'!$B$3,B27='Número de actividades'!$C$6,'Número de actividades'!$B$3,B27='Número de actividades'!$C$7,'Número de actividades'!$B$7,B27='Número de actividades'!$C$8,'Número de actividades'!$B$7,B27='Número de actividades'!$C$9,'Número de actividades'!$B$9,B27='Número de actividades'!$C$10,'Número de actividades'!$B$9,B27='Número de actividades'!$C$11,'Número de actividades'!$B$9,B27='Número de actividades'!$B$12,'Número de actividades'!$B$12)","v":"1. Administración de riesgos"},"1.2. Gestión de riesgos de LA/FT/FP","1.2.1","Formular el Plan de diseño e implementación de LA/FT/FP de acuerdo con los estándares internacionales y la normatividad relacionada en Colombia.","Un Plan de diseño e Implementación de LA/FT/FP formulado","\nOficina Asesora de Direccionamiento Estratégico Institucional - ADEI\n",1,"2026-01-02","2026-12-15",0,0,0,0,1,0,null,null,null,0,null,"Acciones aún no iniciadas"]
[{"$f":"+_xlfn.IFS(B28='Número de actividades'!$C$3,'Número de actividades'!$B$3,B28='Número de actividades'!$C$4,'Número de actividades'!$B$3,B28='Número de actividades'!$C$5,'Número de actividades'!$B$3,B28='Número de actividades'!$C$6,'Número de actividades'!$B$3,B28='Número de actividades'!$C$7,'Número de actividades'!$B$7,B28='Número de actividades'!$C$8,'Número de actividades'!$B$7,B28='Número de actividades'!$C$9,'Número de actividades'!$B$9,B28='Número de actividades'!$C$10,'Número de actividades'!$B$9,B28='Número de actividades'!$C$11,'Número de actividades'!$B$9,B28='Número de actividades'!$B$12,'Número de actividades'!$B$12)","v":"1. Administración de riesgos"},"1.3. Canales de denuncia","1.3.1","Divulgar y promover los canales de atención al ciudadano frente a una denuncia.","seis productos comunicativos referentes a la divulgación y promoción de los canales de denuncia de la CDMB","Profesional Especializado de Prensa y Comunicaciones",6,"2026-02-01","2026-06-30",2,0,2,0,2,0,null,null,null,{"$f":"((K28+M28+O28)/(J28+L28+N28))","v":0},null,"Acciones aún no iniciadas"]
[{"$f":"+_xlfn.IFS(B29='Número de actividades'!$C$3,'Número de actividades'!$B$3,B29='Número de actividades'!$C$4,'Número de actividades'!$B$3,B29='Número de actividades'!$C$5,'Número de actividades'!$B$3,B29='Número de actividades'!$C$6,'Número de actividades'!$B$3,B29='Número de actividades'!$C$7,'Número de actividades'!$B$7,B29='Número de actividades'!$C$8,'Número de actividades'!$B$7,B29='Número de actividades'!$C$9,'Número de actividades'!$B$9,B29='Número de actividades'!$C$10,'Número de actividades'!$B$9,B29='Número de actividades'!$C$11,'Número de actividades'!$B$9,B29='Número de actividades'!$B$12,'Número de actividades'!$B$12)","v":"1. Administración de riesgos"},"1.3. Canales de denuncia","1.3.2","Realizar campaña de sensibilización para difundir los Canales de Denuncia y presentación de quejas a través de diferentes canales institucionales. ","Una campaña de sensibilización para difundir los Canales de Denuncia y presentación de quejas a través de diferentes canales institucionales. ","Profesional Especializado de Prensa y Comunicaciones\n\nOficina de Control Disciplinario Interno",1,"2026-02-01","2026-06-30",0,0,1,0,0,0,null,null,null,0,null,"Acciones aún no iniciadas"]
[{"$f":"+_xlfn.IFS(B30='Número de actividades'!$C$3,'Número de actividades'!$B$3,B30='Número de actividades'!$C$4,'Número de actividades'!$B$3,B30='Número de actividades'!$C$5,'Número de actividades'!$B$3,B30='Número de actividades'!$C$6,'Número de actividades'!$B$3,B30='Número de actividades'!$C$7,'Número de actividades'!$B$7,B30='Número de actividades'!$C$8,'Número de actividades'!$B$7,B30='Número de actividades'!$C$9,'Número de actividades'!$B$9,B30='Número de actividades'!$C$10,'Número de actividades'!$B$9,B30='Número de actividades'!$C$11,'Número de actividades'!$B$9,B30='Número de actividades'!$B$12,'Número de actividades'!$B$12)","v":"1. Administración de riesgos"},"1.3. Canales de denuncia","1.3.3","Generar informe anual sobre las denuncias por presuntos actos de corrupción allegadas a la Oficina de Control Disciplinario Interno.","Un informe anual sobre las denuncias por presuntos actos de corrupción que puedan involucrar funcionarios de la CDM, las cuales se encontraran ubicadas en el archivo de gestión de la Oficina de Control Disciplinario Interno.","Oficina de Control Disciplinario Interno",1,"2026-02-01","2026-12-15",0,0,0,0,1,0,null,null,null,0,null,"Acciones aún no iniciadas"]
[{"$f":"+_xlfn.IFS(B31='[1]Número de actividades'!$C$3,'[1]Número de actividades'!$B$3,B31='[1]Número de actividades'!$C$4,'[1]Número de actividades'!$B$3,B31='[1]Número de actividades'!$C$5,'[1]Número de actividades'!$B$3,B31='[1]Número de actividades'!$C$6,'[1]Número de actividades'!$B$3,B31='[1]Número de actividades'!$C$7,'[1]Número de actividades'!$B$7,B31='[1]Número de actividades'!$C$8,'[1]Número de actividades'!$B$7,B31='[1]Número de actividades'!$C$9,'[1]Número de actividades'!$B$9,B31='[1]Número de actividades'!$C$10,'[1]Número de actividades'!$B$9,B31='[1]Número de actividades'!$C$11,'[1]Número de actividades'!$B$9,B31='[1]Número de actividades'!$B$12,'[1]Número de actividades'!$B$12)","v":"1. Administración de riesgos"},"1.4. Debida diligencia","1.4.1","Realizar una capacitación relacionada con el reporte del conflicto de intereses a incorporar en el Plan Institucional de Capacitación -  PIC.","Lista de asistencia de la jornada de capacitación realizada.","Secretaria General \n\nCoordinación de Gestión del Talento Humano\n\nOficina de Control Disciplinario Interno",1,"2026-09-01","2026-12-15",0,0,0,0,1,0,null,null,null,0,null,"Acciones aún no iniciadas"]
[{"$f":"+_xlfn.IFS(B32='Número de actividades'!$C$3,'Número de actividades'!$B$3,B32='Número de actividades'!$C$4,'Número de actividades'!$B$3,B32='Número de actividades'!$C$5,'Número de actividades'!$B$3,B32='Número de actividades'!$C$6,'Número de actividades'!$B$3,B32='Número de actividades'!$C$7,'Número de actividades'!$B$7,B32='Número de actividades'!$C$8,'Número de actividades'!$B$7,B32='Número de actividades'!$C$9,'Número de actividades'!$B$9,B32='Número de actividades'!$C$10,'Número de actividades'!$B$9,B32='Número de actividades'!$C$11,'Número de actividades'!$B$9,B32='Número de actividades'!$B$12,'Número de actividades'!$B$12)","v":"2. Redes y articulación"},"2.1. Redes internas","2.1.1","Realizar un diagnóstico de Redes internas ","Un diagnóstico de redes internas que incluya y evalue la necesidad de crear redes internas para el desarrollo de los contenidos del Programa de Transparencia y Ética Pública. En caso de considerarlas necesario, indicar su conformación, roles y responsables, así como las tareas asignadas y los lineamientos sobre su funcionamiento.","\nOficina Asesora de Direccionamiento Estratégico Institucional - ADEI\n",1,"2026-02-01","2026-12-15",0,0,0,0,1,0,null,null,null,0,null,"Acciones aún no iniciadas"]
[{"$f":"+_xlfn.IFS(B33='Número de actividades'!$C$3,'Número de actividades'!$B$3,B33='Número de actividades'!$C$4,'Número de actividades'!$B$3,B33='Número de actividades'!$C$5,'Número de actividades'!$B$3,B33='Número de actividades'!$C$6,'Número de actividades'!$B$3,B33='Número de actividades'!$C$7,'Número de actividades'!$B$7,B33='Número de actividades'!$C$8,'Número de actividades'!$B$7,B33='Número de actividades'!$C$9,'Número de actividades'!$B$9,B33='Número de actividades'!$C$10,'Número de actividades'!$B$9,B33='Número de actividades'!$C$11,'Número de actividades'!$B$9,B33='Número de actividades'!$B$12,'Número de actividades'!$B$12)","v":"2. Redes y articulación"},"2.1. Redes internas","2.1.2","Realizar capacitación en herramientas tecnológicas como la Inteligencia Artificial para fortalecer las habilidades digitales.","Lista de asistencia de la jornada de capacitación realizada.","\nOficina Asesora de Direccionamiento Estratégico Institucional - ADEI\nProfesional Especializado Tecnología de la Información\n",1,"2026-05-01","2026-12-15",0,0,0,1,0,0,null,null,null,0,null,"Acciones aún no iniciadas"]
[{"$f":"+_xlfn.IFS(B34='Número de actividades'!$C$3,'Número de actividades'!$B$3,B34='Número de actividades'!$C$4,'Número de actividades'!$B$3,B34='Número de actividades'!$C$5,'Número de actividades'!$B$3,B34='Número de actividades'!$C$6,'Número de actividades'!$B$3,B34='Número de actividades'!$C$7,'Número de actividades'!$B$7,B34='Número de actividades'!$C$8,'Número de actividades'!$B$7,B34='Número de actividades'!$C$9,'Número de actividades'!$B$9,B34='Número de actividades'!$C$10,'Número de actividades'!$B$9,B34='Número de actividades'!$C$11,'Número de actividades'!$B$9,B34='Número de actividades'!$B$12,'Número de actividades'!$B$12)","v":"2. Redes y articulación"},"2.2. Redes externas","2.2.1","Actualizar el Mapa de redes externas y su articulación ","Un mapa de redes con articulación a fin de rastrear las diferentes instancias de coordinación institucional en las cuales participa la Entidad.","\nOficina Asesora de Direccionamiento Estratégico Institucional - ADEI\n",1,"2026-05-01","2026-12-15",0,0,0,0,1,0,null,null,null,0,null,"Acciones aún no iniciadas"]
[{"$f":"+_xlfn.IFS(B35='Número de actividades'!$C$3,'Número de actividades'!$B$3,B35='Número de actividades'!$C$4,'Número de actividades'!$B$3,B35='Número de actividades'!$C$5,'Número de actividades'!$B$3,B35='Número de actividades'!$C$6,'Número de actividades'!$B$3,B35='Número de actividades'!$C$7,'Número de actividades'!$B$7,B35='Número de actividades'!$C$8,'Número de actividades'!$B$7,B35='Número de actividades'!$C$9,'Número de actividades'!$B$9,B35='Número de actividades'!$C$10,'Número de actividades'!$B$9,B35='Número de actividades'!$C$11,'Número de actividades'!$B$9,B35='Número de actividades'!$B$12,'Número de actividades'!$B$12)","v":"2. Redes y articulación"},"2.2. Redes externas","2.2.2","Realizar talleres de innovación abierta con aliados estratégicos para generar propuestas de soluciones innovadoras a problemáticas institucionales.","Dos Actas de reunión y listados de asistencia de los talleres de innovación, con un resumen de las ideas y soluciones propuestas.","\nOficina Asesora de Direccionamiento Estratégico Institucional - ADEI\n",2,"2026-05-01","2026-12-15",0,0,1,0,1,0,null,null,null,0,null,"Acciones aún no iniciadas"]
[{"$f":"+_xlfn.IFS(B36='Número de actividades'!$C$3,'Número de actividades'!$B$3,B36='Número de actividades'!$C$4,'Número de actividades'!$B$3,B36='Número de actividades'!$C$5,'Número de actividades'!$B$3,B36='Número de actividades'!$C$6,'Número de actividades'!$B$3,B36='Número de actividades'!$C$7,'Número de actividades'!$B$7,B36='Número de actividades'!$C$8,'Número de actividades'!$B$7,B36='Número de actividades'!$C$9,'Número de actividades'!$B$9,B36='Número de actividades'!$C$10,'Número de actividades'!$B$9,B36='Número de actividades'!$C$11,'Número de actividades'!$B$9,B36='Número de actividades'!$B$12,'Número de actividades'!$B$12)","v":"2. Redes y articulación"},"2.2. Redes externas","2.2.3","Realizar talleres experienciales para transferir conocimientos y metodologías innovadoras entre entidades públicas.","Dos talleres realizados, acompañados de acta de cada sesión.","\nOficina Asesora de Direccionamiento Estratégico Institucional - ADEI\n",2,"2026-05-01","2026-12-15",0,0,1,0,1,0,null,null,null,0,null,"Acciones aún no iniciadas"]
[{"$f":"+_xlfn.IFS(B37='Número de actividades'!$C$3,'Número de actividades'!$B$3,B37='Número de actividades'!$C$4,'Número de actividades'!$B$3,B37='Número de actividades'!$C$5,'Número de actividades'!$B$3,B37='Número de actividades'!$C$6,'Número de actividades'!$B$3,B37='Número de actividades'!$C$7,'Número de actividades'!$B$7,B37='Número de actividades'!$C$8,'Número de actividades'!$B$7,B37='Número de actividades'!$C$9,'Número de actividades'!$B$9,B37='Número de actividades'!$C$10,'Número de actividades'!$B$9,B37='Número de actividades'!$C$11,'Número de actividades'!$B$9,B37='Número de actividades'!$B$12,'Número de actividades'!$B$12)","v":"3. Modelo de Estado Abierto"},"3.1. Acceso a la información pública y transparencia","3.1.1","Actualizar los datos abiertos que serán objeto de publicación en el portal de datos abiertos del estado Colombiano.","Datos abiertos actualizados en el portal de datos abiertos durante la vigencia","\nOficina Asesora de Direccionamiento Estratégico Institucional - ADEI\nProfesional Especializado Tecnología de la Información\n",1,"2026-05-01","2026-12-15",0,0,1,0,0,0,null,null,null,0,null,"Acciones aún no iniciadas"]
[{"$f":"+_xlfn.IFS(B38='Número de actividades'!$C$3,'Número de actividades'!$B$3,B38='Número de actividades'!$C$4,'Número de actividades'!$B$3,B38='Número de actividades'!$C$5,'Número de actividades'!$B$3,B38='Número de actividades'!$C$6,'Número de actividades'!$B$3,B38='Número de actividades'!$C$7,'Número de actividades'!$B$7,B38='Número de actividades'!$C$8,'Número de actividades'!$B$7,B38='Número de actividades'!$C$9,'Número de actividades'!$B$9,B38='Número de actividades'!$C$10,'Número de actividades'!$B$9,B38='Número de actividades'!$C$11,'Número de actividades'!$B$9,B38='Número de actividades'!$B$12,'Número de actividades'!$B$12)","v":"3. Modelo de Estado Abierto"},"3.1. Acceso a la información pública y transparencia","3.1.2","Publicar el Informe de Gestión del Plan de Acción Cuatrienal Vigencia 2025 y el Informe de Gestión Plan de Acción Cuatrienal semestral vigencia 2026 en la página web.","Informe de Gestión del Plan de Acción Cuatrienal Vigencia 2025 y el Informe de Gestión Plan de Acción Cuatrienal semestal vigencia 2026 publicados en la página web","\nOficina Asesora de Direccionamiento Estratégico Institucional - ADEI\n",2,"2026-02-01","2026-12-15",1,0,1,0,0,0,null,null,null,0,null,"Acciones aún no iniciadas"]
[{"$f":"+_xlfn.IFS(B39='Número de actividades'!$C$3,'Número de actividades'!$B$3,B39='Número de actividades'!$C$4,'Número de actividades'!$B$3,B39='Número de actividades'!$C$5,'Número de actividades'!$B$3,B39='Número de actividades'!$C$6,'Número de actividades'!$B$3,B39='Número de actividades'!$C$7,'Número de actividades'!$B$7,B39='Número de actividades'!$C$8,'Número de actividades'!$B$7,B39='Número de actividades'!$C$9,'Número de actividades'!$B$9,B39='Número de actividades'!$C$10,'Número de actividades'!$B$9,B39='Número de actividades'!$C$11,'Número de actividades'!$B$9,B39='Número de actividades'!$B$12,'Número de actividades'!$B$12)","v":"3. Modelo de Estado Abierto"},"3.1. Acceso a la información pública y transparencia","3.1.3","Hacer la divulgación de la fecha de la Audiencia de rendición de cuentas.","Una Pieza comunicativa ","Profesional Especializado de Prensa y Comunicaciones",1,"2026-01-02","2026-04-30",1,0,0,0,0,0,null,null,null,{"$f":"((K39+M39+O39)/(J39+L39+N39))","v":0},null,"Acciones aún no iniciadas"]
[{"$f":"+_xlfn.IFS(B40='Número de actividades'!$C$3,'Número de actividades'!$B$3,B40='Número de actividades'!$C$4,'Número de actividades'!$B$3,B40='Número de actividades'!$C$5,'Número de actividades'!$B$3,B40='Número de actividades'!$C$6,'Número de actividades'!$B$3,B40='Número de actividades'!$C$7,'Número de actividades'!$B$7,B40='Número de actividades'!$C$8,'Número de actividades'!$B$7,B40='Número de actividades'!$C$9,'Número de actividades'!$B$9,B40='Número de actividades'!$C$10,'Número de actividades'!$B$9,B40='Número de actividades'!$C$11,'Número de actividades'!$B$9,B40='Número de actividades'!$B$12,'Número de actividades'!$B$12)","v":"3. Modelo de Estado Abierto"},"3.1. Acceso a la información pública y transparencia","3.1.4","Publicar en la página web el informe de rendición de cuentas.","Publicación del informe","Director General\nSecretario General\n Profesional Especializado de Prensa y Comunicaciones",1,"01/02/20266","2026-04-30",1,0,0,0,0,0,null,null,null,{"$f":"((K40+M40+O40)/(J40+L40+N40))","v":0},null,"Acciones aún no iniciadas"]
[{"$f":"+_xlfn.IFS(B41='Número de actividades'!$C$3,'Número de actividades'!$B$3,B41='Número de actividades'!$C$4,'Número de actividades'!$B$3,B41='Número de actividades'!$C$5,'Número de actividades'!$B$3,B41='Número de actividades'!$C$6,'Número de actividades'!$B$3,B41='Número de actividades'!$C$7,'Número de actividades'!$B$7,B41='Número de actividades'!$C$8,'Número de actividades'!$B$7,B41='Número de actividades'!$C$9,'Número de actividades'!$B$9,B41='Número de actividades'!$C$10,'Número de actividades'!$B$9,B41='Número de actividades'!$C$11,'Número de actividades'!$B$9,B41='Número de actividades'!$B$12,'Número de actividades'!$B$12)","v":"3. Modelo de Estado Abierto"},"3.1. Acceso a la información pública y transparencia","3.1.5","Revisar la información publicada y actualizada en el menú de Transparencia y acceso a la información en cumplimiento de la Ley 1712 de 2014, aplicando la Matriz de Cumplimiento del índice de Transparencia y Acceso a la Información de la Procuraduría General de la Nación. ","Dos validaciones de la información publicada en el menú de Transparencia, previo al reporte anual de cumplimiento solicitado por la Procuraduría, en el formato de matriz de cumplimiento de la Procuraduría General de la Nación.","\nOficina Asesora de Direccionamiento Estratégico Institucional - ADEI\nProfesional Especializado Tecnología de la Información \nProfesional Especializado de Prensa y Comunicaciones\nProfesional Especializada del SIGC\n",2,"2026-02-01","2026-12-15",0,0,1,0,1,0,null,null,null,0,null,"Acciones aún no iniciadas"]
[{"$f":"+_xlfn.IFS(B42='Número de actividades'!$C$3,'Número de actividades'!$B$3,B42='Número de actividades'!$C$4,'Número de actividades'!$B$3,B42='Número de actividades'!$C$5,'Número de actividades'!$B$3,B42='Número de actividades'!$C$6,'Número de actividades'!$B$3,B42='Número de actividades'!$C$7,'Número de actividades'!$B$7,B42='Número de actividades'!$C$8,'Número de actividades'!$B$7,B42='Número de actividades'!$C$9,'Número de actividades'!$B$9,B42='Número de actividades'!$C$10,'Número de actividades'!$B$9,B42='Número de actividades'!$C$11,'Número de actividades'!$B$9,B42='Número de actividades'!$B$12,'Número de actividades'!$B$12)","v":"3. Modelo de Estado Abierto"},"3.1. Acceso a la información pública y transparencia","3.1.6","Actualizar el acto administrativo por el cual se fijan las cuantías a cobrar por tarifas de costos y gastos por la venta de bienes y servicios para la vigencia 2026 de la CDMB, donde se determina el costo para la reproducción de la información solicitada por la ciudadanía.","Resolución actualización de tarifas de costos y gastos vigencia 2026 aprobada y publicada","Director General\nSecretaria General\nSubdirección Administrativa y Financiera",1,"2026-01-02","2026-04-30",1,0,0,0,0,0,null,null,null,{"$f":"((K42+M42+O42)/(J42+L42+N42))","v":0},null,"Acciones aún no iniciadas"]
[{"$f":"+_xlfn.IFS(B43='Número de actividades'!$C$3,'Número de actividades'!$B$3,B43='Número de actividades'!$C$4,'Número de actividades'!$B$3,B43='Número de actividades'!$C$5,'Número de actividades'!$B$3,B43='Número de actividades'!$C$6,'Número de actividades'!$B$3,B43='Número de actividades'!$C$7,'Número de actividades'!$B$7,B43='Número de actividades'!$C$8,'Número de actividades'!$B$7,B43='Número de actividades'!$C$9,'Número de actividades'!$B$9,B43='Número de actividades'!$C$10,'Número de actividades'!$B$9,B43='Número de actividades'!$C$11,'Número de actividades'!$B$9,B43='Número de actividades'!$B$12,'Número de actividades'!$B$12)","v":"3. Modelo de Estado Abierto"},"3.1. Acceso a la información pública y transparencia","3.1.7","Verificar la actualización de las hojas de vida en el SIGEP tanto para funcionarios como para contratistas.","Hojas de Vida actualizadas en la plataforma del SIGEP","Secretaria General \n  Equipo Coordinación de Gestión Estratégica de Talento Humano\nOficina de Contratación",1,"2026-01-02","2026-12-15",0,0,0,0,1,0,null,null,null,{"$f":"((K43+M43+O43)/(J43+L43+N43))","v":0},null,"Acciones aún no iniciadas"]
[{"$f":"+_xlfn.IFS(B44='Número de actividades'!$C$3,'Número de actividades'!$B$3,B44='Número de actividades'!$C$4,'Número de actividades'!$B$3,B44='Número de actividades'!$C$5,'Número de actividades'!$B$3,B44='Número de actividades'!$C$6,'Número de actividades'!$B$3,B44='Número de actividades'!$C$7,'Número de actividades'!$B$7,B44='Número de actividades'!$C$8,'Número de actividades'!$B$7,B44='Número de actividades'!$C$9,'Número de actividades'!$B$9,B44='Número de actividades'!$C$10,'Número de actividades'!$B$9,B44='Número de actividades'!$C$11,'Número de actividades'!$B$9,B44='Número de actividades'!$B$12,'Número de actividades'!$B$12)","v":"3. Modelo de Estado Abierto"},"3.1. Acceso a la información pública y transparencia","3.1.8","Publicar los Mapas de riesgos clasificados como riesgos de corrupción vigencia 2026 en todos los procesos de la Entidad","Un Mapa de Riesgos de Corrupción actualizado y publicado en la página web de la Entidad","Lideres de Proceso\nOficina Asesora de Direccionamiento Estratégico Institucional - ADEI",1,"2026-01-02","2026-01-31",1,0,0,0,0,0,null,null,null,0,null,"Acciones aún no iniciadas"]
[{"$f":"+_xlfn.IFS(B45='Número de actividades'!$C$3,'Número de actividades'!$B$3,B45='Número de actividades'!$C$4,'Número de actividades'!$B$3,B45='Número de actividades'!$C$5,'Número de actividades'!$B$3,B45='Número de actividades'!$C$6,'Número de actividades'!$B$3,B45='Número de actividades'!$C$7,'Número de actividades'!$B$7,B45='Número de actividades'!$C$8,'Número de actividades'!$B$7,B45='Número de actividades'!$C$9,'Número de actividades'!$B$9,B45='Número de actividades'!$C$10,'Número de actividades'!$B$9,B45='Número de actividades'!$C$11,'Número de actividades'!$B$9,B45='Número de actividades'!$B$12,'Número de actividades'!$B$12)","v":"3. Modelo de Estado Abierto"},"3.1. Acceso a la información pública y transparencia","3.1.9","Actualizar la información de cada una de las secciones de la página Web, conforme a las solicitudes de cada dependencia de la Entidad.","Informe sobre las actualizaciones realizadas mensualmente en la página web actualizada","\nOficina Asesora de Direccionamiento Estratégico Institucional - ADEI\nWebmaster",11,"2026-02-01","2026-12-15",3,0,4,0,4,0,null,null,null,0,null,"Acciones aún no iniciadas"]
[{"$f":"+_xlfn.IFS(B46='Número de actividades'!$C$3,'Número de actividades'!$B$3,B46='Número de actividades'!$C$4,'Número de actividades'!$B$3,B46='Número de actividades'!$C$5,'Número de actividades'!$B$3,B46='Número de actividades'!$C$6,'Número de actividades'!$B$3,B46='Número de actividades'!$C$7,'Número de actividades'!$B$7,B46='Número de actividades'!$C$8,'Número de actividades'!$B$7,B46='Número de actividades'!$C$9,'Número de actividades'!$B$9,B46='Número de actividades'!$C$10,'Número de actividades'!$B$9,B46='Número de actividades'!$C$11,'Número de actividades'!$B$9,B46='Número de actividades'!$B$12,'Número de actividades'!$B$12)","v":"3. Modelo de Estado Abierto"},"3.1. Acceso a la información pública y transparencia","3.1.10","Validar la funcionabilidad técnica del servicio web, que cumpla con los requisitos de accesibilidad.","Un informe de validación de los requisitos de accesibilidad de la página web actualizada","\nOficina Asesora de Direccionamiento Estratégico Institucional - ADEI\nWebmaster",1,"2026-01-02","2026-06-30",0,0,0,0,1,0,null,null,null,0,null,{"$f":"+$A$79","v":"Acciones aún no iniciadas"}]
[{"$f":"+_xlfn.IFS(B47='Número de actividades'!$C$3,'Número de actividades'!$B$3,B47='Número de actividades'!$C$4,'Número de actividades'!$B$3,B47='Número de actividades'!$C$5,'Número de actividades'!$B$3,B47='Número de actividades'!$C$6,'Número de actividades'!$B$3,B47='Número de actividades'!$C$7,'Número de actividades'!$B$7,B47='Número de actividades'!$C$8,'Número de actividades'!$B$7,B47='Número de actividades'!$C$9,'Número de actividades'!$B$9,B47='Número de actividades'!$C$10,'Número de actividades'!$B$9,B47='Número de actividades'!$C$11,'Número de actividades'!$B$9,B47='Número de actividades'!$B$12,'Número de actividades'!$B$12)","v":"3. Modelo de Estado Abierto"},"3.1. Acceso a la información pública y transparencia","3.1.11","Fortalecer el uso de la herramienta virtual para la gestión de PQRSD (Peticiones, Quejas, Sugerencias, Reclamos o Denuncias) a través de productos comunicativos.","Seis productos comunicativos referentes PQRSD","Profesional Especializado de Prensa y Comunicaciones",6,"2026-02-01","2026-12-15",2,0,2,0,2,0,null,null,null,0,null,"Acciones aún no iniciadas"]
[{"$f":"+_xlfn.IFS(B48='Número de actividades'!$C$3,'Número de actividades'!$B$3,B48='Número de actividades'!$C$4,'Número de actividades'!$B$3,B48='Número de actividades'!$C$5,'Número de actividades'!$B$3,B48='Número de actividades'!$C$6,'Número de actividades'!$B$3,B48='Número de actividades'!$C$7,'Número de actividades'!$B$7,B48='Número de actividades'!$C$8,'Número de actividades'!$B$7,B48='Número de actividades'!$C$9,'Número de actividades'!$B$9,B48='Número de actividades'!$C$10,'Número de actividades'!$B$9,B48='Número de actividades'!$C$11,'Número de actividades'!$B$9,B48='Número de actividades'!$B$12,'Número de actividades'!$B$12)","v":"3. Modelo de Estado Abierto"},"3.1. Acceso a la información pública y transparencia","3.1.12","Socializar el Informe de seguimiento de las PQRSD vigencia 2025 a los Líderes de proceso.","Informe de Seguimiento PQRSD socializado","Oficina de Atención al Ciudadano",10,"2026-02-01","2026-12-15",2,0,4,0,4,0,null,null,null,0,null,"Acciones aún no iniciadas"]
[{"$f":"+_xlfn.IFS(B49='Número de actividades'!$C$3,'Número de actividades'!$B$3,B49='Número de actividades'!$C$4,'Número de actividades'!$B$3,B49='Número de actividades'!$C$5,'Número de actividades'!$B$3,B49='Número de actividades'!$C$6,'Número de actividades'!$B$3,B49='Número de actividades'!$C$7,'Número de actividades'!$B$7,B49='Número de actividades'!$C$8,'Número de actividades'!$B$7,B49='Número de actividades'!$C$9,'Número de actividades'!$B$9,B49='Número de actividades'!$C$10,'Número de actividades'!$B$9,B49='Número de actividades'!$C$11,'Número de actividades'!$B$9,B49='Número de actividades'!$B$12,'Número de actividades'!$B$12)","v":"3. Modelo de Estado Abierto"},"3.1. Acceso a la información pública y transparencia","3.1.13","Actualizar el Inventario de activos de Información.","Inventario de activos de información actualizados y publicados en la página web institucional y portal de datos abiertos","\nOficina Asesora de Direccionamiento Estratégico Institucional - ADEI\nProfesional Especializado Tecnología de la Información\n",1,"2026-01-02","2026-04-30",0,0,0,0,1,0,null,null,null,0,null,"Acciones aún no iniciadas"]
[{"$f":"+_xlfn.IFS(B50='Número de actividades'!$C$3,'Número de actividades'!$B$3,B50='Número de actividades'!$C$4,'Número de actividades'!$B$3,B50='Número de actividades'!$C$5,'Número de actividades'!$B$3,B50='Número de actividades'!$C$6,'Número de actividades'!$B$3,B50='Número de actividades'!$C$7,'Número de actividades'!$B$7,B50='Número de actividades'!$C$8,'Número de actividades'!$B$7,B50='Número de actividades'!$C$9,'Número de actividades'!$B$9,B50='Número de actividades'!$C$10,'Número de actividades'!$B$9,B50='Número de actividades'!$C$11,'Número de actividades'!$B$9,B50='Número de actividades'!$B$12,'Número de actividades'!$B$12)","v":"3. Modelo de Estado Abierto"},"3.1. Acceso a la información pública y transparencia","3.1.14","Actualizar el Índice de Información Clasificada y Reservada.","Índice de información clasificada y reservada actualizada y publicada en la página web institucional y portal de datos abiertos","\nOficina Asesora de Direccionamiento Estratégico Institucional - ADEI\nProfesional Especializado Tecnología de la Información\n",1,"2026-01-02","2026-04-30",0,0,0,0,1,0,null,null,null,0,null,"Acciones aún no iniciadas"]
[{"$f":"+_xlfn.IFS(B51='Número de actividades'!$C$3,'Número de actividades'!$B$3,B51='Número de actividades'!$C$4,'Número de actividades'!$B$3,B51='Número de actividades'!$C$5,'Número de actividades'!$B$3,B51='Número de actividades'!$C$6,'Número de actividades'!$B$3,B51='Número de actividades'!$C$7,'Número de actividades'!$B$7,B51='Número de actividades'!$C$8,'Número de actividades'!$B$7,B51='Número de actividades'!$C$9,'Número de actividades'!$B$9,B51='Número de actividades'!$C$10,'Número de actividades'!$B$9,B51='Número de actividades'!$C$11,'Número de actividades'!$B$9,B51='Número de actividades'!$B$12,'Número de actividades'!$B$12)","v":"3. Modelo de Estado Abierto"},"3.1. Acceso a la información pública y transparencia","3.1.15","Actualizar esquema de publicación de información.","Un formato de esquema de publicación de información actualizado y publicado en la página web institucional","\nOficina Asesora de Direccionamiento Estratégico Institucional - ADEI\nProfesional Especializado Tecnología de la Información\n",1,"2026-01-02","2026-04-30",0,0,0,0,1,0,null,null,null,0,null,"Acciones aún no iniciadas"]
[{"$f":"+_xlfn.IFS(B52='Número de actividades'!$C$3,'Número de actividades'!$B$3,B52='Número de actividades'!$C$4,'Número de actividades'!$B$3,B52='Número de actividades'!$C$5,'Número de actividades'!$B$3,B52='Número de actividades'!$C$6,'Número de actividades'!$B$3,B52='Número de actividades'!$C$7,'Número de actividades'!$B$7,B52='Número de actividades'!$C$8,'Número de actividades'!$B$7,B52='Número de actividades'!$C$9,'Número de actividades'!$B$9,B52='Número de actividades'!$C$10,'Número de actividades'!$B$9,B52='Número de actividades'!$C$11,'Número de actividades'!$B$9,B52='Número de actividades'!$B$12,'Número de actividades'!$B$12)","v":"3. Modelo de Estado Abierto"},"3.1. Acceso a la información pública y transparencia","3.1.16","Elaborar y publicar trimestralmente un informe de las solicitudes de acceso a la información pública recibidas.","Informe trimestral publicado (El informe se publicará en el mes siguiente a la finalización del trimestre - 3 informes) ","Oficina de Gestión Social y Ambiental\nProfesional de Atención al Ciudadano",4,"2026-01-02","2026-12-15",1,0,2,0,1,0,null,null,null,0,null,"Acciones aún no iniciadas"]
[{"$f":"+_xlfn.IFS(B53='Número de actividades'!$C$3,'Número de actividades'!$B$3,B53='Número de actividades'!$C$4,'Número de actividades'!$B$3,B53='Número de actividades'!$C$5,'Número de actividades'!$B$3,B53='Número de actividades'!$C$6,'Número de actividades'!$B$3,B53='Número de actividades'!$C$7,'Número de actividades'!$B$7,B53='Número de actividades'!$C$8,'Número de actividades'!$B$7,B53='Número de actividades'!$C$9,'Número de actividades'!$B$9,B53='Número de actividades'!$C$10,'Número de actividades'!$B$9,B53='Número de actividades'!$C$11,'Número de actividades'!$B$9,B53='Número de actividades'!$B$12,'Número de actividades'!$B$12)","v":"3. Modelo de Estado Abierto"},"3.1. Acceso a la información pública y transparencia","3.1.17","Diseñar y publicar la estrategia de participación ciudadana en el botón participa de la página web.","Una estrategia de participación ciudadana diseñada y publicada en la página web de la Entidad.","Profesional Especializado de Prensa y Comunicaciones\nOficina Asesora de Direccionamiento Estratégico Institucional - ADEI\nWebmaster",1,"2026-05-30","2026-08-30",0,0,1,0,0,0,null,null,null,0,null,"Acciones aún no iniciadas"]
[{"$f":"+_xlfn.IFS(B54='Número de actividades'!$C$3,'Número de actividades'!$B$3,B54='Número de actividades'!$C$4,'Número de actividades'!$B$3,B54='Número de actividades'!$C$5,'Número de actividades'!$B$3,B54='Número de actividades'!$C$6,'Número de actividades'!$B$3,B54='Número de actividades'!$C$7,'Número de actividades'!$B$7,B54='Número de actividades'!$C$8,'Número de actividades'!$B$7,B54='Número de actividades'!$C$9,'Número de actividades'!$B$9,B54='Número de actividades'!$C$10,'Número de actividades'!$B$9,B54='Número de actividades'!$C$11,'Número de actividades'!$B$9,B54='Número de actividades'!$B$12,'Número de actividades'!$B$12)","v":"3. Modelo de Estado Abierto"},"3.2. Integridad pública y cultura de la legalidad","3.2.1","Realizar una capacitación relacionada con el reporte del conflicto de intereses a incorporar en el Plan Institucional de Capacitación -  PIC.","Lista de asistencia de la jornada de capacitación realizada.","Secretaria General \n\nCoordinación de Gestión del Talento Humano",1,"2026-02-01","2026-12-15",0,0,0,0,1,0,null,null,null,0,null,"Acciones aún no iniciadas"]
[{"$f":"+_xlfn.IFS(B55='Número de actividades'!$C$3,'Número de actividades'!$B$3,B55='Número de actividades'!$C$4,'Número de actividades'!$B$3,B55='Número de actividades'!$C$5,'Número de actividades'!$B$3,B55='Número de actividades'!$C$6,'Número de actividades'!$B$3,B55='Número de actividades'!$C$7,'Número de actividades'!$B$7,B55='Número de actividades'!$C$8,'Número de actividades'!$B$7,B55='Número de actividades'!$C$9,'Número de actividades'!$B$9,B55='Número de actividades'!$C$10,'Número de actividades'!$B$9,B55='Número de actividades'!$C$11,'Número de actividades'!$B$9,B55='Número de actividades'!$B$12,'Número de actividades'!$B$12)","v":"3. Modelo de Estado Abierto"},"3.2. Integridad pública y cultura de la legalidad","3.2.2","Diseñar un instrumento o herramienta para realizar diagnóstico del nivel de apropiación del código de integridad y la gestión de la integridad en la Entidad, con base en el Test de Integridad propuesto por el DAFP .","Encuesta de percepción y apropiación (Instrumento)","Secretaria General \n\nCoordinación de Gestión del Talento Humano",1,"2026-09-30","2026-12-15",0,0,1,0,0,0,null,null,null,{"$f":"((K55+M55+O55)/(J55+L55+N55))","v":0},null,"Acciones aún no iniciadas"]
[{"$f":"+_xlfn.IFS(B56='Número de actividades'!$C$3,'Número de actividades'!$B$3,B56='Número de actividades'!$C$4,'Número de actividades'!$B$3,B56='Número de actividades'!$C$5,'Número de actividades'!$B$3,B56='Número de actividades'!$C$6,'Número de actividades'!$B$3,B56='Número de actividades'!$C$7,'Número de actividades'!$B$7,B56='Número de actividades'!$C$8,'Número de actividades'!$B$7,B56='Número de actividades'!$C$9,'Número de actividades'!$B$9,B56='Número de actividades'!$C$10,'Número de actividades'!$B$9,B56='Número de actividades'!$C$11,'Número de actividades'!$B$9,B56='Número de actividades'!$B$12,'Número de actividades'!$B$12)","v":"3. Modelo de Estado Abierto"},"3.2. Integridad pública y cultura de la legalidad","3.2.3","Implementar una estrategia de difusión de gestión del conocimiento e innovación sobre casos y aprendizajes de innovación pública, orientada a los servidores públicos.","Dos Estrategias de difusión de gestión del conocimiento e innovación implementada a través de canales institucionales.","Secretaria General \n\nCoordinación de Gestión del Talento Humano\nCoordinación de Gestión del Conocimiento Ambiental",2,"2026-04-01","2026-12-15",0,0,0,0,2,0,null,null,null,{"$f":"((K56+M56+O56)/(J56+L56+N56))","v":0},null,"Acciones aún no iniciadas"]
[{"$f":"+_xlfn.IFS(B57='Número de actividades'!$C$3,'Número de actividades'!$B$3,B57='Número de actividades'!$C$4,'Número de actividades'!$B$3,B57='Número de actividades'!$C$5,'Número de actividades'!$B$3,B57='Número de actividades'!$C$6,'Número de actividades'!$B$3,B57='Número de actividades'!$C$7,'Número de actividades'!$B$7,B57='Número de actividades'!$C$8,'Número de actividades'!$B$7,B57='Número de actividades'!$C$9,'Número de actividades'!$B$9,B57='Número de actividades'!$C$10,'Número de actividades'!$B$9,B57='Número de actividades'!$C$11,'Número de actividades'!$B$9,B57='Número de actividades'!$B$12,'Número de actividades'!$B$12)","v":"3. Modelo de Estado Abierto"},"3.2. Integridad pública y cultura de la legalidad","3.2.4","Sensibilizar, cualificar y/o capacitar a funcionarios y colaboradores de la Entidad, según las necesidades institucionales, en temas asociados a servicio a la ciudadanía, para fortalecer la cultura en este tema, en función de la interiorización de la Política Pública de Servicio a la Ciudadanía, las actualizaciones normativas y el Modelo Integral de Relacionamiento con la Ciudadanía.","Tres sensibilizaciones, cualificaciones o capacitaciones (1 cuatrimestral) ","Secretaria General \n\nCoordinación de Gestión del Talento Humano",3,"2026-02-01","2026-12-15",1,0,1,0,1,0,null,null,null,{"$f":"((K57+M57+O57)/(J57+L57+N57))","v":0},null,"Acciones aún no iniciadas"]
[{"$f":"+_xlfn.IFS(B58='Número de actividades'!$C$3,'Número de actividades'!$B$3,B58='Número de actividades'!$C$4,'Número de actividades'!$B$3,B58='Número de actividades'!$C$5,'Número de actividades'!$B$3,B58='Número de actividades'!$C$6,'Número de actividades'!$B$3,B58='Número de actividades'!$C$7,'Número de actividades'!$B$7,B58='Número de actividades'!$C$8,'Número de actividades'!$B$7,B58='Número de actividades'!$C$9,'Número de actividades'!$B$9,B58='Número de actividades'!$C$10,'Número de actividades'!$B$9,B58='Número de actividades'!$C$11,'Número de actividades'!$B$9,B58='Número de actividades'!$B$12,'Número de actividades'!$B$12)","v":"3. Modelo de Estado Abierto"},"3.3. Dialogo y corresponsabilidad","3.3.1","Planificar y desarrollar la estrategia para la Audiencia Pública de Rendición de Cuentas vigencia 2025.","Una Estrategia para la Audiencia Pública de Rendición de cuentas vigencia 2025 del Plan de Acción Institucional 2024-2027  ","Director General\nSecretario General\n Jefe Oficina de Gestión Social Ambiental\nProfesional Especializado de Prensa y Comunicaciones\nDemás lideres de procesos",1,"2026-01-02","2026-03-30",1,0,0,0,0,0,null,null,null,{"$f":"((K58+M58+O58)/(J58+L58+N58))","v":0},null,"Acciones aún no iniciadas"]
[{"$f":"+_xlfn.IFS(B59='Número de actividades'!$C$3,'Número de actividades'!$B$3,B59='Número de actividades'!$C$4,'Número de actividades'!$B$3,B59='Número de actividades'!$C$5,'Número de actividades'!$B$3,B59='Número de actividades'!$C$6,'Número de actividades'!$B$3,B59='Número de actividades'!$C$7,'Número de actividades'!$B$7,B59='Número de actividades'!$C$8,'Número de actividades'!$B$7,B59='Número de actividades'!$C$9,'Número de actividades'!$B$9,B59='Número de actividades'!$C$10,'Número de actividades'!$B$9,B59='Número de actividades'!$C$11,'Número de actividades'!$B$9,B59='Número de actividades'!$B$12,'Número de actividades'!$B$12)","v":"3. Modelo de Estado Abierto"},"3.3. Dialogo y corresponsabilidad","3.3.2","Relizar la Audiencia Pública de Rendición de Cuentas vigencia 2025 del Plan Institucional 2024-2027.","Una Audiencia Pública de Rendición de cuentas vigencia 2025 del Plan de Acción Institucional 2024-2027  ","Director General\nSecretario General\nProfesional Especializado de Prensa y Comunicaciones\nDemás lideres de procesos",1,"2026-04-01","2026-04-30",1,0,0,0,0,0,null,null,null,{"$f":"((K59+M59+O59)/(J59+L59+N59))","v":0},null,"Acciones aún no iniciadas"]
[{"$f":"+_xlfn.IFS(B60='Número de actividades'!$C$3,'Número de actividades'!$B$3,B60='Número de actividades'!$C$4,'Número de actividades'!$B$3,B60='Número de actividades'!$C$5,'Número de actividades'!$B$3,B60='Número de actividades'!$C$6,'Número de actividades'!$B$3,B60='Número de actividades'!$C$7,'Número de actividades'!$B$7,B60='Número de actividades'!$C$8,'Número de actividades'!$B$7,B60='Número de actividades'!$C$9,'Número de actividades'!$B$9,B60='Número de actividades'!$C$10,'Número de actividades'!$B$9,B60='Número de actividades'!$C$11,'Número de actividades'!$B$9,B60='Número de actividades'!$B$12,'Número de actividades'!$B$12)","v":"3. Modelo de Estado Abierto"},"3.3. Dialogo y corresponsabilidad","3.3.3","Realizar video de gestión institucional vigencia 2025 con apoyo de subtitulaje y lenguaje de señas.","Un video de la presentación de la gestión institucional vigencia 2025 con apoyo de subtitulaje y lenguaje señas.","Director General\nSecretario General\n Jefe Oficina de Gestión Social Ambiental\nProfesional Especializado de Prensa y Comunicaciones\nDemás lideres de procesos",1,"2026-04-01","2026-04-30",1,0,0,0,0,0,null,null,null,{"$f":"((K60+M60+O60)/(J60+L60+N60))","v":0},null,"Acciones aún no iniciadas"]
[{"$f":"+_xlfn.IFS(B61='Número de actividades'!$C$3,'Número de actividades'!$B$3,B61='Número de actividades'!$C$4,'Número de actividades'!$B$3,B61='Número de actividades'!$C$5,'Número de actividades'!$B$3,B61='Número de actividades'!$C$6,'Número de actividades'!$B$3,B61='Número de actividades'!$C$7,'Número de actividades'!$B$7,B61='Número de actividades'!$C$8,'Número de actividades'!$B$7,B61='Número de actividades'!$C$9,'Número de actividades'!$B$9,B61='Número de actividades'!$C$10,'Número de actividades'!$B$9,B61='Número de actividades'!$C$11,'Número de actividades'!$B$9,B61='Número de actividades'!$B$12,'Número de actividades'!$B$12)","v":"3. Modelo de Estado Abierto"},"3.3. Dialogo y corresponsabilidad","3.3.4","Publicar el Informe de Gestión del Plan de Acción Cuatrienal Vigencia 2025 y el Informe de Gestión Plan de Acción Cuatrienal semestral vigencia 2026 en la página web.","Informe de Gestión del Plan de Acción Cuatrienal Vigencia 2025 y el Informe de Gestión Plan de Acción Cuatrienal semestal vigencia 2026 publicados en la página web","\nOficina Asesora de Direccionamiento Estratégico Institucional - ADEI\n",2,"2026-02-01","2026-12-15",1,0,1,0,0,0,null,null,null,0,null,"Acciones aún no iniciadas"]
[{"$f":"+_xlfn.IFS(B62='Número de actividades'!$C$3,'Número de actividades'!$B$3,B62='Número de actividades'!$C$4,'Número de actividades'!$B$3,B62='Número de actividades'!$C$5,'Número de actividades'!$B$3,B62='Número de actividades'!$C$6,'Número de actividades'!$B$3,B62='Número de actividades'!$C$7,'Número de actividades'!$B$7,B62='Número de actividades'!$C$8,'Número de actividades'!$B$7,B62='Número de actividades'!$C$9,'Número de actividades'!$B$9,B62='Número de actividades'!$C$10,'Número de actividades'!$B$9,B62='Número de actividades'!$C$11,'Número de actividades'!$B$9,B62='Número de actividades'!$B$12,'Número de actividades'!$B$12)","v":"3. Modelo de Estado Abierto"},"3.3. Dialogo y corresponsabilidad","3.3.5","Actualizar caracterización de ciudadanía y grupos de valor de la CDMB ","Un Documento caracterización de ciudadanía y grupos de valor actualizado","Oficina de Gestión Social y Ambiental\nLíderes de Proceso",1,"2026-02-01","2026-12-15",0,0,0,0,1,0,null,null,null,{"$f":"((K62+M62+O62)/(J62+L62+N62))","v":0},null,"Acciones aún no iniciadas"]
[{"$f":"+_xlfn.IFS(B63='Número de actividades'!$C$3,'Número de actividades'!$B$3,B63='Número de actividades'!$C$4,'Número de actividades'!$B$3,B63='Número de actividades'!$C$5,'Número de actividades'!$B$3,B63='Número de actividades'!$C$6,'Número de actividades'!$B$3,B63='Número de actividades'!$C$7,'Número de actividades'!$B$7,B63='Número de actividades'!$C$8,'Número de actividades'!$B$7,B63='Número de actividades'!$C$9,'Número de actividades'!$B$9,B63='Número de actividades'!$C$10,'Número de actividades'!$B$9,B63='Número de actividades'!$C$11,'Número de actividades'!$B$9,B63='Número de actividades'!$B$12,'Número de actividades'!$B$12)","v":"3. Modelo de Estado Abierto"},"3.3. Dialogo y corresponsabilidad","3.3.6","Fortalecer las comunicaciones con los medios de comunicación, como actores sociales de la gestión institucional.","Nueve acompañamientos periodísticos (entrevistas, comunicados de prensa)","Profesional Especializado de Prensa y Comunicaciones",9,"2026-02-01","2026-12-15",3,0,3,0,3,0,null,null,null,{"$f":"((K63+M63+O63)/(J63+L63+N63))","v":0},null,"Acciones aún no iniciadas"]
[{"$f":"+_xlfn.IFS(B64='Número de actividades'!$C$3,'Número de actividades'!$B$3,B64='Número de actividades'!$C$4,'Número de actividades'!$B$3,B64='Número de actividades'!$C$5,'Número de actividades'!$B$3,B64='Número de actividades'!$C$6,'Número de actividades'!$B$3,B64='Número de actividades'!$C$7,'Número de actividades'!$B$7,B64='Número de actividades'!$C$8,'Número de actividades'!$B$7,B64='Número de actividades'!$C$9,'Número de actividades'!$B$9,B64='Número de actividades'!$C$10,'Número de actividades'!$B$9,B64='Número de actividades'!$C$11,'Número de actividades'!$B$9,B64='Número de actividades'!$B$12,'Número de actividades'!$B$12)","v":"3. Modelo de Estado Abierto"},"3.3. Dialogo y corresponsabilidad","3.3.7","Medir cuatrimestralmente la atención al ciudadano a través del uso de las redes sociales","Tres informes cuatrimestrales sobre la atención al ciudadano a través de las redes sociales ","Profesional Especializado de Prensa y Comunicaciones",3,"2026-02-01","2026-12-15",1,0,1,0,1,0,null,null,null,{"$f":"((K64+M64+O64)/(J64+L64+N64))","v":0},null,"Acciones aún no iniciadas"]
[{"$f":"+_xlfn.IFS(B65='Número de actividades'!$C$3,'Número de actividades'!$B$3,B65='Número de actividades'!$C$4,'Número de actividades'!$B$3,B65='Número de actividades'!$C$5,'Número de actividades'!$B$3,B65='Número de actividades'!$C$6,'Número de actividades'!$B$3,B65='Número de actividades'!$C$7,'Número de actividades'!$B$7,B65='Número de actividades'!$C$8,'Número de actividades'!$B$7,B65='Número de actividades'!$C$9,'Número de actividades'!$B$9,B65='Número de actividades'!$C$10,'Número de actividades'!$B$9,B65='Número de actividades'!$C$11,'Número de actividades'!$B$9,B65='Número de actividades'!$B$12,'Número de actividades'!$B$12)","v":"3. Modelo de Estado Abierto"},"3.3. Dialogo y corresponsabilidad","3.3.8","Continuar la difusión de los trámites y servicios ofrecidos por la Entidad a todas las partes interesadas.","Quince productos comunicativos con lenguaje claro, comprensible e incluyente de los Trámites y servicios de la Entidad","Profesional Especializado de Prensa y Comunicaciones",15,"2026-02-01","2026-12-15",5,0,5,0,5,0,null,null,null,{"$f":"((K65+M65+O65)/(J65+L65+N65))","v":0},null,"Acciones aún no iniciadas"]
[{"$f":"+_xlfn.IFS(B66='Número de actividades'!$C$3,'Número de actividades'!$B$3,B66='Número de actividades'!$C$4,'Número de actividades'!$B$3,B66='Número de actividades'!$C$5,'Número de actividades'!$B$3,B66='Número de actividades'!$C$6,'Número de actividades'!$B$3,B66='Número de actividades'!$C$7,'Número de actividades'!$B$7,B66='Número de actividades'!$C$8,'Número de actividades'!$B$7,B66='Número de actividades'!$C$9,'Número de actividades'!$B$9,B66='Número de actividades'!$C$10,'Número de actividades'!$B$9,B66='Número de actividades'!$C$11,'Número de actividades'!$B$9,B66='Número de actividades'!$B$12,'Número de actividades'!$B$12)","v":"3. Modelo de Estado Abierto"},"3.3. Dialogo y corresponsabilidad","3.3.9","Diseñar y divulgar publicaciones informativas de la gestión institucional realizada en la vigencia 2026 en lenguaje claro, comprensive e incluyente para todos los canales de comunicación.","Realizar 600 publicaciones informativas de la gestión en la vigencia 2026 en  lenguaje claro, comprensible e incluyente (gif, spots, reel, videos y piezas publicitarias)","Profesional Especializado de Prensa y Comunicaciones",600,"2026-01-02","2026-12-15",200,0,200,0,200,0,null,null,null,0,null,"Acciones aún no iniciadas"]
[{"$f":"+_xlfn.IFS(B67='Número de actividades'!$C$3,'Número de actividades'!$B$3,B67='Número de actividades'!$C$4,'Número de actividades'!$B$3,B67='Número de actividades'!$C$5,'Número de actividades'!$B$3,B67='Número de actividades'!$C$6,'Número de actividades'!$B$3,B67='Número de actividades'!$C$7,'Número de actividades'!$B$7,B67='Número de actividades'!$C$8,'Número de actividades'!$B$7,B67='Número de actividades'!$C$9,'Número de actividades'!$B$9,B67='Número de actividades'!$C$10,'Número de actividades'!$B$9,B67='Número de actividades'!$C$11,'Número de actividades'!$B$9,B67='Número de actividades'!$B$12,'Número de actividades'!$B$12)","v":"3. Modelo de Estado Abierto"},"3.3. Dialogo y corresponsabilidad","3.3.10","Realizar informes relacionados con la satisfacción ciudadana y monitoreo a la calidad del servicio y publicarlos en la página web.","Once informes elaborados al mes siguiente publicados en la página web","Oficina de Gestión Social y Ambiental\nProfesional de Atención al Ciudadano",11,"2026-02-01","2026-12-15",3,0,4,0,4,0,null,null,null,0,null,"Acciones aún no iniciadas"]
["4. Iniciativas Adicionales","4.1 Iniciativas Adicionales","4.1.1","Realizar capacitación en el Programa de Transparencia y Ëtica Pública - PTEP a los servidores públicos,de conformidad con el Plan Institucional de Capacitación - PIC.","Lista de asistencia de la jornada de capacitación realizada.","Secretaria General \nCoordinación de Gestión del Talento Humano\nOficina Asesora de Direccionamiento Estratégico Institucional",1,"2026-02-01","2026-12-15",0,0,0,0,1,0,null,null,null,0,null,"Acciones aún no iniciadas"]
["4. Iniciativas Adicionales","4.1 Iniciativas Adicionales","4.1.2","Realizar capacitación en materia de cumplimiento, gestión del riesgo y operatividad del Sistema de Gestión de Riesgos para la Integridad Publica-  SIGRIP","Listado de asistencia jornada de capacitación realizada.","Oficina Asesora de Direccionamiento Estrategico Institucional \n\nOficina de Control interno disciplinario",1,"2026-02-01","2026-12-15",0,0,0,0,1,0,null,null,null,0,null,"Acciones aún no iniciadas"]
["4. Iniciativas Adicionales","4.1 Iniciativas Adicionales","4.1.3","Realizar capacitación en lenguaje claro, comprensible e incluyente de acuerdo con la Circular Externa 100-010-2021 de la Función Pública, establecido en el Plan Institucional de Capacitación - PIC ","Lista de asistencia de la jornada de capacitación realizada.","Secretaria General \nCoordinación de Gestión del Talento Humano\nServidores Públicos",1,"2026-02-01","2026-12-15",0,0,0,0,1,0,null,null,null,0,null,"Acciones aún no iniciadas"]
["4. Iniciativas Adicionales","4.1 Iniciativas Adicionales","4.1.4","Registrar la estratégia de racionalización de trámites en el aplicativo SUIT.","Una estrategia de racionalización de trámites en el aplicativo SUIT registrada","Oficina Asesora de Direccionamiento Estratégico Institucional\nSubdirecciones Misionales",1,"2026-01-02","2026-12-15",1,0,0,0,0,0,null,null,null,{"$f":"((K71+M71+O71)/(J71+L71+N71))","v":0},null,"Acciones aún no iniciadas"]
["4. Iniciativas Adicionales","4.1 Iniciativas Adicionales","4.1.5","Realizar monitoreo y seguimiento al cumplimiento de la estratégia de racionalización de trámites en el aplicativo SUIT.","Un monitoreo y seguimiento al cumplimiento de la estrategia de racionalización de trámites en el aplicativo SUIT","Oficina Asesora de Direccionamiento Estratégico Institucional\nOficina de Control Interno",2,"2026-01-02","2026-12-15",0,0,0,0,2,0,null,null,null,{"$f":"((K72+M72+O72)/(J72+L72+N72))","v":0},null,"Acciones aún no iniciadas"]
[null,null,null,null,null,null,null,"P: PLANEADO - Diligencia (Dependencia responsable de la actividad)- Columna K,M,O",null,null,null,null,null,null,null,"E: EJECUTADO - Diligencia (Monitoreos de Subgerencia de Planeación) -Columna L,N,P"]
[]
["Estado de Actividades"]
["Acciones Ejecutadas",{"$f":"COUNTIF($U$16:$U$67,A76)","v":0}]
["Acciones En Proceso",{"$f":"COUNTIF($U$16:$U$67,A77)","v":0}]
["Acciones Pendientes",{"$f":"COUNTIF($U$16:$U$67,A78)","v":0}]
["Acciones aún no iniciadas",{"$f":"COUNTIF($U$16:$U$72,A79)","v":57}]
["Total de Actividades",{"$f":"+SUM(B76:B79)","v":57}]

{"sheet":"Número de actividades","index":2,"n_rows":13,"n_cols":4,"rows_kept":13,"cut":false,"hidden":true,"merged":[[8,1,10,1],[12,1,12,2],[2,1,5,1],[6,1,7,1]]}
[]
[null,"Tematicas","Acción estratégica","Actividades"]
[null,"1. Administración de riesgos","1.1. Gestión de riesgos para la integridad pública",{"$f":"+COUNTIF('PTEP CDMB 2026 '!B16:B67,C3)","v":11}]
[null,null,"1.2. Gestión de riesgos de LA/FT/FP",{"$f":"+COUNTIF('PTEP CDMB 2026 '!B17:B67,C4)","v":1}]
[null,null,"1.3. Canales de denuncia",{"$f":"+COUNTIF('PTEP CDMB 2026 '!B18:B74,C5)","v":3}]
[null,null,"1.4. Debida diligencia",{"$f":"+COUNTIF('PTEP CDMB 2026 '!B19:B80,C6)","v":1}]
[null,"2. Redes y articulación","2.1. Redes internas",{"$f":"+COUNTIF('PTEP CDMB 2026 '!B20:B81,C7)","v":2}]
[null,null,"2.2. Redes externas",{"$f":"+COUNTIF('PTEP CDMB 2026 '!B21:B82,C8)","v":3}]
[null,"3. Modelo de Estado Abierto","3.1. Acceso a la información pública y transparencia",{"$f":"+COUNTIF('PTEP CDMB 2026 '!B27:B83,C9)","v":17}]
[null,null,"3.2. Integridad pública y cultura de la legalidad",{"$f":"+COUNTIF('PTEP CDMB 2026 '!B27:B84,C10)","v":4}]
[null,null,"3.3. Dialogo y corresponsabilidad",{"$f":"+COUNTIF('PTEP CDMB 2026 '!B28:B85,C11)","v":10}]
[null,"4. Iniciativas adicionales","4. Iniciativas adicionales",{"$f":"+COUNTIF('PTEP CDMB 2026 '!B28:B86,C12)","v":0}]
[null,"Total Actividades",null,{"$f":"+SUM(D3:D12)","v":52}]

{"sheet":"PTE2026","index":3,"n_rows":159,"n_cols":26,"rows_kept":159,"cut":false,"hidden":true,"merged":[[4,0,4,19],[0,1,3,17],[5,0,5,19],[128,0,128,1],[8,9,8,10],[8,11,8,12],[8,13,8,14],[7,9,7,14],[131,0,131,2],[115,0,115,1],[118,0,121,0],[122,0,123,0],[124,0,126,0]]}
[null,"Programa de transparencia y Etica Publica 2026 - Componente Programatico",null,null,null,null,null,null,null,null,null,null,null,null,null,null,null,null,"CÓDIGO:"]
[null,null,null,null,null,null,null,null,null,null,null,null,null,null,null,null,null,null,"VERSIÓN:"]
[null,null,null,null,null,null,null,null,null,null,null,null,null,null,null,null,null,null,"FECHA APROBACIÓN:"]
[null,null,null,null,null,null,null,null,null,null,null,null,null,null,null,null,null,null,"CALIFICACIÓN DE LA INFORMACIÓN:"]
["OBJETIVO:  Articular actividades que fortalezcan la ética, la gestión del riesgo y la transparencia, promoviendo una cultura institucional basada en la confianza ciudadana."]
["VIGENCIA DE EJERCUCIÓN:  2026"]
[]
[null,null,null,null,null,null,null,null,null,"NÚMERO DE PRODUCTOS A ENTREGAR CUATRIMESTRALMENTE"]
["TEMATICAS","ACCIÓN ESTRATÉGICA","No.","ACTIVIDAD","PRODUCTO ","RESPONSABLE ","META NUMÉRICA","FECHA DE INICIO","FECHA DE FIN","ABR",null,"AGO",null,"DIC",null,"AVANCE CUALITATIVO CORTE\nABRIL","AVANCE CUALITATIVO CORTE\nAGOSTO","AVANCE CUALITATIVO CORTE\nDICIEMBRE","% AVANCE CUANTITATIVO ACUMELADO","ESTADO"]
[null,null,null,null,null,null,null,null,null,"P","E","P","E","P","E"]
[{"$f":"+_xlfn.IFS(B11=$B$119,$A$119,B11=$B$120,$A$119,B11=$B$121,$A$119,B11=$B$122,$A$119,B11=$B$123,$A$123,B11=$B$124,$A$123,B11=$B$125,$A$125,B11=$B$126,$A$125,B11=$B$127,$A$125,B11=$A$128,$A$128)","v":"1. Administración de riesgos"},"1.1. Gestión de riesgos para la integridad pública","1.1.1","Desarrollar una campaña preventiva que fortalezca las prácticas anti soborno y antifraude","Realización de una (1) campaña preventiva","Oficina de Control Interno Disciplinario",null,null,null,null,null,null,null,null,null,null,null,null,{"$f":"((K11+M11+O11)/3)","v":0},"Acciones aún no iniciadas"]
[{"$f":"+_xlfn.IFS(B12=$B$119,$A$119,B12=$B$120,$A$119,B12=$B$121,$A$119,B12=$B$122,$A$119,B12=$B$123,$A$123,B12=$B$124,$A$123,B12=$B$125,$A$125,B12=$B$126,$A$125,B12=$B$127,$A$125,B12=$A$128,$A$128)","v":"1. Administración de riesgos"},"1.1. Gestión de riesgos para la integridad pública","1.1.2","Revisar con las dependencias responsables de la administración de riesgos, la necesidad de realizar actualización de la Política de Riesgos.","Política de riesgos actualizada, en caso de requerirse.","Subgerencia de Planeación ",null,null,null,null,null,null,null,null,null,null,null,null,0,"Acciones aún no iniciadas"]
[{"$f":"+_xlfn.IFS(B13=$B$119,$A$119,B13=$B$120,$A$119,B13=$B$121,$A$119,B13=$B$122,$A$119,B13=$B$123,$A$123,B13=$B$124,$A$123,B13=$B$125,$A$125,B13=$B$126,$A$125,B13=$B$127,$A$125,B13=$A$128,$A$128)","v":"1. Administración de riesgos"},"1.1. Gestión de riesgos para la integridad pública","1.1.3","Evaluar los riesgos de corrupción identificados en la vigencia 2024y determinar nuevos controles para su mitigación.","Riesgos de corrupción vigencia 2024 evaluados","Subgerencia de Planeación ",null,null,null,null,null,null,null,null,null,null,null,null,0,"Acciones aún no iniciadas"]
[{"$f":"+_xlfn.IFS(B14=$B$119,$A$119,B14=$B$120,$A$119,B14=$B$121,$A$119,B14=$B$122,$A$119,B14=$B$123,$A$123,B14=$B$124,$A$123,B14=$B$125,$A$125,B14=$B$126,$A$125,B14=$B$127,$A$125,B14=$A$128,$A$128)","v":"1. Administración de riesgos"},"1.1. Gestión de riesgos para la integridad pública","1.1.4","Consolidar la matriz de riesgos de corrupción vigencia 2025 y presentar para aprobación al Comité de Gestión y Desempeño","Matriz de riesgos de corrupción revisada y aprobada por el  Comité de Gestión y Desempeño","Comité de Gestión y Desempeño (Subgerencia de Planeación)",null,null,null,null,null,null,null,null,null,null,null,null,0,"Acciones aún no iniciadas"]
[{"$f":"+_xlfn.IFS(B15=$B$119,$A$119,B15=$B$120,$A$119,B15=$B$121,$A$119,B15=$B$122,$A$119,B15=$B$123,$A$123,B15=$B$124,$A$123,B15=$B$125,$A$125,B15=$B$126,$A$125,B15=$B$127,$A$125,B15=$A$128,$A$128)","v":"1. Administración de riesgos"},"1.1. Gestión de riesgos para la integridad pública","1.1.5","Hacer un seguimiento a todos los riesgos y enviar a los lideres de proceso recomendaciones y posibles ajustes a los mapas de riesgos.","Correos electrónicos, archivo de Excel que evidencia el monitoreo  a los controles de los riesgos de corrupción. ","Subgerencia de Planeación ",null,null,null,null,null,null,null,null,null,null,null,null,0,"Acciones aún no iniciadas"]
[{"$f":"+_xlfn.IFS(B16=$B$119,$A$119,B16=$B$120,$A$119,B16=$B$121,$A$119,B16=$B$122,$A$119,B16=$B$123,$A$123,B16=$B$124,$A$123,B16=$B$125,$A$125,B16=$B$126,$A$125,B16=$B$127,$A$125,B16=$A$128,$A$128)","v":"1. Administración de riesgos"},"1.1. Gestión de riesgos para la integridad pública","1.1.6","Realizar seguimiento al mapa de riesgos de corrupción por parte de la tercera línea de defensa (Oficina de Control Interno).","Informe del seguimiento al mapa de riesgos de corrupción publicado en página web","Oficina de control interno ",null,null,null,null,null,null,null,null,null,null,null,null,0,"Acciones aún no iniciadas"]
[{"$f":"+_xlfn.IFS(B17=$B$119,$A$119,B17=$B$120,$A$119,B17=$B$121,$A$119,B17=$B$122,$A$119,B17=$B$123,$A$123,B17=$B$124,$A$123,B17=$B$125,$A$125,B17=$B$126,$A$125,B17=$B$127,$A$125,B17=$A$128,$A$128)","v":"1. Administración de riesgos"},"1.2. Gestión de riesgos de LA/FT/FP","1.2.1","Actualizacion de Manual SARLAFT y los  documentos para la aplicación de los controles LAFT en la Agencia","Manual SARLAFT actualizado y los documentos determinados para la Gestión del Riesgo LAFT, y la Debida Diligencia","Gerencia de Gestión Corporativa",null,null,null,null,null,null,null,null,null,null,null,null,0,"Acciones aún no iniciadas"]
[{"$f":"+_xlfn.IFS(B18=$B$119,$A$119,B18=$B$120,$A$119,B18=$B$121,$A$119,B18=$B$122,$A$119,B18=$B$123,$A$123,B18=$B$124,$A$123,B18=$B$125,$A$125,B18=$B$126,$A$125,B18=$B$127,$A$125,B18=$A$128,$A$128)","v":"1. Administración de riesgos"},"1.2. Gestión de riesgos de LA/FT/FP","1.2.2","Definir plan de diseño e implementación de LA/FT de acuerdo con los estándares internacionales de GAFI y la normatividad relacionada en Colombia.","Plan de diseño e Implementación de LA/FT","Gerencia de Gestión Corporativa",null,null,null,null,null,null,null,null,null,null,null,null,0,"Acciones aún no iniciadas"]
["1. Administración de riesgos","1.2. Gestión de riesgos de LA/FT/FP","1.2.3","Determinar las políticas dentro del Sistema de Gestión de Riesgos  Sistema de Administración de Riesgos de Lavado de Activos y Financiación del Terrorismo-SARLAFT- para la entidad ","Actualizar la política  general dentro de la Agencia en gestión del Riesgo LAFT ","Gerencia de Gestión Corporativa",null,null,null,null,null,null,null,null,null,null,null,null,0,"Acciones aún no iniciadas"]
["1. Administración de riesgos","1.2. Gestión de riesgos de LA/FT/FP","1.2.4","Identificacion de los  riesgos que presenta la entidad ","Mapa de riesgos LAFT","Gerencia de Gestión Corporativa",null,null,null,null,null,null,null,null,null,null,null,null,0,"Acciones aún no iniciadas"]
["1. Administración de riesgos","1.3. Canales de denuncia","1.3.1","Difundir los Canales de Denuncia","una (1) Comunicaciones internas para difundir los Canales de Denuncia y guia de protección al denunciante por los diferentes medios y canales institucionales.","Control Interno Disciplinario ",null,null,null,null,null,null,null,null,null,null,null,null,0,"Acciones aún no iniciadas"]
["1. Administración de riesgos","1.3. Canales de denuncia","1.3.2","Generar los informes sobre las denuncias por presuntos actos de corrupción allegadas a la Oficina de control disciplinario","Un (1)  informes en el año ","Control Interno Disciplinario ",null,null,null,null,null,null,null,null,null,null,null,null,0,"Acciones aún no iniciadas"]
["1. Administración de riesgos","1.3. Canales de denuncia","1.3.3","Consolidar los reportes de las denuncias recibidas y tramitadas por las áreas técnicas ","Compilar en un documento los informes presentados por las áreas técnicas con relación a las denuncias recibidas de los funcionarios y de la ciudadanía, así como las acciones realizadas ante las mismas. Dicho informe se presentará ante el Comité de gestión y Desempeño en el marco de sus funciones como órgano de cumplimiento normativo.","Control Interno Disciplinario ",null,null,null,null,null,null,null,null,null,null,null,null,0,"Acciones aún no iniciadas"]
[{"$f":"+_xlfn.IFS(B24=$B$119,$A$119,B24=$B$120,$A$119,B24=$B$121,$A$119,B24=$B$122,$A$119,B24=$B$123,$A$123,B24=$B$124,$A$123,B24=$B$125,$A$125,B24=$B$126,$A$125,B24=$B$127,$A$125,B24=$A$128,$A$128)","v":"1. Administración de riesgos"},"1.4. Debida diligencia","1.4.1","Realizar una jornada de sensibilización con el apoyo de la oficina de control interno disciplinario relacionada con la importancia de reportar un conflicto de intereses, así como realizar el reporte en la plataforma SIDEAP y  socialización de la Guía sobre declaración de los posibles conflictos de interés, impedimentos y recusaciones","Lista de asistencia de la jornadade sensibilización realizada.","Oficina de Control Interno Disciplinario",null,null,null,null,null,null,null,null,null,null,null,null,0,"Acciones aún no iniciadas"]
[{"$f":"+_xlfn.IFS(B25=$B$119,$A$119,B25=$B$120,$A$119,B25=$B$121,$A$119,B25=$B$122,$A$119,B25=$B$123,$A$123,B25=$B$124,$A$123,B25=$B$125,$A$125,B25=$B$126,$A$125,B25=$B$127,$A$125,B25=$A$128,$A$128)","v":"1. Administración de riesgos"},"1.4. Debida diligencia","1.4.2","Realizar actividades de socialización, capacitación y entrenamiento al interior de la Agencia relacionado con el proceso de SARLAFT y Debida Diligencia","Listas de asistencia y/o grabación de reunión","Gerencia de Gestión Corporativa",null,null,null,null,null,null,null,null,null,null,null,null,0,"Acciones aún no iniciadas"]
[{"$f":"+_xlfn.IFS(B26=$B$119,$A$119,B26=$B$120,$A$119,B26=$B$121,$A$119,B26=$B$122,$A$119,B26=$B$123,$A$123,B26=$B$124,$A$123,B26=$B$125,$A$125,B26=$B$126,$A$125,B26=$B$127,$A$125,B26=$A$128,$A$128)","v":"1. Administración de riesgos"},"1.4. Debida diligencia","1.4.3","Definir plan de diseño e implementación de los documentos con las directrices para la debida diligencia en la entidad.","Plan de documentación para la debida diligencia","Gerencia de Gestión Corporativa",null,null,null,null,null,null,null,null,null,null,null,null,0,"Acciones aún no iniciadas"]
["1. Administración de riesgos","1.4. Debida diligencia","1.4.4","Realizar el seguimiento al reporte de la contraparte de la entidad ","Formato de seguimiento a la contraparte actualizado","Gerencia de Gestión Corporativa",null,null,null,null,null,null,null,null,null,null,null,null,0,"Acciones aún no iniciadas"]
[{"$f":"+_xlfn.IFS(B28=$B$119,$A$119,B28=$B$120,$A$119,B28=$B$121,$A$119,B28=$B$122,$A$119,B28=$B$123,$A$123,B28=$B$124,$A$123,B28=$B$125,$A$125,B28=$B$126,$A$125,B28=$B$127,$A$125,B28=$A$128,$A$128)","v":"2. Redes y articulación"},"2.1. Redes internas","2.1.1","Realizar una investigación y análisis de desafíos organizacionales a través de inteligencia colectiva, para desarrollar un banco de retos priorizados.","Informe que documente el proceso de identificación, los métodos utilizados y los retos organizacionales clave para su atención futura.","Gerencia de Estrategia /Equipo de Innovación Pública ",null,null,null,null,null,null,null,null,null,null,null,null,0,"Acciones aún no iniciadas"]
[{"$f":"+_xlfn.IFS(B29=$B$119,$A$119,B29=$B$120,$A$119,B29=$B$121,$A$119,B29=$B$122,$A$119,B29=$B$123,$A$123,B29=$B$124,$A$123,B29=$B$125,$A$125,B29=$B$126,$A$125,B29=$B$127,$A$125,B29=$A$128,$A$128)","v":"2. Redes y articulación"},"2.1. Redes internas","2.1.2","Realizar capacitaciones en herramientas tecnológicas colaborativas para fortalecer las habilidades digitales y optimizar la gestión de proyectos entre servidores públicos.","2 Capacitaciones, incluyendo asistencia de participantes","Gerencia de Estrategia /Equipo de Innovación Pública ",null,null,null,null,null,null,null,null,null,null,null,null,0,"Acciones aún no iniciadas"]
[{"$f":"+_xlfn.IFS(B30=$B$119,$A$119,B30=$B$120,$A$119,B30=$B$121,$A$119,B30=$B$122,$A$119,B30=$B$123,$A$123,B30=$B$124,$A$123,B30=$B$125,$A$125,B30=$B$126,$A$125,B30=$B$127,$A$125,B30=$A$128,$A$128)","v":"2. Redes y articulación"},"2.2. Redes externas","2.2.1","Realizar talleres de innovación abierta con aliados estratégicos para generar propuestas de soluciones innovadoras a problemáticas institucionales.","3 Actas de reunión y listados de asistencia de los talleres de innovación, con un resumen de las ideas y soluciones propuestas.","Gerencia de Estrategia /Equipo de Innovación Pública ",null,null,null,null,null,null,null,null,null,null,null,null,0,"Acciones aún no iniciadas"]
[{"$f":"+_xlfn.IFS(B31=$B$119,$A$119,B31=$B$120,$A$119,B31=$B$121,$A$119,B31=$B$122,$A$119,B31=$B$123,$A$123,B31=$B$124,$A$123,B31=$B$125,$A$125,B31=$B$126,$A$125,B31=$B$127,$A$125,B31=$A$128,$A$128)","v":"2. Redes y articulación"},"2.2. Redes externas","2.2.2","Realizar talleres experienciales para transferir conocimientos y metodologías innovadoras entre entidades públicas.","3 talleres realizados, acompañados de actas  de cada sesión.","Gerencia de Estrategia /Equipo de Innovación Pública ",null,null,null,null,null,null,null,null,null,null,null,null,0,"Acciones aún no iniciadas"]
[{"$f":"+_xlfn.IFS(B32=$B$119,$A$119,B32=$B$120,$A$119,B32=$B$121,$A$119,B32=$B$122,$A$119,B32=$B$123,$A$123,B32=$B$124,$A$123,B32=$B$125,$A$125,B32=$B$126,$A$125,B32=$B$127,$A$125,B32=$A$128,$A$128)","v":"2. Redes y articulación"},"2.2. Redes externas","2.2.3","Realizar eventos trimestrales sobre innovación pública, fomentando el intercambio de aprendizajes","3 eventos realizados, incluyendo reporte de resultados.","Gerencia de Estrategia /Equipo de Innovación Pública ",null,null,null,null,null,null,null,null,null,null,null,null,0,"Acciones aún no iniciadas"]
[{"$f":"+_xlfn.IFS(B33=$B$119,$A$119,B33=$B$120,$A$119,B33=$B$121,$A$119,B33=$B$122,$A$119,B33=$B$123,$A$123,B33=$B$124,$A$123,B33=$B$125,$A$125,B33=$B$126,$A$125,B33=$B$127,$A$125,B33=$A$128,$A$128)","v":"2. Redes y articulación"},"2.2. Redes externas","2.2.4","Participar en las jornadas adelantadas por la administración distrital, relacionadas con la política de integridad y conflicto de intereses.","Citación de asistencia a los eventos de socialización.","Subgerencia de Gestión Administrativa -Gestores de Integridad",null,null,null,null,null,null,null,null,null,null,null,null,0,"Acciones aún no iniciadas"]
[{"$f":"+_xlfn.IFS(B34=$B$119,$A$119,B34=$B$120,$A$119,B34=$B$121,$A$119,B34=$B$122,$A$119,B34=$B$123,$A$123,B34=$B$124,$A$123,B34=$B$125,$A$125,B34=$B$126,$A$125,B34=$B$127,$A$125,B34=$A$128,$A$128)","v":"2. Redes y articulación"},"2.2. Redes externas","2.2.5","Participar en la audiencia pública del sector educación","Video de la audiencia","Subgerencia de Planeación",null,null,null,null,null,null,null,null,null,null,null,null,0,"Acciones aún no iniciadas"]
[{"$f":"+_xlfn.IFS(B35=$B$119,$A$119,B35=$B$120,$A$119,B35=$B$121,$A$119,B35=$B$122,$A$119,B35=$B$123,$A$123,B35=$B$124,$A$123,B35=$B$125,$A$125,B35=$B$126,$A$125,B35=$B$127,$A$125,B35=$A$128,$A$128)","v":"3. Modelo de Estado Abierto"},"3.1. Acceso a la información pública y transparencia","3.1.1","Definir el conjunto de datos abiertos estratégico, que serán objeto de publicación en el portal de datos abiertos de la ciudad","Documento con los datos abiertos identificados para la publicación de la vigencia.","Subgerencia Análisis Información y Gestión del Conocimiento",null,null,null,null,null,null,null,null,null,null,null,null,0,"Acciones aún no iniciadas"]
[{"$f":"+_xlfn.IFS(B36=$B$119,$A$119,B36=$B$120,$A$119,B36=$B$121,$A$119,B36=$B$122,$A$119,B36=$B$123,$A$123,B36=$B$124,$A$123,B36=$B$125,$A$125,B36=$B$126,$A$125,B36=$B$127,$A$125,B36=$A$128,$A$128)","v":"3. Modelo de Estado Abierto"},"3.1. Acceso a la información pública y transparencia","3.1.10","Publicar matriz de riesgos de corrupción vigencia 2025","Matriz de Riesgos de Corrupción publicada","Subgerencia de Planeación ",null,null,null,null,null,null,null,null,null,null,null,null,0,"Acciones aún no iniciadas"]
[{"$f":"+_xlfn.IFS(B37=$B$119,$A$119,B37=$B$120,$A$119,B37=$B$121,$A$119,B37=$B$122,$A$119,B37=$B$123,$A$123,B37=$B$124,$A$123,B37=$B$125,$A$125,B37=$B$126,$A$125,B37=$B$127,$A$125,B37=$A$128,$A$128)","v":"3. Modelo de Estado Abierto"},"3.1. Acceso a la información pública y transparencia","3.1.11","Divulgar la política de riesgos, alineada a la planeación estratégica de la entidad.","Política divulgada","Subgerencia de Planeación ",null,null,null,null,null,null,null,null,null,null,null,null,0,"Acciones aún no iniciadas"]
[{"$f":"+_xlfn.IFS(B38=$B$119,$A$119,B38=$B$120,$A$119,B38=$B$121,$A$119,B38=$B$122,$A$119,B38=$B$123,$A$123,B38=$B$124,$A$123,B38=$B$125,$A$125,B38=$B$126,$A$125,B38=$B$127,$A$125,B38=$A$128,$A$128)","v":"3. Modelo de Estado Abierto"},"3.1. Acceso a la información pública y transparencia","3.1.12","Actualizar la información de cada una de las secciones de la página Web.","Informe semestral de los contenidos publicados en la página Web","Dirección General - Comunicaciones",null,null,null,null,null,null,null,null,null,null,null,null,0,"Acciones aún no iniciadas"]
[{"$f":"+_xlfn.IFS(B39=$B$119,$A$119,B39=$B$120,$A$119,B39=$B$121,$A$119,B39=$B$122,$A$119,B39=$B$123,$A$123,B39=$B$124,$A$123,B39=$B$125,$A$125,B39=$B$126,$A$125,B39=$B$127,$A$125,B39=$A$128,$A$128)","v":"3. Modelo de Estado Abierto"},"3.1. Acceso a la información pública y transparencia","3.1.13","Validar la funcionabilidad técnica del servicio web , que cumpla con los requisitos de accesibilidad.","Informe de Validación del servicio web definido durante el año","Subgerencia de Tecnologías de la Información y Comunicaciones- TIC",null,null,null,null,null,null,null,null,null,null,null,null,0,"Acciones aún no iniciadas"]
[{"$f":"+_xlfn.IFS(B40=$B$119,$A$119,B40=$B$120,$A$119,B40=$B$121,$A$119,B40=$B$122,$A$119,B40=$B$123,$A$123,B40=$B$124,$A$123,B40=$B$125,$A$125,B40=$B$126,$A$125,B40=$B$127,$A$125,B40=$A$128,$A$128)","v":"3. Modelo de Estado Abierto"},"3.1. Acceso a la información pública y transparencia","3.1.14","Medir mensualmente la oportunidad de las respuestas a las peticiones ciudadanas que son recibidas por la Agencia (mes vencido)","Reporte de medición del indicador de la oportunidad en la respuesta a las peticiones ciudadanas (El reporte se realizará mes vencido y corresponderá a la medición de los meses de enero a noviembre de 2025 - 11 reportes)","Subgerencia de Gestión Administrativa",null,null,null,null,null,null,null,null,null,null,null,null,0,"Acciones aún no iniciadas"]
[{"$f":"+_xlfn.IFS(B41=$B$119,$A$119,B41=$B$120,$A$119,B41=$B$121,$A$119,B41=$B$122,$A$119,B41=$B$123,$A$123,B41=$B$124,$A$123,B41=$B$125,$A$125,B41=$B$126,$A$125,B41=$B$127,$A$125,B41=$A$128,$A$128)","v":"3. Modelo de Estado Abierto"},"3.1. Acceso a la información pública y transparencia","3.1.15","Medir mensualmente la calidad en las respuestas a las peticiones ciudadanas emitidas por la Agencia, a las PQRSD registradas en el sistema distrital para la gestión de peticiones ciudadanas Bogotá Te Escucha (mes vencido)","Informe mensual de la calidad en las respuestas a las peticiones ciudadanas (El informe se realizará mes vencido y corresponderá al análisis de las respuestas a las peticiones interpuestas de los meses de enero a diciembre de 2025 -  11 informes)","Subgerencia de Gestión Administrativa ",null,null,null,null,null,null,null,null,null,null,null,null,0,"Acciones aún no iniciadas"]
[{"$f":"+_xlfn.IFS(B42=$B$119,$A$119,B42=$B$120,$A$119,B42=$B$121,$A$119,B42=$B$122,$A$119,B42=$B$123,$A$123,B42=$B$124,$A$123,B42=$B$125,$A$125,B42=$B$126,$A$125,B42=$B$127,$A$125,B42=$A$128,$A$128)","v":"3. Modelo de Estado Abierto"},"3.1. Acceso a la información pública y transparencia","3.1.16","Actualizar el Inventario de activos de Información","Inventario de activos de información actualizados y publicados en la página web institucional y portal de datos abiertos","Subgerencia de Tecnologías de la Información y Comunicaciones- TIC",null,null,null,null,null,null,null,null,null,null,null,null,0,"Acciones aún no iniciadas"]
[{"$f":"+_xlfn.IFS(B43=$B$119,$A$119,B43=$B$120,$A$119,B43=$B$121,$A$119,B43=$B$122,$A$119,B43=$B$123,$A$123,B43=$B$124,$A$123,B43=$B$125,$A$125,B43=$B$126,$A$125,B43=$B$127,$A$125,B43=$A$128,$A$128)","v":"3. Modelo de Estado Abierto"},"3.1. Acceso a la información pública y transparencia","3.1.17","Actualizar Índice de Información Clasificada y Reservada","Índice de información clasificada y reservada actualizada y  publicada en la página web institucional y portal de datos abiertos","Subgerencia de Tecnologías de la Información y Comunicaciones- TIC",null,null,null,null,null,null,null,null,null,null,null,null,{"$f":"((K43+M43+O43)/3)","v":0},"Acciones aún no iniciadas"]
[{"$f":"+_xlfn.IFS(B44=$B$119,$A$119,B44=$B$120,$A$119,B44=$B$121,$A$119,B44=$B$122,$A$119,B44=$B$123,$A$123,B44=$B$124,$A$123,B44=$B$125,$A$125,B44=$B$126,$A$125,B44=$B$127,$A$125,B44=$A$128,$A$128)","v":"3. Modelo de Estado Abierto"},"3.1. Acceso a la información pública y transparencia","3.1.18","Actualizar esquema de publicación de información","Formato de esquema de publicación de información actualizado y publicado en la página web institucional","Subgerencia de Tecnologías de la Información y Comunicaciones- TIC",null,null,null,null,null,null,null,null,null,null,null,null,0,"Acciones aún no iniciadas"]
[{"$f":"+_xlfn.IFS(B45=$B$119,$A$119,B45=$B$120,$A$119,B45=$B$121,$A$119,B45=$B$122,$A$119,B45=$B$123,$A$123,B45=$B$124,$A$123,B45=$B$125,$A$125,B45=$B$126,$A$125,B45=$B$127,$A$125,B45=$A$128,$A$128)","v":"3. Modelo de Estado Abierto"},"3.1. Acceso a la información pública y transparencia","3.1.19","Actualizar los contenidos en la página web sobre la información y los mecanismos para presentar quejas y reclamos","Actualizaciones requeridas, su soporte sería en caso de ser requerida la publicación en la página web, o pantallazo de la información publicada y actualizada","Subgerencia de Gestión Administrativa",null,null,null,null,null,null,null,null,null,null,null,null,0,"Acciones aún no iniciadas"]
[{"$f":"+_xlfn.IFS(B46=$B$119,$A$119,B46=$B$120,$A$119,B46=$B$121,$A$119,B46=$B$122,$A$119,B46=$B$123,$A$123,B46=$B$124,$A$123,B46=$B$125,$A$125,B46=$B$126,$A$125,B46=$B$127,$A$125,B46=$A$128,$A$128)","v":"3. Modelo de Estado Abierto"},"3.1. Acceso a la información pública y transparencia","3.1.2","Publicar el conjunto de datos abiertos estratégico, que fueron definidos","Información publicada en página web y portal de datos abiertos distrito","Subgerencia Análisis Información y Gestión del Conocimiento",null,null,null,null,null,null,null,null,null,null,null,null,0,"Acciones aún no iniciadas"]
[{"$f":"+_xlfn.IFS(B47=$B$119,$A$119,B47=$B$120,$A$119,B47=$B$121,$A$119,B47=$B$122,$A$119,B47=$B$123,$A$123,B47=$B$124,$A$123,B47=$B$125,$A$125,B47=$B$126,$A$125,B47=$B$127,$A$125,B47=$A$128,$A$128)","v":"3. Modelo de Estado Abierto"},"3.1. Acceso a la información pública y transparencia","3.1.20","Implementar las normativas específicas relacionadas con las características de accesibilidad en el servicio definido","Informe de cumplimiento de  las características de accesibilidad en el servicio definido","Subgerencia de Tecnologías de la Información y Comunicaciones- TIC",null,null,null,null,null,null,null,null,null,null,null,null,0,"Acciones aún no iniciadas"]
[{"$f":"+_xlfn.IFS(B48=$B$119,$A$119,B48=$B$120,$A$119,B48=$B$121,$A$119,B48=$B$122,$A$119,B48=$B$123,$A$123,B48=$B$124,$A$123,B48=$B$125,$A$125,B48=$B$126,$A$125,B48=$B$127,$A$125,B48=$A$128,$A$128)","v":"3. Modelo de Estado Abierto"},"3.1. Acceso a la información pública y transparencia","3.1.21","Revisar la información publicada y actualizada en el botón de Transparencia y acceso a la información en cumplimiento de la Ley 1712 de 2014, aplicando la Matriz de Cumplimiento del índice de Transparencia y Acceso a la Información de la Procuraduría General de la Nación. ","Dos (2) validaciones de la información publicada en el botón de Transparencia, previo al reporte anual de cumplimiento solicitado por la Procuraduría, en el formato de matriz de cumplimiento de la procuraduría general de la nación.","Subgerencia de Planeación",null,null,null,null,null,null,null,null,null,null,null,null,0,"Acciones aún no iniciadas"]
[{"$f":"+_xlfn.IFS(B49=$B$119,$A$119,B49=$B$120,$A$119,B49=$B$121,$A$119,B49=$B$122,$A$119,B49=$B$123,$A$123,B49=$B$124,$A$123,B49=$B$125,$A$125,B49=$B$126,$A$125,B49=$B$127,$A$125,B49=$A$128,$A$128)","v":"3. Modelo de Estado Abierto"},"3.1. Acceso a la información pública y transparencia","3.1.22","Elaborar y publicar trimestralmente un informe de las solicitudes de acceso a la información pública recibidas por la Agencia.","Informe trimestral publicado (El informe se publicará en el mes siguiente a la finalización del trimestre - 3 informes) ","Subgerencia de Gestión Administrativa ",null,null,null,null,null,null,null,null,null,null,null,null,0,"Acciones aún no iniciadas"]
[{"$f":"+_xlfn.IFS(B50=$B$119,$A$119,B50=$B$120,$A$119,B50=$B$121,$A$119,B50=$B$122,$A$119,B50=$B$123,$A$123,B50=$B$124,$A$123,B50=$B$125,$A$125,B50=$B$126,$A$125,B50=$B$127,$A$125,B50=$A$128,$A$128)","v":"3. Modelo de Estado Abierto"},"3.1. Acceso a la información pública y transparencia","3.1.23","Mantener actualizada la información relacionada con los trámites y servicios,  en los canales de atención","Expedir certificado de confiabilidad de la información mensualmente","Subgerencia de Gestión Administrativa ",null,null,null,null,null,null,null,null,null,null,null,null,0,"Acciones aún no iniciadas"]
[{"$f":"+_xlfn.IFS(B51=$B$119,$A$119,B51=$B$120,$A$119,B51=$B$121,$A$119,B51=$B$122,$A$119,B51=$B$123,$A$123,B51=$B$124,$A$123,B51=$B$125,$A$125,B51=$B$126,$A$125,B51=$B$127,$A$125,B51=$A$128,$A$128)","v":"3. Modelo de Estado Abierto"},"3.1. Acceso a la información pública y transparencia","3.1.24","Realizar y publicar en la página web de la Agencia el informe trimestral relacionado con la gestión a las PQRSD que ingresan a la entidad que incluyan una caracterización y análisis de los grupos de valor","3 informes trimestrales de gestión a las PQRSD (elaborados y publicados al mes siguiente que se finalice el trimestre)","Subgerencia de Gestión Administrativa",null,null,null,null,null,null,null,null,null,null,null,null,0,"Acciones aún no iniciadas"]
[{"$f":"+_xlfn.IFS(B52=$B$119,$A$119,B52=$B$120,$A$119,B52=$B$121,$A$119,B52=$B$122,$A$119,B52=$B$123,$A$123,B52=$B$124,$A$123,B52=$B$125,$A$125,B52=$B$126,$A$125,B52=$B$127,$A$125,B52=$A$128,$A$128)","v":"3. Modelo de Estado Abierto"},"3.1. Acceso a la información pública y transparencia","3.1.25","Realizar y publicar en la página web de la Veeduría Distrital el informe mensual correspondiente a las PQRSD que son gestionadas en la Agencia en el marco del Decreto Distrital 371 de 2010.","11 informes, 1 mensual de PQRSD para la Veeduría Distrital (elaborados y publicados al mes siguiente que se finalice el mes","Subgerencia de Gestión Administrativa",null,null,null,null,null,null,null,null,null,null,null,null,0,"Acciones aún no iniciadas"]
[{"$f":"+_xlfn.IFS(B53=$B$119,$A$119,B53=$B$120,$A$119,B53=$B$121,$A$119,B53=$B$122,$A$119,B53=$B$123,$A$123,B53=$B$124,$A$123,B53=$B$125,$A$125,B53=$B$126,$A$125,B53=$B$127,$A$125,B53=$A$128,$A$128)","v":"3. Modelo de Estado Abierto"},"3.1. Acceso a la información pública y transparencia","3.1.26","Realizar el reporte trimestral de los datos de operación de los OPAs de la Agencia en el SUIT.","Registro reporte de datos de operación en  SUIT","Subgerencia de Planeación.",null,null,null,null,null,null,null,null,null,null,null,null,0,"Acciones aún no iniciadas"]
[{"$f":"+_xlfn.IFS(B54=$B$119,$A$119,B54=$B$120,$A$119,B54=$B$121,$A$119,B54=$B$122,$A$119,B54=$B$123,$A$123,B54=$B$124,$A$123,B54=$B$125,$A$125,B54=$B$126,$A$125,B54=$B$127,$A$125,B54=$A$128,$A$128)","v":"3. Modelo de Estado Abierto"},"3.1. Acceso a la información pública y transparencia","3.1.27","Realizar informe de la publicación de los  compromisos de los espacios en la veeduría ","Dos (2) informes de la publicación de compromisos en la plataforma Colibrí.\nPeriodicidad de la medición: semestral","Gerencia de Estrategia ",null,null,null,null,null,null,null,null,null,null,null,null,0,"Acciones aún no iniciadas"]
[{"$f":"+_xlfn.IFS(B55=$B$119,$A$119,B55=$B$120,$A$119,B55=$B$121,$A$119,B55=$B$122,$A$119,B55=$B$123,$A$123,B55=$B$124,$A$123,B55=$B$125,$A$125,B55=$B$126,$A$125,B55=$B$127,$A$125,B55=$A$128,$A$128)","v":"3. Modelo de Estado Abierto"},"3.1. Acceso a la información pública y transparencia","3.1.28","Publicar la estrategia de participación ciudadana en el botón participa de la página web ","Una (1) publicación de la estrategia de participación ciudadana en la página web de la entidad.\nPeriodicidad de la medición: anual ","Gerencia de Estrategia ",null,null,null,null,null,null,null,null,null,null,null,null,0,"Acciones aún no iniciadas"]
[{"$f":"+_xlfn.IFS(B56=$B$119,$A$119,B56=$B$120,$A$119,B56=$B$121,$A$119,B56=$B$122,$A$119,B56=$B$123,$A$123,B56=$B$124,$A$123,B56=$B$125,$A$125,B56=$B$126,$A$125,B56=$B$127,$A$125,B56=$A$128,$A$128)","v":"3. Modelo de Estado Abierto"},"3.1. Acceso a la información pública y transparencia","3.1.29","Divulgar mensualmente por canales digitales la gestión de la entidad","Doce (12) divulgaciones en canales digitales de la entidad sobre la gestión de la entidad","Gerencia de Estrategia ",null,null,null,null,null,null,null,null,null,null,null,null,0,"Acciones aún no iniciadas"]
[{"$f":"+_xlfn.IFS(B57=$B$119,$A$119,B57=$B$120,$A$119,B57=$B$121,$A$119,B57=$B$122,$A$119,B57=$B$123,$A$123,B57=$B$124,$A$123,B57=$B$125,$A$125,B57=$B$126,$A$125,B57=$B$127,$A$125,B57=$A$128,$A$128)","v":"3. Modelo de Estado Abierto"},"3.1. Acceso a la información pública y transparencia","3.1.3","Publicar índice de información clasificada y reservada","Información publicada en página web y portal de datos abiertos","Subgerencia TICS",null,null,null,null,null,null,null,null,null,null,null,null,0,"Acciones aún no iniciadas"]
[{"$f":"+_xlfn.IFS(B58=$B$119,$A$119,B58=$B$120,$A$119,B58=$B$121,$A$119,B58=$B$122,$A$119,B58=$B$123,$A$123,B58=$B$124,$A$123,B58=$B$125,$A$125,B58=$B$126,$A$125,B58=$B$127,$A$125,B58=$A$128,$A$128)","v":"3. Modelo de Estado Abierto"},"3.1. Acceso a la información pública y transparencia","3.1.30","Publicar en la página web el informe de rendición de cuentas","Publicación del informe","Subgerencia de Planeación",null,null,null,null,null,null,null,null,null,null,null,null,0,"Acciones aún no iniciadas"]
[{"$f":"+_xlfn.IFS(B59=$B$119,$A$119,B59=$B$120,$A$119,B59=$B$121,$A$119,B59=$B$122,$A$119,B59=$B$123,$A$123,B59=$B$124,$A$123,B59=$B$125,$A$125,B59=$B$126,$A$125,B59=$B$127,$A$125,B59=$A$128,$A$128)","v":"3. Modelo de Estado Abierto"},"3.1. Acceso a la información pública y transparencia","3.1.31","Hacer la divulgación de la fecha de la Audiencia de rendición de cuentas","Pieza comunicativa ","Subgerencia de Planeación / Dirección General - Oficina de comunicaciones",null,null,null,null,null,null,null,null,null,null,null,null,0,"Acciones aún no iniciadas"]
[{"$f":"+_xlfn.IFS(B60=$B$119,$A$119,B60=$B$120,$A$119,B60=$B$121,$A$119,B60=$B$122,$A$119,B60=$B$123,$A$123,B60=$B$124,$A$123,B60=$B$125,$A$125,B60=$B$126,$A$125,B60=$B$127,$A$125,B60=$A$128,$A$128)","v":"3. Modelo de Estado Abierto"},"3.1. Acceso a la información pública y transparencia","3.1.4","Publicar matriz de activos de información","Información publicada en página web y portal de datos abiertos","Subgerencia TICS",null,null,null,null,null,null,null,null,null,null,null,null,0,"Acciones aún no iniciadas"]
[{"$f":"+_xlfn.IFS(B61=$B$119,$A$119,B61=$B$120,$A$119,B61=$B$121,$A$119,B61=$B$122,$A$119,B61=$B$123,$A$123,B61=$B$124,$A$123,B61=$B$125,$A$125,B61=$B$126,$A$125,B61=$B$127,$A$125,B61=$A$128,$A$128)","v":"3. Modelo de Estado Abierto"},"3.1. Acceso a la información pública y transparencia","3.1.5","Actualización trimestral conjuntos de datos abiertos publicados","Información publicada en página web y portal de datos abiertos","Subgerencia Análisis Información y Gestión del Conocimiento",null,null,null,null,null,null,null,null,null,null,null,null,0,"Acciones aún no iniciadas"]
[{"$f":"+_xlfn.IFS(B62=$B$119,$A$119,B62=$B$120,$A$119,B62=$B$121,$A$119,B62=$B$122,$A$119,B62=$B$123,$A$123,B62=$B$124,$A$123,B62=$B$125,$A$125,B62=$B$126,$A$125,B62=$B$127,$A$125,B62=$A$128,$A$128)","v":"3. Modelo de Estado Abierto"},"3.1. Acceso a la información pública y transparencia","3.1.6","Publicar el informe de gestión de la entidad en la página web","Informe de gestión","Subgerencia de Planeación",null,null,null,null,null,null,null,null,null,null,null,null,0,"Acciones aún no iniciadas"]
[{"$f":"+_xlfn.IFS(B63=$B$119,$A$119,B63=$B$120,$A$119,B63=$B$121,$A$119,B63=$B$122,$A$119,B63=$B$123,$A$123,B63=$B$124,$A$123,B63=$B$125,$A$125,B63=$B$126,$A$125,B63=$B$127,$A$125,B63=$A$128,$A$128)","v":"3. Modelo de Estado Abierto"},"3.1. Acceso a la información pública y transparencia","3.1.7","Publicar  los ajustes realizados a las diferentes fichas EBI de los Proyectos de Inversión, cuando se realice alguno. ","Ficha EBI-D","Subgerencia de Planeación",null,null,null,null,null,null,null,null,null,null,null,null,0,"Acciones aún no iniciadas"]
[{"$f":"+_xlfn.IFS(B64=$B$119,$A$119,B64=$B$120,$A$119,B64=$B$121,$A$119,B64=$B$122,$A$119,B64=$B$123,$A$123,B64=$B$124,$A$123,B64=$B$125,$A$125,B64=$B$126,$A$125,B64=$B$127,$A$125,B64=$A$128,$A$128)","v":"3. Modelo de Estado Abierto"},"3.1. Acceso a la información pública y transparencia","3.1.8","Mantener actualizada la información en la página web de la sección de Planeación, Presupuesto e Informes, en los temas de presupuesto, estados financieros y Ejecución Presupuestal","Información publicada y actualizada en la página web institucional","Subgerencia Financiera",null,null,null,null,null,null,null,null,null,null,null,null,0,"Acciones aún no iniciadas"]
[{"$f":"+_xlfn.IFS(B65=$B$119,$A$119,B65=$B$120,$A$119,B65=$B$121,$A$119,B65=$B$122,$A$119,B65=$B$123,$A$123,B65=$B$124,$A$123,B65=$B$125,$A$125,B65=$B$126,$A$125,B65=$B$127,$A$125,B65=$A$128,$A$128)","v":"3. Modelo de Estado Abierto"},"3.1. Acceso a la información pública y transparencia","3.1.9","Estandarizar el conjunto de datos abiertos sobre información estratégica de la entidad antes de su publicación","Conjunto de datos abiertos estandarizados - Matrices finales con los conjuntos de datos listos para subir al portal de la ciudad","Subgerencia Análisis Información y Gestión del Conocimiento",null,null,null,null,null,null,null,null,null,null,null,null,0,"Acciones aún no iniciadas"]
[{"$f":"+_xlfn.IFS(B66=$B$119,$A$119,B66=$B$120,$A$119,B66=$B$121,$A$119,B66=$B$122,$A$119,B66=$B$123,$A$123,B66=$B$124,$A$123,B66=$B$125,$A$125,B66=$B$126,$A$125,B66=$B$127,$A$125,B66=$A$128,$A$128)","v":"3. Modelo de Estado Abierto"},"3.2. Integridad pública y cultura de la legalidad","3.2.1","Crear una red de embajadores internos de innovación para fortalecer la cultura innovadora en la entidad.","10 embajadores formados con actividades realizadas para promover la innovación.","Gerencia de Estrategia /Equipo de Innovación Pública ",null,null,null,null,null,null,null,null,null,null,null,null,0,"Acciones aún no iniciadas"]
[{"$f":"+_xlfn.IFS(B67=$B$119,$A$119,B67=$B$120,$A$119,B67=$B$121,$A$119,B67=$B$122,$A$119,B67=$B$123,$A$123,B67=$B$124,$A$123,B67=$B$125,$A$125,B67=$B$126,$A$125,B67=$B$127,$A$125,B67=$A$128,$A$128)","v":"3. Modelo de Estado Abierto"},"3.2. Integridad pública y cultura de la legalidad","3.2.10","Analizar el resultado producto de la aplicación de la encuesta de percepción  y de acuerdo a ello definir las acciones a fortalecer en  la apropiación y gestión de integridad en la Entidad","Plan de trabajo ","Subgerencia de Gestión Administrativa -Gestores de Integridad",null,null,null,null,null,null,null,null,null,null,null,null,0,"Acciones aún no iniciadas"]
[{"$f":"+_xlfn.IFS(B68=$B$119,$A$119,B68=$B$120,$A$119,B68=$B$121,$A$119,B68=$B$122,$A$119,B68=$B$123,$A$123,B68=$B$124,$A$123,B68=$B$125,$A$125,B68=$B$126,$A$125,B68=$B$127,$A$125,B68=$A$128,$A$128)","v":"3. Modelo de Estado Abierto"},"3.2. Integridad pública y cultura de la legalidad","3.2.11","Sensibilizar, cualificar y/o capacitar a funcionarios y colaboradores de la entidad, según las necesidades de la Agencia, en temas asociados a servicio a la ciudadanía, para fortalecer la cultura en este tema, en función de la interiorización de la Política Publica de Servicio a la Ciudadanía, las actualizaciones normativas y el Modelo Integral de Relacionamiento con la Ciudadanía","3 Sensibilizaciones, cualificaciones o Capacitaciones (1 cuatrimestral) ","Subgerencia de Gestión Administrativa",null,null,null,null,null,null,null,null,null,null,null,null,0,"Acciones aún no iniciadas"]
[{"$f":"+_xlfn.IFS(B69=$B$119,$A$119,B69=$B$120,$A$119,B69=$B$121,$A$119,B69=$B$122,$A$119,B69=$B$123,$A$123,B69=$B$124,$A$123,B69=$B$125,$A$125,B69=$B$126,$A$125,B69=$B$127,$A$125,B69=$A$128,$A$128)","v":"3. Modelo de Estado Abierto"},"3.2. Integridad pública y cultura de la legalidad","3.2.12","Realizar seguimiento semanal a la gestión de PQRSD que ingresan a la Agencia y son tramitadas por las diferentes dependencias de la entidad","Reporte consolidado del seguimiento a la gestión de PQRSD realizado semanalmente","Subgerencia de Gestión Administrativa",null,null,null,null,null,null,null,null,null,null,null,null,0,"Acciones aún no iniciadas"]
[{"$f":"+_xlfn.IFS(B70=$B$119,$A$119,B70=$B$120,$A$119,B70=$B$121,$A$119,B70=$B$122,$A$119,B70=$B$123,$A$123,B70=$B$124,$A$123,B70=$B$125,$A$125,B70=$B$126,$A$125,B70=$B$127,$A$125,B70=$A$128,$A$128)","v":"3. Modelo de Estado Abierto"},"3.2. Integridad pública y cultura de la legalidad","3.2.13","Realizar seguimiento trimestral a la implementación de la estrategia de racionalización para los OPAs de la Agencia.","Comunicación solicitud de reporte avances estrategia de racionalización definida y cargue de seguimiento en SUIT.","Subgerencia de Planeación.",null,null,null,null,null,null,null,null,null,null,null,null,0,"Acciones aún no iniciadas"]
[{"$f":"+_xlfn.IFS(B71=$B$119,$A$119,B71=$B$120,$A$119,B71=$B$121,$A$119,B71=$B$122,$A$119,B71=$B$123,$A$123,B71=$B$124,$A$123,B71=$B$125,$A$125,B71=$B$126,$A$125,B71=$B$127,$A$125,B71=$A$128,$A$128)","v":"3. Modelo de Estado Abierto"},"3.2. Integridad pública y cultura de la legalidad","3.2.14","Solicitar a los lideres de procesos misionales, informar a la Subgerencia de Planeación si se requiere la definición de nuevos OPAs. En caso de requerirse definir plan de Definición de OPAs.","Comunicación donde se informe si se requiere documentar nuevos OPA o modificar los existentes. \n*En caso de requerirse documentación nuevo OPA: Plan de definición.\n*En caso de requerirse modificación: actualización OPA SUIT.","Subgerencia de Planeación.",null,null,null,null,null,null,null,null,null,null,null,null,0,"Acciones aún no iniciadas"]
[{"$f":"+_xlfn.IFS(B72=$B$119,$A$119,B72=$B$120,$A$119,B72=$B$121,$A$119,B72=$B$122,$A$119,B72=$B$123,$A$123,B72=$B$124,$A$123,B72=$B$125,$A$125,B72=$B$126,$A$125,B72=$B$127,$A$125,B72=$A$128,$A$128)","v":"3. Modelo de Estado Abierto"},"3.2. Integridad pública y cultura de la legalidad","3.2.15","Definición estrategia de racionalización de los OPAs para la vigencia 2026.","Registro del cargue en SUIT.","Subgerencia de Planeación.",null,null,null,null,null,null,null,null,null,null,null,null,0,"Acciones aún no iniciadas"]
[{"$f":"+_xlfn.IFS(B73=$B$119,$A$119,B73=$B$120,$A$119,B73=$B$121,$A$119,B73=$B$122,$A$119,B73=$B$123,$A$123,B73=$B$124,$A$123,B73=$B$125,$A$125,B73=$B$126,$A$125,B73=$B$127,$A$125,B73=$A$128,$A$128)","v":"3. Modelo de Estado Abierto"},"3.2. Integridad pública y cultura de la legalidad","3.2.2","Desarrollar podcasts de conocimiento sobre casos de éxito en innovación pública y difundirlos entre los servidores públicos.","3 Podcasts","Gerencia de Estrategia /Equipo de Innovación Pública ",null,null,null,null,null,null,null,null,null,null,null,null,0,"Acciones aún no iniciadas"]
[{"$f":"+_xlfn.IFS(B74=$B$119,$A$119,B74=$B$120,$A$119,B74=$B$121,$A$119,B74=$B$122,$A$119,B74=$B$123,$A$123,B74=$B$124,$A$123,B74=$B$125,$A$125,B74=$B$126,$A$125,B74=$B$127,$A$125,B74=$A$128,$A$128)","v":"3. Modelo de Estado Abierto"},"3.2. Integridad pública y cultura de la legalidad","3.2.3","Adelantar acciones necesarias para llevar a cabo la conformación del equipo de gestores de integridad ","Convocatoria para conformar el equipo de Gestores de Integridad ","Subgerencia de Gestión Administrativa -Gestores de Integridad",null,null,null,null,null,null,null,null,null,null,null,null,0,"Acciones aún no iniciadas"]
[{"$f":"+_xlfn.IFS(B75=$B$119,$A$119,B75=$B$120,$A$119,B75=$B$121,$A$119,B75=$B$122,$A$119,B75=$B$123,$A$123,B75=$B$124,$A$123,B75=$B$125,$A$125,B75=$B$126,$A$125,B75=$B$127,$A$125,B75=$A$128,$A$128)","v":"3. Modelo de Estado Abierto"},"3.2. Integridad pública y cultura de la legalidad","3.2.4","Capacitar al equipo de gestores de integridad contemplado en el PIC Atenea o en las plataformas ofertadas en el DAFP ","Certificado de curso de integridad, transparencia y lucha contra la corrupción - EVA DAFP","Subgerencia de Gestión Administrativa -Gestores de Integridad",null,null,null,null,null,null,null,null,null,null,null,null,{"$f":"((K75+M75+O75)/3)","v":0},"Acciones aún no iniciadas"]
[{"$f":"+_xlfn.IFS(B76=$B$119,$A$119,B76=$B$120,$A$119,B76=$B$121,$A$119,B76=$B$122,$A$119,B76=$B$123,$A$123,B76=$B$124,$A$123,B76=$B$125,$A$125,B76=$B$126,$A$125,B76=$B$127,$A$125,B76=$A$128,$A$128)","v":"3. Modelo de Estado Abierto"},"3.2. Integridad pública y cultura de la legalidad","3.2.5","Diseñar un instrumento o herramienta para realizar diagnóstico del nivel de apropiación del código de integridad en la Entidad","Encuesta de percepción yapropiación (Instrumento)","Subgerencia de Gestión Administrativa -Gestores de Integridad",null,null,null,null,null,null,null,null,null,null,null,null,0,"Acciones aún no iniciadas"]
[{"$f":"+_xlfn.IFS(B77=$B$119,$A$119,B77=$B$120,$A$119,B77=$B$121,$A$119,B77=$B$122,$A$119,B77=$B$123,$A$123,B77=$B$124,$A$123,B77=$B$125,$A$125,B77=$B$126,$A$125,B77=$B$127,$A$125,B77=$A$128,$A$128)","v":"3. Modelo de Estado Abierto"},"3.2. Integridad pública y cultura de la legalidad","3.2.6","Realizar la actividad 3 y 4 del Plan de Trabajo diseñado por los Gestores de Integridad de la vigencia anterior \"Nadie sabe lo que tiene… hasta que se pone en los zapatos del otro\"  y \"¿Conocemos el Código de Integridad? Taller de reconocimiento y problematización. Radicado SIGA 3-2024-4622","Lista de asistencia de las actividades, 3 \"Nadie sabe lo que tiene… hasta que se pone en los zapatos del otro\" y 4 \"¿Conocemos el Código de Integridad? Taller de reconocimiento y problematización\"","Subgerencia de Gestión Administrativa PIC - Gestores de Integridad ",null,null,null,null,null,null,null,null,null,null,null,null,0,"Acciones aún no iniciadas"]
[{"$f":"+_xlfn.IFS(B78=$B$119,$A$119,B78=$B$120,$A$119,B78=$B$121,$A$119,B78=$B$122,$A$119,B78=$B$123,$A$123,B78=$B$124,$A$123,B78=$B$125,$A$125,B78=$B$126,$A$125,B78=$B$127,$A$125,B78=$A$128,$A$128)","v":"3. Modelo de Estado Abierto"},"3.2. Integridad pública y cultura de la legalidad","3.2.7","Diseñar video explicativo que contenga los valores de integridad - Lo que hago - Lo que no hago como servidor íntegro con el apoyo del asesor de comunicaciones.","Video institucional ","Subgerencia de Gestión Administrativa - Comunicaciones ",null,null,null,null,null,null,null,null,null,null,null,null,0,"Acciones aún no iniciadas"]
[{"$f":"+_xlfn.IFS(B79=$B$119,$A$119,B79=$B$120,$A$119,B79=$B$121,$A$119,B79=$B$122,$A$119,B79=$B$123,$A$123,B79=$B$124,$A$123,B79=$B$125,$A$125,B79=$B$126,$A$125,B79=$B$127,$A$125,B79=$A$128,$A$128)","v":"3. Modelo de Estado Abierto"},"3.2. Integridad pública y cultura de la legalidad","3.2.8","Divulgar video a todos los funcionarios y contratistas de la entidad con el apoyo del asesor de comunicaciones.","Divulgación del video institucional ","Subgerencia de Gestión Administrativa",null,null,null,null,null,null,null,null,null,null,null,null,0,"Acciones aún no iniciadas"]
[{"$f":"+_xlfn.IFS(B80=$B$119,$A$119,B80=$B$120,$A$119,B80=$B$121,$A$119,B80=$B$122,$A$119,B80=$B$123,$A$123,B80=$B$124,$A$123,B80=$B$125,$A$125,B80=$B$126,$A$125,B80=$B$127,$A$125,B80=$A$128,$A$128)","v":"3. Modelo de Estado Abierto"},"3.2. Integridad pública y cultura de la legalidad","3.2.9","Aplicar instrumento frente al conocimiento y apropiación del código de integridad por parte de la comunidad institucional.","Constancia de remisión de la encuesta a los servidores públicos. ","Subgerencia de Gestión Administrativa -Gestores de Integridad",null,null,null,null,null,null,null,null,null,null,null,null,0,"Acciones aún no iniciadas"]
[{"$f":"+_xlfn.IFS(B81=$B$119,$A$119,B81=$B$120,$A$119,B81=$B$121,$A$119,B81=$B$122,$A$119,B81=$B$123,$A$123,B81=$B$124,$A$123,B81=$B$125,$A$125,B81=$B$126,$A$125,B81=$B$127,$A$125,B81=$A$128,$A$128)","v":"3. Modelo de Estado Abierto"},"3.3. Dialogo y corresponsabilidad","3.3.1","Socializar los datos abiertos en el portal de la ciudad ","Socialización información publicada como datos abierto a través de la página web y de redes sociales de la agencia.","Subgerencia Análisis Información y Gestión del Conocimiento",null,null,null,null,null,null,null,null,null,null,null,null,0,"Acciones aún no iniciadas"]
[{"$f":"+_xlfn.IFS(B82=$B$119,$A$119,B82=$B$120,$A$119,B82=$B$121,$A$119,B82=$B$122,$A$119,B82=$B$123,$A$123,B82=$B$124,$A$123,B82=$B$125,$A$125,B82=$B$126,$A$125,B82=$B$127,$A$125,B82=$A$128,$A$128)","v":"3. Modelo de Estado Abierto"},"3.3. Dialogo y corresponsabilidad","3.3.10","Brindar información  a beneficiarios(as) de los programas y las convocatorias de la Agencia.","Publicación en redes sociales informar de manera semestral mínimo dos contenidos comunicativos de los programas de la Agencia.","Dirección General - Comunicaciones",null,null,null,null,null,null,null,null,null,null,null,null,0,"Acciones aún no iniciadas"]
[{"$f":"+_xlfn.IFS(B83=$B$119,$A$119,B83=$B$120,$A$119,B83=$B$121,$A$119,B83=$B$122,$A$119,B83=$B$123,$A$123,B83=$B$124,$A$123,B83=$B$125,$A$125,B83=$B$126,$A$125,B83=$B$127,$A$125,B83=$A$128,$A$128)","v":"3. Modelo de Estado Abierto"},"3.3. Dialogo y corresponsabilidad","3.3.11","Realizar videos de gestión en lengua de señas","2 videos ","Dirección General - Comunicaciones",null,null,null,null,null,null,null,null,null,null,null,null,0,"Acciones aún no iniciadas"]
[{"$f":"+_xlfn.IFS(B84=$B$119,$A$119,B84=$B$120,$A$119,B84=$B$121,$A$119,B84=$B$122,$A$119,B84=$B$123,$A$123,B84=$B$124,$A$123,B84=$B$125,$A$125,B84=$B$126,$A$125,B84=$B$127,$A$125,B84=$A$128,$A$128)","v":"3. Modelo de Estado Abierto"},"3.3. Dialogo y corresponsabilidad","3.3.12","Actualizar, según corresponda, la relación de los referentes de servicio a la ciudadanía de la Agencia, con el fin de fortalecer los mecanismos de comunicación interna entre el proceso y las demás dependencias.","Documento de actualización, en caso de que proceda","Subgerencia de Gestión Administrativa",null,null,null,null,null,null,null,null,null,null,null,null,0,"Acciones aún no iniciadas"]
[{"$f":"+_xlfn.IFS(B85=$B$119,$A$119,B85=$B$120,$A$119,B85=$B$121,$A$119,B85=$B$122,$A$119,B85=$B$123,$A$123,B85=$B$124,$A$123,B85=$B$125,$A$125,B85=$B$126,$A$125,B85=$B$127,$A$125,B85=$A$128,$A$128)","v":"3. Modelo de Estado Abierto"},"3.3. Dialogo y corresponsabilidad","3.3.13","Realizar informes relacionados con la satisfacción ciudadana y monitoreo a la calidad del servicio ","2 informes cuatrimestrales(elaborados al mes siguiente que se finalice el cuatrimestre)","Subgerencia de Gestión Administrativa",null,null,null,null,null,null,null,null,null,null,null,null,0,"Acciones aún no iniciadas"]
[{"$f":"+_xlfn.IFS(B86=$B$119,$A$119,B86=$B$120,$A$119,B86=$B$121,$A$119,B86=$B$122,$A$119,B86=$B$123,$A$123,B86=$B$124,$A$123,B86=$B$125,$A$125,B86=$B$126,$A$125,B86=$B$127,$A$125,B86=$A$128,$A$128)","v":"3. Modelo de Estado Abierto"},"3.3. Dialogo y corresponsabilidad","3.3.14","Actualización del Convenio interadministrativo y/o del acuerdo de nivel de servicio suscritos","Modificación del Convenio interadministrativo y/o del acuerdo de nivel de servicio suscritos","Subgerencia de Gestión Administrativa",null,null,null,null,null,null,null,null,null,null,null,null,0,"Acciones aún no iniciadas"]
[{"$f":"+_xlfn.IFS(B87=$B$119,$A$119,B87=$B$120,$A$119,B87=$B$121,$A$119,B87=$B$122,$A$119,B87=$B$123,$A$123,B87=$B$124,$A$123,B87=$B$125,$A$125,B87=$B$126,$A$125,B87=$B$127,$A$125,B87=$A$128,$A$128)","v":"3. Modelo de Estado Abierto"},"3.3. Dialogo y corresponsabilidad","3.3.15","Actualizar y divulgar los protocolos de atención en cada canal con directrices de enfoque poblacional diferencial y de género ","Actualización y  divulgación de los protocolos de atención al ciudadano con enfoque poblacional diferencial y de género una vez al año o cuando la ley así lo establezca (Producto: Divulgación por medios de comunicación institucionales)","Subgerencia de Gestión Administrativa",null,null,null,null,null,null,null,null,null,null,null,null,0,"Acciones aún no iniciadas"]
[{"$f":"+_xlfn.IFS(B88=$B$119,$A$119,B88=$B$120,$A$119,B88=$B$121,$A$119,B88=$B$122,$A$119,B88=$B$123,$A$123,B88=$B$124,$A$123,B88=$B$125,$A$125,B88=$B$126,$A$125,B88=$B$127,$A$125,B88=$A$128,$A$128)","v":"3. Modelo de Estado Abierto"},"3.3. Dialogo y corresponsabilidad","3.3.16","Traducir a lenguaje claro incluyente y no sexista la información publicada en el micrositio de atención al ciudadano, asociada al portafolio de trámites y servicios de la Entidad","Pantallazo de la publicación de la información traducida en la página web ","Subgerencia de Gestión Administrativa",null,null,null,null,null,null,null,null,null,null,null,null,0,"Acciones aún no iniciadas"]
[{"$f":"+_xlfn.IFS(B89=$B$119,$A$119,B89=$B$120,$A$119,B89=$B$121,$A$119,B89=$B$122,$A$119,B89=$B$123,$A$123,B89=$B$124,$A$123,B89=$B$125,$A$125,B89=$B$126,$A$125,B89=$B$127,$A$125,B89=$A$128,$A$128)","v":"3. Modelo de Estado Abierto"},"3.3. Dialogo y corresponsabilidad","3.3.17","Realizar integraciones con los sistemas de información de la Entidad en los canales de atención al ciudadano a fin de mejorar la experiencia ciudadana","Actas de reunión de la puesta en producción de las integraciones","Subgerencia de Gestión Administrativa",null,null,null,null,null,null,null,null,null,null,null,null,0,"Acciones aún no iniciadas"]
[{"$f":"+_xlfn.IFS(B90=$B$119,$A$119,B90=$B$120,$A$119,B90=$B$121,$A$119,B90=$B$122,$A$119,B90=$B$123,$A$123,B90=$B$124,$A$123,B90=$B$125,$A$125,B90=$B$126,$A$125,B90=$B$127,$A$125,B90=$A$128,$A$128)","v":"3. Modelo de Estado Abierto"},"3.3. Dialogo y corresponsabilidad","3.3.18","Divulgar y publicar la Carta de Trato Digno a través de los canales de comunicación con los que cuenta la entidad. ","Realizar una (1) divulgación cuatrimestral de la Carta de compromiso a la ciudadanía a través de los canales de comunicación con los que cuenta la entidad.","Subgerencia de Gestión Administrativa ",null,null,null,null,null,null,null,null,null,null,null,null,0,"Acciones aún no iniciadas"]
[{"$f":"+_xlfn.IFS(B91=$B$119,$A$119,B91=$B$120,$A$119,B91=$B$121,$A$119,B91=$B$122,$A$119,B91=$B$123,$A$123,B91=$B$124,$A$123,B91=$B$125,$A$125,B91=$B$126,$A$125,B91=$B$127,$A$125,B91=$A$128,$A$128)","v":"3. Modelo de Estado Abierto"},"3.3. Dialogo y corresponsabilidad","3.3.19","Socializar y/o divulgar acciones sobre la política de servicio a la ciudadanía en materia de atención a grupos poblacionales específicos","Realizar trimestralmente una socialización sobre grupos poblacionales y los protocolos establecidos en los documentos de la agencia para su atención","Subgerencia de Gestión Administrativa ",null,null,null,null,null,null,null,null,null,null,null,null,0,"Acciones aún no iniciadas"]
[{"$f":"+_xlfn.IFS(B92=$B$119,$A$119,B92=$B$120,$A$119,B92=$B$121,$A$119,B92=$B$122,$A$119,B92=$B$123,$A$123,B92=$B$124,$A$123,B92=$B$125,$A$125,B92=$B$126,$A$125,B92=$B$127,$A$125,B92=$A$128,$A$128)","v":"3. Modelo de Estado Abierto"},"3.3. Dialogo y corresponsabilidad","3.3.2","Socializar la cartilla de lenguaje claro e incluyente de la Agencia ","Socialización realizada / lista de asistencia","Subgerencia de Gestión Administrativa",null,null,null,null,null,null,null,null,null,null,null,null,0,"Acciones aún no iniciadas"]
[{"$f":"+_xlfn.IFS(B93=$B$119,$A$119,B93=$B$120,$A$119,B93=$B$121,$A$119,B93=$B$122,$A$119,B93=$B$123,$A$123,B93=$B$124,$A$123,B93=$B$125,$A$125,B93=$B$126,$A$125,B93=$B$127,$A$125,B93=$A$128,$A$128)","v":"3. Modelo de Estado Abierto"},"3.3. Dialogo y corresponsabilidad","3.3.20","Socializar la cartilla de lenguaje claro e incluyente de la Agencia  ","Socialización realizada / lista de asistencia","Subgerencia de Gestión Administrativa",null,null,null,null,null,null,null,null,null,null,null,null,0,"Acciones aún no iniciadas"]
[{"$f":"+_xlfn.IFS(B94=$B$119,$A$119,B94=$B$120,$A$119,B94=$B$121,$A$119,B94=$B$122,$A$119,B94=$B$123,$A$123,B94=$B$124,$A$123,B94=$B$125,$A$125,B94=$B$126,$A$125,B94=$B$127,$A$125,B94=$A$128,$A$128)","v":"3. Modelo de Estado Abierto"},"3.3. Dialogo y corresponsabilidad","3.3.21","Realizar espacios de participación ciudadana en el ciclo de la gestión institucional ","Seis (6) actas de los espacios de participación ciudadana en el ciclo de la gestión institucional.\nPeriodicidad de la medición: Bimensual ","Gerencia de Estrategia ",null,null,null,null,null,null,null,null,null,null,null,null,0,"Acciones aún no iniciadas"]
[{"$f":"+_xlfn.IFS(B95=$B$119,$A$119,B95=$B$120,$A$119,B95=$B$121,$A$119,B95=$B$122,$A$119,B95=$B$123,$A$123,B95=$B$124,$A$123,B95=$B$125,$A$125,B95=$B$126,$A$125,B95=$B$127,$A$125,B95=$A$128,$A$128)","v":"3. Modelo de Estado Abierto"},"3.3. Dialogo y corresponsabilidad","3.3.22","Realizar informe de participación ciudadana ","Un (1) informe de los resultados de los espacios de participación ciudadana.\nPeriodicidad de la medición: anual ","Gerencia de Estrategia ",null,null,null,null,null,null,null,null,null,null,null,null,0,"Acciones aún no iniciadas"]
[{"$f":"+_xlfn.IFS(B96=$B$119,$A$119,B96=$B$120,$A$119,B96=$B$121,$A$119,B96=$B$122,$A$119,B96=$B$123,$A$123,B96=$B$124,$A$123,B96=$B$125,$A$125,B96=$B$126,$A$125,B96=$B$127,$A$125,B96=$A$128,$A$128)","v":"3. Modelo de Estado Abierto"},"3.3. Dialogo y corresponsabilidad","3.3.23","Realizar un espacio de colaboración e innovación abierta con grupos de valor","Un (1) listado de asistencia del   espacio de colaboración e innovación abierta con grupos de valor.\nPeriodicidad de la medición: anual ","Gerencia de Estrategia ",null,null,null,null,null,null,null,null,null,null,null,null,0,"Acciones aún no iniciadas"]
[{"$f":"+_xlfn.IFS(B97=$B$119,$A$119,B97=$B$120,$A$119,B97=$B$121,$A$119,B97=$B$122,$A$119,B97=$B$123,$A$123,B97=$B$124,$A$123,B97=$B$125,$A$125,B97=$B$126,$A$125,B97=$B$127,$A$125,B97=$A$128,$A$128)","v":"3. Modelo de Estado Abierto"},"3.3. Dialogo y corresponsabilidad","3.3.24","Realizar una evaluación ciudadana de la gestión institucional","Una (1) evaluación de la ciudadanía sobre la gestión institucional","Gerencia de Estrategia ",null,null,null,null,null,null,null,null,null,null,null,null,0,"Acciones aún no iniciadas"]
[{"$f":"+_xlfn.IFS(B98=$B$119,$A$119,B98=$B$120,$A$119,B98=$B$121,$A$119,B98=$B$122,$A$119,B98=$B$123,$A$123,B98=$B$124,$A$123,B98=$B$125,$A$125,B98=$B$126,$A$125,B98=$B$127,$A$125,B98=$A$128,$A$128)","v":"3. Modelo de Estado Abierto"},"3.3. Dialogo y corresponsabilidad","3.3.25","Realizar espacios de participación y rendición de cuentas focalizadas","Cuatro actas (4) espacios de participación y rendición de cuentas con población diferencial-poblacional y de género","Gerencia de Estrategia ",null,null,null,null,null,null,null,null,null,null,null,null,0,"Acciones aún no iniciadas"]
[{"$f":"+_xlfn.IFS(B99=$B$119,$A$119,B99=$B$120,$A$119,B99=$B$121,$A$119,B99=$B$122,$A$119,B99=$B$123,$A$123,B99=$B$124,$A$123,B99=$B$125,$A$125,B99=$B$126,$A$125,B99=$B$127,$A$125,B99=$A$128,$A$128)","v":"3. Modelo de Estado Abierto"},"3.3. Dialogo y corresponsabilidad","3.3.26","Realizar una encuesta dirigida a la ciudadanía para identificar los temas de mayor interés que desean sean abordados en la rendición de cuentas","Encuesta de temas","Subgerencia de Planeación",null,null,null,null,null,null,null,null,null,null,null,null,0,"Acciones aún no iniciadas"]
[{"$f":"+_xlfn.IFS(B100=$B$119,$A$119,B100=$B$120,$A$119,B100=$B$121,$A$119,B100=$B$122,$A$119,B100=$B$123,$A$123,B100=$B$124,$A$123,B100=$B$125,$A$125,B100=$B$126,$A$125,B100=$B$127,$A$125,B100=$A$128,$A$128)","v":"3. Modelo de Estado Abierto"},"3.3. Dialogo y corresponsabilidad","3.3.27","Recopilar las observaciones planteadas por la ciudadanía, durante la audiencia pública y las respuestas dadas a estas","Consolidado de observaciones y respuestas","Subgerencia de Planeación",null,null,null,null,null,null,null,null,null,null,null,null,0,"Acciones aún no iniciadas"]
[{"$f":"+_xlfn.IFS(B101=$B$119,$A$119,B101=$B$120,$A$119,B101=$B$121,$A$119,B101=$B$122,$A$119,B101=$B$123,$A$123,B101=$B$124,$A$123,B101=$B$125,$A$125,B101=$B$126,$A$125,B101=$B$127,$A$125,B101=$A$128,$A$128)","v":"3. Modelo de Estado Abierto"},"3.3. Dialogo y corresponsabilidad","3.3.3","Implementar un seguimiento sobre la recepción de las iniciativas y su alineación con las expectativas de la ciudadanía","Reporte de seguimiento (semestral)","Gerencia de Estrategia /Equipo de Innovación Pública ",null,null,null,null,null,null,null,null,null,null,null,null,0,"Acciones aún no iniciadas"]
[{"$f":"+_xlfn.IFS(B102=$B$119,$A$119,B102=$B$120,$A$119,B102=$B$121,$A$119,B102=$B$122,$A$119,B102=$B$123,$A$123,B102=$B$124,$A$123,B102=$B$125,$A$125,B102=$B$126,$A$125,B102=$B$127,$A$125,B102=$A$128,$A$128)","v":"3. Modelo de Estado Abierto"},"3.3. Dialogo y corresponsabilidad","3.3.4","Desarrollar grupos focales para comprender problemas y necesidades ciudadanas.","Identificar los problemas y necesidades de los ciudadanos mediante la realización de grupos focales","Gerencia de Estrategia /Equipo de Innovación Pública ",null,null,null,null,null,null,null,null,null,null,null,null,0,"Acciones aún no iniciadas"]
[{"$f":"+_xlfn.IFS(B103=$B$119,$A$119,B103=$B$120,$A$119,B103=$B$121,$A$119,B103=$B$122,$A$119,B103=$B$123,$A$123,B103=$B$124,$A$123,B103=$B$125,$A$125,B103=$B$126,$A$125,B103=$B$127,$A$125,B103=$A$128,$A$128)","v":"3. Modelo de Estado Abierto"},"3.3. Dialogo y corresponsabilidad","3.3.5","Facilitar espacios de co-creación con la ciudadanía para desarrollar soluciones innovadoras.","Identificar propuestas de la ciudadanía para desarrollar soluciones innovadoras en los espacios de co-creación. "," Gerencia de Estrategia /Equipo de Innovación Pública ",null,null,null,null,null,null,null,null,null,null,null,null,0,"Acciones aún no iniciadas"]
[{"$f":"+_xlfn.IFS(B104=$B$119,$A$119,B104=$B$120,$A$119,B104=$B$121,$A$119,B104=$B$122,$A$119,B104=$B$123,$A$123,B104=$B$124,$A$123,B104=$B$125,$A$125,B104=$B$126,$A$125,B104=$B$127,$A$125,B104=$A$128,$A$128)","v":"3. Modelo de Estado Abierto"},"3.3. Dialogo y corresponsabilidad","3.3.6","Realizar campañas de difusión a través de medios de comunicación y redes sociales para garantizar la participación ciudadana en eventos y talleres de innovación pública, promoviendo su involucramiento en los procesos.","2 campañas","Equipo de Innovación Pública y Participación ciudadana.",null,null,null,null,null,null,null,null,null,null,null,null,0,"Acciones aún no iniciadas"]
[{"$f":"+_xlfn.IFS(B105=$B$119,$A$119,B105=$B$120,$A$119,B105=$B$121,$A$119,B105=$B$122,$A$119,B105=$B$123,$A$123,B105=$B$124,$A$123,B105=$B$125,$A$125,B105=$B$126,$A$125,B105=$B$127,$A$125,B105=$A$128,$A$128)","v":"3. Modelo de Estado Abierto"},"3.3. Dialogo y corresponsabilidad","3.3.7","Definir plan socialización de temas relacionados con la Política de Riesgos y la metodología adaptada por la Agencia de acuerdo con los resultados de la medición de apropiación ","Plan de Socialización","Subgerencia de Planeación ",null,null,null,null,null,null,null,null,null,null,null,null,0,"Acciones aún no iniciadas"]
[{"$f":"+_xlfn.IFS(B106=$B$119,$A$119,B106=$B$120,$A$119,B106=$B$121,$A$119,B106=$B$122,$A$119,B106=$B$123,$A$123,B106=$B$124,$A$123,B106=$B$125,$A$125,B106=$B$126,$A$125,B106=$B$127,$A$125,B106=$A$128,$A$128)","v":"3. Modelo de Estado Abierto"},"3.3. Dialogo y corresponsabilidad","3.3.8","Elaborar piezas comunicativas en lenguaje claro e incluyente para fortalecer la comunicación de la entidad con la ciudadanía. A través de los distintos canales de comunicación con que cuenta la Agencia, para conocimientos interno y externo (correo electrónico, página web, boletín interno y redes sociales).","Piezas comunicativas en lenguaje claro e incluyente mínimo 3 semestrales.","Dirección General - Comunicaciones",null,null,null,null,null,null,null,null,null,null,null,null,0,"Acciones aún no iniciadas"]
[{"$f":"+_xlfn.IFS(B107=$B$119,$A$119,B107=$B$120,$A$119,B107=$B$121,$A$119,B107=$B$122,$A$119,B107=$B$123,$A$123,B107=$B$124,$A$123,B107=$B$125,$A$125,B107=$B$126,$A$125,B107=$B$127,$A$125,B107=$A$128,$A$128)","v":"3. Modelo de Estado Abierto"},"3.3. Dialogo y corresponsabilidad","3.3.9","Identificar las posibilidades de mejora en la interacción a los canales virtuales de divulgación e información como la página web y redes sociales de la Agencia.","Balance Trimestral de las métricas digitales y del sitio web","Dirección General - Comunicaciones",null,null,null,null,null,null,null,null,null,null,null,null,0,"Acciones aún no iniciadas"]
[]
[]
[]
[]
[]
[]
[]
[]
["P: PLANEADO\nE: EJECUTADO"]
[null,null,null,null,null,null,null,null,null,null,null,null,null,null,null,null,null,null,"Acciones Ejecutadas",{"$f":"COUNTIF($T$11:$T$101,S117)","v":0}]
["Tematicas","Acción estratégica","Actividades",null,null,null,null,null,null,null,null,null,null,null,null,null,null,null,"Acciones En Proceso",{"$f":"COUNTIF($T$11:$T$101,S118)","v":0}]
["1. Administración de riesgos","1.1. Gestión de riesgos para la integridad pública",{"$f":"+COUNTIF(B11:B101,B119)","v":6},null,null,null,null,null,null,null,null,null,null,null,null,null,null,null,"Acciones Pendientes",{"$f":"COUNTIF($T$11:$T$101,S119)","v":0}]
[null,"1.2. Gestión de riesgos de LA/FT/FP",{"$f":"+COUNTIF(B12:B101,B120)","v":4},null,null,null,null,null,null,null,null,null,null,null,null,null,null,null,"Acciones aún no iniciadas",{"$f":"COUNTIF($T$11:$T$101,S120)","v":91}]
[null,"1.3. Canales de denuncia",{"$f":"+COUNTIF(B13:B116,B121)","v":3}]
[null,"1.4. Debida diligencia",4]
["2. Redes y articulación","2.1. Redes internas",2]
[null,"2.2. Redes externas",5]
["3. Modelo de Estado Abierto","3.1. Acceso a la información pública y transparencia",31]
[null,"3.2. Integridad pública y cultura de la legalidad",15]
[null,"3.3. Dialogo y corresponsabilidad",27]
["4. Iniciativas adicionales","4. Iniciativas adicionales",0]
["Total Actividades",null,{"$f":"+SUM(C119:C128)","v":97}]
[]
[]
["Nota: Qué falta para que sean 1.3 Canales de denuncia El numeral 1.3 del PTEP exige evidenciar que la entidad:\n-Tiene canales específicos para denuncias (corrupción, fraude, irregularidades, conflicto de intereses, etc.).\n-Garantiza confidencialidad, reserva y no represalias.\n-Realiza divulgación, seguimiento y gestión de esos canales.\n\nEn este sentido, ninguna de las actividades actuales hace referencia a:\n-El canal institucional de denuncias de integridad (por ejemplo, un buzón, correo o formulario específico para reportes éticos).\n-La divulgación de dichos canales en la web o al personal.\n-La socialización de la ruta interna de atención de denuncias.\n\nActividades que se parecen, pero no son “canales de denuncia”\n\n1.4.1 – Jornada de sensibilización sobre reporte de conflicto de intereses (SIDEAP).\nAunque trata sobre reportes, está bajo el enfoque de 1.4 Debida diligencia, no de canales de denuncia, porque SIDEAP es para declaraciones de conflicto de interés, no para denuncias de corrupción.\n\n3.1.19 – Actualizar contenidos web sobre mecanismos para presentar quejas y reclamos.\nEstá en Acceso a la información pública, y se refiere al canal general de PQRSD (servicio ciudadano), no al canal confidencial de denuncias de irregularidades o corrupción.\n\n3.3.15 – Protocolos de atención al ciudadano con enfoque diferencial.\nEnfocado al servicio al ciudadano y atención incluyente, no a recepción de denuncias éticas."]
[]
[]
[]
[]
[]
[]
[]
[]
[]
[]
[]
[]
[]
[]
[]
[]
[null,null,null,null,null,null,null,null,null,null,null,null,null,null,null,null,null,null,null,null,null,"Temática / Acción Estratégica","¿Qué es?","Liderazgo propuesto","Apoyos institucionales","Justificación técnica"]
[null,null,null,null,null,null,null,null,null,null,null,null,null,null,null,null,null,null,null,null,null,"1. Administración de riesgos","Busca fortalecer la prevención de actos de corrupción y promover una gestión proactiva de los riesgos institucionales que puedan afectar la integridad, la transparencia y la ética pública. Incluye la identificación, evaluación, control y seguimiento de riesgos, con enfoque preventivo.","Subgerencia de Planeación","Oficina de Control Interno, Gerencia de Gestión Corporativa, Control Interno Disciplinario","Planeación lidera la gestión integral de riesgos institucionales (Decreto 612/2018) y coordina la actualización de políticas, matrices y seguimiento. OCI y OCID garantizan control de segunda y tercera línea."]
[null,null,null,null,null,null,null,null,null,null,null,null,null,null,null,null,null,null,null,null,null,"1.1 Gestión de riesgos para la integridad pública","Se centra en analizar y mitigar los riesgos asociados a corrupción, fraude o conflictos de interés, asegurando la incorporación de controles eficaces y promoviendo la cultura de integridad en los procesos institucionales.","Subgerencia de Planeación","Oficina de Control Interno, Control Interno Disciplinario","Planeación formula, consolida y presenta el mapa de riesgos de corrupción; OCI verifica eficacia de controles."]
[null,null,null,null,null,null,null,null,null,null,null,null,null,null,null,null,null,null,null,null,null,"1.2 Gestión de riesgos de LA/FT/FP","Enfocada en prevenir y controlar el riesgo de Lavado de Activos, Financiación del Terrorismo y Financiación de la Proliferación de Armas de Destrucción Masiva (LA/FT/FP), mediante la adopción de políticas y procedimientos conforme a los estándares nacionales e internacionales.","Gerencia de Gestión Corporativa","Subgerencia de Planeación, Oficina de Control Interno","Corporativa administra los controles operativos y políticas de prevención LA/FT/FP, con soporte técnico de Planeación en gestión de riesgos."]
[null,null,null,null,null,null,null,null,null,null,null,null,null,null,null,null,null,null,null,null,null,"1.3 Canales de denuncia (por definir acciones futuras)","Busca fortalecer y promover los canales seguros y confidenciales para la recepción de denuncias relacionadas con corrupción, conflicto de interés o irregularidades, garantizando la protección del denunciante y la trazabilidad del proceso.","Oficina de Control Interno Disciplinario","Comunicaciones, Planeación","OCID es la instancia natural para liderar canales de denuncia por su rol sancionatorio y preventivo. Planeación puede apoyar el diseño institucional de los protocolos y Comunicaciones la divulgación."]
[null,null,null,null,null,null,null,null,null,null,null,null,null,null,null,null,null,null,null,null,null,"1.4 Debida diligencia","Promueve la adopción de medidas para el conocimiento, evaluación y control de las contrapartes (proveedores, aliados, servidores), con el fin de prevenir riesgos de integridad y reforzar la transparencia en las relaciones institucionales.","Gerencia de Gestión Corporativa","Subgerencia de Planeación, Oficina de Control Interno","Por su relación con SARLAFT y gestión de proveedores, Corporativa implementa las acciones de diligencia y control, con articulación de Planeación en políticas y lineamientos."]
[null,null,null,null,null,null,null,null,null,null,null,null,null,null,null,null,null,null,null,null,null,"2. Redes y articulación","Busca fomentar la cooperación y articulación tanto interna como externa para compartir experiencias, metodologías y buenas prácticas en materia de integridad y transparencia. Incluye la creación de redes de innovación, comunidades de aprendizaje y espacios de intercambio con otras entidades.","Gerencia de Estrategia","Subgerencia de Planeación, Comunicaciones, Gestores de Integridad","Estrategia coordina las redes internas y externas de innovación, transferencia de conocimiento y articulación institucional, asegurando sinergias interinstitucionales y con la ciudadanía."]
[null,null,null,null,null,null,null,null,null,null,null,null,null,null,null,null,null,null,null,null,null,"3. Modelo de Estado Abierto","Integra las acciones orientadas a consolidar una cultura de apertura, colaboración y corresponsabilidad entre la entidad y la ciudadanía. Se articula en torno a la transparencia activa, la integridad pública y el diálogo participativo.","Coordinación general: Subgerencia TIC","Subgerencia de Planeación, Comunicaciones, Gestión Administrativa, Gerencia de Estrategia","TIC lidera la coordinación del Modelo de Estado Abierto por su rol en la administración del portal de datos abiertos, la infraestructura tecnológica, la accesibilidad digital y la interoperabilidad de la información pública. Planeación garantiza la articulación MIPG y el reporte de cumplimiento ante entes de control; Comunicaciones apoya difusión y lenguaje claro; Gestión Administrativa y Estrategia fortalecen los componentes de atención ciudadana e innovación abierta."]
[null,null,null,null,null,null,null,null,null,null,null,null,null,null,null,null,null,null,null,null,null,"3.1 Acceso a la información pública y transparencia","Garantiza el derecho de las personas a acceder a la información pública de manera oportuna, completa y comprensible. Incluye la gestión de datos abiertos, la publicación de información institucional y el cumplimiento de la Ley 1712 de 2014.","Subgerencia TIC","Planeación, Comunicaciones, Gestión Administrativa","TIC administra los sistemas y portales de transparencia activa (web, datos abiertos). Planeación asegura cumplimiento de la Ley 1712 de 2014; Comunicaciones maneja lenguaje claro; Gestión Administrativa gestiona PQRSD."]
[null,null,null,null,null,null,null,null,null,null,null,null,null,null,null,null,null,null,null,null,null,"3.2 Integridad pública y cultura de la legalidad","Busca fortalecer la cultura ética, la coherencia entre el discurso y las acciones institucionales, y el compromiso de los servidores con los valores del Código de Integridad. También impulsa campañas y estrategias de sensibilización.","Subgerencia de Gestión Administrativa – Gestores de Integridad","Comunicaciones, Planeación, Estrategia","Gestión Administrativa coordina la estrategia institucional de integridad, forma al equipo de gestores y articula la cultura ética. Comunicaciones apoya con piezas visuales y Planeación con monitoreo PTEP."]
[null,null,null,null,null,null,null,null,null,null,null,null,null,null,null,null,null,null,null,null,null,"3.3 Diálogo y corresponsabilidad","Promueve la participación ciudadana, el control social y la cocreación de soluciones con los grupos de valor. Incluye acciones de rendición de cuentas, atención al ciudadano y espacios de innovación abierta que fomentan la confianza y la legitimidad institucional.","Subgerencia de Gestión Administrativa","Gerencia de Estrategia, Planeación, Comunicaciones","Lidera la Mesa Técnica de Estado Ciudadano, responsable de los canales de atención, PQRSD  Estrategia apoya con participación ciudadana. innovación y cocreación; Planeación gestiona rendición de cuentas; Comunicaciones difunde resultados."]

{"sheet":"Hoja 1","index":4,"n_rows":3,"n_cols":1,"rows_kept":3,"cut":false,"hidden":true,"merged":[]}
["Ejecutada"]
["Pendiente"]
["En Proceso"]

{"sheet":"PTE2026 (Borrador)","index":5,"n_rows":274,"n_cols":22,"rows_kept":274,"cut":false,"hidden":true,"merged":[[14,2,15,2],[14,20,15,20],[14,16,15,16],[14,9,15,9],[14,8,15,8],[14,7,15,7],[14,19,15,19],[14,6,15,6],[14,5,15,5],[14,4,15,4],[14,3,15,3],[0,1,3,18],[4,0,4,21],[5,0,5,21],[14,10,14,15],[15,10,15,11],[15,12,15,13],[15,14,15,15],[7,0,7,1],[8,5,8,9],[9,5,9,9],[7,5,7,9],[14,21,15,21],[14,1,15,1],[14,0,15,0],[14,17,15,17],[14,18,15,18]]}
[null,"Plan de ejecución del Programa de transparencia y Ética Publica 2026 - Componente Programático",null,null,null,null,null,null,null,null,null,null,null,null,null,null,null,null,null,"CÓDIGO:"]
[null,null,null,null,null,null,null,null,null,null,null,null,null,null,null,null,null,null,null,"VERSIÓN:"]
[null,null,null,null,null,null,null,null,null,null,null,null,null,null,null,null,null,null,null,"FECHA APROBACIÓN:"]
[null,null,null,null,null,null,null,null,null,null,null,null,null,null,null,null,null,null,null,"CALIFICACIÓN DE LA INFORMACIÓN:"]
["OBJETIVO:  Articular actividades que fortalezcan la ética, la gestión del riesgo y la transparencia, promoviendo una cultura institucional basada en la confianza ciudadana."]
["VIGENCIA DE EJERCUCIÓN:  2026"]
[]
["Estado de Actividades",null,null,"Convenciones entrega de productos cuatrimestrales",null,"Instrucción del ejercicio de levantamiento"]
["Acciones Ejecutadas",{"$f":"COUNTIF($V$18:$V$107,A9)","v":0},null,"P: PLANEADO - Diligencia (Dependencia responsable de la actividad)- Columna K,M,O",null," Resaltar la celda en la Columna D o E de la actividad con el color según corresponda , si la actividad o producto en 2026 sé:"]
["Acciones En Proceso",{"$f":"COUNTIF($V$18:$V$107,A10)","v":0},null,"E: EJECUTADO - Diligencia (Monitoreos de Subgerencia de Planeación) -Columna L,N,P",null,"🟩 Mantiene – 🟨 Ajusta – 🟥 Cierra – 🟦 Agrega - Justificación (solo si ajusta o cierra la actividad ) - Columna G"]
["Acciones Pendientes",{"$f":"COUNTIF($V$18:$V$107,A11)","v":0}]
["Acciones aún no iniciadas",{"$f":"COUNTIF($V$18:$V$274,A12)","v":96}]
["Total de Actividades",{"$f":"+SUM(B9:B12)","v":96}]
[]
["TEMATICAS","ACCIÓN ESTRATÉGICA","No.","ACTIVIDAD","PRODUCTO ","RESPONSABLE ","Justificación\n(En caso de cerrar o ajustar la actividad)","META NUMÉRICA","FECHA DE INICIO","FECHA DE FIN","NÚMERO DE PRODUCTOS A ENTREGAR CON CORTE CUATRIMESTRALMENTE",null,null,null,null,null,"AVANCE CUALITATIVO CORTE\nABRIL","AVANCE CUALITATIVO CORTE\nAGOSTO","AVANCE CUALITATIVO CORTE\nDICIEMBRE","% AVANCE CUANTITATIVO ACUMULADO","OBSERVACIONES DEL REVISOR DEL MONITOREO","ESTADO"]
[null,null,null,null,null,null,null,null,null,null,"30 - ABR",null,"30 - AGO",null,"30 - DIC"]
[null,null,null,null,null,null,null,null,null,null,"P","E","P","E","P","E"]
[{"$f":"+_xlfn.IFS(B18='Número de actividades'!$C$3,'Número de actividades'!$B$3,B18='Número de actividades'!$C$4,'Número de actividades'!$B$3,B18='Número de actividades'!$C$5,'Número de actividades'!$B$3,B18='Número de actividades'!$C$6,'Número de actividades'!$B$3,B18='Número de actividades'!$C$7,'Número de actividades'!$B$7,B18='Número de actividades'!$C$8,'Número de actividades'!$B$7,B18='Número de actividades'!$C$9,'Número de actividades'!$B$9,B18='Número de actividades'!$C$10,'Número de actividades'!$B$9,B18='Número de actividades'!$C$11,'Número de actividades'!$B$9,B18='Número de actividades'!$B$12,'Número de actividades'!$B$12)","v":"1. Administración de riesgos"},"1.1. Gestión de riesgos para la integridad pública","1.1.1","Desarrollar una campaña preventiva que fortalezca las prácticas antisoborno y antifraude","Realización de una (1) campaña preventiva","Oficina de Control Interno Disciplinario",null,1,"2026-02-01","2026-06-30",0,0,1,0,0,0,null,null,null,{"$f":"((K18+M18+O18)/(L18+N18+P18))","v":{"$error":"#DIV/0!"}},null,"Acciones aún no iniciadas"]
[{"$f":"+_xlfn.IFS(B19='Número de actividades'!$C$3,'Número de actividades'!$B$3,B19='Número de actividades'!$C$4,'Número de actividades'!$B$3,B19='Número de actividades'!$C$5,'Número de actividades'!$B$3,B19='Número de actividades'!$C$6,'Número de actividades'!$B$3,B19='Número de actividades'!$C$7,'Número de actividades'!$B$7,B19='Número de actividades'!$C$8,'Número de actividades'!$B$7,B19='Número de actividades'!$C$9,'Número de actividades'!$B$9,B19='Número de actividades'!$C$10,'Número de actividades'!$B$9,B19='Número de actividades'!$C$11,'Número de actividades'!$B$9,B19='Número de actividades'!$B$12,'Número de actividades'!$B$12)","v":"1. Administración de riesgos"},"1.1. Gestión de riesgos para la integridad pública","1.1.2","Revisar con las dependencias responsables de la administración de riesgos, la necesidad de realizar actualización de la Política de Riesgos.","Política de riesgos actualizada, en caso de requerirse.","Subgerencia de Planeación ",null,1,"2026-01-02","2026-04-30",1,0,0,0,0,0,null,null,null,{"$error":"#DIV/0!"},null,"Acciones aún no iniciadas"]
[{"$f":"+_xlfn.IFS(B20='Número de actividades'!$C$3,'Número de actividades'!$B$3,B20='Número de actividades'!$C$4,'Número de actividades'!$B$3,B20='Número de actividades'!$C$5,'Número de actividades'!$B$3,B20='Número de actividades'!$C$6,'Número de actividades'!$B$3,B20='Número de actividades'!$C$7,'Número de actividades'!$B$7,B20='Número de actividades'!$C$8,'Número de actividades'!$B$7,B20='Número de actividades'!$C$9,'Número de actividades'!$B$9,B20='Número de actividades'!$C$10,'Número de actividades'!$B$9,B20='Número de actividades'!$C$11,'Número de actividades'!$B$9,B20='Número de actividades'!$B$12,'Número de actividades'!$B$12)","v":"1. Administración de riesgos"},"1.1. Gestión de riesgos para la integridad pública","1.1.3","Evaluar los riesgos de corrupción identificados en la vigencia 2025 y determinar nuevos controles para su mitigación.","Riesgos de corrupción vigencia 2025 evaluados","Subgerencia de Planeación ",null,1,"2026-01-02","2026-01-31",1,0,0,0,0,0,null,null,null,{"$error":"#DIV/0!"},null,"Acciones aún no iniciadas"]
[{"$f":"+_xlfn.IFS(B21='Número de actividades'!$C$3,'Número de actividades'!$B$3,B21='Número de actividades'!$C$4,'Número de actividades'!$B$3,B21='Número de actividades'!$C$5,'Número de actividades'!$B$3,B21='Número de actividades'!$C$6,'Número de actividades'!$B$3,B21='Número de actividades'!$C$7,'Número de actividades'!$B$7,B21='Número de actividades'!$C$8,'Número de actividades'!$B$7,B21='Número de actividades'!$C$9,'Número de actividades'!$B$9,B21='Número de actividades'!$C$10,'Número de actividades'!$B$9,B21='Número de actividades'!$C$11,'Número de actividades'!$B$9,B21='Número de actividades'!$B$12,'Número de actividades'!$B$12)","v":"1. Administración de riesgos"},"1.1. Gestión de riesgos para la integridad pública","1.1.4","Consolidar la matriz de riesgos de corrupción vigencia 2025 y presentar para aprobación al Comité de Gestión y Desempeño","Matriz de riesgos de corrupción revisada y aprobada por el  Comité de Gestión y Desempeño","Comité de Gestión y Desempeño \n(Subgerencia de Planeación)",null,1,"2026-01-02","2026-01-31",1,0,0,0,0,0,null,null,null,{"$error":"#DIV/0!"},null,"Acciones aún no iniciadas"]
[{"$f":"+_xlfn.IFS(B22='Número de actividades'!$C$3,'Número de actividades'!$B$3,B22='Número de actividades'!$C$4,'Número de actividades'!$B$3,B22='Número de actividades'!$C$5,'Número de actividades'!$B$3,B22='Número de actividades'!$C$6,'Número de actividades'!$B$3,B22='Número de actividades'!$C$7,'Número de actividades'!$B$7,B22='Número de actividades'!$C$8,'Número de actividades'!$B$7,B22='Número de actividades'!$C$9,'Número de actividades'!$B$9,B22='Número de actividades'!$C$10,'Número de actividades'!$B$9,B22='Número de actividades'!$C$11,'Número de actividades'!$B$9,B22='Número de actividades'!$B$12,'Número de actividades'!$B$12)","v":"1. Administración de riesgos"},"1.1. Gestión de riesgos para la integridad pública","1.1.5","Hacer un seguimiento a todos los riesgos y enviar a los lideres de proceso recomendaciones y posibles ajustes a los mapas de riesgos.","Correos electrónicos, archivo de Excel que evidencia el monitoreo  a los controles de los riesgos de corrupción. ","Subgerencia de Planeación ",null,2,"2026-05-23","2026-12-15",0,0,1,0,1,0,null,null,null,{"$error":"#DIV/0!"},null,"Acciones aún no iniciadas"]
[{"$f":"+_xlfn.IFS(B23='Número de actividades'!$C$3,'Número de actividades'!$B$3,B23='Número de actividades'!$C$4,'Número de actividades'!$B$3,B23='Número de actividades'!$C$5,'Número de actividades'!$B$3,B23='Número de actividades'!$C$6,'Número de actividades'!$B$3,B23='Número de actividades'!$C$7,'Número de actividades'!$B$7,B23='Número de actividades'!$C$8,'Número de actividades'!$B$7,B23='Número de actividades'!$C$9,'Número de actividades'!$B$9,B23='Número de actividades'!$C$10,'Número de actividades'!$B$9,B23='Número de actividades'!$C$11,'Número de actividades'!$B$9,B23='Número de actividades'!$B$12,'Número de actividades'!$B$12)","v":"1. Administración de riesgos"},"1.1. Gestión de riesgos para la integridad pública","1.1.6","Realizar seguimiento al mapa de riesgos de corrupción por parte de la tercera línea de defensa (Oficina de Control Interno).","Informe del seguimiento al mapa de riesgos de corrupción publicado en página web","Oficina de control interno de Gestión ",null,11,"2026-01-01","2026-12-31",1,0,4,0,6,0,null,null,null,{"$error":"#DIV/0!"},null,"Acciones aún no iniciadas"]
[{"$f":"+_xlfn.IFS(B24='Número de actividades'!$C$3,'Número de actividades'!$B$3,B24='Número de actividades'!$C$4,'Número de actividades'!$B$3,B24='Número de actividades'!$C$5,'Número de actividades'!$B$3,B24='Número de actividades'!$C$6,'Número de actividades'!$B$3,B24='Número de actividades'!$C$7,'Número de actividades'!$B$7,B24='Número de actividades'!$C$8,'Número de actividades'!$B$7,B24='Número de actividades'!$C$9,'Número de actividades'!$B$9,B24='Número de actividades'!$C$10,'Número de actividades'!$B$9,B24='Número de actividades'!$C$11,'Número de actividades'!$B$9,B24='Número de actividades'!$B$12,'Número de actividades'!$B$12)","v":"1. Administración de riesgos"},"1.2. Gestión de riesgos de LA/FT/FP","1.2.1","Actualización de Manual SARLAFT y los  documentos para la aplicación de los controles LAFT en la Agencia","Manual SARLAFT actualizado y los documentos determinados para la Gestión del Riesgo LAFT, y la Debida Diligencia","Gerencia de Gestión Corporativa",null,1,"2026-01-01","2026-12-31",0,0,0,0,1,0,null,null,null,{"$error":"#DIV/0!"},null,"Acciones aún no iniciadas"]
[{"$f":"+_xlfn.IFS(B25='Número de actividades'!$C$3,'Número de actividades'!$B$3,B25='Número de actividades'!$C$4,'Número de actividades'!$B$3,B25='Número de actividades'!$C$5,'Número de actividades'!$B$3,B25='Número de actividades'!$C$6,'Número de actividades'!$B$3,B25='Número de actividades'!$C$7,'Número de actividades'!$B$7,B25='Número de actividades'!$C$8,'Número de actividades'!$B$7,B25='Número de actividades'!$C$9,'Número de actividades'!$B$9,B25='Número de actividades'!$C$10,'Número de actividades'!$B$9,B25='Número de actividades'!$C$11,'Número de actividades'!$B$9,B25='Número de actividades'!$B$12,'Número de actividades'!$B$12)","v":"1. Administración de riesgos"},"1.2. Gestión de riesgos de LA/FT/FP","1.2.2","Ejecutar el plan de diseño e implementación de LA/FT de acuerdo con los estándares internacionales de GAFI y la normatividad relacionada en Colombia.","Plan de diseño e Implementación de LA/FT","Gerencia de Gestión Corporativa",null,1,"2026-01-01","2026-12-31",0,0,0,0,1,0,null,null,null,{"$error":"#DIV/0!"},null,"Acciones aún no iniciadas"]
[{"$f":"+_xlfn.IFS(B26='Número de actividades'!$C$3,'Número de actividades'!$B$3,B26='Número de actividades'!$C$4,'Número de actividades'!$B$3,B26='Número de actividades'!$C$5,'Número de actividades'!$B$3,B26='Número de actividades'!$C$6,'Número de actividades'!$B$3,B26='Número de actividades'!$C$7,'Número de actividades'!$B$7,B26='Número de actividades'!$C$8,'Número de actividades'!$B$7,B26='Número de actividades'!$C$9,'Número de actividades'!$B$9,B26='Número de actividades'!$C$10,'Número de actividades'!$B$9,B26='Número de actividades'!$C$11,'Número de actividades'!$B$9,B26='Número de actividades'!$B$12,'Número de actividades'!$B$12)","v":{"$error":"#N/A"}},"PTE2026 (Revisado con las depe)","1.2.3","Determinar las políticas dentro del Sistema de Gestión de Riesgos  Sistema de Administración de Riesgos de Lavado de Activos y Financiación del Terrorismo-SARLAFT- para la entidad ","Actualizar la política  general dentro de la Agencia en gestión del Riesgo LAFT ","Gerencia de Gestión Corporativa",null,1,"2026-01-01","2026-12-31",0,0,0,0,1,0,null,null,null,{"$error":"#DIV/0!"},null,"Acciones aún no iniciadas"]
[{"$f":"+_xlfn.IFS(B27='Número de actividades'!$C$3,'Número de actividades'!$B$3,B27='Número de actividades'!$C$4,'Número de actividades'!$B$3,B27='Número de actividades'!$C$5,'Número de actividades'!$B$3,B27='Número de actividades'!$C$6,'Número de actividades'!$B$3,B27='Número de actividades'!$C$7,'Número de actividades'!$B$7,B27='Número de actividades'!$C$8,'Número de actividades'!$B$7,B27='Número de actividades'!$C$9,'Número de actividades'!$B$9,B27='Número de actividades'!$C$10,'Número de actividades'!$B$9,B27='Número de actividades'!$C$11,'Número de actividades'!$B$9,B27='Número de actividades'!$B$12,'Número de actividades'!$B$12)","v":"1. Administración de riesgos"},"1.2. Gestión de riesgos de LA/FT/FP","1.2.4","Identificación de los  riesgos que presenta la entidad ","Mapa de riesgos LAFT","Gerencia de Gestión Corporativa",null,1,"2026-01-01","2026-12-31",0,0,0,0,1,0,null,null,null,{"$error":"#DIV/0!"},null,"Acciones aún no iniciadas"]
[{"$f":"+_xlfn.IFS(B28='Número de actividades'!$C$3,'Número de actividades'!$B$3,B28='Número de actividades'!$C$4,'Número de actividades'!$B$3,B28='Número de actividades'!$C$5,'Número de actividades'!$B$3,B28='Número de actividades'!$C$6,'Número de actividades'!$B$3,B28='Número de actividades'!$C$7,'Número de actividades'!$B$7,B28='Número de actividades'!$C$8,'Número de actividades'!$B$7,B28='Número de actividades'!$C$9,'Número de actividades'!$B$9,B28='Número de actividades'!$C$10,'Número de actividades'!$B$9,B28='Número de actividades'!$C$11,'Número de actividades'!$B$9,B28='Número de actividades'!$B$12,'Número de actividades'!$B$12)","v":"1. Administración de riesgos"},"1.3. Canales de denuncia","1.3.1","Difundir los Canales de Denuncia","una (1) campaña de sensibilización para difundir los Canales de Denuncia y guía de protección al denunciante por los diferentes medios y canales institucionales. ","Oficina de Control Interno Disciplinario",null,1,"2026-02-01","2026-06-30",0,0,1,0,0,0,null,null,null,{"$error":"#DIV/0!"},null,"Acciones aún no iniciadas"]
[{"$f":"+_xlfn.IFS(B29='Número de actividades'!$C$3,'Número de actividades'!$B$3,B29='Número de actividades'!$C$4,'Número de actividades'!$B$3,B29='Número de actividades'!$C$5,'Número de actividades'!$B$3,B29='Número de actividades'!$C$6,'Número de actividades'!$B$3,B29='Número de actividades'!$C$7,'Número de actividades'!$B$7,B29='Número de actividades'!$C$8,'Número de actividades'!$B$7,B29='Número de actividades'!$C$9,'Número de actividades'!$B$9,B29='Número de actividades'!$C$10,'Número de actividades'!$B$9,B29='Número de actividades'!$C$11,'Número de actividades'!$B$9,B29='Número de actividades'!$B$12,'Número de actividades'!$B$12)","v":"1. Administración de riesgos"},"1.3. Canales de denuncia","1.3.2","Generar los informes sobre las denuncias por presuntos actos de corrupción allegadas a la Oficina de control disciplinario","Publicar en la página web de la entidad un (1) informe trimestral sobre las denuncias por presuntos actos de corrupción que puedan involucrar funcionarios de la Agencia","Oficina de Control Interno Disciplinario",null,4,"2026-02-01","2026-12-31",0,0,0,0,4,0,null,null,null,{"$error":"#DIV/0!"},null,"Acciones aún no iniciadas"]
[{"$f":"+_xlfn.IFS(B30='Número de actividades'!$C$3,'Número de actividades'!$B$3,B30='Número de actividades'!$C$4,'Número de actividades'!$B$3,B30='Número de actividades'!$C$5,'Número de actividades'!$B$3,B30='Número de actividades'!$C$6,'Número de actividades'!$B$3,B30='Número de actividades'!$C$7,'Número de actividades'!$B$7,B30='Número de actividades'!$C$8,'Número de actividades'!$B$7,B30='Número de actividades'!$C$9,'Número de actividades'!$B$9,B30='Número de actividades'!$C$10,'Número de actividades'!$B$9,B30='Número de actividades'!$C$11,'Número de actividades'!$B$9,B30='Número de actividades'!$B$12,'Número de actividades'!$B$12)","v":"1. Administración de riesgos"},"1.3. Canales de denuncia","1.3.3","Consolidar los reportes de las denuncias recibidas y tramitadas por las áreas técnicas ","Compilar en un documento los informes trimestrales sobre las denuncias por presuntos actos de corrupción que involucran a funcionarios de la agencia e informar sobre el trámite administrativo impartido a cada una, sin vulnerar la reserva legal de la actuación disciplinaria. Dicho informe anual se presentará ante el Comité de gestión y Desempeño en el marco de sus funciones como órgano de cumplimiento normativo.","Oficina de Control Interno Disciplinario",null,1,"2026-12-01","2026-12-31",0,0,0,0,1,0,null,null,null,{"$error":"#DIV/0!"},null,"Acciones aún no iniciadas"]
[{"$f":"+_xlfn.IFS(B31='Número de actividades'!$C$3,'Número de actividades'!$B$3,B31='Número de actividades'!$C$4,'Número de actividades'!$B$3,B31='Número de actividades'!$C$5,'Número de actividades'!$B$3,B31='Número de actividades'!$C$6,'Número de actividades'!$B$3,B31='Número de actividades'!$C$7,'Número de actividades'!$B$7,B31='Número de actividades'!$C$8,'Número de actividades'!$B$7,B31='Número de actividades'!$C$9,'Número de actividades'!$B$9,B31='Número de actividades'!$C$10,'Número de actividades'!$B$9,B31='Número de actividades'!$C$11,'Número de actividades'!$B$9,B31='Número de actividades'!$B$12,'Número de actividades'!$B$12)","v":"1. Administración de riesgos"},"1.4. Debida diligencia","1.4.1","Realizar una jornada de sensibilización con el apoyo de la oficina de control interno disciplinario relacionada con la importancia de reportar un conflicto de intereses, así como realizar el reporte en la plataforma SIDEAP y  socialización de la Guía sobre declaración de los posibles conflictos de interés, impedimentos y recusaciones","Lista de asistencia de la jornada de sensibilización realizada.","Oficina de Control Interno Disciplinario",null,1,"2026-10-01","2026-12-31",0,0,0,0,1,0,null,null,null,{"$error":"#DIV/0!"},null,"Acciones aún no iniciadas"]
[{"$f":"+_xlfn.IFS(B32='Número de actividades'!$C$3,'Número de actividades'!$B$3,B32='Número de actividades'!$C$4,'Número de actividades'!$B$3,B32='Número de actividades'!$C$5,'Número de actividades'!$B$3,B32='Número de actividades'!$C$6,'Número de actividades'!$B$3,B32='Número de actividades'!$C$7,'Número de actividades'!$B$7,B32='Número de actividades'!$C$8,'Número de actividades'!$B$7,B32='Número de actividades'!$C$9,'Número de actividades'!$B$9,B32='Número de actividades'!$C$10,'Número de actividades'!$B$9,B32='Número de actividades'!$C$11,'Número de actividades'!$B$9,B32='Número de actividades'!$B$12,'Número de actividades'!$B$12)","v":"1. Administración de riesgos"},"1.4. Debida diligencia","1.4.2","Realizar actividades de socialización, capacitación y entrenamiento al interior de la Agencia relacionado con el proceso de SARLAFT y Debida Diligencia","Listas de asistencia y/o grabación de reunión","Gerencia de Gestión Corporativa",null,1,"2026-01-01","2026-12-31",0,0,0,0,1,0,null,null,null,{"$error":"#DIV/0!"},null,"Acciones aún no iniciadas"]
[{"$f":"+_xlfn.IFS(B33='Número de actividades'!$C$3,'Número de actividades'!$B$3,B33='Número de actividades'!$C$4,'Número de actividades'!$B$3,B33='Número de actividades'!$C$5,'Número de actividades'!$B$3,B33='Número de actividades'!$C$6,'Número de actividades'!$B$3,B33='Número de actividades'!$C$7,'Número de actividades'!$B$7,B33='Número de actividades'!$C$8,'Número de actividades'!$B$7,B33='Número de actividades'!$C$9,'Número de actividades'!$B$9,B33='Número de actividades'!$C$10,'Número de actividades'!$B$9,B33='Número de actividades'!$C$11,'Número de actividades'!$B$9,B33='Número de actividades'!$B$12,'Número de actividades'!$B$12)","v":"1. Administración de riesgos"},"1.4. Debida diligencia","1.4.3","Ejecutar plan de diseño e implementación de los documentos con las directrices para la debida diligencia en la entidad.","Plan de documentación para la debida diligencia","Gerencia de Gestión Corporativa",null,1,"2026-01-01","2026-12-31",0,0,0,0,1,0,null,null,null,{"$error":"#DIV/0!"},null,"Acciones aún no iniciadas"]
[{"$f":"+_xlfn.IFS(B34='Número de actividades'!$C$3,'Número de actividades'!$B$3,B34='Número de actividades'!$C$4,'Número de actividades'!$B$3,B34='Número de actividades'!$C$5,'Número de actividades'!$B$3,B34='Número de actividades'!$C$6,'Número de actividades'!$B$3,B34='Número de actividades'!$C$7,'Número de actividades'!$B$7,B34='Número de actividades'!$C$8,'Número de actividades'!$B$7,B34='Número de actividades'!$C$9,'Número de actividades'!$B$9,B34='Número de actividades'!$C$10,'Número de actividades'!$B$9,B34='Número de actividades'!$C$11,'Número de actividades'!$B$9,B34='Número de actividades'!$B$12,'Número de actividades'!$B$12)","v":"1. Administración de riesgos"},"1.4. Debida diligencia","1.4.4","Realizar el seguimiento al reporte de la contraparte de la entidad ","Formato de seguimiento a la contraparte actualizado","Gerencia de Gestión Corporativa",null,1,"2026-01-01","2026-12-31",0,0,0,0,1,0,null,null,null,{"$f":"((#REF!+M34+O34)/(L34+N34+P34))","v":{"$error":"#REF!"}},null,"Acciones aún no iniciadas"]
[{"$f":"+_xlfn.IFS(B35='Número de actividades'!$C$3,'Número de actividades'!$B$3,B35='Número de actividades'!$C$4,'Número de actividades'!$B$3,B35='Número de actividades'!$C$5,'Número de actividades'!$B$3,B35='Número de actividades'!$C$6,'Número de actividades'!$B$3,B35='Número de actividades'!$C$7,'Número de actividades'!$B$7,B35='Número de actividades'!$C$8,'Número de actividades'!$B$7,B35='Número de actividades'!$C$9,'Número de actividades'!$B$9,B35='Número de actividades'!$C$10,'Número de actividades'!$B$9,B35='Número de actividades'!$C$11,'Número de actividades'!$B$9,B35='Número de actividades'!$B$12,'Número de actividades'!$B$12)","v":"2. Redes y articulación"},"2.1. Redes internas","2.1.1","Realizar una investigación y análisis de desafíos organizacionales a través de inteligencia colectiva, para desarrollar un banco de retos priorizados.","Informe que documente el proceso de identificación, los métodos utilizados y los retos organizacionales clave para su atención futura.","Gerencia de Estrategia /Equipo de Innovación Pública ",null,1,"01/20/2026","31/06/2026",0,0,1,0,0,0,null,null,null,{"$f":"((K35+M35+O35)/(L35+N35+P35))","v":{"$error":"#DIV/0!"}},null,"Acciones aún no iniciadas"]
[{"$f":"+_xlfn.IFS(B36='Número de actividades'!$C$3,'Número de actividades'!$B$3,B36='Número de actividades'!$C$4,'Número de actividades'!$B$3,B36='Número de actividades'!$C$5,'Número de actividades'!$B$3,B36='Número de actividades'!$C$6,'Número de actividades'!$B$3,B36='Número de actividades'!$C$7,'Número de actividades'!$B$7,B36='Número de actividades'!$C$8,'Número de actividades'!$B$7,B36='Número de actividades'!$C$9,'Número de actividades'!$B$9,B36='Número de actividades'!$C$10,'Número de actividades'!$B$9,B36='Número de actividades'!$C$11,'Número de actividades'!$B$9,B36='Número de actividades'!$B$12,'Número de actividades'!$B$12)","v":"2. Redes y articulación"},"2.1. Redes internas","2.1.2","Realizar capacitaciones en herramientas tecnológicas colaborativas para fortalecer las habilidades digitales y optimizar la gestión de proyectos entre servidores públicos.","2 Capacitaciones, incluyendo asistencia de participantes","Gerencia de Estrategia /Equipo de Innovación Pública ",null,2,"2026-10-01","2026-12-31",0,0,1,0,1,0,null,null,null,{"$error":"#DIV/0!"},null,"Acciones aún no iniciadas"]
[{"$f":"+_xlfn.IFS(B37='Número de actividades'!$C$3,'Número de actividades'!$B$3,B37='Número de actividades'!$C$4,'Número de actividades'!$B$3,B37='Número de actividades'!$C$5,'Número de actividades'!$B$3,B37='Número de actividades'!$C$6,'Número de actividades'!$B$3,B37='Número de actividades'!$C$7,'Número de actividades'!$B$7,B37='Número de actividades'!$C$8,'Número de actividades'!$B$7,B37='Número de actividades'!$C$9,'Número de actividades'!$B$9,B37='Número de actividades'!$C$10,'Número de actividades'!$B$9,B37='Número de actividades'!$C$11,'Número de actividades'!$B$9,B37='Número de actividades'!$B$12,'Número de actividades'!$B$12)","v":"2. Redes y articulación"},"2.2. Redes externas","2.2.1","Realizar talleres de innovación abierta con aliados estratégicos para generar propuestas de soluciones innovadoras a problemáticas institucionales.","3 Actas de reunión y listados de asistencia de los talleres de innovación, con un resumen de las ideas y soluciones propuestas.","Gerencia de Estrategia /Equipo de Innovación Pública ",null,3,"2026-03-01","2026-12-31",0,0,1,0,2,0,null,null,null,{"$error":"#DIV/0!"},null,"Acciones aún no iniciadas"]
[{"$f":"+_xlfn.IFS(B38='Número de actividades'!$C$3,'Número de actividades'!$B$3,B38='Número de actividades'!$C$4,'Número de actividades'!$B$3,B38='Número de actividades'!$C$5,'Número de actividades'!$B$3,B38='Número de actividades'!$C$6,'Número de actividades'!$B$3,B38='Número de actividades'!$C$7,'Número de actividades'!$B$7,B38='Número de actividades'!$C$8,'Número de actividades'!$B$7,B38='Número de actividades'!$C$9,'Número de actividades'!$B$9,B38='Número de actividades'!$C$10,'Número de actividades'!$B$9,B38='Número de actividades'!$C$11,'Número de actividades'!$B$9,B38='Número de actividades'!$B$12,'Número de actividades'!$B$12)","v":"2. Redes y articulación"},"2.2. Redes externas","2.2.2","Realizar talleres experienciales para transferir conocimientos y metodologías innovadoras entre entidades públicas.","2 talleres realizados, acompañados de actas  de cada sesión.","Gerencia de Estrategia /Equipo de Innovación Pública ","Se ajusta la cantidad de capacitaciones en herramientas tecnológicas colaborativas, pasando de tres (3) a dos (2), con el fin de priorizar espacios de formación de mayor calidad e impacto para los servidores públicos.",2,"2026-03-01","2026-12-31",0,0,1,0,1,0,null,null,null,{"$error":"#DIV/0!"},null,"Acciones aún no iniciadas"]
[{"$f":"+_xlfn.IFS(B39='Número de actividades'!$C$3,'Número de actividades'!$B$3,B39='Número de actividades'!$C$4,'Número de actividades'!$B$3,B39='Número de actividades'!$C$5,'Número de actividades'!$B$3,B39='Número de actividades'!$C$6,'Número de actividades'!$B$3,B39='Número de actividades'!$C$7,'Número de actividades'!$B$7,B39='Número de actividades'!$C$8,'Número de actividades'!$B$7,B39='Número de actividades'!$C$9,'Número de actividades'!$B$9,B39='Número de actividades'!$C$10,'Número de actividades'!$B$9,B39='Número de actividades'!$C$11,'Número de actividades'!$B$9,B39='Número de actividades'!$B$12,'Número de actividades'!$B$12)","v":"2. Redes y articulación"},"2.2. Redes externas","2.2.3","Realizar eventos trimestrales sobre innovación pública, fomentando el intercambio de aprendizajes","3 eventos realizados, incluyendo reporte de resultados.","Gerencia de Estrategia /Equipo de Innovación Pública ",null,3,"2026-03-01","2026-12-31",0,0,1,0,2,0,null,null,null,{"$error":"#DIV/0!"},null,"Acciones aún no iniciadas"]
[{"$f":"+_xlfn.IFS(B40='Número de actividades'!$C$3,'Número de actividades'!$B$3,B40='Número de actividades'!$C$4,'Número de actividades'!$B$3,B40='Número de actividades'!$C$5,'Número de actividades'!$B$3,B40='Número de actividades'!$C$6,'Número de actividades'!$B$3,B40='Número de actividades'!$C$7,'Número de actividades'!$B$7,B40='Número de actividades'!$C$8,'Número de actividades'!$B$7,B40='Número de actividades'!$C$9,'Número de actividades'!$B$9,B40='Número de actividades'!$C$10,'Número de actividades'!$B$9,B40='Número de actividades'!$C$11,'Número de actividades'!$B$9,B40='Número de actividades'!$B$12,'Número de actividades'!$B$12)","v":"2. Redes y articulación"},"2.2. Redes externas","2.2.4","Participar en las jornadas adelantadas por la administración distrital, relacionadas con la política de integridad y conflicto de intereses.","Citación de asistencia a los eventos de socialización.","Subgerencia de Gestión Administrativa -Gestores de Integridad",null,1,"2026-09-01","2026-12-31",0,0,0,0,1,0,null,null,null,{"$error":"#DIV/0!"},null,"Acciones aún no iniciadas"]
[{"$f":"+_xlfn.IFS(B41='Número de actividades'!$C$3,'Número de actividades'!$B$3,B41='Número de actividades'!$C$4,'Número de actividades'!$B$3,B41='Número de actividades'!$C$5,'Número de actividades'!$B$3,B41='Número de actividades'!$C$6,'Número de actividades'!$B$3,B41='Número de actividades'!$C$7,'Número de actividades'!$B$7,B41='Número de actividades'!$C$8,'Número de actividades'!$B$7,B41='Número de actividades'!$C$9,'Número de actividades'!$B$9,B41='Número de actividades'!$C$10,'Número de actividades'!$B$9,B41='Número de actividades'!$C$11,'Número de actividades'!$B$9,B41='Número de actividades'!$B$12,'Número de actividades'!$B$12)","v":"2. Redes y articulación"},"2.2. Redes externas","2.2.5","Participar en la audiencia pública del sector educación","Video de la audiencia","Subgerencia de Planeación",null,1,"2026-05-30","2026-07-01",0,0,1,0,0,0,null,null,null,{"$error":"#DIV/0!"},null,"Acciones aún no iniciadas"]
[{"$f":"+_xlfn.IFS(B42='Número de actividades'!$C$3,'Número de actividades'!$B$3,B42='Número de actividades'!$C$4,'Número de actividades'!$B$3,B42='Número de actividades'!$C$5,'Número de actividades'!$B$3,B42='Número de actividades'!$C$6,'Número de actividades'!$B$3,B42='Número de actividades'!$C$7,'Número de actividades'!$B$7,B42='Número de actividades'!$C$8,'Número de actividades'!$B$7,B42='Número de actividades'!$C$9,'Número de actividades'!$B$9,B42='Número de actividades'!$C$10,'Número de actividades'!$B$9,B42='Número de actividades'!$C$11,'Número de actividades'!$B$9,B42='Número de actividades'!$B$12,'Número de actividades'!$B$12)","v":"3. Modelo de Estado Abierto"},"3.1. Acceso a la información pública y transparencia","3.1.1","Definir el conjunto de datos abiertos estratégico, que serán objeto de publicación en el portal de datos abiertos de la ciudad","Documento con los datos abiertos identificados para la publicación de la vigencia.","Subgerencia Análisis Información y Gestión del Conocimiento",null,1,"2026-02-01","2026-02-28",1,0,0,0,0,0,null,null,null,{"$f":"((K34+M42+O42)/(L42+N42+P42))","v":{"$error":"#DIV/0!"}},null,"Acciones aún no iniciadas"]
[{"$f":"+_xlfn.IFS(B43='Número de actividades'!$C$3,'Número de actividades'!$B$3,B43='Número de actividades'!$C$4,'Número de actividades'!$B$3,B43='Número de actividades'!$C$5,'Número de actividades'!$B$3,B43='Número de actividades'!$C$6,'Número de actividades'!$B$3,B43='Número de actividades'!$C$7,'Número de actividades'!$B$7,B43='Número de actividades'!$C$8,'Número de actividades'!$B$7,B43='Número de actividades'!$C$9,'Número de actividades'!$B$9,B43='Número de actividades'!$C$10,'Número de actividades'!$B$9,B43='Número de actividades'!$C$11,'Número de actividades'!$B$9,B43='Número de actividades'!$B$12,'Número de actividades'!$B$12)","v":"3. Modelo de Estado Abierto"},"3.1. Acceso a la información pública y transparencia","3.1.10","Publicar matriz de riesgos de corrupción vigencia 2026","Matriz de Riesgos de Corrupción publicada","Subgerencia de Planeación ",null,1,"2026-01-02","2026-01-31",1,0,0,0,0,0,null,null,null,{"$f":"((K43+M43+O43)/(L43+N43+P43))","v":{"$error":"#DIV/0!"}},null,"Acciones aún no iniciadas"]
[{"$f":"+_xlfn.IFS(B44='Número de actividades'!$C$3,'Número de actividades'!$B$3,B44='Número de actividades'!$C$4,'Número de actividades'!$B$3,B44='Número de actividades'!$C$5,'Número de actividades'!$B$3,B44='Número de actividades'!$C$6,'Número de actividades'!$B$3,B44='Número de actividades'!$C$7,'Número de actividades'!$B$7,B44='Número de actividades'!$C$8,'Número de actividades'!$B$7,B44='Número de actividades'!$C$9,'Número de actividades'!$B$9,B44='Número de actividades'!$C$10,'Número de actividades'!$B$9,B44='Número de actividades'!$C$11,'Número de actividades'!$B$9,B44='Número de actividades'!$B$12,'Número de actividades'!$B$12)","v":"3. Modelo de Estado Abierto"},"3.1. Acceso a la información pública y transparencia","3.1.11","Divulgar la política de riesgos, alineada a la planeación estratégica de la entidad.","Política divulgada","Subgerencia de Planeación ",null,1,"2026-05-04","2026-06-03",0,0,1,0,0,0,null,null,null,{"$error":"#DIV/0!"},null,"Acciones aún no iniciadas"]
[{"$f":"+_xlfn.IFS(B45='Número de actividades'!$C$3,'Número de actividades'!$B$3,B45='Número de actividades'!$C$4,'Número de actividades'!$B$3,B45='Número de actividades'!$C$5,'Número de actividades'!$B$3,B45='Número de actividades'!$C$6,'Número de actividades'!$B$3,B45='Número de actividades'!$C$7,'Número de actividades'!$B$7,B45='Número de actividades'!$C$8,'Número de actividades'!$B$7,B45='Número de actividades'!$C$9,'Número de actividades'!$B$9,B45='Número de actividades'!$C$10,'Número de actividades'!$B$9,B45='Número de actividades'!$C$11,'Número de actividades'!$B$9,B45='Número de actividades'!$B$12,'Número de actividades'!$B$12)","v":"3. Modelo de Estado Abierto"},"3.1. Acceso a la información pública y transparencia","3.1.12","Actualizar la información de cada una de las secciones de la página Web.","Informe semestral de los contenidos publicados en la página Web","Dirección General - Comunicaciones",null,2,"2026-06-01","2026-12-15",0,0,1,0,1,0,null,null,null,{"$error":"#DIV/0!"},null,"Acciones aún no iniciadas"]
[{"$f":"+_xlfn.IFS(B46='Número de actividades'!$C$3,'Número de actividades'!$B$3,B46='Número de actividades'!$C$4,'Número de actividades'!$B$3,B46='Número de actividades'!$C$5,'Número de actividades'!$B$3,B46='Número de actividades'!$C$6,'Número de actividades'!$B$3,B46='Número de actividades'!$C$7,'Número de actividades'!$B$7,B46='Número de actividades'!$C$8,'Número de actividades'!$B$7,B46='Número de actividades'!$C$9,'Número de actividades'!$B$9,B46='Número de actividades'!$C$10,'Número de actividades'!$B$9,B46='Número de actividades'!$C$11,'Número de actividades'!$B$9,B46='Número de actividades'!$B$12,'Número de actividades'!$B$12)","v":"3. Modelo de Estado Abierto"},"3.1. Acceso a la información pública y transparencia","3.1.13","Validar la funcionabilidad técnica del servicio web , que cumpla con los requisitos de accesibilidad.","Informe de Validación del servicio web definido durante el año","Subgerencia de Tecnologías de la Información y Comunicaciones- TIC",null,1,"2026-03-02","2026-06-30",0,0,1,0,0,0,null,null,null,{"$error":"#DIV/0!"},null,"Acciones aún no iniciadas"]
[{"$f":"+_xlfn.IFS(B47='Número de actividades'!$C$3,'Número de actividades'!$B$3,B47='Número de actividades'!$C$4,'Número de actividades'!$B$3,B47='Número de actividades'!$C$5,'Número de actividades'!$B$3,B47='Número de actividades'!$C$6,'Número de actividades'!$B$3,B47='Número de actividades'!$C$7,'Número de actividades'!$B$7,B47='Número de actividades'!$C$8,'Número de actividades'!$B$7,B47='Número de actividades'!$C$9,'Número de actividades'!$B$9,B47='Número de actividades'!$C$10,'Número de actividades'!$B$9,B47='Número de actividades'!$C$11,'Número de actividades'!$B$9,B47='Número de actividades'!$B$12,'Número de actividades'!$B$12)","v":"3. Modelo de Estado Abierto"},"3.1. Acceso a la información pública y transparencia","3.1.14","Medir mensualmente la oportunidad de las respuestas a las peticiones ciudadanas que son recibidas por la Agencia (mes vencido)","Reporte de medición del indicador de la oportunidad en la respuesta a las peticiones ciudadanas (El reporte se realizará mes vencido y corresponderá a la medición de los meses de enero a noviembre de 2025 - 10 reportes)","Subgerencia de Gestión Administrativa",null,10,"2026-02-05","2026-12-30",3,0,4,null,3,0,null,null,null,{"$error":"#DIV/0!"},null,"Acciones aún no iniciadas"]
[{"$f":"+_xlfn.IFS(B48='Número de actividades'!$C$3,'Número de actividades'!$B$3,B48='Número de actividades'!$C$4,'Número de actividades'!$B$3,B48='Número de actividades'!$C$5,'Número de actividades'!$B$3,B48='Número de actividades'!$C$6,'Número de actividades'!$B$3,B48='Número de actividades'!$C$7,'Número de actividades'!$B$7,B48='Número de actividades'!$C$8,'Número de actividades'!$B$7,B48='Número de actividades'!$C$9,'Número de actividades'!$B$9,B48='Número de actividades'!$C$10,'Número de actividades'!$B$9,B48='Número de actividades'!$C$11,'Número de actividades'!$B$9,B48='Número de actividades'!$B$12,'Número de actividades'!$B$12)","v":"3. Modelo de Estado Abierto"},"3.1. Acceso a la información pública y transparencia","3.1.15","Medir mensualmente la calidad en las respuestas a las peticiones ciudadanas emitidas por la Agencia, a las PQRSD registradas en el sistema distrital para la gestión de peticiones ciudadanas Bogotá Te Escucha (mes vencido)","Informe mensual de la calidad en las respuestas a las peticiones ciudadanas (El informe se realizará mes vencido y corresponderá al análisis de las respuestas a las peticiones interpuestas de los meses de enero a noviembre de 2025 -  10 informes)","Subgerencia de Gestión Administrativa ",null,10,"2026-02-05","2026-12-30",3,0,4,0,3,2,null,null,null,5,null,"Acciones aún no iniciadas"]
[{"$f":"+_xlfn.IFS(B49='Número de actividades'!$C$3,'Número de actividades'!$B$3,B49='Número de actividades'!$C$4,'Número de actividades'!$B$3,B49='Número de actividades'!$C$5,'Número de actividades'!$B$3,B49='Número de actividades'!$C$6,'Número de actividades'!$B$3,B49='Número de actividades'!$C$7,'Número de actividades'!$B$7,B49='Número de actividades'!$C$8,'Número de actividades'!$B$7,B49='Número de actividades'!$C$9,'Número de actividades'!$B$9,B49='Número de actividades'!$C$10,'Número de actividades'!$B$9,B49='Número de actividades'!$C$11,'Número de actividades'!$B$9,B49='Número de actividades'!$B$12,'Número de actividades'!$B$12)","v":"3. Modelo de Estado Abierto"},"3.1. Acceso a la información pública y transparencia","3.1.16","Actualizar el Inventario de activos de Información","Inventario de activos de información actualizados y publicados en la página web institucional y portal de datos abiertos","Subgerencia de Tecnologías de la Información y Comunicaciones- TIC",null,1,"2026-08-03","2026-12-18",0,0,0,0,1,0,null,null,null,{"$error":"#DIV/0!"},null,"Acciones aún no iniciadas"]
[{"$f":"+_xlfn.IFS(B50='Número de actividades'!$C$3,'Número de actividades'!$B$3,B50='Número de actividades'!$C$4,'Número de actividades'!$B$3,B50='Número de actividades'!$C$5,'Número de actividades'!$B$3,B50='Número de actividades'!$C$6,'Número de actividades'!$B$3,B50='Número de actividades'!$C$7,'Número de actividades'!$B$7,B50='Número de actividades'!$C$8,'Número de actividades'!$B$7,B50='Número de actividades'!$C$9,'Número de actividades'!$B$9,B50='Número de actividades'!$C$10,'Número de actividades'!$B$9,B50='Número de actividades'!$C$11,'Número de actividades'!$B$9,B50='Número de actividades'!$B$12,'Número de actividades'!$B$12)","v":"3. Modelo de Estado Abierto"},"3.1. Acceso a la información pública y transparencia","3.1.17","Actualizar Índice de Información Clasificada y Reservada","Índice de información clasificada y reservada actualizada y  publicada en la página web institucional y portal de datos abiertos","Subgerencia de Tecnologías de la Información y Comunicaciones- TIC",null,1,"2026-08-03","2026-12-18",0,0,0,0,1,0,null,null,null,{"$error":"#DIV/0!"},null,"Acciones aún no iniciadas"]
[{"$f":"+_xlfn.IFS(B51='Número de actividades'!$C$3,'Número de actividades'!$B$3,B51='Número de actividades'!$C$4,'Número de actividades'!$B$3,B51='Número de actividades'!$C$5,'Número de actividades'!$B$3,B51='Número de actividades'!$C$6,'Número de actividades'!$B$3,B51='Número de actividades'!$C$7,'Número de actividades'!$B$7,B51='Número de actividades'!$C$8,'Número de actividades'!$B$7,B51='Número de actividades'!$C$9,'Número de actividades'!$B$9,B51='Número de actividades'!$C$10,'Número de actividades'!$B$9,B51='Número de actividades'!$C$11,'Número de actividades'!$B$9,B51='Número de actividades'!$B$12,'Número de actividades'!$B$12)","v":"3. Modelo de Estado Abierto"},"3.1. Acceso a la información pública y transparencia","3.1.18","Actualizar esquema de publicación de información","Formato de esquema de publicación de información actualizado y publicado en la página web institucional","Subgerencia de Tecnologías de la Información y Comunicaciones- TIC",null,1,"2026-03-02","2026-06-30",0,0,1,0,0,0,null,null,null,{"$error":"#DIV/0!"},null,"Acciones aún no iniciadas"]
[{"$f":"+_xlfn.IFS(B52='Número de actividades'!$C$3,'Número de actividades'!$B$3,B52='Número de actividades'!$C$4,'Número de actividades'!$B$3,B52='Número de actividades'!$C$5,'Número de actividades'!$B$3,B52='Número de actividades'!$C$6,'Número de actividades'!$B$3,B52='Número de actividades'!$C$7,'Número de actividades'!$B$7,B52='Número de actividades'!$C$8,'Número de actividades'!$B$7,B52='Número de actividades'!$C$9,'Número de actividades'!$B$9,B52='Número de actividades'!$C$10,'Número de actividades'!$B$9,B52='Número de actividades'!$C$11,'Número de actividades'!$B$9,B52='Número de actividades'!$B$12,'Número de actividades'!$B$12)","v":"3. Modelo de Estado Abierto"},"3.1. Acceso a la información pública y transparencia","3.1.19","Actualizar los contenidos en la página web sobre la información y los mecanismos para presentar quejas y reclamos","Actualizaciones requeridas, su soporte sería en caso de ser requerida la publicación en la página web, o pantallazo de la información publicada y actualizada","Subgerencia de Gestión Administrativa",null,1,"2026-02-02","2026-12-30",0,0,0,0,1,0,null,null,null,{"$error":"#DIV/0!"},null,"Acciones aún no iniciadas"]
[{"$f":"+_xlfn.IFS(B53='Número de actividades'!$C$3,'Número de actividades'!$B$3,B53='Número de actividades'!$C$4,'Número de actividades'!$B$3,B53='Número de actividades'!$C$5,'Número de actividades'!$B$3,B53='Número de actividades'!$C$6,'Número de actividades'!$B$3,B53='Número de actividades'!$C$7,'Número de actividades'!$B$7,B53='Número de actividades'!$C$8,'Número de actividades'!$B$7,B53='Número de actividades'!$C$9,'Número de actividades'!$B$9,B53='Número de actividades'!$C$10,'Número de actividades'!$B$9,B53='Número de actividades'!$C$11,'Número de actividades'!$B$9,B53='Número de actividades'!$B$12,'Número de actividades'!$B$12)","v":"3. Modelo de Estado Abierto"},"3.1. Acceso a la información pública y transparencia","3.1.2","Publicar el conjunto de datos abiertos estratégico, que fueron definidos","Información publicada en página web y portal de datos abiertos distrito","Subgerencia Análisis Información y Gestión del Conocimiento",null,3,"2026-05-01","2026-12-15",0,0,1,0,2,0,null,null,null,{"$error":"#DIV/0!"},null,"Acciones aún no iniciadas"]
[{"$f":"+_xlfn.IFS(B54='Número de actividades'!$C$3,'Número de actividades'!$B$3,B54='Número de actividades'!$C$4,'Número de actividades'!$B$3,B54='Número de actividades'!$C$5,'Número de actividades'!$B$3,B54='Número de actividades'!$C$6,'Número de actividades'!$B$3,B54='Número de actividades'!$C$7,'Número de actividades'!$B$7,B54='Número de actividades'!$C$8,'Número de actividades'!$B$7,B54='Número de actividades'!$C$9,'Número de actividades'!$B$9,B54='Número de actividades'!$C$10,'Número de actividades'!$B$9,B54='Número de actividades'!$C$11,'Número de actividades'!$B$9,B54='Número de actividades'!$B$12,'Número de actividades'!$B$12)","v":"3. Modelo de Estado Abierto"},"3.1. Acceso a la información pública y transparencia","3.1.20","Implementar las normativas específicas relacionadas con las características de accesibilidad en el servicio definido","Informe de cumplimiento de  las características de accesibilidad en el servicio definido","Subgerencia de Tecnologías de la Información y Comunicaciones- TIC",null,1,"2026-05-01","2026-09-30",0,0,0,0,1,0,null,null,null,{"$error":"#DIV/0!"},null,"Acciones aún no iniciadas"]
[{"$f":"+_xlfn.IFS(B55='Número de actividades'!$C$3,'Número de actividades'!$B$3,B55='Número de actividades'!$C$4,'Número de actividades'!$B$3,B55='Número de actividades'!$C$5,'Número de actividades'!$B$3,B55='Número de actividades'!$C$6,'Número de actividades'!$B$3,B55='Número de actividades'!$C$7,'Número de actividades'!$B$7,B55='Número de actividades'!$C$8,'Número de actividades'!$B$7,B55='Número de actividades'!$C$9,'Número de actividades'!$B$9,B55='Número de actividades'!$C$10,'Número de actividades'!$B$9,B55='Número de actividades'!$C$11,'Número de actividades'!$B$9,B55='Número de actividades'!$B$12,'Número de actividades'!$B$12)","v":"3. Modelo de Estado Abierto"},"3.1. Acceso a la información pública y transparencia","3.1.21","Revisar la información publicada y actualizada en el botón de Transparencia y acceso a la información en cumplimiento de la Ley 1712 de 2014, aplicando la Matriz de Cumplimiento del índice de Transparencia y Acceso a la Información de la Procuraduría General de la Nación. ","Dos (2) validaciones de la información publicada en el botón de Transparencia, previo al reporte anual de cumplimiento solicitado por la Procuraduría, en el formato de matriz de cumplimiento de la procuraduría general de la nación.","Subgerencia de Planeación",null,2,"2026-04-30","2026-08-31",1,0,1,0,0,0,null,null,null,{"$error":"#DIV/0!"},null,"Acciones aún no iniciadas"]
[{"$f":"+_xlfn.IFS(B56='Número de actividades'!$C$3,'Número de actividades'!$B$3,B56='Número de actividades'!$C$4,'Número de actividades'!$B$3,B56='Número de actividades'!$C$5,'Número de actividades'!$B$3,B56='Número de actividades'!$C$6,'Número de actividades'!$B$3,B56='Número de actividades'!$C$7,'Número de actividades'!$B$7,B56='Número de actividades'!$C$8,'Número de actividades'!$B$7,B56='Número de actividades'!$C$9,'Número de actividades'!$B$9,B56='Número de actividades'!$C$10,'Número de actividades'!$B$9,B56='Número de actividades'!$C$11,'Número de actividades'!$B$9,B56='Número de actividades'!$B$12,'Número de actividades'!$B$12)","v":"3. Modelo de Estado Abierto"},"3.1. Acceso a la información pública y transparencia","3.1.22","Elaborar y publicar trimestralmente un informe de las solicitudes de acceso a la información pública recibidas por la Agencia.","Informe trimestral publicado (El informe se publicará en el mes siguiente a la finalización del trimestre - 3 informes) ","Subgerencia de Gestión Administrativa ",null,3,"2026-04-10","2026-12-30",1,0,1,0,1,0,null,null,null,{"$error":"#DIV/0!"},null,"Acciones aún no iniciadas"]
[{"$f":"+_xlfn.IFS(B57='Número de actividades'!$C$3,'Número de actividades'!$B$3,B57='Número de actividades'!$C$4,'Número de actividades'!$B$3,B57='Número de actividades'!$C$5,'Número de actividades'!$B$3,B57='Número de actividades'!$C$6,'Número de actividades'!$B$3,B57='Número de actividades'!$C$7,'Número de actividades'!$B$7,B57='Número de actividades'!$C$8,'Número de actividades'!$B$7,B57='Número de actividades'!$C$9,'Número de actividades'!$B$9,B57='Número de actividades'!$C$10,'Número de actividades'!$B$9,B57='Número de actividades'!$C$11,'Número de actividades'!$B$9,B57='Número de actividades'!$B$12,'Número de actividades'!$B$12)","v":"3. Modelo de Estado Abierto"},"3.1. Acceso a la información pública y transparencia","3.1.23","Mantener actualizada la información relacionada con los trámites y servicios,  en los canales de atención","Expedir certificado de confiabilidad de la información mensualmente","Subgerencia de Gestión Administrativa ","Se solicita eliminar considerando que por disposición de la SG no se expide ese certificado desde el mes de octubre de 2025",null,null,null,null,0,null,0,null,0,null,null,null,{"$error":"#DIV/0!"},null,"Acciones aún no iniciadas"]
[{"$f":"+_xlfn.IFS(B58='Número de actividades'!$C$3,'Número de actividades'!$B$3,B58='Número de actividades'!$C$4,'Número de actividades'!$B$3,B58='Número de actividades'!$C$5,'Número de actividades'!$B$3,B58='Número de actividades'!$C$6,'Número de actividades'!$B$3,B58='Número de actividades'!$C$7,'Número de actividades'!$B$7,B58='Número de actividades'!$C$8,'Número de actividades'!$B$7,B58='Número de actividades'!$C$9,'Número de actividades'!$B$9,B58='Número de actividades'!$C$10,'Número de actividades'!$B$9,B58='Número de actividades'!$C$11,'Número de actividades'!$B$9,B58='Número de actividades'!$B$12,'Número de actividades'!$B$12)","v":"3. Modelo de Estado Abierto"},"3.1. Acceso a la información pública y transparencia","3.1.24","Realizar y publicar en la página web de la Agencia el informe trimestral relacionado con la gestión a las PQRSD que ingresan a la entidad que incluyan una caracterización y análisis de los grupos de valor","3 informes trimestrales de gestión a las PQRSD (elaborados y publicados al mes siguiente que se finalice el trimestre)","Subgerencia de Gestión Administrativa",null,3,"2026-04-10","2026-12-30",1,0,1,0,1,0,null,null,null,{"$error":"#DIV/0!"},null,"Acciones aún no iniciadas"]
[{"$f":"+_xlfn.IFS(B59='Número de actividades'!$C$3,'Número de actividades'!$B$3,B59='Número de actividades'!$C$4,'Número de actividades'!$B$3,B59='Número de actividades'!$C$5,'Número de actividades'!$B$3,B59='Número de actividades'!$C$6,'Número de actividades'!$B$3,B59='Número de actividades'!$C$7,'Número de actividades'!$B$7,B59='Número de actividades'!$C$8,'Número de actividades'!$B$7,B59='Número de actividades'!$C$9,'Número de actividades'!$B$9,B59='Número de actividades'!$C$10,'Número de actividades'!$B$9,B59='Número de actividades'!$C$11,'Número de actividades'!$B$9,B59='Número de actividades'!$B$12,'Número de actividades'!$B$12)","v":"3. Modelo de Estado Abierto"},"3.1. Acceso a la información pública y transparencia","3.1.25","Realizar y publicar en la página web de la Veeduría Distrital el informe mensual correspondiente a las PQRSD que son gestionadas en la Agencia en el marco del Decreto Distrital 371 de 2010.","10 informes, 1 mensual de PQRSD para la Veeduría Distrital (elaborados y publicados al mes siguiente que se finalice el mes","Subgerencia de Gestión Administrativa",null,10,"2026-02-15","2026-12-30",3,0,4,0,3,0,null,null,null,{"$error":"#DIV/0!"},null,"Acciones aún no iniciadas"]
[{"$f":"+_xlfn.IFS(B60='Número de actividades'!$C$3,'Número de actividades'!$B$3,B60='Número de actividades'!$C$4,'Número de actividades'!$B$3,B60='Número de actividades'!$C$5,'Número de actividades'!$B$3,B60='Número de actividades'!$C$6,'Número de actividades'!$B$3,B60='Número de actividades'!$C$7,'Número de actividades'!$B$7,B60='Número de actividades'!$C$8,'Número de actividades'!$B$7,B60='Número de actividades'!$C$9,'Número de actividades'!$B$9,B60='Número de actividades'!$C$10,'Número de actividades'!$B$9,B60='Número de actividades'!$C$11,'Número de actividades'!$B$9,B60='Número de actividades'!$B$12,'Número de actividades'!$B$12)","v":"3. Modelo de Estado Abierto"},"3.1. Acceso a la información pública y transparencia","3.1.26","Realizar el reporte trimestral de los datos de operación de los OPAs de la Agencia en el SUIT.","Registro reporte de datos de operación en  SUIT","Subgerencia de Planeación.",null,4,"2026-04-30","2026-12-30",1,0,1,0,2,0,null,null,null,{"$error":"#DIV/0!"},null,"Acciones aún no iniciadas"]
[{"$f":"+_xlfn.IFS(B61='Número de actividades'!$C$3,'Número de actividades'!$B$3,B61='Número de actividades'!$C$4,'Número de actividades'!$B$3,B61='Número de actividades'!$C$5,'Número de actividades'!$B$3,B61='Número de actividades'!$C$6,'Número de actividades'!$B$3,B61='Número de actividades'!$C$7,'Número de actividades'!$B$7,B61='Número de actividades'!$C$8,'Número de actividades'!$B$7,B61='Número de actividades'!$C$9,'Número de actividades'!$B$9,B61='Número de actividades'!$C$10,'Número de actividades'!$B$9,B61='Número de actividades'!$C$11,'Número de actividades'!$B$9,B61='Número de actividades'!$B$12,'Número de actividades'!$B$12)","v":"3. Modelo de Estado Abierto"},"3.1. Acceso a la información pública y transparencia","3.1.27","Realizar informe de la publicación de los  compromisos de los espacios de participación ciudadana, desarrollados por la entidad en la plataforma Colibrí de la Veeduría Distrital ","Dos (2) informes de la publicación de compromisos en la plataforma Colibrí.\nPeriodicidad de la medición: semestral","Gerencia de Estrategia ",null,2,"2026-06-30","2026-12-30",0,0,1,0,1,0,null,null,null,{"$f":"((K61+M61+O61)/(L61+N61+P61))","v":{"$error":"#DIV/0!"}},null,"Acciones aún no iniciadas"]
[{"$f":"+_xlfn.IFS(B62='Número de actividades'!$C$3,'Número de actividades'!$B$3,B62='Número de actividades'!$C$4,'Número de actividades'!$B$3,B62='Número de actividades'!$C$5,'Número de actividades'!$B$3,B62='Número de actividades'!$C$6,'Número de actividades'!$B$3,B62='Número de actividades'!$C$7,'Número de actividades'!$B$7,B62='Número de actividades'!$C$8,'Número de actividades'!$B$7,B62='Número de actividades'!$C$9,'Número de actividades'!$B$9,B62='Número de actividades'!$C$10,'Número de actividades'!$B$9,B62='Número de actividades'!$C$11,'Número de actividades'!$B$9,B62='Número de actividades'!$B$12,'Número de actividades'!$B$12)","v":"3. Modelo de Estado Abierto"},"3.1. Acceso a la información pública y transparencia","3.1.28","Publicar la estrategia de participación ciudadana en el botón participa de la página web ","Una (1) publicación de la estrategia de participación ciudadana en la página web de la entidad.\nPeriodicidad de la medición: anual ","Gerencia de Estrategia ",null,1,"2026-02-02","2026-02-28",1,0,0,0,0,0,null,null,null,{"$error":"#DIV/0!"},null,"Acciones aún no iniciadas"]
[{"$f":"+_xlfn.IFS(B63='Número de actividades'!$C$3,'Número de actividades'!$B$3,B63='Número de actividades'!$C$4,'Número de actividades'!$B$3,B63='Número de actividades'!$C$5,'Número de actividades'!$B$3,B63='Número de actividades'!$C$6,'Número de actividades'!$B$3,B63='Número de actividades'!$C$7,'Número de actividades'!$B$7,B63='Número de actividades'!$C$8,'Número de actividades'!$B$7,B63='Número de actividades'!$C$9,'Número de actividades'!$B$9,B63='Número de actividades'!$C$10,'Número de actividades'!$B$9,B63='Número de actividades'!$C$11,'Número de actividades'!$B$9,B63='Número de actividades'!$B$12,'Número de actividades'!$B$12)","v":"3. Modelo de Estado Abierto"},"3.1. Acceso a la información pública y transparencia","3.1.29","Divulgar por canales digitales la gestión de la entidad","Informes de redes sociales","Dirección General - Comunicaciones","Desde la gestión del equipo de participación, no se contempla la publicación y/o divulgación de la gestión de la entidad, dado que esta acción la realiza el equipo de comunicaciones, a través de los diferentes canales de la entidad. ",1,"2026-01-01","2026-12-15",0,0,0,0,1,0,null,null,null,{"$error":"#DIV/0!"},null,"Acciones aún no iniciadas"]
[{"$f":"+_xlfn.IFS(B64='Número de actividades'!$C$3,'Número de actividades'!$B$3,B64='Número de actividades'!$C$4,'Número de actividades'!$B$3,B64='Número de actividades'!$C$5,'Número de actividades'!$B$3,B64='Número de actividades'!$C$6,'Número de actividades'!$B$3,B64='Número de actividades'!$C$7,'Número de actividades'!$B$7,B64='Número de actividades'!$C$8,'Número de actividades'!$B$7,B64='Número de actividades'!$C$9,'Número de actividades'!$B$9,B64='Número de actividades'!$C$10,'Número de actividades'!$B$9,B64='Número de actividades'!$C$11,'Número de actividades'!$B$9,B64='Número de actividades'!$B$12,'Número de actividades'!$B$12)","v":"3. Modelo de Estado Abierto"},"3.1. Acceso a la información pública y transparencia","3.1.3","Publicar índice de información clasificada y reservada","Información publicada en página web y portal de datos abiertos","Subgerencia de Tecnologías de la Información y Comunicaciones- TIC",null,1,"2026-08-03","2026-12-18",0,0,0,0,1,0,null,null,null,{"$error":"#DIV/0!"},null,"Acciones aún no iniciadas"]
[{"$f":"+_xlfn.IFS(B65='Número de actividades'!$C$3,'Número de actividades'!$B$3,B65='Número de actividades'!$C$4,'Número de actividades'!$B$3,B65='Número de actividades'!$C$5,'Número de actividades'!$B$3,B65='Número de actividades'!$C$6,'Número de actividades'!$B$3,B65='Número de actividades'!$C$7,'Número de actividades'!$B$7,B65='Número de actividades'!$C$8,'Número de actividades'!$B$7,B65='Número de actividades'!$C$9,'Número de actividades'!$B$9,B65='Número de actividades'!$C$10,'Número de actividades'!$B$9,B65='Número de actividades'!$C$11,'Número de actividades'!$B$9,B65='Número de actividades'!$B$12,'Número de actividades'!$B$12)","v":"3. Modelo de Estado Abierto"},"3.1. Acceso a la información pública y transparencia","3.1.30","Publicar en la página web el informe de rendición de cuentas","Publicación del informe","Subgerencia de Planeación",null,1,"2026-05-30","2026-07-01",null,0,null,0,null,0,null,null,null,{"$error":"#DIV/0!"},null,"Acciones aún no iniciadas"]
[{"$f":"+_xlfn.IFS(B66='Número de actividades'!$C$3,'Número de actividades'!$B$3,B66='Número de actividades'!$C$4,'Número de actividades'!$B$3,B66='Número de actividades'!$C$5,'Número de actividades'!$B$3,B66='Número de actividades'!$C$6,'Número de actividades'!$B$3,B66='Número de actividades'!$C$7,'Número de actividades'!$B$7,B66='Número de actividades'!$C$8,'Número de actividades'!$B$7,B66='Número de actividades'!$C$9,'Número de actividades'!$B$9,B66='Número de actividades'!$C$10,'Número de actividades'!$B$9,B66='Número de actividades'!$C$11,'Número de actividades'!$B$9,B66='Número de actividades'!$B$12,'Número de actividades'!$B$12)","v":"3. Modelo de Estado Abierto"},"3.1. Acceso a la información pública y transparencia","3.1.31","Hacer la divulgación de la fecha de la Audiencia de rendición de cuentas","Pieza comunicativa ","Subgerencia de Planeación / Dirección General - Oficina de comunicaciones",null,1,"2026-05-30","2026-07-01",null,0,null,0,null,0,null,null,null,{"$error":"#DIV/0!"},null,"Acciones aún no iniciadas"]
[{"$f":"+_xlfn.IFS(B67='Número de actividades'!$C$3,'Número de actividades'!$B$3,B67='Número de actividades'!$C$4,'Número de actividades'!$B$3,B67='Número de actividades'!$C$5,'Número de actividades'!$B$3,B67='Número de actividades'!$C$6,'Número de actividades'!$B$3,B67='Número de actividades'!$C$7,'Número de actividades'!$B$7,B67='Número de actividades'!$C$8,'Número de actividades'!$B$7,B67='Número de actividades'!$C$9,'Número de actividades'!$B$9,B67='Número de actividades'!$C$10,'Número de actividades'!$B$9,B67='Número de actividades'!$C$11,'Número de actividades'!$B$9,B67='Número de actividades'!$B$12,'Número de actividades'!$B$12)","v":"3. Modelo de Estado Abierto"},"3.1. Acceso a la información pública y transparencia","3.1.4","Publicar matriz de activos de información","Información publicada en página web y portal de datos abiertos","Subgerencia de Tecnologías de la Información y Comunicaciones- TIC",null,1,"2026-08-03","2026-12-18",0,0,0,0,1,0,null,null,null,{"$error":"#DIV/0!"},null,"Acciones aún no iniciadas"]
[{"$f":"+_xlfn.IFS(B68='Número de actividades'!$C$3,'Número de actividades'!$B$3,B68='Número de actividades'!$C$4,'Número de actividades'!$B$3,B68='Número de actividades'!$C$5,'Número de actividades'!$B$3,B68='Número de actividades'!$C$6,'Número de actividades'!$B$3,B68='Número de actividades'!$C$7,'Número de actividades'!$B$7,B68='Número de actividades'!$C$8,'Número de actividades'!$B$7,B68='Número de actividades'!$C$9,'Número de actividades'!$B$9,B68='Número de actividades'!$C$10,'Número de actividades'!$B$9,B68='Número de actividades'!$C$11,'Número de actividades'!$B$9,B68='Número de actividades'!$B$12,'Número de actividades'!$B$12)","v":"3. Modelo de Estado Abierto"},"3.1. Acceso a la información pública y transparencia","3.1.5","Actualización trimestral conjuntos de datos abiertos publicados","Información publicada en página web y portal de datos abiertos","Subgerencia Análisis Información y Gestión del Conocimiento",null,4,"2026-04-01","2026-12-31",1,0,1,0,2,0,null,null,null,{"$error":"#DIV/0!"},null,"Acciones aún no iniciadas"]
[{"$f":"+_xlfn.IFS(B69='Número de actividades'!$C$3,'Número de actividades'!$B$3,B69='Número de actividades'!$C$4,'Número de actividades'!$B$3,B69='Número de actividades'!$C$5,'Número de actividades'!$B$3,B69='Número de actividades'!$C$6,'Número de actividades'!$B$3,B69='Número de actividades'!$C$7,'Número de actividades'!$B$7,B69='Número de actividades'!$C$8,'Número de actividades'!$B$7,B69='Número de actividades'!$C$9,'Número de actividades'!$B$9,B69='Número de actividades'!$C$10,'Número de actividades'!$B$9,B69='Número de actividades'!$C$11,'Número de actividades'!$B$9,B69='Número de actividades'!$B$12,'Número de actividades'!$B$12)","v":"3. Modelo de Estado Abierto"},"3.1. Acceso a la información pública y transparencia","3.1.6","Publicar el informe de gestión de la entidad en la página web","Informe de gestión","Subgerencia de Planeación",null,1,"2026-01-31","2026-01-31",1,0,0,0,0,0,null,null,null,{"$error":"#DIV/0!"},null,"Acciones aún no iniciadas"]
[{"$f":"+_xlfn.IFS(B70='Número de actividades'!$C$3,'Número de actividades'!$B$3,B70='Número de actividades'!$C$4,'Número de actividades'!$B$3,B70='Número de actividades'!$C$5,'Número de actividades'!$B$3,B70='Número de actividades'!$C$6,'Número de actividades'!$B$3,B70='Número de actividades'!$C$7,'Número de actividades'!$B$7,B70='Número de actividades'!$C$8,'Número de actividades'!$B$7,B70='Número de actividades'!$C$9,'Número de actividades'!$B$9,B70='Número de actividades'!$C$10,'Número de actividades'!$B$9,B70='Número de actividades'!$C$11,'Número de actividades'!$B$9,B70='Número de actividades'!$B$12,'Número de actividades'!$B$12)","v":"3. Modelo de Estado Abierto"},"3.1. Acceso a la información pública y transparencia","3.1.7","Publicar  los ajustes realizados a las diferentes fichas EBI de los Proyectos de Inversión, cuando se realice alguno. ","Ficha EBI-D","Subgerencia de Planeación",null,5,"2026-01-01","2027-05-01",5,0,null,0,null,0,null,null,null,{"$error":"#DIV/0!"},null,"Acciones aún no iniciadas"]
[{"$f":"+_xlfn.IFS(B71='Número de actividades'!$C$3,'Número de actividades'!$B$3,B71='Número de actividades'!$C$4,'Número de actividades'!$B$3,B71='Número de actividades'!$C$5,'Número de actividades'!$B$3,B71='Número de actividades'!$C$6,'Número de actividades'!$B$3,B71='Número de actividades'!$C$7,'Número de actividades'!$B$7,B71='Número de actividades'!$C$8,'Número de actividades'!$B$7,B71='Número de actividades'!$C$9,'Número de actividades'!$B$9,B71='Número de actividades'!$C$10,'Número de actividades'!$B$9,B71='Número de actividades'!$C$11,'Número de actividades'!$B$9,B71='Número de actividades'!$B$12,'Número de actividades'!$B$12)","v":"3. Modelo de Estado Abierto"},"3.1. Acceso a la información pública y transparencia","3.1.8","Mantener actualizada la información en la página web de la sección de Planeación, Presupuesto e Informes, en los temas de presupuesto, estados financieros y Ejecución Presupuestal","Información publicada y actualizada en la página web institucional","Subgerencia Financiera",null,15,"2026-01-31","2026-12-31",4,0,5,0,{"$f":"5+1","v":6},0,null,null,null,{"$error":"#DIV/0!"},null,"Acciones aún no iniciadas"]
[{"$f":"+_xlfn.IFS(B72='Número de actividades'!$C$3,'Número de actividades'!$B$3,B72='Número de actividades'!$C$4,'Número de actividades'!$B$3,B72='Número de actividades'!$C$5,'Número de actividades'!$B$3,B72='Número de actividades'!$C$6,'Número de actividades'!$B$3,B72='Número de actividades'!$C$7,'Número de actividades'!$B$7,B72='Número de actividades'!$C$8,'Número de actividades'!$B$7,B72='Número de actividades'!$C$9,'Número de actividades'!$B$9,B72='Número de actividades'!$C$10,'Número de actividades'!$B$9,B72='Número de actividades'!$C$11,'Número de actividades'!$B$9,B72='Número de actividades'!$B$12,'Número de actividades'!$B$12)","v":"3. Modelo de Estado Abierto"},"3.1. Acceso a la información pública y transparencia","3.1.9","Estandarizar el conjunto de datos abiertos sobre información estratégica de la entidad antes de su publicación","Conjunto de datos abiertos estandarizados - Matrices finales con los conjuntos de datos listos para subir al portal de la ciudad","Subgerencia Análisis Información y Gestión del Conocimiento",null,3,"2026-05-01","2026-12-15",0,0,1,0,2,0,null,null,null,{"$error":"#DIV/0!"},null,"Acciones aún no iniciadas"]
[{"$f":"+_xlfn.IFS(B73='Número de actividades'!$C$3,'Número de actividades'!$B$3,B73='Número de actividades'!$C$4,'Número de actividades'!$B$3,B73='Número de actividades'!$C$5,'Número de actividades'!$B$3,B73='Número de actividades'!$C$6,'Número de actividades'!$B$3,B73='Número de actividades'!$C$7,'Número de actividades'!$B$7,B73='Número de actividades'!$C$8,'Número de actividades'!$B$7,B73='Número de actividades'!$C$9,'Número de actividades'!$B$9,B73='Número de actividades'!$C$10,'Número de actividades'!$B$9,B73='Número de actividades'!$C$11,'Número de actividades'!$B$9,B73='Número de actividades'!$B$12,'Número de actividades'!$B$12)","v":"3. Modelo de Estado Abierto"},"3.2. Integridad pública y cultura de la legalidad","3.2.1","Crear una red de embajadores internos de innovación para fortalecer la cultura innovadora en la entidad.","10 embajadores formados con actividades realizadas para promover la innovación.","Gerencia de Estrategia /Equipo de Innovación Pública ",null,10,"2026-03-01","2026-12-31",0,0,0,0,10,0,null,null,null,{"$error":"#DIV/0!"},null,"Acciones aún no iniciadas"]
[{"$f":"+_xlfn.IFS(B74='Número de actividades'!$C$3,'Número de actividades'!$B$3,B74='Número de actividades'!$C$4,'Número de actividades'!$B$3,B74='Número de actividades'!$C$5,'Número de actividades'!$B$3,B74='Número de actividades'!$C$6,'Número de actividades'!$B$3,B74='Número de actividades'!$C$7,'Número de actividades'!$B$7,B74='Número de actividades'!$C$8,'Número de actividades'!$B$7,B74='Número de actividades'!$C$9,'Número de actividades'!$B$9,B74='Número de actividades'!$C$10,'Número de actividades'!$B$9,B74='Número de actividades'!$C$11,'Número de actividades'!$B$9,B74='Número de actividades'!$B$12,'Número de actividades'!$B$12)","v":"3. Modelo de Estado Abierto"},"3.2. Integridad pública y cultura de la legalidad","3.2.10","Analizar el resultado producto de la aplicación de la encuesta de percepción  y de acuerdo a ello definir las acciones a fortalecer en  la apropiació del código y la Gestión de la Integridad  y publicar en el micrositio Historias de Integridad en la web site de la Agencia ","Publicación de los resultados en la web site ","Gerencia de Estrategia / Comunicaciones / Gestores de Integridad ","En la vigencia anterior se aplicaron innecesariamente dos encuestas para la medición de la integridad y ética publica de la entidad, los gestores de integridad en reunión del pasado 10 de diciembre decidieron unificar las encuestas lanzadas por la Gerencia de Estrategia / OCID y Subgerencia de Gestión Administrativa y estuvieron de acuerdo en que el análisis estará bajo la responsabilidad de las áreas involucradas - Se modificaron los responsables y adicionalmente por ley de transparencia se publicarán los mismos en el micrositio Historias de Integridad ",1,"2026-06-10","2026-09-30",0,0,0,0,1,0,null,null,null,{"$error":"#DIV/0!"},null,"Acciones aún no iniciadas"]
[{"$f":"+_xlfn.IFS(B75='Número de actividades'!$C$3,'Número de actividades'!$B$3,B75='Número de actividades'!$C$4,'Número de actividades'!$B$3,B75='Número de actividades'!$C$5,'Número de actividades'!$B$3,B75='Número de actividades'!$C$6,'Número de actividades'!$B$3,B75='Número de actividades'!$C$7,'Número de actividades'!$B$7,B75='Número de actividades'!$C$8,'Número de actividades'!$B$7,B75='Número de actividades'!$C$9,'Número de actividades'!$B$9,B75='Número de actividades'!$C$10,'Número de actividades'!$B$9,B75='Número de actividades'!$C$11,'Número de actividades'!$B$9,B75='Número de actividades'!$B$12,'Número de actividades'!$B$12)","v":"3. Modelo de Estado Abierto"},"3.2. Integridad pública y cultura de la legalidad","3.2.11","Sensibilizar, cualificar y/o capacitar a funcionarios y colaboradores de la entidad, según las necesidades de la Agencia, en temas asociados a servicio a la ciudadanía, para fortalecer la cultura en este tema, en función de la interiorización de la Política Publica de Servicio a la Ciudadanía, las actualizaciones normativas y el Modelo Integral de Relacionamiento con la Ciudadanía","3 Sensibilizaciones, cualificaciones o Capacitaciones (1 cuatrimestral) ","Subgerencia de Gestión Administrativa / Servicio a ciudadano",null,3,"2026-02-01","2026-12-30",1,0,1,0,1,0,null,null,null,{"$error":"#DIV/0!"},null,"Acciones aún no iniciadas"]
[{"$f":"+_xlfn.IFS(B76='Número de actividades'!$C$3,'Número de actividades'!$B$3,B76='Número de actividades'!$C$4,'Número de actividades'!$B$3,B76='Número de actividades'!$C$5,'Número de actividades'!$B$3,B76='Número de actividades'!$C$6,'Número de actividades'!$B$3,B76='Número de actividades'!$C$7,'Número de actividades'!$B$7,B76='Número de actividades'!$C$8,'Número de actividades'!$B$7,B76='Número de actividades'!$C$9,'Número de actividades'!$B$9,B76='Número de actividades'!$C$10,'Número de actividades'!$B$9,B76='Número de actividades'!$C$11,'Número de actividades'!$B$9,B76='Número de actividades'!$B$12,'Número de actividades'!$B$12)","v":"3. Modelo de Estado Abierto"},"3.2. Integridad pública y cultura de la legalidad","3.2.12","Realizar seguimiento semanal a la gestión de PQRSD que ingresan a la Agencia y son tramitadas por las diferentes dependencias de la entidad","Reporte consolidado del seguimiento a la gestión de PQRSD realizado semanalmente","Subgerencia de Gestión Administrativa / Servicio a ciudadano",null,52,"2/01/2026","2026-12-30",17,0,18,0,17,0,null,null,null,{"$error":"#DIV/0!"},null,"Acciones aún no iniciadas"]
[{"$f":"+_xlfn.IFS(B77='Número de actividades'!$C$3,'Número de actividades'!$B$3,B77='Número de actividades'!$C$4,'Número de actividades'!$B$3,B77='Número de actividades'!$C$5,'Número de actividades'!$B$3,B77='Número de actividades'!$C$6,'Número de actividades'!$B$3,B77='Número de actividades'!$C$7,'Número de actividades'!$B$7,B77='Número de actividades'!$C$8,'Número de actividades'!$B$7,B77='Número de actividades'!$C$9,'Número de actividades'!$B$9,B77='Número de actividades'!$C$10,'Número de actividades'!$B$9,B77='Número de actividades'!$C$11,'Número de actividades'!$B$9,B77='Número de actividades'!$B$12,'Número de actividades'!$B$12)","v":"3. Modelo de Estado Abierto"},"3.2. Integridad pública y cultura de la legalidad","3.2.13","Realizar seguimiento trimestral a la implementación de la estrategia de racionalización para los OPAs de la Agencia.","Comunicación solicitud de reporte avances estrategia de racionalización definida y cargue de seguimiento en SUIT.","Subgerencia de Planeación.",null,4,"2026-04-30","2026-12-30",1,0,1,0,2,0,null,null,null,{"$error":"#DIV/0!"},null,"Acciones aún no iniciadas"]
[{"$f":"+_xlfn.IFS(B78='Número de actividades'!$C$3,'Número de actividades'!$B$3,B78='Número de actividades'!$C$4,'Número de actividades'!$B$3,B78='Número de actividades'!$C$5,'Número de actividades'!$B$3,B78='Número de actividades'!$C$6,'Número de actividades'!$B$3,B78='Número de actividades'!$C$7,'Número de actividades'!$B$7,B78='Número de actividades'!$C$8,'Número de actividades'!$B$7,B78='Número de actividades'!$C$9,'Número de actividades'!$B$9,B78='Número de actividades'!$C$10,'Número de actividades'!$B$9,B78='Número de actividades'!$C$11,'Número de actividades'!$B$9,B78='Número de actividades'!$B$12,'Número de actividades'!$B$12)","v":"3. Modelo de Estado Abierto"},"3.2. Integridad pública y cultura de la legalidad","3.2.14","Solicitar a los lideres de procesos misionales, informar a la Subgerencia de Planeación si se requiere la definición de nuevos OPAs. En caso de requerirse definir plan de Definición de OPAs.","Comunicación donde se informe si se requiere documentar nuevos OPA o modificar los existentes. \n*En caso de requerirse documentación nuevo OPA: Plan de definición.\n*En caso de requerirse modificación: actualización OPA SUIT.","Subgerencia de Planeación.","Se requiere eliminar esta actividad puesto que la Agencia durante las vigencias anteriores ha hecho esta evaluación y no se han identificado nuevos OPAs, contrario a esto, se están adelanatndo emsas de trabajo con la Alcaldía de Bogotá y el DAFP para justificar la transformación de los OPAs actuales en solicitudes de información. ",null,null,null,null,0,null,0,null,0,null,null,null,{"$error":"#DIV/0!"},null,"Acciones aún no iniciadas"]
[{"$f":"+_xlfn.IFS(B79='Número de actividades'!$C$3,'Número de actividades'!$B$3,B79='Número de actividades'!$C$4,'Número de actividades'!$B$3,B79='Número de actividades'!$C$5,'Número de actividades'!$B$3,B79='Número de actividades'!$C$6,'Número de actividades'!$B$3,B79='Número de actividades'!$C$7,'Número de actividades'!$B$7,B79='Número de actividades'!$C$8,'Número de actividades'!$B$7,B79='Número de actividades'!$C$9,'Número de actividades'!$B$9,B79='Número de actividades'!$C$10,'Número de actividades'!$B$9,B79='Número de actividades'!$C$11,'Número de actividades'!$B$9,B79='Número de actividades'!$B$12,'Número de actividades'!$B$12)","v":"3. Modelo de Estado Abierto"},"3.2. Integridad pública y cultura de la legalidad","3.2.15","Definición estrategia de racionalización de los OPAs para la vigencia 2026.","Registro del cargue en SUIT.","Subgerencia de Planeación.",null,1,"2026-01-01","2026-02-15",1,0,0,0,0,0,null,null,null,{"$error":"#DIV/0!"},null,"Acciones aún no iniciadas"]
[{"$f":"+_xlfn.IFS(B80='Número de actividades'!$C$3,'Número de actividades'!$B$3,B80='Número de actividades'!$C$4,'Número de actividades'!$B$3,B80='Número de actividades'!$C$5,'Número de actividades'!$B$3,B80='Número de actividades'!$C$6,'Número de actividades'!$B$3,B80='Número de actividades'!$C$7,'Número de actividades'!$B$7,B80='Número de actividades'!$C$8,'Número de actividades'!$B$7,B80='Número de actividades'!$C$9,'Número de actividades'!$B$9,B80='Número de actividades'!$C$10,'Número de actividades'!$B$9,B80='Número de actividades'!$C$11,'Número de actividades'!$B$9,B80='Número de actividades'!$B$12,'Número de actividades'!$B$12)","v":"3. Modelo de Estado Abierto"},"3.2. Integridad pública y cultura de la legalidad","3.2.2","Implementar una estrategia de difusión de gestión del conocimiento e innovación sobre casos y aprendizajes de innovación pública, orientada a los servidores públicos.","Dos (2) Estrategias de difusión de gestión del conocimiento e innovación implementada a través de canales institucionales.","Gerencia de Estrategia /Equipo de Innovación Pública ","Se ajusta actividad. Como alternativa al desarrollo de podcasts, se implementaría una estrategia de difusión de gestión del conocimiento e innovación, integrada a canales institucionales, que permitiría mayor alcance, acceso permanente y menor carga operativa.",2,"2026-04-01","2026-12-30",0,0,0,0,2,0,null,null,null,{"$error":"#DIV/0!"},null,"Acciones aún no iniciadas"]
[{"$f":"+_xlfn.IFS(B81='Número de actividades'!$C$3,'Número de actividades'!$B$3,B81='Número de actividades'!$C$4,'Número de actividades'!$B$3,B81='Número de actividades'!$C$5,'Número de actividades'!$B$3,B81='Número de actividades'!$C$6,'Número de actividades'!$B$3,B81='Número de actividades'!$C$7,'Número de actividades'!$B$7,B81='Número de actividades'!$C$8,'Número de actividades'!$B$7,B81='Número de actividades'!$C$9,'Número de actividades'!$B$9,B81='Número de actividades'!$C$10,'Número de actividades'!$B$9,B81='Número de actividades'!$C$11,'Número de actividades'!$B$9,B81='Número de actividades'!$B$12,'Número de actividades'!$B$12)","v":"3. Modelo de Estado Abierto"},"3.2. Integridad pública y cultura de la legalidad","3.2.3","Adelantar acciones necesarias para llevar a cabo la conformación del equipo de gestores de integridad ","Convocatoria para conformar el equipo de Gestores de Integridad ","Subgerencia de Gestión Administrativa -Gestores de Integridad",null,1,"2026-07-01","2026-08-19",0,0,1,0,0,0,null,null,null,{"$error":"#DIV/0!"},null,"Acciones aún no iniciadas"]
[{"$f":"+_xlfn.IFS(B82='Número de actividades'!$C$3,'Número de actividades'!$B$3,B82='Número de actividades'!$C$4,'Número de actividades'!$B$3,B82='Número de actividades'!$C$5,'Número de actividades'!$B$3,B82='Número de actividades'!$C$6,'Número de actividades'!$B$3,B82='Número de actividades'!$C$7,'Número de actividades'!$B$7,B82='Número de actividades'!$C$8,'Número de actividades'!$B$7,B82='Número de actividades'!$C$9,'Número de actividades'!$B$9,B82='Número de actividades'!$C$10,'Número de actividades'!$B$9,B82='Número de actividades'!$C$11,'Número de actividades'!$B$9,B82='Número de actividades'!$B$12,'Número de actividades'!$B$12)","v":"3. Modelo de Estado Abierto"},"3.2. Integridad pública y cultura de la legalidad","3.2.4","Capacitar al equipo de gestores de integridad contemplado en el PIC Atenea, en las plataformas ofertadas en el DAFP y en Normactiva ","Certificado de curso de integridad, transparencia y lucha contra la corrupción - EVA DAFP y NormaActiva","Subgerencia de Gestión Administrativa -Gestores de Integridad","El ajuste se debió a forma de redacción e incluyó capacitación a gestores en NormaActiva producto de las recomendaciones de la auditoria adelantada por la Oficina de Control Interno de Gestión ",1,"2026-09-01","2026-12-31",0,0,0,0,1,0,null,null,null,{"$error":"#DIV/0!"},null,"Acciones aún no iniciadas"]
[{"$f":"+_xlfn.IFS(B83='Número de actividades'!$C$3,'Número de actividades'!$B$3,B83='Número de actividades'!$C$4,'Número de actividades'!$B$3,B83='Número de actividades'!$C$5,'Número de actividades'!$B$3,B83='Número de actividades'!$C$6,'Número de actividades'!$B$3,B83='Número de actividades'!$C$7,'Número de actividades'!$B$7,B83='Número de actividades'!$C$8,'Número de actividades'!$B$7,B83='Número de actividades'!$C$9,'Número de actividades'!$B$9,B83='Número de actividades'!$C$10,'Número de actividades'!$B$9,B83='Número de actividades'!$C$11,'Número de actividades'!$B$9,B83='Número de actividades'!$B$12,'Número de actividades'!$B$12)","v":"3. Modelo de Estado Abierto"},"3.2. Integridad pública y cultura de la legalidad","3.2.5","Diseñar un instrumento o herramienta para realizar diagnóstico del nivel de apropiación del código y la gestión de la integridad en la Entidad, con base en el Test de Integridad propuesto por el DAFP ","Encuesta de percepción y apropiación (Instrumento)","Oficina de Control Interno Disciplinario y Gerencia de Estrategia ","En la vigencia anterior se aplicaron innecesariamente dos encuestas para la medición de la integridad y ética publica de la entidad, los gestores de integridad en reunión del pasado 10 de diciembre decidieron unificar las encuestas lanzadas por la OCID y la Gerencia de Estrategia armonizada con el Test de Integridad propuesta por  el DAFP y estuvieron de acuerdo en que el diseño estará bajo la responsabilidad de las áreas involucradas - Se modificaron los responsables - La actividad se plenea ejecutar hasta el segundo semestre de 2026 por cuanto la última encuesta fue realizada en octubre de 2025",1,"2026-09-30","2026-12-31",0,0,1,0,0,0,null,null,null,{"$error":"#DIV/0!"},null,"Acciones aún no iniciadas"]
[{"$f":"+_xlfn.IFS(B84='Número de actividades'!$C$3,'Número de actividades'!$B$3,B84='Número de actividades'!$C$4,'Número de actividades'!$B$3,B84='Número de actividades'!$C$5,'Número de actividades'!$B$3,B84='Número de actividades'!$C$6,'Número de actividades'!$B$3,B84='Número de actividades'!$C$7,'Número de actividades'!$B$7,B84='Número de actividades'!$C$8,'Número de actividades'!$B$7,B84='Número de actividades'!$C$9,'Número de actividades'!$B$9,B84='Número de actividades'!$C$10,'Número de actividades'!$B$9,B84='Número de actividades'!$C$11,'Número de actividades'!$B$9,B84='Número de actividades'!$B$12,'Número de actividades'!$B$12)","v":"3. Modelo de Estado Abierto"},"3.2. Integridad pública y cultura de la legalidad","3.2.6","Realizar la actividades de apropiación de la Caja de Herramientas de la Función Pública definida por los Gestores de Integridad selectos mediante Resolución DG-087 de 2025. Compromiso \"Juramento al Servidor\" y \"Deja tu huella\" incluídas dentro del anexo tecnico del contrato de Bienestar","Bitácora con el registro fotográfico y descripción ","Subgerencia de Gestión Administrativa - Bienestar - Gestores de Integridad ","Durante las mesas de trabajo con los gestores de integridad se evaluaron las acciones a adelantar producto de los resultados de la matriz autodiagnóstica, para ello se revisaron todas las actividades de la Caja de Herramientas propuesta por el DAFP, definiendo estas dos actividades que reforzarán las lecciones aprendidas y buenas prácticas en Integridad ",1,"2026-06-01","2026-12-31",0,0,0,0,1,0,null,null,null,{"$error":"#DIV/0!"},null,"Acciones aún no iniciadas"]
[{"$f":"+_xlfn.IFS(B85='Número de actividades'!$C$3,'Número de actividades'!$B$3,B85='Número de actividades'!$C$4,'Número de actividades'!$B$3,B85='Número de actividades'!$C$5,'Número de actividades'!$B$3,B85='Número de actividades'!$C$6,'Número de actividades'!$B$3,B85='Número de actividades'!$C$7,'Número de actividades'!$B$7,B85='Número de actividades'!$C$8,'Número de actividades'!$B$7,B85='Número de actividades'!$C$9,'Número de actividades'!$B$9,B85='Número de actividades'!$C$10,'Número de actividades'!$B$9,B85='Número de actividades'!$C$11,'Número de actividades'!$B$9,B85='Número de actividades'!$B$12,'Número de actividades'!$B$12)","v":"3. Modelo de Estado Abierto"},"3.2. Integridad pública y cultura de la legalidad","3.2.7","Diseñar video explicativo que contenga las lecciones aprendidas y buenas prácticas de Integridad a los gestores y Servidores de la Agencia ","Video institucional ","Dirección General (Comunicaciones) y Gestores de Integridad","Durante estas mismas mesas se definió un nuevo enfoque basado en lecciones aprendidas y buenas practicas de integridad",1,"2026-05-04","2026-06-30",0,0,1,0,0,0,null,null,null,{"$error":"#DIV/0!"},null,"Acciones aún no iniciadas"]
[{"$f":"+_xlfn.IFS(B86='Número de actividades'!$C$3,'Número de actividades'!$B$3,B86='Número de actividades'!$C$4,'Número de actividades'!$B$3,B86='Número de actividades'!$C$5,'Número de actividades'!$B$3,B86='Número de actividades'!$C$6,'Número de actividades'!$B$3,B86='Número de actividades'!$C$7,'Número de actividades'!$B$7,B86='Número de actividades'!$C$8,'Número de actividades'!$B$7,B86='Número de actividades'!$C$9,'Número de actividades'!$B$9,B86='Número de actividades'!$C$10,'Número de actividades'!$B$9,B86='Número de actividades'!$C$11,'Número de actividades'!$B$9,B86='Número de actividades'!$B$12,'Número de actividades'!$B$12)","v":"3. Modelo de Estado Abierto"},"3.2. Integridad pública y cultura de la legalidad","3.2.8","Divulgar video a todos los funcionarios y contratistas de la entidad con el apoyo del asesor de comunicaciones.","Divulgación del video institucional ","Subgerencia de Gestión Administrativa ","Durante estas mismas mesas se definió un nuevo enfoque basado en lecciones aprendidas y buenas practicas de integridad",1,"2026-07-01","2026-08-31",null,0,null,0,null,0,null,null,null,{"$error":"#DIV/0!"},null,"Acciones aún no iniciadas"]
[{"$f":"+_xlfn.IFS(B87='Número de actividades'!$C$3,'Número de actividades'!$B$3,B87='Número de actividades'!$C$4,'Número de actividades'!$B$3,B87='Número de actividades'!$C$5,'Número de actividades'!$B$3,B87='Número de actividades'!$C$6,'Número de actividades'!$B$3,B87='Número de actividades'!$C$7,'Número de actividades'!$B$7,B87='Número de actividades'!$C$8,'Número de actividades'!$B$7,B87='Número de actividades'!$C$9,'Número de actividades'!$B$9,B87='Número de actividades'!$C$10,'Número de actividades'!$B$9,B87='Número de actividades'!$C$11,'Número de actividades'!$B$9,B87='Número de actividades'!$B$12,'Número de actividades'!$B$12)","v":"3. Modelo de Estado Abierto"},"3.2. Integridad pública y cultura de la legalidad","3.2.9","Aplicar instrumento propuesto del instrumento diseñado para el nivel de apropiación del Código y Gestión de la Integridad  armonizado con el propuesto por el DAFP frente al conocimiento y apropiación del código de integridad por parte de la comunidad institucional","Constancia de remisión de la encuesta a los servidores públicos. ","Gerencia de Estrategia y Control Interno Disciplinario ","El ajuste se debió a forma de redacción y a unificar y aplicar el instrumento de medición del Test de Percepción de Integridad con el propósito de medir el impacto de la apropiación de los valores del codigo de integridad del servidor público",1,"2026-09-30","2026-12-31",0,0,0,0,1,0,null,null,null,{"$error":"#DIV/0!"},null,"Acciones aún no iniciadas"]
[{"$f":"+_xlfn.IFS(B88='Número de actividades'!$C$3,'Número de actividades'!$B$3,B88='Número de actividades'!$C$4,'Número de actividades'!$B$3,B88='Número de actividades'!$C$5,'Número de actividades'!$B$3,B88='Número de actividades'!$C$6,'Número de actividades'!$B$3,B88='Número de actividades'!$C$7,'Número de actividades'!$B$7,B88='Número de actividades'!$C$8,'Número de actividades'!$B$7,B88='Número de actividades'!$C$9,'Número de actividades'!$B$9,B88='Número de actividades'!$C$10,'Número de actividades'!$B$9,B88='Número de actividades'!$C$11,'Número de actividades'!$B$9,B88='Número de actividades'!$B$12,'Número de actividades'!$B$12)","v":"3. Modelo de Estado Abierto"},"3.3. Dialogo y corresponsabilidad","3.3.1","Socializar los datos abiertos en el portal de la ciudad ","Socialización información publicada como datos abierto a través de la página web y de redes sociales de la agencia.","Subgerencia Análisis Información y Gestión del Conocimiento",null,3,"2026-05-01","2026-12-31",0,0,1,0,2,0,null,null,null,{"$error":"#DIV/0!"},null,"Acciones aún no iniciadas"]
[{"$f":"+_xlfn.IFS(B89='Número de actividades'!$C$3,'Número de actividades'!$B$3,B89='Número de actividades'!$C$4,'Número de actividades'!$B$3,B89='Número de actividades'!$C$5,'Número de actividades'!$B$3,B89='Número de actividades'!$C$6,'Número de actividades'!$B$3,B89='Número de actividades'!$C$7,'Número de actividades'!$B$7,B89='Número de actividades'!$C$8,'Número de actividades'!$B$7,B89='Número de actividades'!$C$9,'Número de actividades'!$B$9,B89='Número de actividades'!$C$10,'Número de actividades'!$B$9,B89='Número de actividades'!$C$11,'Número de actividades'!$B$9,B89='Número de actividades'!$B$12,'Número de actividades'!$B$12)","v":"3. Modelo de Estado Abierto"},"3.3. Dialogo y corresponsabilidad","3.3.10","Brindar información  a beneficiarios(as) de los programas y las convocatorias de la Agencia.","Publicación en redes sociales informar de manera semestral mínimo dos contenidos comunicativos de los programas de la Agencia.","Dirección General - Comunicaciones","Se presenta repetición con la actividad anterior \"Divulgar por canales digitales la gestión de la entidad\" por tanto se solicita eliminación ya que esta la cubre",null,null,null,null,0,null,0,null,0,null,null,null,{"$error":"#DIV/0!"},null,"Acciones aún no iniciadas"]
[{"$f":"+_xlfn.IFS(B90='Número de actividades'!$C$3,'Número de actividades'!$B$3,B90='Número de actividades'!$C$4,'Número de actividades'!$B$3,B90='Número de actividades'!$C$5,'Número de actividades'!$B$3,B90='Número de actividades'!$C$6,'Número de actividades'!$B$3,B90='Número de actividades'!$C$7,'Número de actividades'!$B$7,B90='Número de actividades'!$C$8,'Número de actividades'!$B$7,B90='Número de actividades'!$C$9,'Número de actividades'!$B$9,B90='Número de actividades'!$C$10,'Número de actividades'!$B$9,B90='Número de actividades'!$C$11,'Número de actividades'!$B$9,B90='Número de actividades'!$B$12,'Número de actividades'!$B$12)","v":"3. Modelo de Estado Abierto"},"3.3. Dialogo y corresponsabilidad","3.3.11","Realizar videos de gestión con apoyo de subtitulaje","5 videos ","Dirección General - Comunicaciones","Se modifica la actividad de realizar dos videos con lengua de señas a la producción de 5 videos de gestión con apoyo de subtitulaje, con el fin de ampliar el alcance de los contenidos incluyentes. El uso de closed caption garantiza accesibilidad para personas con discapacidad auditiva, facilita la comprensión en distintos contextos de uso y asegura mayor cobertura que la lengua de señas únicamente. Además, este ajuste permite incrementar el número de entregables y optimizar los recursos disponibles sin afectar el enfoque de inclusión.",5,"2026-06-01","2026-12-15",0,0,0,0,5,0,null,null,null,{"$error":"#DIV/0!"},null,"Acciones aún no iniciadas"]
[{"$f":"+_xlfn.IFS(B91='Número de actividades'!$C$3,'Número de actividades'!$B$3,B91='Número de actividades'!$C$4,'Número de actividades'!$B$3,B91='Número de actividades'!$C$5,'Número de actividades'!$B$3,B91='Número de actividades'!$C$6,'Número de actividades'!$B$3,B91='Número de actividades'!$C$7,'Número de actividades'!$B$7,B91='Número de actividades'!$C$8,'Número de actividades'!$B$7,B91='Número de actividades'!$C$9,'Número de actividades'!$B$9,B91='Número de actividades'!$C$10,'Número de actividades'!$B$9,B91='Número de actividades'!$C$11,'Número de actividades'!$B$9,B91='Número de actividades'!$B$12,'Número de actividades'!$B$12)","v":"3. Modelo de Estado Abierto"},"3.3. Dialogo y corresponsabilidad","3.3.12","Actualizar, según corresponda, la relación de los referentes de servicio a la ciudadanía de la Agencia, con el fin de fortalecer los mecanismos de comunicación interna entre el proceso y las demás dependencias.","Documento de actualización, en caso de que proceda","Subgerencia de Gestión Administrativa",null,12,"2026-01-01","2026-12-30",4,0,4,0,4,0,null,null,null,{"$error":"#DIV/0!"},null,"Acciones aún no iniciadas"]
[{"$f":"+_xlfn.IFS(B92='Número de actividades'!$C$3,'Número de actividades'!$B$3,B92='Número de actividades'!$C$4,'Número de actividades'!$B$3,B92='Número de actividades'!$C$5,'Número de actividades'!$B$3,B92='Número de actividades'!$C$6,'Número de actividades'!$B$3,B92='Número de actividades'!$C$7,'Número de actividades'!$B$7,B92='Número de actividades'!$C$8,'Número de actividades'!$B$7,B92='Número de actividades'!$C$9,'Número de actividades'!$B$9,B92='Número de actividades'!$C$10,'Número de actividades'!$B$9,B92='Número de actividades'!$C$11,'Número de actividades'!$B$9,B92='Número de actividades'!$B$12,'Número de actividades'!$B$12)","v":"3. Modelo de Estado Abierto"},"3.3. Dialogo y corresponsabilidad","3.3.13","Realizar informes relacionados con la satisfacción ciudadana y monitoreo a la calidad del servicio ","2 informes cuatrimestrales(elaborados al mes siguiente que se finalice el cuatrimestre)","Subgerencia de Gestión Administrativa",null,6,"2026-05-10","2026-12-30",2,0,2,null,2,0,null,null,null,{"$error":"#DIV/0!"},null,"Acciones aún no iniciadas"]
[{"$f":"+_xlfn.IFS(B93='Número de actividades'!$C$3,'Número de actividades'!$B$3,B93='Número de actividades'!$C$4,'Número de actividades'!$B$3,B93='Número de actividades'!$C$5,'Número de actividades'!$B$3,B93='Número de actividades'!$C$6,'Número de actividades'!$B$3,B93='Número de actividades'!$C$7,'Número de actividades'!$B$7,B93='Número de actividades'!$C$8,'Número de actividades'!$B$7,B93='Número de actividades'!$C$9,'Número de actividades'!$B$9,B93='Número de actividades'!$C$10,'Número de actividades'!$B$9,B93='Número de actividades'!$C$11,'Número de actividades'!$B$9,B93='Número de actividades'!$B$12,'Número de actividades'!$B$12)","v":"3. Modelo de Estado Abierto"},"3.3. Dialogo y corresponsabilidad","3.3.14","Actualización del Convenio interadministrativo y/o del acuerdo de nivel de servicio suscritos","Modificación del Convenio interadministrativo y/o del acuerdo de nivel de servicio suscritos","Subgerencia de Gestión Administrativa",null,1,"2026-01-01","2026-12-31",0,0,0,0,1,0,null,null,null,{"$f":"((K93+M93+O93)/(L93+N93+P93))","v":{"$error":"#DIV/0!"}},null,"Acciones aún no iniciadas"]
[{"$f":"+_xlfn.IFS(B94='Número de actividades'!$C$3,'Número de actividades'!$B$3,B94='Número de actividades'!$C$4,'Número de actividades'!$B$3,B94='Número de actividades'!$C$5,'Número de actividades'!$B$3,B94='Número de actividades'!$C$6,'Número de actividades'!$B$3,B94='Número de actividades'!$C$7,'Número de actividades'!$B$7,B94='Número de actividades'!$C$8,'Número de actividades'!$B$7,B94='Número de actividades'!$C$9,'Número de actividades'!$B$9,B94='Número de actividades'!$C$10,'Número de actividades'!$B$9,B94='Número de actividades'!$C$11,'Número de actividades'!$B$9,B94='Número de actividades'!$B$12,'Número de actividades'!$B$12)","v":"3. Modelo de Estado Abierto"},"3.3. Dialogo y corresponsabilidad","3.3.15","Actualizar y divulgar los protocolos de atención en cada canal con directrices de enfoque poblacional diferencial y de género ","Actualización y  divulgación de los protocolos de atención al ciudadano con enfoque poblacional diferencial y de género una vez al año o cuando la ley así lo establezca (Producto: Divulgación por medios de comunicación institucionales)","Subgerencia de Gestión Administrativa",null,1,"2026-01-01","2026-12-30",0,0,0,0,1,0,null,null,null,{"$error":"#DIV/0!"},null,"Acciones aún no iniciadas"]
[{"$f":"+_xlfn.IFS(B95='Número de actividades'!$C$3,'Número de actividades'!$B$3,B95='Número de actividades'!$C$4,'Número de actividades'!$B$3,B95='Número de actividades'!$C$5,'Número de actividades'!$B$3,B95='Número de actividades'!$C$6,'Número de actividades'!$B$3,B95='Número de actividades'!$C$7,'Número de actividades'!$B$7,B95='Número de actividades'!$C$8,'Número de actividades'!$B$7,B95='Número de actividades'!$C$9,'Número de actividades'!$B$9,B95='Número de actividades'!$C$10,'Número de actividades'!$B$9,B95='Número de actividades'!$C$11,'Número de actividades'!$B$9,B95='Número de actividades'!$B$12,'Número de actividades'!$B$12)","v":"3. Modelo de Estado Abierto"},"3.3. Dialogo y corresponsabilidad","3.3.16","Traducir a lenguaje claro incluyente y no sexista la información publicada en el micrositio de atención al ciudadano, asociada al portafolio de trámites y servicios de la Entidad","Pantallazo de la publicación de la información traducida en la página web ","Subgerencia de Gestión Administrativa",null,1,"2026-01-01","2026-12-30",0,0,0,0,1,0,null,null,null,{"$error":"#DIV/0!"},null,"Acciones aún no iniciadas"]
[{"$f":"+_xlfn.IFS(B96='Número de actividades'!$C$3,'Número de actividades'!$B$3,B96='Número de actividades'!$C$4,'Número de actividades'!$B$3,B96='Número de actividades'!$C$5,'Número de actividades'!$B$3,B96='Número de actividades'!$C$6,'Número de actividades'!$B$3,B96='Número de actividades'!$C$7,'Número de actividades'!$B$7,B96='Número de actividades'!$C$8,'Número de actividades'!$B$7,B96='Número de actividades'!$C$9,'Número de actividades'!$B$9,B96='Número de actividades'!$C$10,'Número de actividades'!$B$9,B96='Número de actividades'!$C$11,'Número de actividades'!$B$9,B96='Número de actividades'!$B$12,'Número de actividades'!$B$12)","v":"3. Modelo de Estado Abierto"},"3.3. Dialogo y corresponsabilidad","3.3.17","Realizar integraciones con los sistemas de información de la Entidad en los canales de atención al ciudadano a fin de mejorar la experiencia ciudadana","Actas de reunión de la puesta en producción de las integraciones","Subgerencia de Gestión Administrativa",null,1,"2026-01-01","2026-12-30",0,0,0,0,1,0,null,null,null,{"$error":"#DIV/0!"},null,"Acciones aún no iniciadas"]
[{"$f":"+_xlfn.IFS(B97='Número de actividades'!$C$3,'Número de actividades'!$B$3,B97='Número de actividades'!$C$4,'Número de actividades'!$B$3,B97='Número de actividades'!$C$5,'Número de actividades'!$B$3,B97='Número de actividades'!$C$6,'Número de actividades'!$B$3,B97='Número de actividades'!$C$7,'Número de actividades'!$B$7,B97='Número de actividades'!$C$8,'Número de actividades'!$B$7,B97='Número de actividades'!$C$9,'Número de actividades'!$B$9,B97='Número de actividades'!$C$10,'Número de actividades'!$B$9,B97='Número de actividades'!$C$11,'Número de actividades'!$B$9,B97='Número de actividades'!$B$12,'Número de actividades'!$B$12)","v":"3. Modelo de Estado Abierto"},"3.3. Dialogo y corresponsabilidad","3.3.18","Divulgar y publicar la Carta de Trato Digno a través de los canales de comunicación con los que cuenta la entidad. ","Realizar una (1) divulgación cuatrimestral de la Carta de compromiso a la ciudadanía a través de los canales de comunicación con los que cuenta la entidad.","Subgerencia de Gestión Administrativa ",null,3,"2026-01-01","2026-12-30",1,0,1,0,1,0,null,null,null,{"$error":"#DIV/0!"},null,"Acciones aún no iniciadas"]
[{"$f":"+_xlfn.IFS(B98='Número de actividades'!$C$3,'Número de actividades'!$B$3,B98='Número de actividades'!$C$4,'Número de actividades'!$B$3,B98='Número de actividades'!$C$5,'Número de actividades'!$B$3,B98='Número de actividades'!$C$6,'Número de actividades'!$B$3,B98='Número de actividades'!$C$7,'Número de actividades'!$B$7,B98='Número de actividades'!$C$8,'Número de actividades'!$B$7,B98='Número de actividades'!$C$9,'Número de actividades'!$B$9,B98='Número de actividades'!$C$10,'Número de actividades'!$B$9,B98='Número de actividades'!$C$11,'Número de actividades'!$B$9,B98='Número de actividades'!$B$12,'Número de actividades'!$B$12)","v":"3. Modelo de Estado Abierto"},"3.3. Dialogo y corresponsabilidad","3.3.19","Socializar y/o divulgar acciones sobre la política de servicio a la ciudadanía en materia de atención a grupos poblacionales específicos","Realizar trimestralmente una socialización sobre grupos poblacionales y los protocolos establecidos en los documentos de la agencia para su atención","Subgerencia de Gestión Administrativa ",null,4,"2026-01-01","2026-12-30",1,0,2,0,1,0,null,null,null,{"$error":"#DIV/0!"},null,"Acciones aún no iniciadas"]
[{"$f":"+_xlfn.IFS(B99='Número de actividades'!$C$3,'Número de actividades'!$B$3,B99='Número de actividades'!$C$4,'Número de actividades'!$B$3,B99='Número de actividades'!$C$5,'Número de actividades'!$B$3,B99='Número de actividades'!$C$6,'Número de actividades'!$B$3,B99='Número de actividades'!$C$7,'Número de actividades'!$B$7,B99='Número de actividades'!$C$8,'Número de actividades'!$B$7,B99='Número de actividades'!$C$9,'Número de actividades'!$B$9,B99='Número de actividades'!$C$10,'Número de actividades'!$B$9,B99='Número de actividades'!$C$11,'Número de actividades'!$B$9,B99='Número de actividades'!$B$12,'Número de actividades'!$B$12)","v":"3. Modelo de Estado Abierto"},"3.3. Dialogo y corresponsabilidad","3.3.20","Socializar la cartilla de lenguaje claro e incluyente de la Agencia  ","Socialización realizada / lista de asistencia","Subgerencia de Gestión Administrativa",null,2,"2026-01-01","2026-12-30",1,0,0,0,1,0,null,null,null,{"$error":"#DIV/0!"},null,"Acciones aún no iniciadas"]
[{"$f":"+_xlfn.IFS(B100='Número de actividades'!$C$3,'Número de actividades'!$B$3,B100='Número de actividades'!$C$4,'Número de actividades'!$B$3,B100='Número de actividades'!$C$5,'Número de actividades'!$B$3,B100='Número de actividades'!$C$6,'Número de actividades'!$B$3,B100='Número de actividades'!$C$7,'Número de actividades'!$B$7,B100='Número de actividades'!$C$8,'Número de actividades'!$B$7,B100='Número de actividades'!$C$9,'Número de actividades'!$B$9,B100='Número de actividades'!$C$10,'Número de actividades'!$B$9,B100='Número de actividades'!$C$11,'Número de actividades'!$B$9,B100='Número de actividades'!$B$12,'Número de actividades'!$B$12)","v":"3. Modelo de Estado Abierto"},"3.3. Dialogo y corresponsabilidad","3.3.21","Realizar espacios de participación ciudadana en el ciclo de la gestión institucional ","Seis (6) actas de los espacios de participación ciudadana en el ciclo de la gestión institucional.\nPeriodicidad de la medición: Bimensual ","Gerencia de Estrategia ",null,6,"2026-02-02","2026-12-30",2,0,2,0,2,0,null,null,null,{"$error":"#DIV/0!"},null,"Acciones aún no iniciadas"]
[{"$f":"+_xlfn.IFS(B101='Número de actividades'!$C$3,'Número de actividades'!$B$3,B101='Número de actividades'!$C$4,'Número de actividades'!$B$3,B101='Número de actividades'!$C$5,'Número de actividades'!$B$3,B101='Número de actividades'!$C$6,'Número de actividades'!$B$3,B101='Número de actividades'!$C$7,'Número de actividades'!$B$7,B101='Número de actividades'!$C$8,'Número de actividades'!$B$7,B101='Número de actividades'!$C$9,'Número de actividades'!$B$9,B101='Número de actividades'!$C$10,'Número de actividades'!$B$9,B101='Número de actividades'!$C$11,'Número de actividades'!$B$9,B101='Número de actividades'!$B$12,'Número de actividades'!$B$12)","v":"3. Modelo de Estado Abierto"},"3.3. Dialogo y corresponsabilidad","3.3.22","Realizar informe de participación ciudadana ","Un (1) informe de los resultados de los espacios de participación ciudadana.\nPeriodicidad de la medición: anual ","Gerencia de Estrategia ",null,1,"2026-12-01","2026-12-30",0,0,0,0,1,0,null,null,null,{"$error":"#DIV/0!"},null,"Acciones aún no iniciadas"]
[{"$f":"+_xlfn.IFS(B102='Número de actividades'!$C$3,'Número de actividades'!$B$3,B102='Número de actividades'!$C$4,'Número de actividades'!$B$3,B102='Número de actividades'!$C$5,'Número de actividades'!$B$3,B102='Número de actividades'!$C$6,'Número de actividades'!$B$3,B102='Número de actividades'!$C$7,'Número de actividades'!$B$7,B102='Número de actividades'!$C$8,'Número de actividades'!$B$7,B102='Número de actividades'!$C$9,'Número de actividades'!$B$9,B102='Número de actividades'!$C$10,'Número de actividades'!$B$9,B102='Número de actividades'!$C$11,'Número de actividades'!$B$9,B102='Número de actividades'!$B$12,'Número de actividades'!$B$12)","v":"3. Modelo de Estado Abierto"},"3.3. Dialogo y corresponsabilidad","3.3.23","Realizar un espacio de colaboración e innovación abierta con grupos de valor","Un (1) listado de asistencia del   espacio de colaboración e innovación abierta con grupos de valor.\nPeriodicidad de la medición: anual ","Gerencia de Estrategia ",null,1,"2026-01-02","2026-12-30",0,0,0,0,1,0,null,null,null,{"$error":"#DIV/0!"},null,"Acciones aún no iniciadas"]
[{"$f":"+_xlfn.IFS(B103='Número de actividades'!$C$3,'Número de actividades'!$B$3,B103='Número de actividades'!$C$4,'Número de actividades'!$B$3,B103='Número de actividades'!$C$5,'Número de actividades'!$B$3,B103='Número de actividades'!$C$6,'Número de actividades'!$B$3,B103='Número de actividades'!$C$7,'Número de actividades'!$B$7,B103='Número de actividades'!$C$8,'Número de actividades'!$B$7,B103='Número de actividades'!$C$9,'Número de actividades'!$B$9,B103='Número de actividades'!$C$10,'Número de actividades'!$B$9,B103='Número de actividades'!$C$11,'Número de actividades'!$B$9,B103='Número de actividades'!$B$12,'Número de actividades'!$B$12)","v":"3. Modelo de Estado Abierto"},"3.3. Dialogo y corresponsabilidad","3.3.24","Realizar una evaluación ciudadana de la gestión institucional","Una (1) evaluación de la ciudadanía sobre la gestión institucional","Gerencia de Estrategia ","Se solicita eliminar la actividad, considerando que el equipo de participación ciudadana no lleva a cabo el componente de evaluación de programas y proyecto de la entidad. ",null,null,null,0,0,0,0,null,0,null,null,null,{"$error":"#DIV/0!"},null,"Acciones aún no iniciadas"]
[{"$f":"+_xlfn.IFS(B104='Número de actividades'!$C$3,'Número de actividades'!$B$3,B104='Número de actividades'!$C$4,'Número de actividades'!$B$3,B104='Número de actividades'!$C$5,'Número de actividades'!$B$3,B104='Número de actividades'!$C$6,'Número de actividades'!$B$3,B104='Número de actividades'!$C$7,'Número de actividades'!$B$7,B104='Número de actividades'!$C$8,'Número de actividades'!$B$7,B104='Número de actividades'!$C$9,'Número de actividades'!$B$9,B104='Número de actividades'!$C$10,'Número de actividades'!$B$9,B104='Número de actividades'!$C$11,'Número de actividades'!$B$9,B104='Número de actividades'!$B$12,'Número de actividades'!$B$12)","v":"3. Modelo de Estado Abierto"},"3.3. Dialogo y corresponsabilidad","3.3.25","Realizar espacios de participación y rendición de cuentas con enfoque diferencial-poblacional y de género","Cuatro actas (4) espacios de participación y rendición de cuentas con población diferencial-poblacional y de género","Gerencia de Estrategia ","Se ajusta la redacción de la actividad para dejar mayor claridad de la misma. \nRedacción ajustada:  Realizar espacios de participación y rendición de cuentas con enfoque diferencial-poblacional y de género",4,"2026-02-02","2026-12-30",0,0,2,0,2,0,null,null,null,{"$error":"#DIV/0!"},null,"Acciones aún no iniciadas"]
[{"$f":"+_xlfn.IFS(B105='Número de actividades'!$C$3,'Número de actividades'!$B$3,B105='Número de actividades'!$C$4,'Número de actividades'!$B$3,B105='Número de actividades'!$C$5,'Número de actividades'!$B$3,B105='Número de actividades'!$C$6,'Número de actividades'!$B$3,B105='Número de actividades'!$C$7,'Número de actividades'!$B$7,B105='Número de actividades'!$C$8,'Número de actividades'!$B$7,B105='Número de actividades'!$C$9,'Número de actividades'!$B$9,B105='Número de actividades'!$C$10,'Número de actividades'!$B$9,B105='Número de actividades'!$C$11,'Número de actividades'!$B$9,B105='Número de actividades'!$B$12,'Número de actividades'!$B$12)","v":"3. Modelo de Estado Abierto"},"3.3. Dialogo y corresponsabilidad","3.3.26","Realizar una encuesta dirigida a la ciudadanía para identificar los temas de mayor interés que desean sean abordados en la rendición de cuentas","Encuesta de temas","Subgerencia de Planeación",null,1,"2026-05-01","2026-09-01",0,0,0,0,1,0,null,null,null,{"$error":"#DIV/0!"},null,"Acciones aún no iniciadas"]
[{"$f":"+_xlfn.IFS(B106='Número de actividades'!$C$3,'Número de actividades'!$B$3,B106='Número de actividades'!$C$4,'Número de actividades'!$B$3,B106='Número de actividades'!$C$5,'Número de actividades'!$B$3,B106='Número de actividades'!$C$6,'Número de actividades'!$B$3,B106='Número de actividades'!$C$7,'Número de actividades'!$B$7,B106='Número de actividades'!$C$8,'Número de actividades'!$B$7,B106='Número de actividades'!$C$9,'Número de actividades'!$B$9,B106='Número de actividades'!$C$10,'Número de actividades'!$B$9,B106='Número de actividades'!$C$11,'Número de actividades'!$B$9,B106='Número de actividades'!$B$12,'Número de actividades'!$B$12)","v":"3. Modelo de Estado Abierto"},"3.3. Dialogo y corresponsabilidad","3.3.27","Recopilar las observaciones planteadas por la ciudadanía, durante la audiencia pública y las respuestas dadas a estas","Consolidado de observaciones y respuestas","Subgerencia de Planeación",null,1,"2026-05-01","2026-09-01",0,0,0,0,1,0,null,null,null,{"$error":"#DIV/0!"},null,"Acciones aún no iniciadas"]
[{"$f":"+_xlfn.IFS(B107='Número de actividades'!$C$3,'Número de actividades'!$B$3,B107='Número de actividades'!$C$4,'Número de actividades'!$B$3,B107='Número de actividades'!$C$5,'Número de actividades'!$B$3,B107='Número de actividades'!$C$6,'Número de actividades'!$B$3,B107='Número de actividades'!$C$7,'Número de actividades'!$B$7,B107='Número de actividades'!$C$8,'Número de actividades'!$B$7,B107='Número de actividades'!$C$9,'Número de actividades'!$B$9,B107='Número de actividades'!$C$10,'Número de actividades'!$B$9,B107='Número de actividades'!$C$11,'Número de actividades'!$B$9,B107='Número de actividades'!$B$12,'Número de actividades'!$B$12)","v":"3. Modelo de Estado Abierto"},"3.3. Dialogo y corresponsabilidad","3.3.3","Implementar un seguimiento sobre la recepción de las iniciativas y su alineación con las expectativas de la ciudadanía","Reporte de seguimiento (semestral)","Gerencia de Estrategia /Equipo de Innovación Pública ",null,2,"2026-03-01","2026-12-31",0,0,1,0,1,0,null,null,null,{"$error":"#DIV/0!"},null,"Acciones aún no iniciadas"]
[{"$f":"+_xlfn.IFS(B108='Número de actividades'!$C$3,'Número de actividades'!$B$3,B108='Número de actividades'!$C$4,'Número de actividades'!$B$3,B108='Número de actividades'!$C$5,'Número de actividades'!$B$3,B108='Número de actividades'!$C$6,'Número de actividades'!$B$3,B108='Número de actividades'!$C$7,'Número de actividades'!$B$7,B108='Número de actividades'!$C$8,'Número de actividades'!$B$7,B108='Número de actividades'!$C$9,'Número de actividades'!$B$9,B108='Número de actividades'!$C$10,'Número de actividades'!$B$9,B108='Número de actividades'!$C$11,'Número de actividades'!$B$9,B108='Número de actividades'!$B$12,'Número de actividades'!$B$12)","v":"3. Modelo de Estado Abierto"},"3.3. Dialogo y corresponsabilidad","3.3.4","Desarrollar grupos focales para comprender problemas y necesidades ciudadanas.","Identificar los problemas y necesidades de los ciudadanos mediante la realización de grupos focales","Gerencia de Estrategia /Equipo de Innovación Pública ",null,2,"2026-03-01","2026-12-31",0,0,1,0,1,0,null,null,null,{"$error":"#DIV/0!"},null,"Acciones aún no iniciadas"]
[{"$f":"+_xlfn.IFS(B109='Número de actividades'!$C$3,'Número de actividades'!$B$3,B109='Número de actividades'!$C$4,'Número de actividades'!$B$3,B109='Número de actividades'!$C$5,'Número de actividades'!$B$3,B109='Número de actividades'!$C$6,'Número de actividades'!$B$3,B109='Número de actividades'!$C$7,'Número de actividades'!$B$7,B109='Número de actividades'!$C$8,'Número de actividades'!$B$7,B109='Número de actividades'!$C$9,'Número de actividades'!$B$9,B109='Número de actividades'!$C$10,'Número de actividades'!$B$9,B109='Número de actividades'!$C$11,'Número de actividades'!$B$9,B109='Número de actividades'!$B$12,'Número de actividades'!$B$12)","v":"3. Modelo de Estado Abierto"},"3.3. Dialogo y corresponsabilidad","3.3.5","Facilitar espacios de co-creación con la ciudadanía para desarrollar soluciones innovadoras.","Identificar propuestas de la ciudadanía para desarrollar soluciones innovadoras en los espacios de co-creación. "," Gerencia de Estrategia /Equipo de Innovación Pública ",null,2,"2026-03-01","2026-12-31",0,0,1,0,1,0,null,null,null,{"$error":"#DIV/0!"},null,"Acciones aún no iniciadas"]
[{"$f":"+_xlfn.IFS(B110='Número de actividades'!$C$3,'Número de actividades'!$B$3,B110='Número de actividades'!$C$4,'Número de actividades'!$B$3,B110='Número de actividades'!$C$5,'Número de actividades'!$B$3,B110='Número de actividades'!$C$6,'Número de actividades'!$B$3,B110='Número de actividades'!$C$7,'Número de actividades'!$B$7,B110='Número de actividades'!$C$8,'Número de actividades'!$B$7,B110='Número de actividades'!$C$9,'Número de actividades'!$B$9,B110='Número de actividades'!$C$10,'Número de actividades'!$B$9,B110='Número de actividades'!$C$11,'Número de actividades'!$B$9,B110='Número de actividades'!$B$12,'Número de actividades'!$B$12)","v":"3. Modelo de Estado Abierto"},"3.3. Dialogo y corresponsabilidad","3.3.6","Realizar campañas de difusión a través de medios de comunicación y redes sociales para garantizar la participación ciudadana en eventos y talleres de innovación pública, promoviendo su involucramiento en los procesos.","2 campañas","Equipo de Innovación Pública y Participación ciudadana.",null,2,"2026-03-01","2026-12-31",0,0,1,0,1,0,null,null,null,{"$error":"#DIV/0!"},null,"Acciones aún no iniciadas"]
[{"$f":"+_xlfn.IFS(B111='Número de actividades'!$C$3,'Número de actividades'!$B$3,B111='Número de actividades'!$C$4,'Número de actividades'!$B$3,B111='Número de actividades'!$C$5,'Número de actividades'!$B$3,B111='Número de actividades'!$C$6,'Número de actividades'!$B$3,B111='Número de actividades'!$C$7,'Número de actividades'!$B$7,B111='Número de actividades'!$C$8,'Número de actividades'!$B$7,B111='Número de actividades'!$C$9,'Número de actividades'!$B$9,B111='Número de actividades'!$C$10,'Número de actividades'!$B$9,B111='Número de actividades'!$C$11,'Número de actividades'!$B$9,B111='Número de actividades'!$B$12,'Número de actividades'!$B$12)","v":"3. Modelo de Estado Abierto"},"3.3. Dialogo y corresponsabilidad","3.3.7","Realizar la medición de apropiación Política de Riesgos y la metodología adaptada por la Agencia de acuerdo con los cambios realizados por el DAFP en la versión 7","Documento de Análisis de resultados de medición de apropiación","Subgerencia de Planeación ","Realizar la medición de apropiación Política de Riesgos y la metodología adaptada por la Agencia de acuerdo con los cambios realizados por el DAFP en la versión 7",1,"2026-04-30","2026-08-31",0,0,1,0,0,0,null,null,null,{"$f":"((K111+M111+O111)/(L111+N111+P111))","v":{"$error":"#DIV/0!"}},null,"Acciones aún no iniciadas"]
[{"$f":"+_xlfn.IFS(B112='Número de actividades'!$C$3,'Número de actividades'!$B$3,B112='Número de actividades'!$C$4,'Número de actividades'!$B$3,B112='Número de actividades'!$C$5,'Número de actividades'!$B$3,B112='Número de actividades'!$C$6,'Número de actividades'!$B$3,B112='Número de actividades'!$C$7,'Número de actividades'!$B$7,B112='Número de actividades'!$C$8,'Número de actividades'!$B$7,B112='Número de actividades'!$C$9,'Número de actividades'!$B$9,B112='Número de actividades'!$C$10,'Número de actividades'!$B$9,B112='Número de actividades'!$C$11,'Número de actividades'!$B$9,B112='Número de actividades'!$B$12,'Número de actividades'!$B$12)","v":"3. Modelo de Estado Abierto"},"3.3. Dialogo y corresponsabilidad","3.3.8","Elaborar piezas comunicativas en lenguaje claro e incluyente para fortalecer la comunicación de la entidad con la ciudadanía. A través de los distintos canales de comunicación con que cuenta la Agencia, para conocimientos interno y externo (correo electrónico, página web, boletín interno y redes sociales).","Piezas comunicativas en lenguaje claro e incluyente mínimo 3 anuales.","Dirección General - Comunicaciones","Se redujo el numero de piezas de 6 a 3 debido a la alta carga de trabajo que se maneja con las convocatorias y fechas de resultados",3,"2026-07-01","2026-12-15",0,0,0,0,3,0,null,null,null,{"$error":"#DIV/0!"},null,"Acciones aún no iniciadas"]
[{"$f":"+_xlfn.IFS(B113='Número de actividades'!$C$3,'Número de actividades'!$B$3,B113='Número de actividades'!$C$4,'Número de actividades'!$B$3,B113='Número de actividades'!$C$5,'Número de actividades'!$B$3,B113='Número de actividades'!$C$6,'Número de actividades'!$B$3,B113='Número de actividades'!$C$7,'Número de actividades'!$B$7,B113='Número de actividades'!$C$8,'Número de actividades'!$B$7,B113='Número de actividades'!$C$9,'Número de actividades'!$B$9,B113='Número de actividades'!$C$10,'Número de actividades'!$B$9,B113='Número de actividades'!$C$11,'Número de actividades'!$B$9,B113='Número de actividades'!$B$12,'Número de actividades'!$B$12)","v":"3. Modelo de Estado Abierto"},"3.3. Dialogo y corresponsabilidad","3.3.9","Identificar las posibilidades de mejora en la interacción a los canales virtuales de divulgación e información como la página web y redes sociales de la Agencia.","Balance Semestral de las métricas digitales y del sitio web","Dirección General - Comunicaciones","Se redujo el numero de balances de 4 a 2 debido a la alta carga de trabajo que se maneja con las convocatorias y fechas de resultados",2,"2026-06-01","2026-12-15",0,0,1,0,1,0,null,null,null,{"$error":"#DIV/0!"},null,"Acciones aún no iniciadas"]
[{"$f":"+_xlfn.IFS(B114='Número de actividades'!$C$3,'Número de actividades'!$B$3,B114='Número de actividades'!$C$4,'Número de actividades'!$B$3,B114='Número de actividades'!$C$5,'Número de actividades'!$B$3,B114='Número de actividades'!$C$6,'Número de actividades'!$B$3,B114='Número de actividades'!$C$7,'Número de actividades'!$B$7,B114='Número de actividades'!$C$8,'Número de actividades'!$B$7,B114='Número de actividades'!$C$9,'Número de actividades'!$B$9,B114='Número de actividades'!$C$10,'Número de actividades'!$B$9,B114='Número de actividades'!$C$11,'Número de actividades'!$B$9,B114='Número de actividades'!$B$12,'Número de actividades'!$B$12)","v":"3. Modelo de Estado Abierto"},"3.2. Integridad pública y cultura de la legalidad","3.2.10","Fomentar la capacitación en el aplicativo EVA en los contratistas y funcionarios ","Certificados remitidos con el pago del tercer mes de cada contratista o nuevo funcionario. Listado por parte del supervisor de los contratistas ","Subgerencia de Gestión Administrativa - Contractual - Capacitación y Supervisores y jefes de áreas","El ajuste se debió a que se quiere fortalecer la cultura de la integridad y apropiación del código capacitando a todos los servidores, usando las herramientas propuestas por el DAFP",3,"2026-01-02","2026-12-31",1,0,1,0,1,0,null,null,null,{"$error":"#DIV/0!"}]
[{"$f":"+_xlfn.IFS(B115='Número de actividades'!$C$3,'Número de actividades'!$B$3,B115='Número de actividades'!$C$4,'Número de actividades'!$B$3,B115='Número de actividades'!$C$5,'Número de actividades'!$B$3,B115='Número de actividades'!$C$6,'Número de actividades'!$B$3,B115='Número de actividades'!$C$7,'Número de actividades'!$B$7,B115='Número de actividades'!$C$8,'Número de actividades'!$B$7,B115='Número de actividades'!$C$9,'Número de actividades'!$B$9,B115='Número de actividades'!$C$10,'Número de actividades'!$B$9,B115='Número de actividades'!$C$11,'Número de actividades'!$B$9,B115='Número de actividades'!$B$12,'Número de actividades'!$B$12)","v":{"$error":"#N/A"}},null,null,null,null,null,null,null,null,null,null,0,null,0,null,0,null,null,null,{"$error":"#DIV/0!"}]
[{"$f":"+_xlfn.IFS(B116='Número de actividades'!$C$3,'Número de actividades'!$B$3,B116='Número de actividades'!$C$4,'Número de actividades'!$B$3,B116='Número de actividades'!$C$5,'Número de actividades'!$B$3,B116='Número de actividades'!$C$6,'Número de actividades'!$B$3,B116='Número de actividades'!$C$7,'Número de actividades'!$B$7,B116='Número de actividades'!$C$8,'Número de actividades'!$B$7,B116='Número de actividades'!$C$9,'Número de actividades'!$B$9,B116='Número de actividades'!$C$10,'Número de actividades'!$B$9,B116='Número de actividades'!$C$11,'Número de actividades'!$B$9,B116='Número de actividades'!$B$12,'Número de actividades'!$B$12)","v":{"$error":"#N/A"}},null,null,null,null,null,null,null,null,null,null,0,null,0,null,0,null,null,null,{"$error":"#DIV/0!"}]
[{"$f":"+_xlfn.IFS(B117='Número de actividades'!$C$3,'Número de actividades'!$B$3,B117='Número de actividades'!$C$4,'Número de actividades'!$B$3,B117='Número de actividades'!$C$5,'Número de actividades'!$B$3,B117='Número de actividades'!$C$6,'Número de actividades'!$B$3,B117='Número de actividades'!$C$7,'Número de actividades'!$B$7,B117='Número de actividades'!$C$8,'Número de actividades'!$B$7,B117='Número de actividades'!$C$9,'Número de actividades'!$B$9,B117='Número de actividades'!$C$10,'Número de actividades'!$B$9,B117='Número de actividades'!$C$11,'Número de actividades'!$B$9,B117='Número de actividades'!$B$12,'Número de actividades'!$B$12)","v":{"$error":"#N/A"}},null,null,null,null,null,null,null,null,null,null,0,null,0,null,0,null,null,null,{"$error":"#DIV/0!"}]
[{"$f":"+_xlfn.IFS(B118='Número de actividades'!$C$3,'Número de actividades'!$B$3,B118='Número de actividades'!$C$4,'Número de actividades'!$B$3,B118='Número de actividades'!$C$5,'Número de actividades'!$B$3,B118='Número de actividades'!$C$6,'Número de actividades'!$B$3,B118='Número de actividades'!$C$7,'Número de actividades'!$B$7,B118='Número de actividades'!$C$8,'Número de actividades'!$B$7,B118='Número de actividades'!$C$9,'Número de actividades'!$B$9,B118='Número de actividades'!$C$10,'Número de actividades'!$B$9,B118='Número de actividades'!$C$11,'Número de actividades'!$B$9,B118='Número de actividades'!$B$12,'Número de actividades'!$B$12)","v":{"$error":"#N/A"}},null,null,null,null,null,null,null,null,null,null,0,null,0,null,0,null,null,null,{"$error":"#DIV/0!"}]
[{"$f":"+_xlfn.IFS(B119='Número de actividades'!$C$3,'Número de actividades'!$B$3,B119='Número de actividades'!$C$4,'Número de actividades'!$B$3,B119='Número de actividades'!$C$5,'Número de actividades'!$B$3,B119='Número de actividades'!$C$6,'Número de actividades'!$B$3,B119='Número de actividades'!$C$7,'Número de actividades'!$B$7,B119='Número de actividades'!$C$8,'Número de actividades'!$B$7,B119='Número de actividades'!$C$9,'Número de actividades'!$B$9,B119='Número de actividades'!$C$10,'Número de actividades'!$B$9,B119='Número de actividades'!$C$11,'Número de actividades'!$B$9,B119='Número de actividades'!$B$12,'Número de actividades'!$B$12)","v":{"$error":"#N/A"}},null,null,null,null,null,null,null,null,null,null,0,null,0,null,0,null,null,null,{"$error":"#DIV/0!"}]
[{"$f":"+_xlfn.IFS(B120='Número de actividades'!$C$3,'Número de actividades'!$B$3,B120='Número de actividades'!$C$4,'Número de actividades'!$B$3,B120='Número de actividades'!$C$5,'Número de actividades'!$B$3,B120='Número de actividades'!$C$6,'Número de actividades'!$B$3,B120='Número de actividades'!$C$7,'Número de actividades'!$B$7,B120='Número de actividades'!$C$8,'Número de actividades'!$B$7,B120='Número de actividades'!$C$9,'Número de actividades'!$B$9,B120='Número de actividades'!$C$10,'Número de actividades'!$B$9,B120='Número de actividades'!$C$11,'Número de actividades'!$B$9,B120='Número de actividades'!$B$12,'Número de actividades'!$B$12)","v":{"$error":"#N/A"}},null,null,null,null,null,null,null,null,null,null,0,null,0,null,0,null,null,null,{"$error":"#DIV/0!"}]
[{"$f":"+_xlfn.IFS(B121='Número de actividades'!$C$3,'Número de actividades'!$B$3,B121='Número de actividades'!$C$4,'Número de actividades'!$B$3,B121='Número de actividades'!$C$5,'Número de actividades'!$B$3,B121='Número de actividades'!$C$6,'Número de actividades'!$B$3,B121='Número de actividades'!$C$7,'Número de actividades'!$B$7,B121='Número de actividades'!$C$8,'Número de actividades'!$B$7,B121='Número de actividades'!$C$9,'Número de actividades'!$B$9,B121='Número de actividades'!$C$10,'Número de actividades'!$B$9,B121='Número de actividades'!$C$11,'Número de actividades'!$B$9,B121='Número de actividades'!$B$12,'Número de actividades'!$B$12)","v":{"$error":"#N/A"}},null,null,null,null,null,null,null,null,null,null,0,null,0,null,0,null,null,null,{"$error":"#DIV/0!"}]
[{"$f":"+_xlfn.IFS(B122='Número de actividades'!$C$3,'Número de actividades'!$B$3,B122='Número de actividades'!$C$4,'Número de actividades'!$B$3,B122='Número de actividades'!$C$5,'Número de actividades'!$B$3,B122='Número de actividades'!$C$6,'Número de actividades'!$B$3,B122='Número de actividades'!$C$7,'Número de actividades'!$B$7,B122='Número de actividades'!$C$8,'Número de actividades'!$B$7,B122='Número de actividades'!$C$9,'Número de actividades'!$B$9,B122='Número de actividades'!$C$10,'Número de actividades'!$B$9,B122='Número de actividades'!$C$11,'Número de actividades'!$B$9,B122='Número de actividades'!$B$12,'Número de actividades'!$B$12)","v":{"$error":"#N/A"}},null,null,null,null,null,null,null,null,null,null,0,null,0,null,0,null,null,null,{"$error":"#DIV/0!"}]
[{"$f":"+_xlfn.IFS(B123='Número de actividades'!$C$3,'Número de actividades'!$B$3,B123='Número de actividades'!$C$4,'Número de actividades'!$B$3,B123='Número de actividades'!$C$5,'Número de actividades'!$B$3,B123='Número de actividades'!$C$6,'Número de actividades'!$B$3,B123='Número de actividades'!$C$7,'Número de actividades'!$B$7,B123='Número de actividades'!$C$8,'Número de actividades'!$B$7,B123='Número de actividades'!$C$9,'Número de actividades'!$B$9,B123='Número de actividades'!$C$10,'Número de actividades'!$B$9,B123='Número de actividades'!$C$11,'Número de actividades'!$B$9,B123='Número de actividades'!$B$12,'Número de actividades'!$B$12)","v":{"$error":"#N/A"}},null,null,null,null,null,null,null,null,null,null,0,null,0,null,0,null,null,null,{"$error":"#DIV/0!"}]
[{"$f":"+_xlfn.IFS(B124='Número de actividades'!$C$3,'Número de actividades'!$B$3,B124='Número de actividades'!$C$4,'Número de actividades'!$B$3,B124='Número de actividades'!$C$5,'Número de actividades'!$B$3,B124='Número de actividades'!$C$6,'Número de actividades'!$B$3,B124='Número de actividades'!$C$7,'Número de actividades'!$B$7,B124='Número de actividades'!$C$8,'Número de actividades'!$B$7,B124='Número de actividades'!$C$9,'Número de actividades'!$B$9,B124='Número de actividades'!$C$10,'Número de actividades'!$B$9,B124='Número de actividades'!$C$11,'Número de actividades'!$B$9,B124='Número de actividades'!$B$12,'Número de actividades'!$B$12)","v":{"$error":"#N/A"}},null,null,null,null,null,null,null,null,null,null,0,null,0,null,0,null,null,null,{"$error":"#DIV/0!"}]
[{"$f":"+_xlfn.IFS(B125='Número de actividades'!$C$3,'Número de actividades'!$B$3,B125='Número de actividades'!$C$4,'Número de actividades'!$B$3,B125='Número de actividades'!$C$5,'Número de actividades'!$B$3,B125='Número de actividades'!$C$6,'Número de actividades'!$B$3,B125='Número de actividades'!$C$7,'Número de actividades'!$B$7,B125='Número de actividades'!$C$8,'Número de actividades'!$B$7,B125='Número de actividades'!$C$9,'Número de actividades'!$B$9,B125='Número de actividades'!$C$10,'Número de actividades'!$B$9,B125='Número de actividades'!$C$11,'Número de actividades'!$B$9,B125='Número de actividades'!$B$12,'Número de actividades'!$B$12)","v":{"$error":"#N/A"}},null,null,null,null,null,null,null,null,null,null,0,null,0,null,0,null,null,null,{"$error":"#DIV/0!"}]
[{"$f":"+_xlfn.IFS(B126='Número de actividades'!$C$3,'Número de actividades'!$B$3,B126='Número de actividades'!$C$4,'Número de actividades'!$B$3,B126='Número de actividades'!$C$5,'Número de actividades'!$B$3,B126='Número de actividades'!$C$6,'Número de actividades'!$B$3,B126='Número de actividades'!$C$7,'Número de actividades'!$B$7,B126='Número de actividades'!$C$8,'Número de actividades'!$B$7,B126='Número de actividades'!$C$9,'Número de actividades'!$B$9,B126='Número de actividades'!$C$10,'Número de actividades'!$B$9,B126='Número de actividades'!$C$11,'Número de actividades'!$B$9,B126='Número de actividades'!$B$12,'Número de actividades'!$B$12)","v":{"$error":"#N/A"}},null,null,null,null,null,null,null,null,null,null,0,null,0,null,0,null,null,null,{"$error":"#DIV/0!"}]
[{"$f":"+_xlfn.IFS(B127='Número de actividades'!$C$3,'Número de actividades'!$B$3,B127='Número de actividades'!$C$4,'Número de actividades'!$B$3,B127='Número de actividades'!$C$5,'Número de actividades'!$B$3,B127='Número de actividades'!$C$6,'Número de actividades'!$B$3,B127='Número de actividades'!$C$7,'Número de actividades'!$B$7,B127='Número de actividades'!$C$8,'Número de actividades'!$B$7,B127='Número de actividades'!$C$9,'Número de actividades'!$B$9,B127='Número de actividades'!$C$10,'Número de actividades'!$B$9,B127='Número de actividades'!$C$11,'Número de actividades'!$B$9,B127='Número de actividades'!$B$12,'Número de actividades'!$B$12)","v":{"$error":"#N/A"}},null,null,null,null,null,null,null,null,null,null,0,null,0,null,0,null,null,null,{"$error":"#DIV/0!"}]
[{"$f":"+_xlfn.IFS(B128='Número de actividades'!$C$3,'Número de actividades'!$B$3,B128='Número de actividades'!$C$4,'Número de actividades'!$B$3,B128='Número de actividades'!$C$5,'Número de actividades'!$B$3,B128='Número de actividades'!$C$6,'Número de actividades'!$B$3,B128='Número de actividades'!$C$7,'Número de actividades'!$B$7,B128='Número de actividades'!$C$8,'Número de actividades'!$B$7,B128='Número de actividades'!$C$9,'Número de actividades'!$B$9,B128='Número de actividades'!$C$10,'Número de actividades'!$B$9,B128='Número de actividades'!$C$11,'Número de actividades'!$B$9,B128='Número de actividades'!$B$12,'Número de actividades'!$B$12)","v":{"$error":"#N/A"}},null,null,null,null,null,null,null,null,null,null,0,null,0,null,0,null,null,null,{"$error":"#DIV/0!"}]
[{"$f":"+_xlfn.IFS(B129='Número de actividades'!$C$3,'Número de actividades'!$B$3,B129='Número de actividades'!$C$4,'Número de actividades'!$B$3,B129='Número de actividades'!$C$5,'Número de actividades'!$B$3,B129='Número de actividades'!$C$6,'Número de actividades'!$B$3,B129='Número de actividades'!$C$7,'Número de actividades'!$B$7,B129='Número de actividades'!$C$8,'Número de actividades'!$B$7,B129='Número de actividades'!$C$9,'Número de actividades'!$B$9,B129='Número de actividades'!$C$10,'Número de actividades'!$B$9,B129='Número de actividades'!$C$11,'Número de actividades'!$B$9,B129='Número de actividades'!$B$12,'Número de actividades'!$B$12)","v":{"$error":"#N/A"}},null,null,null,null,null,null,null,null,null,null,0,null,0,null,0,null,null,null,{"$error":"#DIV/0!"}]
[{"$f":"+_xlfn.IFS(B130='Número de actividades'!$C$3,'Número de actividades'!$B$3,B130='Número de actividades'!$C$4,'Número de actividades'!$B$3,B130='Número de actividades'!$C$5,'Número de actividades'!$B$3,B130='Número de actividades'!$C$6,'Número de actividades'!$B$3,B130='Número de actividades'!$C$7,'Número de actividades'!$B$7,B130='Número de actividades'!$C$8,'Número de actividades'!$B$7,B130='Número de actividades'!$C$9,'Número de actividades'!$B$9,B130='Número de actividades'!$C$10,'Número de actividades'!$B$9,B130='Número de actividades'!$C$11,'Número de actividades'!$B$9,B130='Número de actividades'!$B$12,'Número de actividades'!$B$12)","v":{"$error":"#N/A"}},null,null,null,null,null,null,null,null,null,null,0,null,0,null,0,null,null,null,{"$error":"#DIV/0!"}]
[{"$f":"+_xlfn.IFS(B131='Número de actividades'!$C$3,'Número de actividades'!$B$3,B131='Número de actividades'!$C$4,'Número de actividades'!$B$3,B131='Número de actividades'!$C$5,'Número de actividades'!$B$3,B131='Número de actividades'!$C$6,'Número de actividades'!$B$3,B131='Número de actividades'!$C$7,'Número de actividades'!$B$7,B131='Número de actividades'!$C$8,'Número de actividades'!$B$7,B131='Número de actividades'!$C$9,'Número de actividades'!$B$9,B131='Número de actividades'!$C$10,'Número de actividades'!$B$9,B131='Número de actividades'!$C$11,'Número de actividades'!$B$9,B131='Número de actividades'!$B$12,'Número de actividades'!$B$12)","v":{"$error":"#N/A"}},null,null,null,null,null,null,null,null,null,null,0,null,0,null,0,null,null,null,{"$error":"#DIV/0!"}]
[{"$f":"+_xlfn.IFS(B132='Número de actividades'!$C$3,'Número de actividades'!$B$3,B132='Número de actividades'!$C$4,'Número de actividades'!$B$3,B132='Número de actividades'!$C$5,'Número de actividades'!$B$3,B132='Número de actividades'!$C$6,'Número de actividades'!$B$3,B132='Número de actividades'!$C$7,'Número de actividades'!$B$7,B132='Número de actividades'!$C$8,'Número de actividades'!$B$7,B132='Número de actividades'!$C$9,'Número de actividades'!$B$9,B132='Número de actividades'!$C$10,'Número de actividades'!$B$9,B132='Número de actividades'!$C$11,'Número de actividades'!$B$9,B132='Número de actividades'!$B$12,'Número de actividades'!$B$12)","v":{"$error":"#N/A"}},null,null,null,null,null,null,null,null,null,null,0,null,0,null,0,null,null,null,{"$error":"#DIV/0!"}]
[{"$f":"+_xlfn.IFS(B133='Número de actividades'!$C$3,'Número de actividades'!$B$3,B133='Número de actividades'!$C$4,'Número de actividades'!$B$3,B133='Número de actividades'!$C$5,'Número de actividades'!$B$3,B133='Número de actividades'!$C$6,'Número de actividades'!$B$3,B133='Número de actividades'!$C$7,'Número de actividades'!$B$7,B133='Número de actividades'!$C$8,'Número de actividades'!$B$7,B133='Número de actividades'!$C$9,'Número de actividades'!$B$9,B133='Número de actividades'!$C$10,'Número de actividades'!$B$9,B133='Número de actividades'!$C$11,'Número de actividades'!$B$9,B133='Número de actividades'!$B$12,'Número de actividades'!$B$12)","v":{"$error":"#N/A"}},null,null,null,null,null,null,null,null,null,null,0,null,0,null,0,null,null,null,{"$error":"#DIV/0!"}]
[{"$f":"+_xlfn.IFS(B134='Número de actividades'!$C$3,'Número de actividades'!$B$3,B134='Número de actividades'!$C$4,'Número de actividades'!$B$3,B134='Número de actividades'!$C$5,'Número de actividades'!$B$3,B134='Número de actividades'!$C$6,'Número de actividades'!$B$3,B134='Número de actividades'!$C$7,'Número de actividades'!$B$7,B134='Número de actividades'!$C$8,'Número de actividades'!$B$7,B134='Número de actividades'!$C$9,'Número de actividades'!$B$9,B134='Número de actividades'!$C$10,'Número de actividades'!$B$9,B134='Número de actividades'!$C$11,'Número de actividades'!$B$9,B134='Número de actividades'!$B$12,'Número de actividades'!$B$12)","v":{"$error":"#N/A"}},null,null,null,null,null,null,null,null,null,null,0,null,0,null,0,null,null,null,{"$error":"#DIV/0!"}]
[{"$f":"+_xlfn.IFS(B135='Número de actividades'!$C$3,'Número de actividades'!$B$3,B135='Número de actividades'!$C$4,'Número de actividades'!$B$3,B135='Número de actividades'!$C$5,'Número de actividades'!$B$3,B135='Número de actividades'!$C$6,'Número de actividades'!$B$3,B135='Número de actividades'!$C$7,'Número de actividades'!$B$7,B135='Número de actividades'!$C$8,'Número de actividades'!$B$7,B135='Número de actividades'!$C$9,'Número de actividades'!$B$9,B135='Número de actividades'!$C$10,'Número de actividades'!$B$9,B135='Número de actividades'!$C$11,'Número de actividades'!$B$9,B135='Número de actividades'!$B$12,'Número de actividades'!$B$12)","v":{"$error":"#N/A"}},null,null,null,null,null,null,null,null,null,null,0,null,0,null,0,null,null,null,{"$error":"#DIV/0!"}]
[{"$f":"+_xlfn.IFS(B136='Número de actividades'!$C$3,'Número de actividades'!$B$3,B136='Número de actividades'!$C$4,'Número de actividades'!$B$3,B136='Número de actividades'!$C$5,'Número de actividades'!$B$3,B136='Número de actividades'!$C$6,'Número de actividades'!$B$3,B136='Número de actividades'!$C$7,'Número de actividades'!$B$7,B136='Número de actividades'!$C$8,'Número de actividades'!$B$7,B136='Número de actividades'!$C$9,'Número de actividades'!$B$9,B136='Número de actividades'!$C$10,'Número de actividades'!$B$9,B136='Número de actividades'!$C$11,'Número de actividades'!$B$9,B136='Número de actividades'!$B$12,'Número de actividades'!$B$12)","v":{"$error":"#N/A"}},null,null,null,null,null,null,null,null,null,null,0,null,0,null,0,null,null,null,{"$error":"#DIV/0!"}]
[{"$f":"+_xlfn.IFS(B137='Número de actividades'!$C$3,'Número de actividades'!$B$3,B137='Número de actividades'!$C$4,'Número de actividades'!$B$3,B137='Número de actividades'!$C$5,'Número de actividades'!$B$3,B137='Número de actividades'!$C$6,'Número de actividades'!$B$3,B137='Número de actividades'!$C$7,'Número de actividades'!$B$7,B137='Número de actividades'!$C$8,'Número de actividades'!$B$7,B137='Número de actividades'!$C$9,'Número de actividades'!$B$9,B137='Número de actividades'!$C$10,'Número de actividades'!$B$9,B137='Número de actividades'!$C$11,'Número de actividades'!$B$9,B137='Número de actividades'!$B$12,'Número de actividades'!$B$12)","v":{"$error":"#N/A"}},null,null,null,null,null,null,null,null,null,null,0,null,0,null,0,null,null,null,{"$error":"#DIV/0!"}]
[{"$f":"+_xlfn.IFS(B138='Número de actividades'!$C$3,'Número de actividades'!$B$3,B138='Número de actividades'!$C$4,'Número de actividades'!$B$3,B138='Número de actividades'!$C$5,'Número de actividades'!$B$3,B138='Número de actividades'!$C$6,'Número de actividades'!$B$3,B138='Número de actividades'!$C$7,'Número de actividades'!$B$7,B138='Número de actividades'!$C$8,'Número de actividades'!$B$7,B138='Número de actividades'!$C$9,'Número de actividades'!$B$9,B138='Número de actividades'!$C$10,'Número de actividades'!$B$9,B138='Número de actividades'!$C$11,'Número de actividades'!$B$9,B138='Número de actividades'!$B$12,'Número de actividades'!$B$12)","v":{"$error":"#N/A"}},null,null,null,null,null,null,null,null,null,null,0,null,0,null,0,null,null,null,{"$error":"#DIV/0!"}]
[{"$f":"+_xlfn.IFS(B139='Número de actividades'!$C$3,'Número de actividades'!$B$3,B139='Número de actividades'!$C$4,'Número de actividades'!$B$3,B139='Número de actividades'!$C$5,'Número de actividades'!$B$3,B139='Número de actividades'!$C$6,'Número de actividades'!$B$3,B139='Número de actividades'!$C$7,'Número de actividades'!$B$7,B139='Número de actividades'!$C$8,'Número de actividades'!$B$7,B139='Número de actividades'!$C$9,'Número de actividades'!$B$9,B139='Número de actividades'!$C$10,'Número de actividades'!$B$9,B139='Número de actividades'!$C$11,'Número de actividades'!$B$9,B139='Número de actividades'!$B$12,'Número de actividades'!$B$12)","v":{"$error":"#N/A"}},null,null,null,null,null,null,null,null,null,null,0,null,0,null,0,null,null,null,{"$error":"#DIV/0!"}]
[{"$f":"+_xlfn.IFS(B140='Número de actividades'!$C$3,'Número de actividades'!$B$3,B140='Número de actividades'!$C$4,'Número de actividades'!$B$3,B140='Número de actividades'!$C$5,'Número de actividades'!$B$3,B140='Número de actividades'!$C$6,'Número de actividades'!$B$3,B140='Número de actividades'!$C$7,'Número de actividades'!$B$7,B140='Número de actividades'!$C$8,'Número de actividades'!$B$7,B140='Número de actividades'!$C$9,'Número de actividades'!$B$9,B140='Número de actividades'!$C$10,'Número de actividades'!$B$9,B140='Número de actividades'!$C$11,'Número de actividades'!$B$9,B140='Número de actividades'!$B$12,'Número de actividades'!$B$12)","v":{"$error":"#N/A"}},null,null,null,null,null,null,null,null,null,null,0,null,0,null,0,null,null,null,{"$error":"#DIV/0!"}]
[{"$f":"+_xlfn.IFS(B141='Número de actividades'!$C$3,'Número de actividades'!$B$3,B141='Número de actividades'!$C$4,'Número de actividades'!$B$3,B141='Número de actividades'!$C$5,'Número de actividades'!$B$3,B141='Número de actividades'!$C$6,'Número de actividades'!$B$3,B141='Número de actividades'!$C$7,'Número de actividades'!$B$7,B141='Número de actividades'!$C$8,'Número de actividades'!$B$7,B141='Número de actividades'!$C$9,'Número de actividades'!$B$9,B141='Número de actividades'!$C$10,'Número de actividades'!$B$9,B141='Número de actividades'!$C$11,'Número de actividades'!$B$9,B141='Número de actividades'!$B$12,'Número de actividades'!$B$12)","v":{"$error":"#N/A"}},null,null,null,null,null,null,null,null,null,null,0,null,0,null,0,null,null,null,{"$error":"#DIV/0!"}]
[{"$f":"+_xlfn.IFS(B142='Número de actividades'!$C$3,'Número de actividades'!$B$3,B142='Número de actividades'!$C$4,'Número de actividades'!$B$3,B142='Número de actividades'!$C$5,'Número de actividades'!$B$3,B142='Número de actividades'!$C$6,'Número de actividades'!$B$3,B142='Número de actividades'!$C$7,'Número de actividades'!$B$7,B142='Número de actividades'!$C$8,'Número de actividades'!$B$7,B142='Número de actividades'!$C$9,'Número de actividades'!$B$9,B142='Número de actividades'!$C$10,'Número de actividades'!$B$9,B142='Número de actividades'!$C$11,'Número de actividades'!$B$9,B142='Número de actividades'!$B$12,'Número de actividades'!$B$12)","v":{"$error":"#N/A"}},null,null,null,null,null,null,null,null,null,null,0,null,0,null,0,null,null,null,{"$error":"#DIV/0!"}]
[{"$f":"+_xlfn.IFS(B143='Número de actividades'!$C$3,'Número de actividades'!$B$3,B143='Número de actividades'!$C$4,'Número de actividades'!$B$3,B143='Número de actividades'!$C$5,'Número de actividades'!$B$3,B143='Número de actividades'!$C$6,'Número de actividades'!$B$3,B143='Número de actividades'!$C$7,'Número de actividades'!$B$7,B143='Número de actividades'!$C$8,'Número de actividades'!$B$7,B143='Número de actividades'!$C$9,'Número de actividades'!$B$9,B143='Número de actividades'!$C$10,'Número de actividades'!$B$9,B143='Número de actividades'!$C$11,'Número de actividades'!$B$9,B143='Número de actividades'!$B$12,'Número de actividades'!$B$12)","v":{"$error":"#N/A"}},null,null,null,null,null,null,null,null,null,null,0,null,0,null,0,null,null,null,{"$error":"#DIV/0!"}]
[{"$f":"+_xlfn.IFS(B144='Número de actividades'!$C$3,'Número de actividades'!$B$3,B144='Número de actividades'!$C$4,'Número de actividades'!$B$3,B144='Número de actividades'!$C$5,'Número de actividades'!$B$3,B144='Número de actividades'!$C$6,'Número de actividades'!$B$3,B144='Número de actividades'!$C$7,'Número de actividades'!$B$7,B144='Número de actividades'!$C$8,'Número de actividades'!$B$7,B144='Número de actividades'!$C$9,'Número de actividades'!$B$9,B144='Número de actividades'!$C$10,'Número de actividades'!$B$9,B144='Número de actividades'!$C$11,'Número de actividades'!$B$9,B144='Número de actividades'!$B$12,'Número de actividades'!$B$12)","v":{"$error":"#N/A"}},null,null,null,null,null,null,null,null,null,null,0,null,0,null,0,null,null,null,{"$error":"#DIV/0!"}]
[{"$f":"+_xlfn.IFS(B145='Número de actividades'!$C$3,'Número de actividades'!$B$3,B145='Número de actividades'!$C$4,'Número de actividades'!$B$3,B145='Número de actividades'!$C$5,'Número de actividades'!$B$3,B145='Número de actividades'!$C$6,'Número de actividades'!$B$3,B145='Número de actividades'!$C$7,'Número de actividades'!$B$7,B145='Número de actividades'!$C$8,'Número de actividades'!$B$7,B145='Número de actividades'!$C$9,'Número de actividades'!$B$9,B145='Número de actividades'!$C$10,'Número de actividades'!$B$9,B145='Número de actividades'!$C$11,'Número de actividades'!$B$9,B145='Número de actividades'!$B$12,'Número de actividades'!$B$12)","v":{"$error":"#N/A"}},null,null,null,null,null,null,null,null,null,null,0,null,0,null,0,null,null,null,{"$error":"#DIV/0!"}]
[{"$f":"+_xlfn.IFS(B146='Número de actividades'!$C$3,'Número de actividades'!$B$3,B146='Número de actividades'!$C$4,'Número de actividades'!$B$3,B146='Número de actividades'!$C$5,'Número de actividades'!$B$3,B146='Número de actividades'!$C$6,'Número de actividades'!$B$3,B146='Número de actividades'!$C$7,'Número de actividades'!$B$7,B146='Número de actividades'!$C$8,'Número de actividades'!$B$7,B146='Número de actividades'!$C$9,'Número de actividades'!$B$9,B146='Número de actividades'!$C$10,'Número de actividades'!$B$9,B146='Número de actividades'!$C$11,'Número de actividades'!$B$9,B146='Número de actividades'!$B$12,'Número de actividades'!$B$12)","v":{"$error":"#N/A"}},null,null,null,null,null,null,null,null,null,null,0,null,0,null,0,null,null,null,{"$error":"#DIV/0!"}]
[{"$f":"+_xlfn.IFS(B147='Número de actividades'!$C$3,'Número de actividades'!$B$3,B147='Número de actividades'!$C$4,'Número de actividades'!$B$3,B147='Número de actividades'!$C$5,'Número de actividades'!$B$3,B147='Número de actividades'!$C$6,'Número de actividades'!$B$3,B147='Número de actividades'!$C$7,'Número de actividades'!$B$7,B147='Número de actividades'!$C$8,'Número de actividades'!$B$7,B147='Número de actividades'!$C$9,'Número de actividades'!$B$9,B147='Número de actividades'!$C$10,'Número de actividades'!$B$9,B147='Número de actividades'!$C$11,'Número de actividades'!$B$9,B147='Número de actividades'!$B$12,'Número de actividades'!$B$12)","v":{"$error":"#N/A"}},null,null,null,null,null,null,null,null,null,null,0,null,0,null,0,null,null,null,{"$f":"((K147+M147+O147)/(L147+N147+P147))","v":{"$error":"#DIV/0!"}}]
[{"$f":"+_xlfn.IFS(B148='Número de actividades'!$C$3,'Número de actividades'!$B$3,B148='Número de actividades'!$C$4,'Número de actividades'!$B$3,B148='Número de actividades'!$C$5,'Número de actividades'!$B$3,B148='Número de actividades'!$C$6,'Número de actividades'!$B$3,B148='Número de actividades'!$C$7,'Número de actividades'!$B$7,B148='Número de actividades'!$C$8,'Número de actividades'!$B$7,B148='Número de actividades'!$C$9,'Número de actividades'!$B$9,B148='Número de actividades'!$C$10,'Número de actividades'!$B$9,B148='Número de actividades'!$C$11,'Número de actividades'!$B$9,B148='Número de actividades'!$B$12,'Número de actividades'!$B$12)","v":{"$error":"#N/A"}},null,null,null,null,null,null,null,null,null,null,0,null,0,null,0,null,null,null,{"$error":"#DIV/0!"}]
[{"$f":"+_xlfn.IFS(B149='Número de actividades'!$C$3,'Número de actividades'!$B$3,B149='Número de actividades'!$C$4,'Número de actividades'!$B$3,B149='Número de actividades'!$C$5,'Número de actividades'!$B$3,B149='Número de actividades'!$C$6,'Número de actividades'!$B$3,B149='Número de actividades'!$C$7,'Número de actividades'!$B$7,B149='Número de actividades'!$C$8,'Número de actividades'!$B$7,B149='Número de actividades'!$C$9,'Número de actividades'!$B$9,B149='Número de actividades'!$C$10,'Número de actividades'!$B$9,B149='Número de actividades'!$C$11,'Número de actividades'!$B$9,B149='Número de actividades'!$B$12,'Número de actividades'!$B$12)","v":{"$error":"#N/A"}},null,null,null,null,null,null,null,null,null,null,0,null,0,null,0,null,null,null,{"$error":"#DIV/0!"}]
[{"$f":"+_xlfn.IFS(B150='Número de actividades'!$C$3,'Número de actividades'!$B$3,B150='Número de actividades'!$C$4,'Número de actividades'!$B$3,B150='Número de actividades'!$C$5,'Número de actividades'!$B$3,B150='Número de actividades'!$C$6,'Número de actividades'!$B$3,B150='Número de actividades'!$C$7,'Número de actividades'!$B$7,B150='Número de actividades'!$C$8,'Número de actividades'!$B$7,B150='Número de actividades'!$C$9,'Número de actividades'!$B$9,B150='Número de actividades'!$C$10,'Número de actividades'!$B$9,B150='Número de actividades'!$C$11,'Número de actividades'!$B$9,B150='Número de actividades'!$B$12,'Número de actividades'!$B$12)","v":{"$error":"#N/A"}},null,null,null,null,null,null,null,null,null,null,0,null,0,null,0,null,null,null,{"$error":"#DIV/0!"}]
[{"$f":"+_xlfn.IFS(B151='Número de actividades'!$C$3,'Número de actividades'!$B$3,B151='Número de actividades'!$C$4,'Número de actividades'!$B$3,B151='Número de actividades'!$C$5,'Número de actividades'!$B$3,B151='Número de actividades'!$C$6,'Número de actividades'!$B$3,B151='Número de actividades'!$C$7,'Número de actividades'!$B$7,B151='Número de actividades'!$C$8,'Número de actividades'!$B$7,B151='Número de actividades'!$C$9,'Número de actividades'!$B$9,B151='Número de actividades'!$C$10,'Número de actividades'!$B$9,B151='Número de actividades'!$C$11,'Número de actividades'!$B$9,B151='Número de actividades'!$B$12,'Número de actividades'!$B$12)","v":{"$error":"#N/A"}},null,null,null,null,null,null,null,null,null,null,0,null,0,null,0,null,null,null,{"$error":"#DIV/0!"}]
[{"$f":"+_xlfn.IFS(B152='Número de actividades'!$C$3,'Número de actividades'!$B$3,B152='Número de actividades'!$C$4,'Número de actividades'!$B$3,B152='Número de actividades'!$C$5,'Número de actividades'!$B$3,B152='Número de actividades'!$C$6,'Número de actividades'!$B$3,B152='Número de actividades'!$C$7,'Número de actividades'!$B$7,B152='Número de actividades'!$C$8,'Número de actividades'!$B$7,B152='Número de actividades'!$C$9,'Número de actividades'!$B$9,B152='Número de actividades'!$C$10,'Número de actividades'!$B$9,B152='Número de actividades'!$C$11,'Número de actividades'!$B$9,B152='Número de actividades'!$B$12,'Número de actividades'!$B$12)","v":{"$error":"#N/A"}},null,null,null,null,null,null,null,null,null,null,0,null,0,null,0,null,null,null,{"$error":"#DIV/0!"}]
[{"$f":"+_xlfn.IFS(B153='Número de actividades'!$C$3,'Número de actividades'!$B$3,B153='Número de actividades'!$C$4,'Número de actividades'!$B$3,B153='Número de actividades'!$C$5,'Número de actividades'!$B$3,B153='Número de actividades'!$C$6,'Número de actividades'!$B$3,B153='Número de actividades'!$C$7,'Número de actividades'!$B$7,B153='Número de actividades'!$C$8,'Número de actividades'!$B$7,B153='Número de actividades'!$C$9,'Número de actividades'!$B$9,B153='Número de actividades'!$C$10,'Número de actividades'!$B$9,B153='Número de actividades'!$C$11,'Número de actividades'!$B$9,B153='Número de actividades'!$B$12,'Número de actividades'!$B$12)","v":{"$error":"#N/A"}},null,null,null,null,null,null,null,null,null,null,0,null,0,null,0,null,null,null,{"$error":"#DIV/0!"}]
[{"$f":"+_xlfn.IFS(B154='Número de actividades'!$C$3,'Número de actividades'!$B$3,B154='Número de actividades'!$C$4,'Número de actividades'!$B$3,B154='Número de actividades'!$C$5,'Número de actividades'!$B$3,B154='Número de actividades'!$C$6,'Número de actividades'!$B$3,B154='Número de actividades'!$C$7,'Número de actividades'!$B$7,B154='Número de actividades'!$C$8,'Número de actividades'!$B$7,B154='Número de actividades'!$C$9,'Número de actividades'!$B$9,B154='Número de actividades'!$C$10,'Número de actividades'!$B$9,B154='Número de actividades'!$C$11,'Número de actividades'!$B$9,B154='Número de actividades'!$B$12,'Número de actividades'!$B$12)","v":{"$error":"#N/A"}},null,null,null,null,null,null,null,null,null,null,0,null,0,null,0,null,null,null,{"$error":"#DIV/0!"}]
[{"$f":"+_xlfn.IFS(B155='Número de actividades'!$C$3,'Número de actividades'!$B$3,B155='Número de actividades'!$C$4,'Número de actividades'!$B$3,B155='Número de actividades'!$C$5,'Número de actividades'!$B$3,B155='Número de actividades'!$C$6,'Número de actividades'!$B$3,B155='Número de actividades'!$C$7,'Número de actividades'!$B$7,B155='Número de actividades'!$C$8,'Número de actividades'!$B$7,B155='Número de actividades'!$C$9,'Número de actividades'!$B$9,B155='Número de actividades'!$C$10,'Número de actividades'!$B$9,B155='Número de actividades'!$C$11,'Número de actividades'!$B$9,B155='Número de actividades'!$B$12,'Número de actividades'!$B$12)","v":{"$error":"#N/A"}},null,null,null,null,null,null,null,null,null,null,0,null,0,null,0,null,null,null,{"$error":"#DIV/0!"}]
[{"$f":"+_xlfn.IFS(B156='Número de actividades'!$C$3,'Número de actividades'!$B$3,B156='Número de actividades'!$C$4,'Número de actividades'!$B$3,B156='Número de actividades'!$C$5,'Número de actividades'!$B$3,B156='Número de actividades'!$C$6,'Número de actividades'!$B$3,B156='Número de actividades'!$C$7,'Número de actividades'!$B$7,B156='Número de actividades'!$C$8,'Número de actividades'!$B$7,B156='Número de actividades'!$C$9,'Número de actividades'!$B$9,B156='Número de actividades'!$C$10,'Número de actividades'!$B$9,B156='Número de actividades'!$C$11,'Número de actividades'!$B$9,B156='Número de actividades'!$B$12,'Número de actividades'!$B$12)","v":{"$error":"#N/A"}},null,null,null,null,null,null,null,null,null,null,0,null,0,null,0,null,null,null,{"$error":"#DIV/0!"}]
[{"$f":"+_xlfn.IFS(B157='Número de actividades'!$C$3,'Número de actividades'!$B$3,B157='Número de actividades'!$C$4,'Número de actividades'!$B$3,B157='Número de actividades'!$C$5,'Número de actividades'!$B$3,B157='Número de actividades'!$C$6,'Número de actividades'!$B$3,B157='Número de actividades'!$C$7,'Número de actividades'!$B$7,B157='Número de actividades'!$C$8,'Número de actividades'!$B$7,B157='Número de actividades'!$C$9,'Número de actividades'!$B$9,B157='Número de actividades'!$C$10,'Número de actividades'!$B$9,B157='Número de actividades'!$C$11,'Número de actividades'!$B$9,B157='Número de actividades'!$B$12,'Número de actividades'!$B$12)","v":{"$error":"#N/A"}},null,null,null,null,null,null,null,null,null,null,0,null,0,null,0,null,null,null,{"$error":"#DIV/0!"}]
[{"$f":"+_xlfn.IFS(B158='Número de actividades'!$C$3,'Número de actividades'!$B$3,B158='Número de actividades'!$C$4,'Número de actividades'!$B$3,B158='Número de actividades'!$C$5,'Número de actividades'!$B$3,B158='Número de actividades'!$C$6,'Número de actividades'!$B$3,B158='Número de actividades'!$C$7,'Número de actividades'!$B$7,B158='Número de actividades'!$C$8,'Número de actividades'!$B$7,B158='Número de actividades'!$C$9,'Número de actividades'!$B$9,B158='Número de actividades'!$C$10,'Número de actividades'!$B$9,B158='Número de actividades'!$C$11,'Número de actividades'!$B$9,B158='Número de actividades'!$B$12,'Número de actividades'!$B$12)","v":{"$error":"#N/A"}},null,null,null,null,null,null,null,null,null,null,0,null,0,null,0,null,null,null,{"$error":"#DIV/0!"}]
[{"$f":"+_xlfn.IFS(B159='Número de actividades'!$C$3,'Número de actividades'!$B$3,B159='Número de actividades'!$C$4,'Número de actividades'!$B$3,B159='Número de actividades'!$C$5,'Número de actividades'!$B$3,B159='Número de actividades'!$C$6,'Número de actividades'!$B$3,B159='Número de actividades'!$C$7,'Número de actividades'!$B$7,B159='Número de actividades'!$C$8,'Número de actividades'!$B$7,B159='Número de actividades'!$C$9,'Número de actividades'!$B$9,B159='Número de actividades'!$C$10,'Número de actividades'!$B$9,B159='Número de actividades'!$C$11,'Número de actividades'!$B$9,B159='Número de actividades'!$B$12,'Número de actividades'!$B$12)","v":{"$error":"#N/A"}},null,null,null,null,null,null,null,null,null,null,0,null,0,null,0,null,null,null,{"$error":"#DIV/0!"}]
[{"$f":"+_xlfn.IFS(B160='Número de actividades'!$C$3,'Número de actividades'!$B$3,B160='Número de actividades'!$C$4,'Número de actividades'!$B$3,B160='Número de actividades'!$C$5,'Número de actividades'!$B$3,B160='Número de actividades'!$C$6,'Número de actividades'!$B$3,B160='Número de actividades'!$C$7,'Número de actividades'!$B$7,B160='Número de actividades'!$C$8,'Número de actividades'!$B$7,B160='Número de actividades'!$C$9,'Número de actividades'!$B$9,B160='Número de actividades'!$C$10,'Número de actividades'!$B$9,B160='Número de actividades'!$C$11,'Número de actividades'!$B$9,B160='Número de actividades'!$B$12,'Número de actividades'!$B$12)","v":{"$error":"#N/A"}},null,null,null,null,null,null,null,null,null,null,0,null,0,null,0,null,null,null,{"$error":"#DIV/0!"}]
[{"$f":"+_xlfn.IFS(B161='Número de actividades'!$C$3,'Número de actividades'!$B$3,B161='Número de actividades'!$C$4,'Número de actividades'!$B$3,B161='Número de actividades'!$C$5,'Número de actividades'!$B$3,B161='Número de actividades'!$C$6,'Número de actividades'!$B$3,B161='Número de actividades'!$C$7,'Número de actividades'!$B$7,B161='Número de actividades'!$C$8,'Número de actividades'!$B$7,B161='Número de actividades'!$C$9,'Número de actividades'!$B$9,B161='Número de actividades'!$C$10,'Número de actividades'!$B$9,B161='Número de actividades'!$C$11,'Número de actividades'!$B$9,B161='Número de actividades'!$B$12,'Número de actividades'!$B$12)","v":{"$error":"#N/A"}},null,null,null,null,null,null,null,null,null,null,0,null,0,null,0,null,null,null,{"$error":"#DIV/0!"}]
[{"$f":"+_xlfn.IFS(B162='Número de actividades'!$C$3,'Número de actividades'!$B$3,B162='Número de actividades'!$C$4,'Número de actividades'!$B$3,B162='Número de actividades'!$C$5,'Número de actividades'!$B$3,B162='Número de actividades'!$C$6,'Número de actividades'!$B$3,B162='Número de actividades'!$C$7,'Número de actividades'!$B$7,B162='Número de actividades'!$C$8,'Número de actividades'!$B$7,B162='Número de actividades'!$C$9,'Número de actividades'!$B$9,B162='Número de actividades'!$C$10,'Número de actividades'!$B$9,B162='Número de actividades'!$C$11,'Número de actividades'!$B$9,B162='Número de actividades'!$B$12,'Número de actividades'!$B$12)","v":{"$error":"#N/A"}},null,null,null,null,null,null,null,null,null,null,0,null,0,null,0,null,null,null,{"$error":"#DIV/0!"}]
[{"$f":"+_xlfn.IFS(B163='Número de actividades'!$C$3,'Número de actividades'!$B$3,B163='Número de actividades'!$C$4,'Número de actividades'!$B$3,B163='Número de actividades'!$C$5,'Número de actividades'!$B$3,B163='Número de actividades'!$C$6,'Número de actividades'!$B$3,B163='Número de actividades'!$C$7,'Número de actividades'!$B$7,B163='Número de actividades'!$C$8,'Número de actividades'!$B$7,B163='Número de actividades'!$C$9,'Número de actividades'!$B$9,B163='Número de actividades'!$C$10,'Número de actividades'!$B$9,B163='Número de actividades'!$C$11,'Número de actividades'!$B$9,B163='Número de actividades'!$B$12,'Número de actividades'!$B$12)","v":{"$error":"#N/A"}},null,null,null,null,null,null,null,null,null,null,0,null,0,null,0,null,null,null,{"$error":"#DIV/0!"}]
[{"$f":"+_xlfn.IFS(B164='Número de actividades'!$C$3,'Número de actividades'!$B$3,B164='Número de actividades'!$C$4,'Número de actividades'!$B$3,B164='Número de actividades'!$C$5,'Número de actividades'!$B$3,B164='Número de actividades'!$C$6,'Número de actividades'!$B$3,B164='Número de actividades'!$C$7,'Número de actividades'!$B$7,B164='Número de actividades'!$C$8,'Número de actividades'!$B$7,B164='Número de actividades'!$C$9,'Número de actividades'!$B$9,B164='Número de actividades'!$C$10,'Número de actividades'!$B$9,B164='Número de actividades'!$C$11,'Número de actividades'!$B$9,B164='Número de actividades'!$B$12,'Número de actividades'!$B$12)","v":{"$error":"#N/A"}},null,null,null,null,null,null,null,null,null,null,0,null,0,null,0,null,null,null,{"$error":"#DIV/0!"}]
[{"$f":"+_xlfn.IFS(B165='Número de actividades'!$C$3,'Número de actividades'!$B$3,B165='Número de actividades'!$C$4,'Número de actividades'!$B$3,B165='Número de actividades'!$C$5,'Número de actividades'!$B$3,B165='Número de actividades'!$C$6,'Número de actividades'!$B$3,B165='Número de actividades'!$C$7,'Número de actividades'!$B$7,B165='Número de actividades'!$C$8,'Número de actividades'!$B$7,B165='Número de actividades'!$C$9,'Número de actividades'!$B$9,B165='Número de actividades'!$C$10,'Número de actividades'!$B$9,B165='Número de actividades'!$C$11,'Número de actividades'!$B$9,B165='Número de actividades'!$B$12,'Número de actividades'!$B$12)","v":{"$error":"#N/A"}},null,null,null,null,null,null,null,null,null,null,0,null,0,null,0,null,null,null,{"$error":"#DIV/0!"}]
[{"$f":"+_xlfn.IFS(B166='Número de actividades'!$C$3,'Número de actividades'!$B$3,B166='Número de actividades'!$C$4,'Número de actividades'!$B$3,B166='Número de actividades'!$C$5,'Número de actividades'!$B$3,B166='Número de actividades'!$C$6,'Número de actividades'!$B$3,B166='Número de actividades'!$C$7,'Número de actividades'!$B$7,B166='Número de actividades'!$C$8,'Número de actividades'!$B$7,B166='Número de actividades'!$C$9,'Número de actividades'!$B$9,B166='Número de actividades'!$C$10,'Número de actividades'!$B$9,B166='Número de actividades'!$C$11,'Número de actividades'!$B$9,B166='Número de actividades'!$B$12,'Número de actividades'!$B$12)","v":{"$error":"#N/A"}},null,null,null,null,null,null,null,null,null,null,0,null,0,null,0,null,null,null,{"$error":"#DIV/0!"}]
[{"$f":"+_xlfn.IFS(B167='Número de actividades'!$C$3,'Número de actividades'!$B$3,B167='Número de actividades'!$C$4,'Número de actividades'!$B$3,B167='Número de actividades'!$C$5,'Número de actividades'!$B$3,B167='Número de actividades'!$C$6,'Número de actividades'!$B$3,B167='Número de actividades'!$C$7,'Número de actividades'!$B$7,B167='Número de actividades'!$C$8,'Número de actividades'!$B$7,B167='Número de actividades'!$C$9,'Número de actividades'!$B$9,B167='Número de actividades'!$C$10,'Número de actividades'!$B$9,B167='Número de actividades'!$C$11,'Número de actividades'!$B$9,B167='Número de actividades'!$B$12,'Número de actividades'!$B$12)","v":{"$error":"#N/A"}},null,null,null,null,null,null,null,null,null,null,0,null,0,null,0,null,null,null,{"$error":"#DIV/0!"}]
[{"$f":"+_xlfn.IFS(B168='Número de actividades'!$C$3,'Número de actividades'!$B$3,B168='Número de actividades'!$C$4,'Número de actividades'!$B$3,B168='Número de actividades'!$C$5,'Número de actividades'!$B$3,B168='Número de actividades'!$C$6,'Número de actividades'!$B$3,B168='Número de actividades'!$C$7,'Número de actividades'!$B$7,B168='Número de actividades'!$C$8,'Número de actividades'!$B$7,B168='Número de actividades'!$C$9,'Número de actividades'!$B$9,B168='Número de actividades'!$C$10,'Número de actividades'!$B$9,B168='Número de actividades'!$C$11,'Número de actividades'!$B$9,B168='Número de actividades'!$B$12,'Número de actividades'!$B$12)","v":{"$error":"#N/A"}},null,null,null,null,null,null,null,null,null,null,0,null,0,null,0,null,null,null,{"$error":"#DIV/0!"}]
[{"$f":"+_xlfn.IFS(B169='Número de actividades'!$C$3,'Número de actividades'!$B$3,B169='Número de actividades'!$C$4,'Número de actividades'!$B$3,B169='Número de actividades'!$C$5,'Número de actividades'!$B$3,B169='Número de actividades'!$C$6,'Número de actividades'!$B$3,B169='Número de actividades'!$C$7,'Número de actividades'!$B$7,B169='Número de actividades'!$C$8,'Número de actividades'!$B$7,B169='Número de actividades'!$C$9,'Número de actividades'!$B$9,B169='Número de actividades'!$C$10,'Número de actividades'!$B$9,B169='Número de actividades'!$C$11,'Número de actividades'!$B$9,B169='Número de actividades'!$B$12,'Número de actividades'!$B$12)","v":{"$error":"#N/A"}},null,null,null,null,null,null,null,null,null,null,0,null,0,null,0,null,null,null,{"$error":"#DIV/0!"}]
[{"$f":"+_xlfn.IFS(B170='Número de actividades'!$C$3,'Número de actividades'!$B$3,B170='Número de actividades'!$C$4,'Número de actividades'!$B$3,B170='Número de actividades'!$C$5,'Número de actividades'!$B$3,B170='Número de actividades'!$C$6,'Número de actividades'!$B$3,B170='Número de actividades'!$C$7,'Número de actividades'!$B$7,B170='Número de actividades'!$C$8,'Número de actividades'!$B$7,B170='Número de actividades'!$C$9,'Número de actividades'!$B$9,B170='Número de actividades'!$C$10,'Número de actividades'!$B$9,B170='Número de actividades'!$C$11,'Número de actividades'!$B$9,B170='Número de actividades'!$B$12,'Número de actividades'!$B$12)","v":{"$error":"#N/A"}},null,null,null,null,null,null,null,null,null,null,0,null,0,null,0,null,null,null,{"$error":"#DIV/0!"}]
[{"$f":"+_xlfn.IFS(B171='Número de actividades'!$C$3,'Número de actividades'!$B$3,B171='Número de actividades'!$C$4,'Número de actividades'!$B$3,B171='Número de actividades'!$C$5,'Número de actividades'!$B$3,B171='Número de actividades'!$C$6,'Número de actividades'!$B$3,B171='Número de actividades'!$C$7,'Número de actividades'!$B$7,B171='Número de actividades'!$C$8,'Número de actividades'!$B$7,B171='Número de actividades'!$C$9,'Número de actividades'!$B$9,B171='Número de actividades'!$C$10,'Número de actividades'!$B$9,B171='Número de actividades'!$C$11,'Número de actividades'!$B$9,B171='Número de actividades'!$B$12,'Número de actividades'!$B$12)","v":{"$error":"#N/A"}},null,null,null,null,null,null,null,null,null,null,0,null,0,null,0,null,null,null,{"$error":"#DIV/0!"}]
[{"$f":"+_xlfn.IFS(B172='Número de actividades'!$C$3,'Número de actividades'!$B$3,B172='Número de actividades'!$C$4,'Número de actividades'!$B$3,B172='Número de actividades'!$C$5,'Número de actividades'!$B$3,B172='Número de actividades'!$C$6,'Número de actividades'!$B$3,B172='Número de actividades'!$C$7,'Número de actividades'!$B$7,B172='Número de actividades'!$C$8,'Número de actividades'!$B$7,B172='Número de actividades'!$C$9,'Número de actividades'!$B$9,B172='Número de actividades'!$C$10,'Número de actividades'!$B$9,B172='Número de actividades'!$C$11,'Número de actividades'!$B$9,B172='Número de actividades'!$B$12,'Número de actividades'!$B$12)","v":{"$error":"#N/A"}},null,null,null,null,null,null,null,null,null,null,0,null,0,null,0,null,null,null,{"$error":"#DIV/0!"}]
[{"$f":"+_xlfn.IFS(B173='Número de actividades'!$C$3,'Número de actividades'!$B$3,B173='Número de actividades'!$C$4,'Número de actividades'!$B$3,B173='Número de actividades'!$C$5,'Número de actividades'!$B$3,B173='Número de actividades'!$C$6,'Número de actividades'!$B$3,B173='Número de actividades'!$C$7,'Número de actividades'!$B$7,B173='Número de actividades'!$C$8,'Número de actividades'!$B$7,B173='Número de actividades'!$C$9,'Número de actividades'!$B$9,B173='Número de actividades'!$C$10,'Número de actividades'!$B$9,B173='Número de actividades'!$C$11,'Número de actividades'!$B$9,B173='Número de actividades'!$B$12,'Número de actividades'!$B$12)","v":{"$error":"#N/A"}},null,null,null,null,null,null,null,null,null,null,0,null,0,null,0,null,null,null,{"$error":"#DIV/0!"}]
[{"$f":"+_xlfn.IFS(B174='Número de actividades'!$C$3,'Número de actividades'!$B$3,B174='Número de actividades'!$C$4,'Número de actividades'!$B$3,B174='Número de actividades'!$C$5,'Número de actividades'!$B$3,B174='Número de actividades'!$C$6,'Número de actividades'!$B$3,B174='Número de actividades'!$C$7,'Número de actividades'!$B$7,B174='Número de actividades'!$C$8,'Número de actividades'!$B$7,B174='Número de actividades'!$C$9,'Número de actividades'!$B$9,B174='Número de actividades'!$C$10,'Número de actividades'!$B$9,B174='Número de actividades'!$C$11,'Número de actividades'!$B$9,B174='Número de actividades'!$B$12,'Número de actividades'!$B$12)","v":{"$error":"#N/A"}},null,null,null,null,null,null,null,null,null,null,0,null,0,null,0,null,null,null,{"$error":"#DIV/0!"}]
[{"$f":"+_xlfn.IFS(B175='Número de actividades'!$C$3,'Número de actividades'!$B$3,B175='Número de actividades'!$C$4,'Número de actividades'!$B$3,B175='Número de actividades'!$C$5,'Número de actividades'!$B$3,B175='Número de actividades'!$C$6,'Número de actividades'!$B$3,B175='Número de actividades'!$C$7,'Número de actividades'!$B$7,B175='Número de actividades'!$C$8,'Número de actividades'!$B$7,B175='Número de actividades'!$C$9,'Número de actividades'!$B$9,B175='Número de actividades'!$C$10,'Número de actividades'!$B$9,B175='Número de actividades'!$C$11,'Número de actividades'!$B$9,B175='Número de actividades'!$B$12,'Número de actividades'!$B$12)","v":{"$error":"#N/A"}},null,null,null,null,null,null,null,null,null,null,0,null,0,null,0,null,null,null,{"$error":"#DIV/0!"}]
[{"$f":"+_xlfn.IFS(B176='Número de actividades'!$C$3,'Número de actividades'!$B$3,B176='Número de actividades'!$C$4,'Número de actividades'!$B$3,B176='Número de actividades'!$C$5,'Número de actividades'!$B$3,B176='Número de actividades'!$C$6,'Número de actividades'!$B$3,B176='Número de actividades'!$C$7,'Número de actividades'!$B$7,B176='Número de actividades'!$C$8,'Número de actividades'!$B$7,B176='Número de actividades'!$C$9,'Número de actividades'!$B$9,B176='Número de actividades'!$C$10,'Número de actividades'!$B$9,B176='Número de actividades'!$C$11,'Número de actividades'!$B$9,B176='Número de actividades'!$B$12,'Número de actividades'!$B$12)","v":{"$error":"#N/A"}},null,null,null,null,null,null,null,null,null,null,0,null,0,null,0,null,null,null,{"$error":"#DIV/0!"}]
[{"$f":"+_xlfn.IFS(B177='Número de actividades'!$C$3,'Número de actividades'!$B$3,B177='Número de actividades'!$C$4,'Número de actividades'!$B$3,B177='Número de actividades'!$C$5,'Número de actividades'!$B$3,B177='Número de actividades'!$C$6,'Número de actividades'!$B$3,B177='Número de actividades'!$C$7,'Número de actividades'!$B$7,B177='Número de actividades'!$C$8,'Número de actividades'!$B$7,B177='Número de actividades'!$C$9,'Número de actividades'!$B$9,B177='Número de actividades'!$C$10,'Número de actividades'!$B$9,B177='Número de actividades'!$C$11,'Número de actividades'!$B$9,B177='Número de actividades'!$B$12,'Número de actividades'!$B$12)","v":{"$error":"#N/A"}},null,null,null,null,null,null,null,null,null,null,0,null,0,null,0,null,null,null,{"$error":"#DIV/0!"}]
[{"$f":"+_xlfn.IFS(B178='Número de actividades'!$C$3,'Número de actividades'!$B$3,B178='Número de actividades'!$C$4,'Número de actividades'!$B$3,B178='Número de actividades'!$C$5,'Número de actividades'!$B$3,B178='Número de actividades'!$C$6,'Número de actividades'!$B$3,B178='Número de actividades'!$C$7,'Número de actividades'!$B$7,B178='Número de actividades'!$C$8,'Número de actividades'!$B$7,B178='Número de actividades'!$C$9,'Número de actividades'!$B$9,B178='Número de actividades'!$C$10,'Número de actividades'!$B$9,B178='Número de actividades'!$C$11,'Número de actividades'!$B$9,B178='Número de actividades'!$B$12,'Número de actividades'!$B$12)","v":{"$error":"#N/A"}},null,null,null,null,null,null,null,null,null,null,0,null,0,null,0,null,null,null,{"$error":"#DIV/0!"}]
[{"$f":"+_xlfn.IFS(B179='Número de actividades'!$C$3,'Número de actividades'!$B$3,B179='Número de actividades'!$C$4,'Número de actividades'!$B$3,B179='Número de actividades'!$C$5,'Número de actividades'!$B$3,B179='Número de actividades'!$C$6,'Número de actividades'!$B$3,B179='Número de actividades'!$C$7,'Número de actividades'!$B$7,B179='Número de actividades'!$C$8,'Número de actividades'!$B$7,B179='Número de actividades'!$C$9,'Número de actividades'!$B$9,B179='Número de actividades'!$C$10,'Número de actividades'!$B$9,B179='Número de actividades'!$C$11,'Número de actividades'!$B$9,B179='Número de actividades'!$B$12,'Número de actividades'!$B$12)","v":{"$error":"#N/A"}},null,null,null,null,null,null,null,null,null,null,0,null,0,null,0,null,null,null,{"$error":"#DIV/0!"}]
[{"$f":"+_xlfn.IFS(B180='Número de actividades'!$C$3,'Número de actividades'!$B$3,B180='Número de actividades'!$C$4,'Número de actividades'!$B$3,B180='Número de actividades'!$C$5,'Número de actividades'!$B$3,B180='Número de actividades'!$C$6,'Número de actividades'!$B$3,B180='Número de actividades'!$C$7,'Número de actividades'!$B$7,B180='Número de actividades'!$C$8,'Número de actividades'!$B$7,B180='Número de actividades'!$C$9,'Número de actividades'!$B$9,B180='Número de actividades'!$C$10,'Número de actividades'!$B$9,B180='Número de actividades'!$C$11,'Número de actividades'!$B$9,B180='Número de actividades'!$B$12,'Número de actividades'!$B$12)","v":{"$error":"#N/A"}},null,null,null,null,null,null,null,null,null,null,0,null,0,null,0,null,null,null,{"$error":"#DIV/0!"}]
[{"$f":"+_xlfn.IFS(B181='Número de actividades'!$C$3,'Número de actividades'!$B$3,B181='Número de actividades'!$C$4,'Número de actividades'!$B$3,B181='Número de actividades'!$C$5,'Número de actividades'!$B$3,B181='Número de actividades'!$C$6,'Número de actividades'!$B$3,B181='Número de actividades'!$C$7,'Número de actividades'!$B$7,B181='Número de actividades'!$C$8,'Número de actividades'!$B$7,B181='Número de actividades'!$C$9,'Número de actividades'!$B$9,B181='Número de actividades'!$C$10,'Número de actividades'!$B$9,B181='Número de actividades'!$C$11,'Número de actividades'!$B$9,B181='Número de actividades'!$B$12,'Número de actividades'!$B$12)","v":{"$error":"#N/A"}},null,null,null,null,null,null,null,null,null,null,0,null,0,null,0,null,null,null,{"$error":"#DIV/0!"}]
[{"$f":"+_xlfn.IFS(B182='Número de actividades'!$C$3,'Número de actividades'!$B$3,B182='Número de actividades'!$C$4,'Número de actividades'!$B$3,B182='Número de actividades'!$C$5,'Número de actividades'!$B$3,B182='Número de actividades'!$C$6,'Número de actividades'!$B$3,B182='Número de actividades'!$C$7,'Número de actividades'!$B$7,B182='Número de actividades'!$C$8,'Número de actividades'!$B$7,B182='Número de actividades'!$C$9,'Número de actividades'!$B$9,B182='Número de actividades'!$C$10,'Número de actividades'!$B$9,B182='Número de actividades'!$C$11,'Número de actividades'!$B$9,B182='Número de actividades'!$B$12,'Número de actividades'!$B$12)","v":{"$error":"#N/A"}},null,null,null,null,null,null,null,null,null,null,0,null,0,null,0,null,null,null,{"$error":"#DIV/0!"}]
[{"$f":"+_xlfn.IFS(B183='Número de actividades'!$C$3,'Número de actividades'!$B$3,B183='Número de actividades'!$C$4,'Número de actividades'!$B$3,B183='Número de actividades'!$C$5,'Número de actividades'!$B$3,B183='Número de actividades'!$C$6,'Número de actividades'!$B$3,B183='Número de actividades'!$C$7,'Número de actividades'!$B$7,B183='Número de actividades'!$C$8,'Número de actividades'!$B$7,B183='Número de actividades'!$C$9,'Número de actividades'!$B$9,B183='Número de actividades'!$C$10,'Número de actividades'!$B$9,B183='Número de actividades'!$C$11,'Número de actividades'!$B$9,B183='Número de actividades'!$B$12,'Número de actividades'!$B$12)","v":{"$error":"#N/A"}},null,null,null,null,null,null,null,null,null,null,0,null,0,null,0,null,null,null,{"$error":"#DIV/0!"}]
[{"$f":"+_xlfn.IFS(B184='Número de actividades'!$C$3,'Número de actividades'!$B$3,B184='Número de actividades'!$C$4,'Número de actividades'!$B$3,B184='Número de actividades'!$C$5,'Número de actividades'!$B$3,B184='Número de actividades'!$C$6,'Número de actividades'!$B$3,B184='Número de actividades'!$C$7,'Número de actividades'!$B$7,B184='Número de actividades'!$C$8,'Número de actividades'!$B$7,B184='Número de actividades'!$C$9,'Número de actividades'!$B$9,B184='Número de actividades'!$C$10,'Número de actividades'!$B$9,B184='Número de actividades'!$C$11,'Número de actividades'!$B$9,B184='Número de actividades'!$B$12,'Número de actividades'!$B$12)","v":{"$error":"#N/A"}},null,null,null,null,null,null,null,null,null,null,0,null,0,null,0,null,null,null,{"$error":"#DIV/0!"}]
[{"$f":"+_xlfn.IFS(B185='Número de actividades'!$C$3,'Número de actividades'!$B$3,B185='Número de actividades'!$C$4,'Número de actividades'!$B$3,B185='Número de actividades'!$C$5,'Número de actividades'!$B$3,B185='Número de actividades'!$C$6,'Número de actividades'!$B$3,B185='Número de actividades'!$C$7,'Número de actividades'!$B$7,B185='Número de actividades'!$C$8,'Número de actividades'!$B$7,B185='Número de actividades'!$C$9,'Número de actividades'!$B$9,B185='Número de actividades'!$C$10,'Número de actividades'!$B$9,B185='Número de actividades'!$C$11,'Número de actividades'!$B$9,B185='Número de actividades'!$B$12,'Número de actividades'!$B$12)","v":{"$error":"#N/A"}},null,null,null,null,null,null,null,null,null,null,0,null,0,null,0,null,null,null,{"$error":"#DIV/0!"}]
[{"$f":"+_xlfn.IFS(B186='Número de actividades'!$C$3,'Número de actividades'!$B$3,B186='Número de actividades'!$C$4,'Número de actividades'!$B$3,B186='Número de actividades'!$C$5,'Número de actividades'!$B$3,B186='Número de actividades'!$C$6,'Número de actividades'!$B$3,B186='Número de actividades'!$C$7,'Número de actividades'!$B$7,B186='Número de actividades'!$C$8,'Número de actividades'!$B$7,B186='Número de actividades'!$C$9,'Número de actividades'!$B$9,B186='Número de actividades'!$C$10,'Número de actividades'!$B$9,B186='Número de actividades'!$C$11,'Número de actividades'!$B$9,B186='Número de actividades'!$B$12,'Número de actividades'!$B$12)","v":{"$error":"#N/A"}},null,null,null,null,null,null,null,null,null,null,0,null,0,null,0,null,null,null,{"$error":"#DIV/0!"}]
[{"$f":"+_xlfn.IFS(B187='Número de actividades'!$C$3,'Número de actividades'!$B$3,B187='Número de actividades'!$C$4,'Número de actividades'!$B$3,B187='Número de actividades'!$C$5,'Número de actividades'!$B$3,B187='Número de actividades'!$C$6,'Número de actividades'!$B$3,B187='Número de actividades'!$C$7,'Número de actividades'!$B$7,B187='Número de actividades'!$C$8,'Número de actividades'!$B$7,B187='Número de actividades'!$C$9,'Número de actividades'!$B$9,B187='Número de actividades'!$C$10,'Número de actividades'!$B$9,B187='Número de actividades'!$C$11,'Número de actividades'!$B$9,B187='Número de actividades'!$B$12,'Número de actividades'!$B$12)","v":{"$error":"#N/A"}},null,null,null,null,null,null,null,null,null,null,0,null,0,null,0,null,null,null,{"$error":"#DIV/0!"}]
[{"$f":"+_xlfn.IFS(B188='Número de actividades'!$C$3,'Número de actividades'!$B$3,B188='Número de actividades'!$C$4,'Número de actividades'!$B$3,B188='Número de actividades'!$C$5,'Número de actividades'!$B$3,B188='Número de actividades'!$C$6,'Número de actividades'!$B$3,B188='Número de actividades'!$C$7,'Número de actividades'!$B$7,B188='Número de actividades'!$C$8,'Número de actividades'!$B$7,B188='Número de actividades'!$C$9,'Número de actividades'!$B$9,B188='Número de actividades'!$C$10,'Número de actividades'!$B$9,B188='Número de actividades'!$C$11,'Número de actividades'!$B$9,B188='Número de actividades'!$B$12,'Número de actividades'!$B$12)","v":{"$error":"#N/A"}},null,null,null,null,null,null,null,null,null,null,0,null,0,null,0,null,null,null,{"$error":"#DIV/0!"}]
[{"$f":"+_xlfn.IFS(B189='Número de actividades'!$C$3,'Número de actividades'!$B$3,B189='Número de actividades'!$C$4,'Número de actividades'!$B$3,B189='Número de actividades'!$C$5,'Número de actividades'!$B$3,B189='Número de actividades'!$C$6,'Número de actividades'!$B$3,B189='Número de actividades'!$C$7,'Número de actividades'!$B$7,B189='Número de actividades'!$C$8,'Número de actividades'!$B$7,B189='Número de actividades'!$C$9,'Número de actividades'!$B$9,B189='Número de actividades'!$C$10,'Número de actividades'!$B$9,B189='Número de actividades'!$C$11,'Número de actividades'!$B$9,B189='Número de actividades'!$B$12,'Número de actividades'!$B$12)","v":{"$error":"#N/A"}},null,null,null,null,null,null,null,null,null,null,0,null,0,null,0,null,null,null,{"$error":"#DIV/0!"}]
[{"$f":"+_xlfn.IFS(B190='Número de actividades'!$C$3,'Número de actividades'!$B$3,B190='Número de actividades'!$C$4,'Número de actividades'!$B$3,B190='Número de actividades'!$C$5,'Número de actividades'!$B$3,B190='Número de actividades'!$C$6,'Número de actividades'!$B$3,B190='Número de actividades'!$C$7,'Número de actividades'!$B$7,B190='Número de actividades'!$C$8,'Número de actividades'!$B$7,B190='Número de actividades'!$C$9,'Número de actividades'!$B$9,B190='Número de actividades'!$C$10,'Número de actividades'!$B$9,B190='Número de actividades'!$C$11,'Número de actividades'!$B$9,B190='Número de actividades'!$B$12,'Número de actividades'!$B$12)","v":{"$error":"#N/A"}},null,null,null,null,null,null,null,null,null,null,0,null,0,null,0,null,null,null,{"$error":"#DIV/0!"}]
[{"$f":"+_xlfn.IFS(B191='Número de actividades'!$C$3,'Número de actividades'!$B$3,B191='Número de actividades'!$C$4,'Número de actividades'!$B$3,B191='Número de actividades'!$C$5,'Número de actividades'!$B$3,B191='Número de actividades'!$C$6,'Número de actividades'!$B$3,B191='Número de actividades'!$C$7,'Número de actividades'!$B$7,B191='Número de actividades'!$C$8,'Número de actividades'!$B$7,B191='Número de actividades'!$C$9,'Número de actividades'!$B$9,B191='Número de actividades'!$C$10,'Número de actividades'!$B$9,B191='Número de actividades'!$C$11,'Número de actividades'!$B$9,B191='Número de actividades'!$B$12,'Número de actividades'!$B$12)","v":{"$error":"#N/A"}},null,null,null,null,null,null,null,null,null,null,0,null,0,null,0,null,null,null,{"$error":"#DIV/0!"}]
[{"$f":"+_xlfn.IFS(B192='Número de actividades'!$C$3,'Número de actividades'!$B$3,B192='Número de actividades'!$C$4,'Número de actividades'!$B$3,B192='Número de actividades'!$C$5,'Número de actividades'!$B$3,B192='Número de actividades'!$C$6,'Número de actividades'!$B$3,B192='Número de actividades'!$C$7,'Número de actividades'!$B$7,B192='Número de actividades'!$C$8,'Número de actividades'!$B$7,B192='Número de actividades'!$C$9,'Número de actividades'!$B$9,B192='Número de actividades'!$C$10,'Número de actividades'!$B$9,B192='Número de actividades'!$C$11,'Número de actividades'!$B$9,B192='Número de actividades'!$B$12,'Número de actividades'!$B$12)","v":{"$error":"#N/A"}},null,null,null,null,null,null,null,null,null,null,0,null,0,null,0,null,null,null,{"$error":"#DIV/0!"}]
[{"$f":"+_xlfn.IFS(B193='Número de actividades'!$C$3,'Número de actividades'!$B$3,B193='Número de actividades'!$C$4,'Número de actividades'!$B$3,B193='Número de actividades'!$C$5,'Número de actividades'!$B$3,B193='Número de actividades'!$C$6,'Número de actividades'!$B$3,B193='Número de actividades'!$C$7,'Número de actividades'!$B$7,B193='Número de actividades'!$C$8,'Número de actividades'!$B$7,B193='Número de actividades'!$C$9,'Número de actividades'!$B$9,B193='Número de actividades'!$C$10,'Número de actividades'!$B$9,B193='Número de actividades'!$C$11,'Número de actividades'!$B$9,B193='Número de actividades'!$B$12,'Número de actividades'!$B$12)","v":{"$error":"#N/A"}},null,null,null,null,null,null,null,null,null,null,0,null,0,null,0,null,null,null,{"$error":"#DIV/0!"}]
[{"$f":"+_xlfn.IFS(B194='Número de actividades'!$C$3,'Número de actividades'!$B$3,B194='Número de actividades'!$C$4,'Número de actividades'!$B$3,B194='Número de actividades'!$C$5,'Número de actividades'!$B$3,B194='Número de actividades'!$C$6,'Número de actividades'!$B$3,B194='Número de actividades'!$C$7,'Número de actividades'!$B$7,B194='Número de actividades'!$C$8,'Número de actividades'!$B$7,B194='Número de actividades'!$C$9,'Número de actividades'!$B$9,B194='Número de actividades'!$C$10,'Número de actividades'!$B$9,B194='Número de actividades'!$C$11,'Número de actividades'!$B$9,B194='Número de actividades'!$B$12,'Número de actividades'!$B$12)","v":{"$error":"#N/A"}},null,null,null,null,null,null,null,null,null,null,0,null,0,null,0,null,null,null,{"$error":"#DIV/0!"}]
[{"$f":"+_xlfn.IFS(B195='Número de actividades'!$C$3,'Número de actividades'!$B$3,B195='Número de actividades'!$C$4,'Número de actividades'!$B$3,B195='Número de actividades'!$C$5,'Número de actividades'!$B$3,B195='Número de actividades'!$C$6,'Número de actividades'!$B$3,B195='Número de actividades'!$C$7,'Número de actividades'!$B$7,B195='Número de actividades'!$C$8,'Número de actividades'!$B$7,B195='Número de actividades'!$C$9,'Número de actividades'!$B$9,B195='Número de actividades'!$C$10,'Número de actividades'!$B$9,B195='Número de actividades'!$C$11,'Número de actividades'!$B$9,B195='Número de actividades'!$B$12,'Número de actividades'!$B$12)","v":{"$error":"#N/A"}},null,null,null,null,null,null,null,null,null,null,0,null,0,null,0,null,null,null,{"$error":"#DIV/0!"}]
[{"$f":"+_xlfn.IFS(B196='Número de actividades'!$C$3,'Número de actividades'!$B$3,B196='Número de actividades'!$C$4,'Número de actividades'!$B$3,B196='Número de actividades'!$C$5,'Número de actividades'!$B$3,B196='Número de actividades'!$C$6,'Número de actividades'!$B$3,B196='Número de actividades'!$C$7,'Número de actividades'!$B$7,B196='Número de actividades'!$C$8,'Número de actividades'!$B$7,B196='Número de actividades'!$C$9,'Número de actividades'!$B$9,B196='Número de actividades'!$C$10,'Número de actividades'!$B$9,B196='Número de actividades'!$C$11,'Número de actividades'!$B$9,B196='Número de actividades'!$B$12,'Número de actividades'!$B$12)","v":{"$error":"#N/A"}},null,null,null,null,null,null,null,null,null,null,0,null,0,null,0,null,null,null,{"$error":"#DIV/0!"}]
[{"$f":"+_xlfn.IFS(B197='Número de actividades'!$C$3,'Número de actividades'!$B$3,B197='Número de actividades'!$C$4,'Número de actividades'!$B$3,B197='Número de actividades'!$C$5,'Número de actividades'!$B$3,B197='Número de actividades'!$C$6,'Número de actividades'!$B$3,B197='Número de actividades'!$C$7,'Número de actividades'!$B$7,B197='Número de actividades'!$C$8,'Número de actividades'!$B$7,B197='Número de actividades'!$C$9,'Número de actividades'!$B$9,B197='Número de actividades'!$C$10,'Número de actividades'!$B$9,B197='Número de actividades'!$C$11,'Número de actividades'!$B$9,B197='Número de actividades'!$B$12,'Número de actividades'!$B$12)","v":{"$error":"#N/A"}},null,null,null,null,null,null,null,null,null,null,0,null,0,null,0,null,null,null,{"$error":"#DIV/0!"}]
[{"$f":"+_xlfn.IFS(B198='Número de actividades'!$C$3,'Número de actividades'!$B$3,B198='Número de actividades'!$C$4,'Número de actividades'!$B$3,B198='Número de actividades'!$C$5,'Número de actividades'!$B$3,B198='Número de actividades'!$C$6,'Número de actividades'!$B$3,B198='Número de actividades'!$C$7,'Número de actividades'!$B$7,B198='Número de actividades'!$C$8,'Número de actividades'!$B$7,B198='Número de actividades'!$C$9,'Número de actividades'!$B$9,B198='Número de actividades'!$C$10,'Número de actividades'!$B$9,B198='Número de actividades'!$C$11,'Número de actividades'!$B$9,B198='Número de actividades'!$B$12,'Número de actividades'!$B$12)","v":{"$error":"#N/A"}},null,null,null,null,null,null,null,null,null,null,0,null,0,null,0,null,null,null,{"$error":"#DIV/0!"}]
[{"$f":"+_xlfn.IFS(B199='Número de actividades'!$C$3,'Número de actividades'!$B$3,B199='Número de actividades'!$C$4,'Número de actividades'!$B$3,B199='Número de actividades'!$C$5,'Número de actividades'!$B$3,B199='Número de actividades'!$C$6,'Número de actividades'!$B$3,B199='Número de actividades'!$C$7,'Número de actividades'!$B$7,B199='Número de actividades'!$C$8,'Número de actividades'!$B$7,B199='Número de actividades'!$C$9,'Número de actividades'!$B$9,B199='Número de actividades'!$C$10,'Número de actividades'!$B$9,B199='Número de actividades'!$C$11,'Número de actividades'!$B$9,B199='Número de actividades'!$B$12,'Número de actividades'!$B$12)","v":{"$error":"#N/A"}},null,null,null,null,null,null,null,null,null,null,0,null,0,null,0,null,null,null,{"$error":"#DIV/0!"}]
[{"$f":"+_xlfn.IFS(B200='Número de actividades'!$C$3,'Número de actividades'!$B$3,B200='Número de actividades'!$C$4,'Número de actividades'!$B$3,B200='Número de actividades'!$C$5,'Número de actividades'!$B$3,B200='Número de actividades'!$C$6,'Número de actividades'!$B$3,B200='Número de actividades'!$C$7,'Número de actividades'!$B$7,B200='Número de actividades'!$C$8,'Número de actividades'!$B$7,B200='Número de actividades'!$C$9,'Número de actividades'!$B$9,B200='Número de actividades'!$C$10,'Número de actividades'!$B$9,B200='Número de actividades'!$C$11,'Número de actividades'!$B$9,B200='Número de actividades'!$B$12,'Número de actividades'!$B$12)","v":{"$error":"#N/A"}},null,null,null,null,null,null,null,null,null,null,0,null,0,null,0,null,null,null,{"$error":"#DIV/0!"}]
[{"$f":"+_xlfn.IFS(B201='Número de actividades'!$C$3,'Número de actividades'!$B$3,B201='Número de actividades'!$C$4,'Número de actividades'!$B$3,B201='Número de actividades'!$C$5,'Número de actividades'!$B$3,B201='Número de actividades'!$C$6,'Número de actividades'!$B$3,B201='Número de actividades'!$C$7,'Número de actividades'!$B$7,B201='Número de actividades'!$C$8,'Número de actividades'!$B$7,B201='Número de actividades'!$C$9,'Número de actividades'!$B$9,B201='Número de actividades'!$C$10,'Número de actividades'!$B$9,B201='Número de actividades'!$C$11,'Número de actividades'!$B$9,B201='Número de actividades'!$B$12,'Número de actividades'!$B$12)","v":{"$error":"#N/A"}},null,null,null,null,null,null,null,null,null,null,0,null,0,null,0,null,null,null,{"$error":"#DIV/0!"}]
[{"$f":"+_xlfn.IFS(B202='Número de actividades'!$C$3,'Número de actividades'!$B$3,B202='Número de actividades'!$C$4,'Número de actividades'!$B$3,B202='Número de actividades'!$C$5,'Número de actividades'!$B$3,B202='Número de actividades'!$C$6,'Número de actividades'!$B$3,B202='Número de actividades'!$C$7,'Número de actividades'!$B$7,B202='Número de actividades'!$C$8,'Número de actividades'!$B$7,B202='Número de actividades'!$C$9,'Número de actividades'!$B$9,B202='Número de actividades'!$C$10,'Número de actividades'!$B$9,B202='Número de actividades'!$C$11,'Número de actividades'!$B$9,B202='Número de actividades'!$B$12,'Número de actividades'!$B$12)","v":{"$error":"#N/A"}},null,null,null,null,null,null,null,null,null,null,0,null,0,null,0,null,null,null,{"$error":"#DIV/0!"}]
[{"$f":"+_xlfn.IFS(B203='Número de actividades'!$C$3,'Número de actividades'!$B$3,B203='Número de actividades'!$C$4,'Número de actividades'!$B$3,B203='Número de actividades'!$C$5,'Número de actividades'!$B$3,B203='Número de actividades'!$C$6,'Número de actividades'!$B$3,B203='Número de actividades'!$C$7,'Número de actividades'!$B$7,B203='Número de actividades'!$C$8,'Número de actividades'!$B$7,B203='Número de actividades'!$C$9,'Número de actividades'!$B$9,B203='Número de actividades'!$C$10,'Número de actividades'!$B$9,B203='Número de actividades'!$C$11,'Número de actividades'!$B$9,B203='Número de actividades'!$B$12,'Número de actividades'!$B$12)","v":{"$error":"#N/A"}},null,null,null,null,null,null,null,null,null,null,0,null,0,null,0,null,null,null,{"$error":"#DIV/0!"}]
[{"$f":"+_xlfn.IFS(B204='Número de actividades'!$C$3,'Número de actividades'!$B$3,B204='Número de actividades'!$C$4,'Número de actividades'!$B$3,B204='Número de actividades'!$C$5,'Número de actividades'!$B$3,B204='Número de actividades'!$C$6,'Número de actividades'!$B$3,B204='Número de actividades'!$C$7,'Número de actividades'!$B$7,B204='Número de actividades'!$C$8,'Número de actividades'!$B$7,B204='Número de actividades'!$C$9,'Número de actividades'!$B$9,B204='Número de actividades'!$C$10,'Número de actividades'!$B$9,B204='Número de actividades'!$C$11,'Número de actividades'!$B$9,B204='Número de actividades'!$B$12,'Número de actividades'!$B$12)","v":{"$error":"#N/A"}},null,null,null,null,null,null,null,null,null,null,0,null,0,null,0,null,null,null,{"$error":"#DIV/0!"}]
[{"$f":"+_xlfn.IFS(B205='Número de actividades'!$C$3,'Número de actividades'!$B$3,B205='Número de actividades'!$C$4,'Número de actividades'!$B$3,B205='Número de actividades'!$C$5,'Número de actividades'!$B$3,B205='Número de actividades'!$C$6,'Número de actividades'!$B$3,B205='Número de actividades'!$C$7,'Número de actividades'!$B$7,B205='Número de actividades'!$C$8,'Número de actividades'!$B$7,B205='Número de actividades'!$C$9,'Número de actividades'!$B$9,B205='Número de actividades'!$C$10,'Número de actividades'!$B$9,B205='Número de actividades'!$C$11,'Número de actividades'!$B$9,B205='Número de actividades'!$B$12,'Número de actividades'!$B$12)","v":{"$error":"#N/A"}},null,null,null,null,null,null,null,null,null,null,0,null,0,null,0,null,null,null,{"$error":"#DIV/0!"}]
[{"$f":"+_xlfn.IFS(B206='Número de actividades'!$C$3,'Número de actividades'!$B$3,B206='Número de actividades'!$C$4,'Número de actividades'!$B$3,B206='Número de actividades'!$C$5,'Número de actividades'!$B$3,B206='Número de actividades'!$C$6,'Número de actividades'!$B$3,B206='Número de actividades'!$C$7,'Número de actividades'!$B$7,B206='Número de actividades'!$C$8,'Número de actividades'!$B$7,B206='Número de actividades'!$C$9,'Número de actividades'!$B$9,B206='Número de actividades'!$C$10,'Número de actividades'!$B$9,B206='Número de actividades'!$C$11,'Número de actividades'!$B$9,B206='Número de actividades'!$B$12,'Número de actividades'!$B$12)","v":{"$error":"#N/A"}},null,null,null,null,null,null,null,null,null,null,0,null,0,null,0,null,null,null,{"$error":"#DIV/0!"}]
[{"$f":"+_xlfn.IFS(B207='Número de actividades'!$C$3,'Número de actividades'!$B$3,B207='Número de actividades'!$C$4,'Número de actividades'!$B$3,B207='Número de actividades'!$C$5,'Número de actividades'!$B$3,B207='Número de actividades'!$C$6,'Número de actividades'!$B$3,B207='Número de actividades'!$C$7,'Número de actividades'!$B$7,B207='Número de actividades'!$C$8,'Número de actividades'!$B$7,B207='Número de actividades'!$C$9,'Número de actividades'!$B$9,B207='Número de actividades'!$C$10,'Número de actividades'!$B$9,B207='Número de actividades'!$C$11,'Número de actividades'!$B$9,B207='Número de actividades'!$B$12,'Número de actividades'!$B$12)","v":{"$error":"#N/A"}},null,null,null,null,null,null,null,null,null,null,0,null,0,null,0,null,null,null,{"$error":"#DIV/0!"}]
[{"$f":"+_xlfn.IFS(B208='Número de actividades'!$C$3,'Número de actividades'!$B$3,B208='Número de actividades'!$C$4,'Número de actividades'!$B$3,B208='Número de actividades'!$C$5,'Número de actividades'!$B$3,B208='Número de actividades'!$C$6,'Número de actividades'!$B$3,B208='Número de actividades'!$C$7,'Número de actividades'!$B$7,B208='Número de actividades'!$C$8,'Número de actividades'!$B$7,B208='Número de actividades'!$C$9,'Número de actividades'!$B$9,B208='Número de actividades'!$C$10,'Número de actividades'!$B$9,B208='Número de actividades'!$C$11,'Número de actividades'!$B$9,B208='Número de actividades'!$B$12,'Número de actividades'!$B$12)","v":{"$error":"#N/A"}},null,null,null,null,null,null,null,null,null,null,0,null,0,null,0,null,null,null,{"$error":"#DIV/0!"}]
[{"$f":"+_xlfn.IFS(B209='Número de actividades'!$C$3,'Número de actividades'!$B$3,B209='Número de actividades'!$C$4,'Número de actividades'!$B$3,B209='Número de actividades'!$C$5,'Número de actividades'!$B$3,B209='Número de actividades'!$C$6,'Número de actividades'!$B$3,B209='Número de actividades'!$C$7,'Número de actividades'!$B$7,B209='Número de actividades'!$C$8,'Número de actividades'!$B$7,B209='Número de actividades'!$C$9,'Número de actividades'!$B$9,B209='Número de actividades'!$C$10,'Número de actividades'!$B$9,B209='Número de actividades'!$C$11,'Número de actividades'!$B$9,B209='Número de actividades'!$B$12,'Número de actividades'!$B$12)","v":{"$error":"#N/A"}},null,null,null,null,null,null,null,null,null,null,0,null,0,null,0,null,null,null,{"$error":"#DIV/0!"}]
[{"$f":"+_xlfn.IFS(B210='Número de actividades'!$C$3,'Número de actividades'!$B$3,B210='Número de actividades'!$C$4,'Número de actividades'!$B$3,B210='Número de actividades'!$C$5,'Número de actividades'!$B$3,B210='Número de actividades'!$C$6,'Número de actividades'!$B$3,B210='Número de actividades'!$C$7,'Número de actividades'!$B$7,B210='Número de actividades'!$C$8,'Número de actividades'!$B$7,B210='Número de actividades'!$C$9,'Número de actividades'!$B$9,B210='Número de actividades'!$C$10,'Número de actividades'!$B$9,B210='Número de actividades'!$C$11,'Número de actividades'!$B$9,B210='Número de actividades'!$B$12,'Número de actividades'!$B$12)","v":{"$error":"#N/A"}},null,null,null,null,null,null,null,null,null,null,0,null,0,null,0,null,null,null,{"$error":"#DIV/0!"}]
[{"$f":"+_xlfn.IFS(B211='Número de actividades'!$C$3,'Número de actividades'!$B$3,B211='Número de actividades'!$C$4,'Número de actividades'!$B$3,B211='Número de actividades'!$C$5,'Número de actividades'!$B$3,B211='Número de actividades'!$C$6,'Número de actividades'!$B$3,B211='Número de actividades'!$C$7,'Número de actividades'!$B$7,B211='Número de actividades'!$C$8,'Número de actividades'!$B$7,B211='Número de actividades'!$C$9,'Número de actividades'!$B$9,B211='Número de actividades'!$C$10,'Número de actividades'!$B$9,B211='Número de actividades'!$C$11,'Número de actividades'!$B$9,B211='Número de actividades'!$B$12,'Número de actividades'!$B$12)","v":{"$error":"#N/A"}},null,null,null,null,null,null,null,null,null,null,0,null,0,null,0,null,null,null,{"$f":"((K211+M211+O211)/(L211+N211+P211))","v":{"$error":"#DIV/0!"}}]
[{"$f":"+_xlfn.IFS(B212='Número de actividades'!$C$3,'Número de actividades'!$B$3,B212='Número de actividades'!$C$4,'Número de actividades'!$B$3,B212='Número de actividades'!$C$5,'Número de actividades'!$B$3,B212='Número de actividades'!$C$6,'Número de actividades'!$B$3,B212='Número de actividades'!$C$7,'Número de actividades'!$B$7,B212='Número de actividades'!$C$8,'Número de actividades'!$B$7,B212='Número de actividades'!$C$9,'Número de actividades'!$B$9,B212='Número de actividades'!$C$10,'Número de actividades'!$B$9,B212='Número de actividades'!$C$11,'Número de actividades'!$B$9,B212='Número de actividades'!$B$12,'Número de actividades'!$B$12)","v":{"$error":"#N/A"}},null,null,null,null,null,null,null,null,null,null,0,null,0,null,0,null,null,null,{"$error":"#DIV/0!"}]
[{"$f":"+_xlfn.IFS(B213='Número de actividades'!$C$3,'Número de actividades'!$B$3,B213='Número de actividades'!$C$4,'Número de actividades'!$B$3,B213='Número de actividades'!$C$5,'Número de actividades'!$B$3,B213='Número de actividades'!$C$6,'Número de actividades'!$B$3,B213='Número de actividades'!$C$7,'Número de actividades'!$B$7,B213='Número de actividades'!$C$8,'Número de actividades'!$B$7,B213='Número de actividades'!$C$9,'Número de actividades'!$B$9,B213='Número de actividades'!$C$10,'Número de actividades'!$B$9,B213='Número de actividades'!$C$11,'Número de actividades'!$B$9,B213='Número de actividades'!$B$12,'Número de actividades'!$B$12)","v":{"$error":"#N/A"}},null,null,null,null,null,null,null,null,null,null,0,null,0,null,0,null,null,null,{"$error":"#DIV/0!"}]
[{"$f":"+_xlfn.IFS(B214='Número de actividades'!$C$3,'Número de actividades'!$B$3,B214='Número de actividades'!$C$4,'Número de actividades'!$B$3,B214='Número de actividades'!$C$5,'Número de actividades'!$B$3,B214='Número de actividades'!$C$6,'Número de actividades'!$B$3,B214='Número de actividades'!$C$7,'Número de actividades'!$B$7,B214='Número de actividades'!$C$8,'Número de actividades'!$B$7,B214='Número de actividades'!$C$9,'Número de actividades'!$B$9,B214='Número de actividades'!$C$10,'Número de actividades'!$B$9,B214='Número de actividades'!$C$11,'Número de actividades'!$B$9,B214='Número de actividades'!$B$12,'Número de actividades'!$B$12)","v":{"$error":"#N/A"}},null,null,null,null,null,null,null,null,null,null,0,null,0,null,0,null,null,null,{"$error":"#DIV/0!"}]
[{"$f":"+_xlfn.IFS(B215='Número de actividades'!$C$3,'Número de actividades'!$B$3,B215='Número de actividades'!$C$4,'Número de actividades'!$B$3,B215='Número de actividades'!$C$5,'Número de actividades'!$B$3,B215='Número de actividades'!$C$6,'Número de actividades'!$B$3,B215='Número de actividades'!$C$7,'Número de actividades'!$B$7,B215='Número de actividades'!$C$8,'Número de actividades'!$B$7,B215='Número de actividades'!$C$9,'Número de actividades'!$B$9,B215='Número de actividades'!$C$10,'Número de actividades'!$B$9,B215='Número de actividades'!$C$11,'Número de actividades'!$B$9,B215='Número de actividades'!$B$12,'Número de actividades'!$B$12)","v":{"$error":"#N/A"}},null,null,null,null,null,null,null,null,null,null,0,null,0,null,0,null,null,null,{"$error":"#DIV/0!"}]
[{"$f":"+_xlfn.IFS(B216='Número de actividades'!$C$3,'Número de actividades'!$B$3,B216='Número de actividades'!$C$4,'Número de actividades'!$B$3,B216='Número de actividades'!$C$5,'Número de actividades'!$B$3,B216='Número de actividades'!$C$6,'Número de actividades'!$B$3,B216='Número de actividades'!$C$7,'Número de actividades'!$B$7,B216='Número de actividades'!$C$8,'Número de actividades'!$B$7,B216='Número de actividades'!$C$9,'Número de actividades'!$B$9,B216='Número de actividades'!$C$10,'Número de actividades'!$B$9,B216='Número de actividades'!$C$11,'Número de actividades'!$B$9,B216='Número de actividades'!$B$12,'Número de actividades'!$B$12)","v":{"$error":"#N/A"}},null,null,null,null,null,null,null,null,null,null,0,null,0,null,0,null,null,null,{"$error":"#DIV/0!"}]
[{"$f":"+_xlfn.IFS(B217='Número de actividades'!$C$3,'Número de actividades'!$B$3,B217='Número de actividades'!$C$4,'Número de actividades'!$B$3,B217='Número de actividades'!$C$5,'Número de actividades'!$B$3,B217='Número de actividades'!$C$6,'Número de actividades'!$B$3,B217='Número de actividades'!$C$7,'Número de actividades'!$B$7,B217='Número de actividades'!$C$8,'Número de actividades'!$B$7,B217='Número de actividades'!$C$9,'Número de actividades'!$B$9,B217='Número de actividades'!$C$10,'Número de actividades'!$B$9,B217='Número de actividades'!$C$11,'Número de actividades'!$B$9,B217='Número de actividades'!$B$12,'Número de actividades'!$B$12)","v":{"$error":"#N/A"}},null,null,null,null,null,null,null,null,null,null,0,null,0,null,0,null,null,null,{"$error":"#DIV/0!"}]
[{"$f":"+_xlfn.IFS(B218='Número de actividades'!$C$3,'Número de actividades'!$B$3,B218='Número de actividades'!$C$4,'Número de actividades'!$B$3,B218='Número de actividades'!$C$5,'Número de actividades'!$B$3,B218='Número de actividades'!$C$6,'Número de actividades'!$B$3,B218='Número de actividades'!$C$7,'Número de actividades'!$B$7,B218='Número de actividades'!$C$8,'Número de actividades'!$B$7,B218='Número de actividades'!$C$9,'Número de actividades'!$B$9,B218='Número de actividades'!$C$10,'Número de actividades'!$B$9,B218='Número de actividades'!$C$11,'Número de actividades'!$B$9,B218='Número de actividades'!$B$12,'Número de actividades'!$B$12)","v":{"$error":"#N/A"}},null,null,null,null,null,null,null,null,null,null,0,null,0,null,0,null,null,null,{"$error":"#DIV/0!"}]
[{"$f":"+_xlfn.IFS(B219='Número de actividades'!$C$3,'Número de actividades'!$B$3,B219='Número de actividades'!$C$4,'Número de actividades'!$B$3,B219='Número de actividades'!$C$5,'Número de actividades'!$B$3,B219='Número de actividades'!$C$6,'Número de actividades'!$B$3,B219='Número de actividades'!$C$7,'Número de actividades'!$B$7,B219='Número de actividades'!$C$8,'Número de actividades'!$B$7,B219='Número de actividades'!$C$9,'Número de actividades'!$B$9,B219='Número de actividades'!$C$10,'Número de actividades'!$B$9,B219='Número de actividades'!$C$11,'Número de actividades'!$B$9,B219='Número de actividades'!$B$12,'Número de actividades'!$B$12)","v":{"$error":"#N/A"}},null,null,null,null,null,null,null,null,null,null,0,null,0,null,0,null,null,null,{"$error":"#DIV/0!"}]
[{"$f":"+_xlfn.IFS(B220='Número de actividades'!$C$3,'Número de actividades'!$B$3,B220='Número de actividades'!$C$4,'Número de actividades'!$B$3,B220='Número de actividades'!$C$5,'Número de actividades'!$B$3,B220='Número de actividades'!$C$6,'Número de actividades'!$B$3,B220='Número de actividades'!$C$7,'Número de actividades'!$B$7,B220='Número de actividades'!$C$8,'Número de actividades'!$B$7,B220='Número de actividades'!$C$9,'Número de actividades'!$B$9,B220='Número de actividades'!$C$10,'Número de actividades'!$B$9,B220='Número de actividades'!$C$11,'Número de actividades'!$B$9,B220='Número de actividades'!$B$12,'Número de actividades'!$B$12)","v":{"$error":"#N/A"}},null,null,null,null,null,null,null,null,null,null,0,null,0,null,0,null,null,null,{"$error":"#DIV/0!"}]
[{"$f":"+_xlfn.IFS(B221='Número de actividades'!$C$3,'Número de actividades'!$B$3,B221='Número de actividades'!$C$4,'Número de actividades'!$B$3,B221='Número de actividades'!$C$5,'Número de actividades'!$B$3,B221='Número de actividades'!$C$6,'Número de actividades'!$B$3,B221='Número de actividades'!$C$7,'Número de actividades'!$B$7,B221='Número de actividades'!$C$8,'Número de actividades'!$B$7,B221='Número de actividades'!$C$9,'Número de actividades'!$B$9,B221='Número de actividades'!$C$10,'Número de actividades'!$B$9,B221='Número de actividades'!$C$11,'Número de actividades'!$B$9,B221='Número de actividades'!$B$12,'Número de actividades'!$B$12)","v":{"$error":"#N/A"}},null,null,null,null,null,null,null,null,null,null,0,null,0,null,0,null,null,null,{"$error":"#DIV/0!"}]
[{"$f":"+_xlfn.IFS(B222='Número de actividades'!$C$3,'Número de actividades'!$B$3,B222='Número de actividades'!$C$4,'Número de actividades'!$B$3,B222='Número de actividades'!$C$5,'Número de actividades'!$B$3,B222='Número de actividades'!$C$6,'Número de actividades'!$B$3,B222='Número de actividades'!$C$7,'Número de actividades'!$B$7,B222='Número de actividades'!$C$8,'Número de actividades'!$B$7,B222='Número de actividades'!$C$9,'Número de actividades'!$B$9,B222='Número de actividades'!$C$10,'Número de actividades'!$B$9,B222='Número de actividades'!$C$11,'Número de actividades'!$B$9,B222='Número de actividades'!$B$12,'Número de actividades'!$B$12)","v":{"$error":"#N/A"}},null,null,null,null,null,null,null,null,null,null,0,null,0,null,0,null,null,null,{"$error":"#DIV/0!"}]
[{"$f":"+_xlfn.IFS(B223='Número de actividades'!$C$3,'Número de actividades'!$B$3,B223='Número de actividades'!$C$4,'Número de actividades'!$B$3,B223='Número de actividades'!$C$5,'Número de actividades'!$B$3,B223='Número de actividades'!$C$6,'Número de actividades'!$B$3,B223='Número de actividades'!$C$7,'Número de actividades'!$B$7,B223='Número de actividades'!$C$8,'Número de actividades'!$B$7,B223='Número de actividades'!$C$9,'Número de actividades'!$B$9,B223='Número de actividades'!$C$10,'Número de actividades'!$B$9,B223='Número de actividades'!$C$11,'Número de actividades'!$B$9,B223='Número de actividades'!$B$12,'Número de actividades'!$B$12)","v":{"$error":"#N/A"}},null,null,null,null,null,null,null,null,null,null,0,null,0,null,0,null,null,null,{"$error":"#DIV/0!"}]
[{"$f":"+_xlfn.IFS(B224='Número de actividades'!$C$3,'Número de actividades'!$B$3,B224='Número de actividades'!$C$4,'Número de actividades'!$B$3,B224='Número de actividades'!$C$5,'Número de actividades'!$B$3,B224='Número de actividades'!$C$6,'Número de actividades'!$B$3,B224='Número de actividades'!$C$7,'Número de actividades'!$B$7,B224='Número de actividades'!$C$8,'Número de actividades'!$B$7,B224='Número de actividades'!$C$9,'Número de actividades'!$B$9,B224='Número de actividades'!$C$10,'Número de actividades'!$B$9,B224='Número de actividades'!$C$11,'Número de actividades'!$B$9,B224='Número de actividades'!$B$12,'Número de actividades'!$B$12)","v":{"$error":"#N/A"}},null,null,null,null,null,null,null,null,null,null,0,null,0,null,0,null,null,null,{"$error":"#DIV/0!"}]
[{"$f":"+_xlfn.IFS(B225='Número de actividades'!$C$3,'Número de actividades'!$B$3,B225='Número de actividades'!$C$4,'Número de actividades'!$B$3,B225='Número de actividades'!$C$5,'Número de actividades'!$B$3,B225='Número de actividades'!$C$6,'Número de actividades'!$B$3,B225='Número de actividades'!$C$7,'Número de actividades'!$B$7,B225='Número de actividades'!$C$8,'Número de actividades'!$B$7,B225='Número de actividades'!$C$9,'Número de actividades'!$B$9,B225='Número de actividades'!$C$10,'Número de actividades'!$B$9,B225='Número de actividades'!$C$11,'Número de actividades'!$B$9,B225='Número de actividades'!$B$12,'Número de actividades'!$B$12)","v":{"$error":"#N/A"}},null,null,null,null,null,null,null,null,null,null,0,null,0,null,0,null,null,null,{"$error":"#DIV/0!"}]
[{"$f":"+_xlfn.IFS(B226='Número de actividades'!$C$3,'Número de actividades'!$B$3,B226='Número de actividades'!$C$4,'Número de actividades'!$B$3,B226='Número de actividades'!$C$5,'Número de actividades'!$B$3,B226='Número de actividades'!$C$6,'Número de actividades'!$B$3,B226='Número de actividades'!$C$7,'Número de actividades'!$B$7,B226='Número de actividades'!$C$8,'Número de actividades'!$B$7,B226='Número de actividades'!$C$9,'Número de actividades'!$B$9,B226='Número de actividades'!$C$10,'Número de actividades'!$B$9,B226='Número de actividades'!$C$11,'Número de actividades'!$B$9,B226='Número de actividades'!$B$12,'Número de actividades'!$B$12)","v":{"$error":"#N/A"}},null,null,null,null,null,null,null,null,null,null,0,null,0,null,0,null,null,null,{"$error":"#DIV/0!"}]
[{"$f":"+_xlfn.IFS(B227='Número de actividades'!$C$3,'Número de actividades'!$B$3,B227='Número de actividades'!$C$4,'Número de actividades'!$B$3,B227='Número de actividades'!$C$5,'Número de actividades'!$B$3,B227='Número de actividades'!$C$6,'Número de actividades'!$B$3,B227='Número de actividades'!$C$7,'Número de actividades'!$B$7,B227='Número de actividades'!$C$8,'Número de actividades'!$B$7,B227='Número de actividades'!$C$9,'Número de actividades'!$B$9,B227='Número de actividades'!$C$10,'Número de actividades'!$B$9,B227='Número de actividades'!$C$11,'Número de actividades'!$B$9,B227='Número de actividades'!$B$12,'Número de actividades'!$B$12)","v":{"$error":"#N/A"}},null,null,null,null,null,null,null,null,null,null,0,null,0,null,0,null,null,null,{"$error":"#DIV/0!"}]
[{"$f":"+_xlfn.IFS(B228='Número de actividades'!$C$3,'Número de actividades'!$B$3,B228='Número de actividades'!$C$4,'Número de actividades'!$B$3,B228='Número de actividades'!$C$5,'Número de actividades'!$B$3,B228='Número de actividades'!$C$6,'Número de actividades'!$B$3,B228='Número de actividades'!$C$7,'Número de actividades'!$B$7,B228='Número de actividades'!$C$8,'Número de actividades'!$B$7,B228='Número de actividades'!$C$9,'Número de actividades'!$B$9,B228='Número de actividades'!$C$10,'Número de actividades'!$B$9,B228='Número de actividades'!$C$11,'Número de actividades'!$B$9,B228='Número de actividades'!$B$12,'Número de actividades'!$B$12)","v":{"$error":"#N/A"}},null,null,null,null,null,null,null,null,null,null,0,null,0,null,0,null,null,null,{"$error":"#DIV/0!"}]
[{"$f":"+_xlfn.IFS(B229='Número de actividades'!$C$3,'Número de actividades'!$B$3,B229='Número de actividades'!$C$4,'Número de actividades'!$B$3,B229='Número de actividades'!$C$5,'Número de actividades'!$B$3,B229='Número de actividades'!$C$6,'Número de actividades'!$B$3,B229='Número de actividades'!$C$7,'Número de actividades'!$B$7,B229='Número de actividades'!$C$8,'Número de actividades'!$B$7,B229='Número de actividades'!$C$9,'Número de actividades'!$B$9,B229='Número de actividades'!$C$10,'Número de actividades'!$B$9,B229='Número de actividades'!$C$11,'Número de actividades'!$B$9,B229='Número de actividades'!$B$12,'Número de actividades'!$B$12)","v":{"$error":"#N/A"}},null,null,null,null,null,null,null,null,null,null,0,null,0,null,0,null,null,null,{"$error":"#DIV/0!"}]
[{"$f":"+_xlfn.IFS(B230='Número de actividades'!$C$3,'Número de actividades'!$B$3,B230='Número de actividades'!$C$4,'Número de actividades'!$B$3,B230='Número de actividades'!$C$5,'Número de actividades'!$B$3,B230='Número de actividades'!$C$6,'Número de actividades'!$B$3,B230='Número de actividades'!$C$7,'Número de actividades'!$B$7,B230='Número de actividades'!$C$8,'Número de actividades'!$B$7,B230='Número de actividades'!$C$9,'Número de actividades'!$B$9,B230='Número de actividades'!$C$10,'Número de actividades'!$B$9,B230='Número de actividades'!$C$11,'Número de actividades'!$B$9,B230='Número de actividades'!$B$12,'Número de actividades'!$B$12)","v":{"$error":"#N/A"}},null,null,null,null,null,null,null,null,null,null,0,null,0,null,0,null,null,null,{"$error":"#DIV/0!"}]
[{"$f":"+_xlfn.IFS(B231='Número de actividades'!$C$3,'Número de actividades'!$B$3,B231='Número de actividades'!$C$4,'Número de actividades'!$B$3,B231='Número de actividades'!$C$5,'Número de actividades'!$B$3,B231='Número de actividades'!$C$6,'Número de actividades'!$B$3,B231='Número de actividades'!$C$7,'Número de actividades'!$B$7,B231='Número de actividades'!$C$8,'Número de actividades'!$B$7,B231='Número de actividades'!$C$9,'Número de actividades'!$B$9,B231='Número de actividades'!$C$10,'Número de actividades'!$B$9,B231='Número de actividades'!$C$11,'Número de actividades'!$B$9,B231='Número de actividades'!$B$12,'Número de actividades'!$B$12)","v":{"$error":"#N/A"}},null,null,null,null,null,null,null,null,null,null,0,null,0,null,0,null,null,null,{"$error":"#DIV/0!"}]
[{"$f":"+_xlfn.IFS(B232='Número de actividades'!$C$3,'Número de actividades'!$B$3,B232='Número de actividades'!$C$4,'Número de actividades'!$B$3,B232='Número de actividades'!$C$5,'Número de actividades'!$B$3,B232='Número de actividades'!$C$6,'Número de actividades'!$B$3,B232='Número de actividades'!$C$7,'Número de actividades'!$B$7,B232='Número de actividades'!$C$8,'Número de actividades'!$B$7,B232='Número de actividades'!$C$9,'Número de actividades'!$B$9,B232='Número de actividades'!$C$10,'Número de actividades'!$B$9,B232='Número de actividades'!$C$11,'Número de actividades'!$B$9,B232='Número de actividades'!$B$12,'Número de actividades'!$B$12)","v":{"$error":"#N/A"}},null,null,null,null,null,null,null,null,null,null,0,null,0,null,0,null,null,null,{"$error":"#DIV/0!"}]
[{"$f":"+_xlfn.IFS(B233='Número de actividades'!$C$3,'Número de actividades'!$B$3,B233='Número de actividades'!$C$4,'Número de actividades'!$B$3,B233='Número de actividades'!$C$5,'Número de actividades'!$B$3,B233='Número de actividades'!$C$6,'Número de actividades'!$B$3,B233='Número de actividades'!$C$7,'Número de actividades'!$B$7,B233='Número de actividades'!$C$8,'Número de actividades'!$B$7,B233='Número de actividades'!$C$9,'Número de actividades'!$B$9,B233='Número de actividades'!$C$10,'Número de actividades'!$B$9,B233='Número de actividades'!$C$11,'Número de actividades'!$B$9,B233='Número de actividades'!$B$12,'Número de actividades'!$B$12)","v":{"$error":"#N/A"}},null,null,null,null,null,null,null,null,null,null,0,null,0,null,0,null,null,null,{"$error":"#DIV/0!"}]
[{"$f":"+_xlfn.IFS(B234='Número de actividades'!$C$3,'Número de actividades'!$B$3,B234='Número de actividades'!$C$4,'Número de actividades'!$B$3,B234='Número de actividades'!$C$5,'Número de actividades'!$B$3,B234='Número de actividades'!$C$6,'Número de actividades'!$B$3,B234='Número de actividades'!$C$7,'Número de actividades'!$B$7,B234='Número de actividades'!$C$8,'Número de actividades'!$B$7,B234='Número de actividades'!$C$9,'Número de actividades'!$B$9,B234='Número de actividades'!$C$10,'Número de actividades'!$B$9,B234='Número de actividades'!$C$11,'Número de actividades'!$B$9,B234='Número de actividades'!$B$12,'Número de actividades'!$B$12)","v":{"$error":"#N/A"}},null,null,null,null,null,null,null,null,null,null,0,null,0,null,0,null,null,null,{"$error":"#DIV/0!"}]
[{"$f":"+_xlfn.IFS(B235='Número de actividades'!$C$3,'Número de actividades'!$B$3,B235='Número de actividades'!$C$4,'Número de actividades'!$B$3,B235='Número de actividades'!$C$5,'Número de actividades'!$B$3,B235='Número de actividades'!$C$6,'Número de actividades'!$B$3,B235='Número de actividades'!$C$7,'Número de actividades'!$B$7,B235='Número de actividades'!$C$8,'Número de actividades'!$B$7,B235='Número de actividades'!$C$9,'Número de actividades'!$B$9,B235='Número de actividades'!$C$10,'Número de actividades'!$B$9,B235='Número de actividades'!$C$11,'Número de actividades'!$B$9,B235='Número de actividades'!$B$12,'Número de actividades'!$B$12)","v":{"$error":"#N/A"}},null,null,null,null,null,null,null,null,null,null,0,null,0,null,0,null,null,null,{"$error":"#DIV/0!"}]
[{"$f":"+_xlfn.IFS(B236='Número de actividades'!$C$3,'Número de actividades'!$B$3,B236='Número de actividades'!$C$4,'Número de actividades'!$B$3,B236='Número de actividades'!$C$5,'Número de actividades'!$B$3,B236='Número de actividades'!$C$6,'Número de actividades'!$B$3,B236='Número de actividades'!$C$7,'Número de actividades'!$B$7,B236='Número de actividades'!$C$8,'Número de actividades'!$B$7,B236='Número de actividades'!$C$9,'Número de actividades'!$B$9,B236='Número de actividades'!$C$10,'Número de actividades'!$B$9,B236='Número de actividades'!$C$11,'Número de actividades'!$B$9,B236='Número de actividades'!$B$12,'Número de actividades'!$B$12)","v":{"$error":"#N/A"}},null,null,null,null,null,null,null,null,null,null,0,null,0,null,0,null,null,null,{"$error":"#DIV/0!"}]
[{"$f":"+_xlfn.IFS(B237='Número de actividades'!$C$3,'Número de actividades'!$B$3,B237='Número de actividades'!$C$4,'Número de actividades'!$B$3,B237='Número de actividades'!$C$5,'Número de actividades'!$B$3,B237='Número de actividades'!$C$6,'Número de actividades'!$B$3,B237='Número de actividades'!$C$7,'Número de actividades'!$B$7,B237='Número de actividades'!$C$8,'Número de actividades'!$B$7,B237='Número de actividades'!$C$9,'Número de actividades'!$B$9,B237='Número de actividades'!$C$10,'Número de actividades'!$B$9,B237='Número de actividades'!$C$11,'Número de actividades'!$B$9,B237='Número de actividades'!$B$12,'Número de actividades'!$B$12)","v":{"$error":"#N/A"}},null,null,null,null,null,null,null,null,null,null,0,null,0,null,0,null,null,null,{"$error":"#DIV/0!"}]
[{"$f":"+_xlfn.IFS(B238='Número de actividades'!$C$3,'Número de actividades'!$B$3,B238='Número de actividades'!$C$4,'Número de actividades'!$B$3,B238='Número de actividades'!$C$5,'Número de actividades'!$B$3,B238='Número de actividades'!$C$6,'Número de actividades'!$B$3,B238='Número de actividades'!$C$7,'Número de actividades'!$B$7,B238='Número de actividades'!$C$8,'Número de actividades'!$B$7,B238='Número de actividades'!$C$9,'Número de actividades'!$B$9,B238='Número de actividades'!$C$10,'Número de actividades'!$B$9,B238='Número de actividades'!$C$11,'Número de actividades'!$B$9,B238='Número de actividades'!$B$12,'Número de actividades'!$B$12)","v":{"$error":"#N/A"}},null,null,null,null,null,null,null,null,null,null,0,null,0,null,0,null,null,null,{"$error":"#DIV/0!"}]
[{"$f":"+_xlfn.IFS(B239='Número de actividades'!$C$3,'Número de actividades'!$B$3,B239='Número de actividades'!$C$4,'Número de actividades'!$B$3,B239='Número de actividades'!$C$5,'Número de actividades'!$B$3,B239='Número de actividades'!$C$6,'Número de actividades'!$B$3,B239='Número de actividades'!$C$7,'Número de actividades'!$B$7,B239='Número de actividades'!$C$8,'Número de actividades'!$B$7,B239='Número de actividades'!$C$9,'Número de actividades'!$B$9,B239='Número de actividades'!$C$10,'Número de actividades'!$B$9,B239='Número de actividades'!$C$11,'Número de actividades'!$B$9,B239='Número de actividades'!$B$12,'Número de actividades'!$B$12)","v":{"$error":"#N/A"}},null,null,null,null,null,null,null,null,null,null,0,null,0,null,0,null,null,null,{"$error":"#DIV/0!"}]
[{"$f":"+_xlfn.IFS(B240='Número de actividades'!$C$3,'Número de actividades'!$B$3,B240='Número de actividades'!$C$4,'Número de actividades'!$B$3,B240='Número de actividades'!$C$5,'Número de actividades'!$B$3,B240='Número de actividades'!$C$6,'Número de actividades'!$B$3,B240='Número de actividades'!$C$7,'Número de actividades'!$B$7,B240='Número de actividades'!$C$8,'Número de actividades'!$B$7,B240='Número de actividades'!$C$9,'Número de actividades'!$B$9,B240='Número de actividades'!$C$10,'Número de actividades'!$B$9,B240='Número de actividades'!$C$11,'Número de actividades'!$B$9,B240='Número de actividades'!$B$12,'Número de actividades'!$B$12)","v":{"$error":"#N/A"}},null,null,null,null,null,null,null,null,null,null,0,null,0,null,0,null,null,null,{"$error":"#DIV/0!"}]
[{"$f":"+_xlfn.IFS(B241='Número de actividades'!$C$3,'Número de actividades'!$B$3,B241='Número de actividades'!$C$4,'Número de actividades'!$B$3,B241='Número de actividades'!$C$5,'Número de actividades'!$B$3,B241='Número de actividades'!$C$6,'Número de actividades'!$B$3,B241='Número de actividades'!$C$7,'Número de actividades'!$B$7,B241='Número de actividades'!$C$8,'Número de actividades'!$B$7,B241='Número de actividades'!$C$9,'Número de actividades'!$B$9,B241='Número de actividades'!$C$10,'Número de actividades'!$B$9,B241='Número de actividades'!$C$11,'Número de actividades'!$B$9,B241='Número de actividades'!$B$12,'Número de actividades'!$B$12)","v":{"$error":"#N/A"}},null,null,null,null,null,null,null,null,null,null,0,null,0,null,0,null,null,null,{"$error":"#DIV/0!"}]
[{"$f":"+_xlfn.IFS(B242='Número de actividades'!$C$3,'Número de actividades'!$B$3,B242='Número de actividades'!$C$4,'Número de actividades'!$B$3,B242='Número de actividades'!$C$5,'Número de actividades'!$B$3,B242='Número de actividades'!$C$6,'Número de actividades'!$B$3,B242='Número de actividades'!$C$7,'Número de actividades'!$B$7,B242='Número de actividades'!$C$8,'Número de actividades'!$B$7,B242='Número de actividades'!$C$9,'Número de actividades'!$B$9,B242='Número de actividades'!$C$10,'Número de actividades'!$B$9,B242='Número de actividades'!$C$11,'Número de actividades'!$B$9,B242='Número de actividades'!$B$12,'Número de actividades'!$B$12)","v":{"$error":"#N/A"}},null,null,null,null,null,null,null,null,null,null,0,null,0,null,0,null,null,null,{"$error":"#DIV/0!"}]
[{"$f":"+_xlfn.IFS(B243='Número de actividades'!$C$3,'Número de actividades'!$B$3,B243='Número de actividades'!$C$4,'Número de actividades'!$B$3,B243='Número de actividades'!$C$5,'Número de actividades'!$B$3,B243='Número de actividades'!$C$6,'Número de actividades'!$B$3,B243='Número de actividades'!$C$7,'Número de actividades'!$B$7,B243='Número de actividades'!$C$8,'Número de actividades'!$B$7,B243='Número de actividades'!$C$9,'Número de actividades'!$B$9,B243='Número de actividades'!$C$10,'Número de actividades'!$B$9,B243='Número de actividades'!$C$11,'Número de actividades'!$B$9,B243='Número de actividades'!$B$12,'Número de actividades'!$B$12)","v":{"$error":"#N/A"}},null,null,null,null,null,null,null,null,null,null,0,null,0,null,0,null,null,null,{"$error":"#DIV/0!"}]
[{"$f":"+_xlfn.IFS(B244='Número de actividades'!$C$3,'Número de actividades'!$B$3,B244='Número de actividades'!$C$4,'Número de actividades'!$B$3,B244='Número de actividades'!$C$5,'Número de actividades'!$B$3,B244='Número de actividades'!$C$6,'Número de actividades'!$B$3,B244='Número de actividades'!$C$7,'Número de actividades'!$B$7,B244='Número de actividades'!$C$8,'Número de actividades'!$B$7,B244='Número de actividades'!$C$9,'Número de actividades'!$B$9,B244='Número de actividades'!$C$10,'Número de actividades'!$B$9,B244='Número de actividades'!$C$11,'Número de actividades'!$B$9,B244='Número de actividades'!$B$12,'Número de actividades'!$B$12)","v":{"$error":"#N/A"}},null,null,null,null,null,null,null,null,null,null,0,null,0,null,0,null,null,null,{"$error":"#DIV/0!"}]
[{"$f":"+_xlfn.IFS(B245='Número de actividades'!$C$3,'Número de actividades'!$B$3,B245='Número de actividades'!$C$4,'Número de actividades'!$B$3,B245='Número de actividades'!$C$5,'Número de actividades'!$B$3,B245='Número de actividades'!$C$6,'Número de actividades'!$B$3,B245='Número de actividades'!$C$7,'Número de actividades'!$B$7,B245='Número de actividades'!$C$8,'Número de actividades'!$B$7,B245='Número de actividades'!$C$9,'Número de actividades'!$B$9,B245='Número de actividades'!$C$10,'Número de actividades'!$B$9,B245='Número de actividades'!$C$11,'Número de actividades'!$B$9,B245='Número de actividades'!$B$12,'Número de actividades'!$B$12)","v":{"$error":"#N/A"}},null,null,null,null,null,null,null,null,null,null,0,null,0,null,0,null,null,null,{"$error":"#DIV/0!"}]
[{"$f":"+_xlfn.IFS(B246='Número de actividades'!$C$3,'Número de actividades'!$B$3,B246='Número de actividades'!$C$4,'Número de actividades'!$B$3,B246='Número de actividades'!$C$5,'Número de actividades'!$B$3,B246='Número de actividades'!$C$6,'Número de actividades'!$B$3,B246='Número de actividades'!$C$7,'Número de actividades'!$B$7,B246='Número de actividades'!$C$8,'Número de actividades'!$B$7,B246='Número de actividades'!$C$9,'Número de actividades'!$B$9,B246='Número de actividades'!$C$10,'Número de actividades'!$B$9,B246='Número de actividades'!$C$11,'Número de actividades'!$B$9,B246='Número de actividades'!$B$12,'Número de actividades'!$B$12)","v":{"$error":"#N/A"}},null,null,null,null,null,null,null,null,null,null,0,null,0,null,0,null,null,null,{"$error":"#DIV/0!"}]
[{"$f":"+_xlfn.IFS(B247='Número de actividades'!$C$3,'Número de actividades'!$B$3,B247='Número de actividades'!$C$4,'Número de actividades'!$B$3,B247='Número de actividades'!$C$5,'Número de actividades'!$B$3,B247='Número de actividades'!$C$6,'Número de actividades'!$B$3,B247='Número de actividades'!$C$7,'Número de actividades'!$B$7,B247='Número de actividades'!$C$8,'Número de actividades'!$B$7,B247='Número de actividades'!$C$9,'Número de actividades'!$B$9,B247='Número de actividades'!$C$10,'Número de actividades'!$B$9,B247='Número de actividades'!$C$11,'Número de actividades'!$B$9,B247='Número de actividades'!$B$12,'Número de actividades'!$B$12)","v":{"$error":"#N/A"}},null,null,null,null,null,null,null,null,null,null,0,null,0,null,0,null,null,null,{"$error":"#DIV/0!"}]
[{"$f":"+_xlfn.IFS(B248='Número de actividades'!$C$3,'Número de actividades'!$B$3,B248='Número de actividades'!$C$4,'Número de actividades'!$B$3,B248='Número de actividades'!$C$5,'Número de actividades'!$B$3,B248='Número de actividades'!$C$6,'Número de actividades'!$B$3,B248='Número de actividades'!$C$7,'Número de actividades'!$B$7,B248='Número de actividades'!$C$8,'Número de actividades'!$B$7,B248='Número de actividades'!$C$9,'Número de actividades'!$B$9,B248='Número de actividades'!$C$10,'Número de actividades'!$B$9,B248='Número de actividades'!$C$11,'Número de actividades'!$B$9,B248='Número de actividades'!$B$12,'Número de actividades'!$B$12)","v":{"$error":"#N/A"}},null,null,null,null,null,null,null,null,null,null,0,null,0,null,0,null,null,null,{"$error":"#DIV/0!"}]
[{"$f":"+_xlfn.IFS(B249='Número de actividades'!$C$3,'Número de actividades'!$B$3,B249='Número de actividades'!$C$4,'Número de actividades'!$B$3,B249='Número de actividades'!$C$5,'Número de actividades'!$B$3,B249='Número de actividades'!$C$6,'Número de actividades'!$B$3,B249='Número de actividades'!$C$7,'Número de actividades'!$B$7,B249='Número de actividades'!$C$8,'Número de actividades'!$B$7,B249='Número de actividades'!$C$9,'Número de actividades'!$B$9,B249='Número de actividades'!$C$10,'Número de actividades'!$B$9,B249='Número de actividades'!$C$11,'Número de actividades'!$B$9,B249='Número de actividades'!$B$12,'Número de actividades'!$B$12)","v":{"$error":"#N/A"}},null,null,null,null,null,null,null,null,null,null,0,null,0,null,0,null,null,null,{"$error":"#DIV/0!"}]
[{"$f":"+_xlfn.IFS(B250='Número de actividades'!$C$3,'Número de actividades'!$B$3,B250='Número de actividades'!$C$4,'Número de actividades'!$B$3,B250='Número de actividades'!$C$5,'Número de actividades'!$B$3,B250='Número de actividades'!$C$6,'Número de actividades'!$B$3,B250='Número de actividades'!$C$7,'Número de actividades'!$B$7,B250='Número de actividades'!$C$8,'Número de actividades'!$B$7,B250='Número de actividades'!$C$9,'Número de actividades'!$B$9,B250='Número de actividades'!$C$10,'Número de actividades'!$B$9,B250='Número de actividades'!$C$11,'Número de actividades'!$B$9,B250='Número de actividades'!$B$12,'Número de actividades'!$B$12)","v":{"$error":"#N/A"}},null,null,null,null,null,null,null,null,null,null,0,null,0,null,0,null,null,null,{"$error":"#DIV/0!"}]
[{"$f":"+_xlfn.IFS(B251='Número de actividades'!$C$3,'Número de actividades'!$B$3,B251='Número de actividades'!$C$4,'Número de actividades'!$B$3,B251='Número de actividades'!$C$5,'Número de actividades'!$B$3,B251='Número de actividades'!$C$6,'Número de actividades'!$B$3,B251='Número de actividades'!$C$7,'Número de actividades'!$B$7,B251='Número de actividades'!$C$8,'Número de actividades'!$B$7,B251='Número de actividades'!$C$9,'Número de actividades'!$B$9,B251='Número de actividades'!$C$10,'Número de actividades'!$B$9,B251='Número de actividades'!$C$11,'Número de actividades'!$B$9,B251='Número de actividades'!$B$12,'Número de actividades'!$B$12)","v":{"$error":"#N/A"}},null,null,null,null,null,null,null,null,null,null,0,null,0,null,0,null,null,null,{"$error":"#DIV/0!"}]
[{"$f":"+_xlfn.IFS(B252='Número de actividades'!$C$3,'Número de actividades'!$B$3,B252='Número de actividades'!$C$4,'Número de actividades'!$B$3,B252='Número de actividades'!$C$5,'Número de actividades'!$B$3,B252='Número de actividades'!$C$6,'Número de actividades'!$B$3,B252='Número de actividades'!$C$7,'Número de actividades'!$B$7,B252='Número de actividades'!$C$8,'Número de actividades'!$B$7,B252='Número de actividades'!$C$9,'Número de actividades'!$B$9,B252='Número de actividades'!$C$10,'Número de actividades'!$B$9,B252='Número de actividades'!$C$11,'Número de actividades'!$B$9,B252='Número de actividades'!$B$12,'Número de actividades'!$B$12)","v":{"$error":"#N/A"}},null,null,null,null,null,null,null,null,null,null,0,null,0,null,0,null,null,null,{"$error":"#DIV/0!"}]
[{"$f":"+_xlfn.IFS(B253='Número de actividades'!$C$3,'Número de actividades'!$B$3,B253='Número de actividades'!$C$4,'Número de actividades'!$B$3,B253='Número de actividades'!$C$5,'Número de actividades'!$B$3,B253='Número de actividades'!$C$6,'Número de actividades'!$B$3,B253='Número de actividades'!$C$7,'Número de actividades'!$B$7,B253='Número de actividades'!$C$8,'Número de actividades'!$B$7,B253='Número de actividades'!$C$9,'Número de actividades'!$B$9,B253='Número de actividades'!$C$10,'Número de actividades'!$B$9,B253='Número de actividades'!$C$11,'Número de actividades'!$B$9,B253='Número de actividades'!$B$12,'Número de actividades'!$B$12)","v":{"$error":"#N/A"}},null,null,null,null,null,null,null,null,null,null,0,null,0,null,0,null,null,null,{"$error":"#DIV/0!"}]
[{"$f":"+_xlfn.IFS(B254='Número de actividades'!$C$3,'Número de actividades'!$B$3,B254='Número de actividades'!$C$4,'Número de actividades'!$B$3,B254='Número de actividades'!$C$5,'Número de actividades'!$B$3,B254='Número de actividades'!$C$6,'Número de actividades'!$B$3,B254='Número de actividades'!$C$7,'Número de actividades'!$B$7,B254='Número de actividades'!$C$8,'Número de actividades'!$B$7,B254='Número de actividades'!$C$9,'Número de actividades'!$B$9,B254='Número de actividades'!$C$10,'Número de actividades'!$B$9,B254='Número de actividades'!$C$11,'Número de actividades'!$B$9,B254='Número de actividades'!$B$12,'Número de actividades'!$B$12)","v":{"$error":"#N/A"}},null,null,null,null,null,null,null,null,null,null,0,null,0,null,0,null,null,null,{"$error":"#DIV/0!"}]
[{"$f":"+_xlfn.IFS(B255='Número de actividades'!$C$3,'Número de actividades'!$B$3,B255='Número de actividades'!$C$4,'Número de actividades'!$B$3,B255='Número de actividades'!$C$5,'Número de actividades'!$B$3,B255='Número de actividades'!$C$6,'Número de actividades'!$B$3,B255='Número de actividades'!$C$7,'Número de actividades'!$B$7,B255='Número de actividades'!$C$8,'Número de actividades'!$B$7,B255='Número de actividades'!$C$9,'Número de actividades'!$B$9,B255='Número de actividades'!$C$10,'Número de actividades'!$B$9,B255='Número de actividades'!$C$11,'Número de actividades'!$B$9,B255='Número de actividades'!$B$12,'Número de actividades'!$B$12)","v":{"$error":"#N/A"}},null,null,null,null,null,null,null,null,null,null,0,null,0,null,0,null,null,null,{"$error":"#DIV/0!"}]
[{"$f":"+_xlfn.IFS(B256='Número de actividades'!$C$3,'Número de actividades'!$B$3,B256='Número de actividades'!$C$4,'Número de actividades'!$B$3,B256='Número de actividades'!$C$5,'Número de actividades'!$B$3,B256='Número de actividades'!$C$6,'Número de actividades'!$B$3,B256='Número de actividades'!$C$7,'Número de actividades'!$B$7,B256='Número de actividades'!$C$8,'Número de actividades'!$B$7,B256='Número de actividades'!$C$9,'Número de actividades'!$B$9,B256='Número de actividades'!$C$10,'Número de actividades'!$B$9,B256='Número de actividades'!$C$11,'Número de actividades'!$B$9,B256='Número de actividades'!$B$12,'Número de actividades'!$B$12)","v":{"$error":"#N/A"}},null,null,null,null,null,null,null,null,null,null,0,null,0,null,0,null,null,null,{"$error":"#DIV/0!"}]
[{"$f":"+_xlfn.IFS(B257='Número de actividades'!$C$3,'Número de actividades'!$B$3,B257='Número de actividades'!$C$4,'Número de actividades'!$B$3,B257='Número de actividades'!$C$5,'Número de actividades'!$B$3,B257='Número de actividades'!$C$6,'Número de actividades'!$B$3,B257='Número de actividades'!$C$7,'Número de actividades'!$B$7,B257='Número de actividades'!$C$8,'Número de actividades'!$B$7,B257='Número de actividades'!$C$9,'Número de actividades'!$B$9,B257='Número de actividades'!$C$10,'Número de actividades'!$B$9,B257='Número de actividades'!$C$11,'Número de actividades'!$B$9,B257='Número de actividades'!$B$12,'Número de actividades'!$B$12)","v":{"$error":"#N/A"}},null,null,null,null,null,null,null,null,null,null,0,null,0,null,0,null,null,null,{"$error":"#DIV/0!"}]
[{"$f":"+_xlfn.IFS(B258='Número de actividades'!$C$3,'Número de actividades'!$B$3,B258='Número de actividades'!$C$4,'Número de actividades'!$B$3,B258='Número de actividades'!$C$5,'Número de actividades'!$B$3,B258='Número de actividades'!$C$6,'Número de actividades'!$B$3,B258='Número de actividades'!$C$7,'Número de actividades'!$B$7,B258='Número de actividades'!$C$8,'Número de actividades'!$B$7,B258='Número de actividades'!$C$9,'Número de actividades'!$B$9,B258='Número de actividades'!$C$10,'Número de actividades'!$B$9,B258='Número de actividades'!$C$11,'Número de actividades'!$B$9,B258='Número de actividades'!$B$12,'Número de actividades'!$B$12)","v":{"$error":"#N/A"}},null,null,null,null,null,null,null,null,null,null,0,null,0,null,0,null,null,null,{"$error":"#DIV/0!"}]
[{"$f":"+_xlfn.IFS(B259='Número de actividades'!$C$3,'Número de actividades'!$B$3,B259='Número de actividades'!$C$4,'Número de actividades'!$B$3,B259='Número de actividades'!$C$5,'Número de actividades'!$B$3,B259='Número de actividades'!$C$6,'Número de actividades'!$B$3,B259='Número de actividades'!$C$7,'Número de actividades'!$B$7,B259='Número de actividades'!$C$8,'Número de actividades'!$B$7,B259='Número de actividades'!$C$9,'Número de actividades'!$B$9,B259='Número de actividades'!$C$10,'Número de actividades'!$B$9,B259='Número de actividades'!$C$11,'Número de actividades'!$B$9,B259='Número de actividades'!$B$12,'Número de actividades'!$B$12)","v":{"$error":"#N/A"}},null,null,null,null,null,null,null,null,null,null,0,null,0,null,0,null,null,null,{"$error":"#DIV/0!"}]
[{"$f":"+_xlfn.IFS(B260='Número de actividades'!$C$3,'Número de actividades'!$B$3,B260='Número de actividades'!$C$4,'Número de actividades'!$B$3,B260='Número de actividades'!$C$5,'Número de actividades'!$B$3,B260='Número de actividades'!$C$6,'Número de actividades'!$B$3,B260='Número de actividades'!$C$7,'Número de actividades'!$B$7,B260='Número de actividades'!$C$8,'Número de actividades'!$B$7,B260='Número de actividades'!$C$9,'Número de actividades'!$B$9,B260='Número de actividades'!$C$10,'Número de actividades'!$B$9,B260='Número de actividades'!$C$11,'Número de actividades'!$B$9,B260='Número de actividades'!$B$12,'Número de actividades'!$B$12)","v":{"$error":"#N/A"}},null,null,null,null,null,null,null,null,null,null,0,null,0,null,0,null,null,null,{"$error":"#DIV/0!"}]
[{"$f":"+_xlfn.IFS(B261='Número de actividades'!$C$3,'Número de actividades'!$B$3,B261='Número de actividades'!$C$4,'Número de actividades'!$B$3,B261='Número de actividades'!$C$5,'Número de actividades'!$B$3,B261='Número de actividades'!$C$6,'Número de actividades'!$B$3,B261='Número de actividades'!$C$7,'Número de actividades'!$B$7,B261='Número de actividades'!$C$8,'Número de actividades'!$B$7,B261='Número de actividades'!$C$9,'Número de actividades'!$B$9,B261='Número de actividades'!$C$10,'Número de actividades'!$B$9,B261='Número de actividades'!$C$11,'Número de actividades'!$B$9,B261='Número de actividades'!$B$12,'Número de actividades'!$B$12)","v":{"$error":"#N/A"}},null,null,null,null,null,null,null,null,null,null,0,null,0,null,0,null,null,null,{"$error":"#DIV/0!"}]
[{"$f":"+_xlfn.IFS(B262='Número de actividades'!$C$3,'Número de actividades'!$B$3,B262='Número de actividades'!$C$4,'Número de actividades'!$B$3,B262='Número de actividades'!$C$5,'Número de actividades'!$B$3,B262='Número de actividades'!$C$6,'Número de actividades'!$B$3,B262='Número de actividades'!$C$7,'Número de actividades'!$B$7,B262='Número de actividades'!$C$8,'Número de actividades'!$B$7,B262='Número de actividades'!$C$9,'Número de actividades'!$B$9,B262='Número de actividades'!$C$10,'Número de actividades'!$B$9,B262='Número de actividades'!$C$11,'Número de actividades'!$B$9,B262='Número de actividades'!$B$12,'Número de actividades'!$B$12)","v":{"$error":"#N/A"}},null,null,null,null,null,null,null,null,null,null,0,null,0,null,0,null,null,null,{"$error":"#DIV/0!"}]
[{"$f":"+_xlfn.IFS(B263='Número de actividades'!$C$3,'Número de actividades'!$B$3,B263='Número de actividades'!$C$4,'Número de actividades'!$B$3,B263='Número de actividades'!$C$5,'Número de actividades'!$B$3,B263='Número de actividades'!$C$6,'Número de actividades'!$B$3,B263='Número de actividades'!$C$7,'Número de actividades'!$B$7,B263='Número de actividades'!$C$8,'Número de actividades'!$B$7,B263='Número de actividades'!$C$9,'Número de actividades'!$B$9,B263='Número de actividades'!$C$10,'Número de actividades'!$B$9,B263='Número de actividades'!$C$11,'Número de actividades'!$B$9,B263='Número de actividades'!$B$12,'Número de actividades'!$B$12)","v":{"$error":"#N/A"}},null,null,null,null,null,null,null,null,null,null,0,null,0,null,0,null,null,null,{"$error":"#DIV/0!"}]
[{"$f":"+_xlfn.IFS(B264='Número de actividades'!$C$3,'Número de actividades'!$B$3,B264='Número de actividades'!$C$4,'Número de actividades'!$B$3,B264='Número de actividades'!$C$5,'Número de actividades'!$B$3,B264='Número de actividades'!$C$6,'Número de actividades'!$B$3,B264='Número de actividades'!$C$7,'Número de actividades'!$B$7,B264='Número de actividades'!$C$8,'Número de actividades'!$B$7,B264='Número de actividades'!$C$9,'Número de actividades'!$B$9,B264='Número de actividades'!$C$10,'Número de actividades'!$B$9,B264='Número de actividades'!$C$11,'Número de actividades'!$B$9,B264='Número de actividades'!$B$12,'Número de actividades'!$B$12)","v":{"$error":"#N/A"}},null,null,null,null,null,null,null,null,null,null,0,null,0,null,0,null,null,null,{"$error":"#DIV/0!"}]
[{"$f":"+_xlfn.IFS(B265='Número de actividades'!$C$3,'Número de actividades'!$B$3,B265='Número de actividades'!$C$4,'Número de actividades'!$B$3,B265='Número de actividades'!$C$5,'Número de actividades'!$B$3,B265='Número de actividades'!$C$6,'Número de actividades'!$B$3,B265='Número de actividades'!$C$7,'Número de actividades'!$B$7,B265='Número de actividades'!$C$8,'Número de actividades'!$B$7,B265='Número de actividades'!$C$9,'Número de actividades'!$B$9,B265='Número de actividades'!$C$10,'Número de actividades'!$B$9,B265='Número de actividades'!$C$11,'Número de actividades'!$B$9,B265='Número de actividades'!$B$12,'Número de actividades'!$B$12)","v":{"$error":"#N/A"}},null,null,null,null,null,null,null,null,null,null,0,null,0,null,0,null,null,null,{"$error":"#DIV/0!"}]
[{"$f":"+_xlfn.IFS(B266='Número de actividades'!$C$3,'Número de actividades'!$B$3,B266='Número de actividades'!$C$4,'Número de actividades'!$B$3,B266='Número de actividades'!$C$5,'Número de actividades'!$B$3,B266='Número de actividades'!$C$6,'Número de actividades'!$B$3,B266='Número de actividades'!$C$7,'Número de actividades'!$B$7,B266='Número de actividades'!$C$8,'Número de actividades'!$B$7,B266='Número de actividades'!$C$9,'Número de actividades'!$B$9,B266='Número de actividades'!$C$10,'Número de actividades'!$B$9,B266='Número de actividades'!$C$11,'Número de actividades'!$B$9,B266='Número de actividades'!$B$12,'Número de actividades'!$B$12)","v":{"$error":"#N/A"}},null,null,null,null,null,null,null,null,null,null,0,null,0,null,0,null,null,null,{"$error":"#DIV/0!"}]
[{"$f":"+_xlfn.IFS(B267='Número de actividades'!$C$3,'Número de actividades'!$B$3,B267='Número de actividades'!$C$4,'Número de actividades'!$B$3,B267='Número de actividades'!$C$5,'Número de actividades'!$B$3,B267='Número de actividades'!$C$6,'Número de actividades'!$B$3,B267='Número de actividades'!$C$7,'Número de actividades'!$B$7,B267='Número de actividades'!$C$8,'Número de actividades'!$B$7,B267='Número de actividades'!$C$9,'Número de actividades'!$B$9,B267='Número de actividades'!$C$10,'Número de actividades'!$B$9,B267='Número de actividades'!$C$11,'Número de actividades'!$B$9,B267='Número de actividades'!$B$12,'Número de actividades'!$B$12)","v":{"$error":"#N/A"}},null,null,null,null,null,null,null,null,null,null,0,null,0,null,0,null,null,null,{"$error":"#DIV/0!"}]
[{"$f":"+_xlfn.IFS(B268='Número de actividades'!$C$3,'Número de actividades'!$B$3,B268='Número de actividades'!$C$4,'Número de actividades'!$B$3,B268='Número de actividades'!$C$5,'Número de actividades'!$B$3,B268='Número de actividades'!$C$6,'Número de actividades'!$B$3,B268='Número de actividades'!$C$7,'Número de actividades'!$B$7,B268='Número de actividades'!$C$8,'Número de actividades'!$B$7,B268='Número de actividades'!$C$9,'Número de actividades'!$B$9,B268='Número de actividades'!$C$10,'Número de actividades'!$B$9,B268='Número de actividades'!$C$11,'Número de actividades'!$B$9,B268='Número de actividades'!$B$12,'Número de actividades'!$B$12)","v":{"$error":"#N/A"}},null,null,null,null,null,null,null,null,null,null,0,null,0,null,0,null,null,null,{"$error":"#DIV/0!"}]
[{"$f":"+_xlfn.IFS(B269='Número de actividades'!$C$3,'Número de actividades'!$B$3,B269='Número de actividades'!$C$4,'Número de actividades'!$B$3,B269='Número de actividades'!$C$5,'Número de actividades'!$B$3,B269='Número de actividades'!$C$6,'Número de actividades'!$B$3,B269='Número de actividades'!$C$7,'Número de actividades'!$B$7,B269='Número de actividades'!$C$8,'Número de actividades'!$B$7,B269='Número de actividades'!$C$9,'Número de actividades'!$B$9,B269='Número de actividades'!$C$10,'Número de actividades'!$B$9,B269='Número de actividades'!$C$11,'Número de actividades'!$B$9,B269='Número de actividades'!$B$12,'Número de actividades'!$B$12)","v":{"$error":"#N/A"}},null,null,null,null,null,null,null,null,null,null,0,null,0,null,0,null,null,null,{"$error":"#DIV/0!"}]
[{"$f":"+_xlfn.IFS(B270='Número de actividades'!$C$3,'Número de actividades'!$B$3,B270='Número de actividades'!$C$4,'Número de actividades'!$B$3,B270='Número de actividades'!$C$5,'Número de actividades'!$B$3,B270='Número de actividades'!$C$6,'Número de actividades'!$B$3,B270='Número de actividades'!$C$7,'Número de actividades'!$B$7,B270='Número de actividades'!$C$8,'Número de actividades'!$B$7,B270='Número de actividades'!$C$9,'Número de actividades'!$B$9,B270='Número de actividades'!$C$10,'Número de actividades'!$B$9,B270='Número de actividades'!$C$11,'Número de actividades'!$B$9,B270='Número de actividades'!$B$12,'Número de actividades'!$B$12)","v":{"$error":"#N/A"}},null,null,null,null,null,null,null,null,null,null,0,null,0,null,0,null,null,null,{"$error":"#DIV/0!"}]
[{"$f":"+_xlfn.IFS(B271='Número de actividades'!$C$3,'Número de actividades'!$B$3,B271='Número de actividades'!$C$4,'Número de actividades'!$B$3,B271='Número de actividades'!$C$5,'Número de actividades'!$B$3,B271='Número de actividades'!$C$6,'Número de actividades'!$B$3,B271='Número de actividades'!$C$7,'Número de actividades'!$B$7,B271='Número de actividades'!$C$8,'Número de actividades'!$B$7,B271='Número de actividades'!$C$9,'Número de actividades'!$B$9,B271='Número de actividades'!$C$10,'Número de actividades'!$B$9,B271='Número de actividades'!$C$11,'Número de actividades'!$B$9,B271='Número de actividades'!$B$12,'Número de actividades'!$B$12)","v":{"$error":"#N/A"}},null,null,null,null,null,null,null,null,null,null,0,null,0,null,0,null,null,null,{"$error":"#DIV/0!"}]
[{"$f":"+_xlfn.IFS(B272='Número de actividades'!$C$3,'Número de actividades'!$B$3,B272='Número de actividades'!$C$4,'Número de actividades'!$B$3,B272='Número de actividades'!$C$5,'Número de actividades'!$B$3,B272='Número de actividades'!$C$6,'Número de actividades'!$B$3,B272='Número de actividades'!$C$7,'Número de actividades'!$B$7,B272='Número de actividades'!$C$8,'Número de actividades'!$B$7,B272='Número de actividades'!$C$9,'Número de actividades'!$B$9,B272='Número de actividades'!$C$10,'Número de actividades'!$B$9,B272='Número de actividades'!$C$11,'Número de actividades'!$B$9,B272='Número de actividades'!$B$12,'Número de actividades'!$B$12)","v":{"$error":"#N/A"}},null,null,null,null,null,null,null,null,null,null,0,null,0,null,0,null,null,null,{"$error":"#DIV/0!"}]
[{"$f":"+_xlfn.IFS(B273='Número de actividades'!$C$3,'Número de actividades'!$B$3,B273='Número de actividades'!$C$4,'Número de actividades'!$B$3,B273='Número de actividades'!$C$5,'Número de actividades'!$B$3,B273='Número de actividades'!$C$6,'Número de actividades'!$B$3,B273='Número de actividades'!$C$7,'Número de actividades'!$B$7,B273='Número de actividades'!$C$8,'Número de actividades'!$B$7,B273='Número de actividades'!$C$9,'Número de actividades'!$B$9,B273='Número de actividades'!$C$10,'Número de actividades'!$B$9,B273='Número de actividades'!$C$11,'Número de actividades'!$B$9,B273='Número de actividades'!$B$12,'Número de actividades'!$B$12)","v":{"$error":"#N/A"}},null,null,null,null,null,null,null,null,null,null,0,null,0,null,0,null,null,null,{"$f":"((K273+M273+O273)/(L273+N273+P273))","v":{"$error":"#DIV/0!"}}]
[{"$f":"+_xlfn.IFS(B274='Número de actividades'!$C$3,'Número de actividades'!$B$3,B274='Número de actividades'!$C$4,'Número de actividades'!$B$3,B274='Número de actividades'!$C$5,'Número de actividades'!$B$3,B274='Número de actividades'!$C$6,'Número de actividades'!$B$3,B274='Número de actividades'!$C$7,'Número de actividades'!$B$7,B274='Número de actividades'!$C$8,'Número de actividades'!$B$7,B274='Número de actividades'!$C$9,'Número de actividades'!$B$9,B274='Número de actividades'!$C$10,'Número de actividades'!$B$9,B274='Número de actividades'!$C$11,'Número de actividades'!$B$9,B274='Número de actividades'!$B$12,'Número de actividades'!$B$12)","v":{"$error":"#N/A"}},null,null,null,null,null,null,null,null,null,null,0,null,0,null,0,null,null,null,{"$f":"((K274+M274+O274)/(L274+N274+P274))","v":{"$error":"#DIV/0!"}}]